Workbook

Sheet Lists (hidden)
A1: SubTypeList
A2: Permanent | B2: Goods rated for Military use only
A3: Temporary | B3: Goods rated for Non-military use only
A4: Transhipment | B4: Goods rated for Military use and goods rated for Non-military use
A5: Incorporation | B5: Goods covered by EC Reg 1236/2005 only
B6: Goods covered by EC Reg 1236/2005 and goods rated for Military use
B7: Goods covered by EC Reg 1236/2005 and goods rated for Non-military use
B8: Goods covered by EC Reg 1236/2005 and goods rated for Military use and goods rated for Non-military use

Sheet Table Cover Sheet
B7: Strategic Export Controls licensing statistics
B9: Coverage
B10: United Kingdom
B12: Release date
B13: 2015-07-21
B15: Frequency of release
B16: Quarterly
B18: Enquiries
B19: ECO.statistics@bis.gsi.gov.uk
B21: Website
B22: https://www.gov.uk/government/collections/strategic-export-controls-licensing-data
B24: URN
B25: BIS/15/346/e

Sheet Table Notes
C8: Key to symbols used in these tables
C11: 0 | D11: Nil
C12: z | D12: Not applicable
C13: : | D13: Not available
C14: r | D14: Revised
C18: Background notes
B20: 1 | C20: This spread sheet provides a formatted data table with drop-down menu/s for easy data navigation. A simple data table, containing the underlying data,without formatting, is provided in the 'Data' sheet.
B21: 2 | C21: Comma Separated Value spread sheets are also provided to further facilitate analysis. CSVs use a non-propriety format that facilitates the manipulation of data by a variety of software (not just Microsoft Excel)
B22: 3 | C22: A statistical commentary document and PDF country pivot report provide further data and analysis:
C23: https://www.gov.uk/government/collections/strategic-export-controls-licensing-data

Sheet E
A1: Table E - SIELs - Issued SIELs - by licence type, sub-type and end user destination
A2: Note: For Temporary licences more than one destination may appear on a single licence application. Generally, this is due to the goods passing between exhibitions in different countries
A3: For the Total value of Temporary licences, the value of any goods on the licence is counted per destination on the licence.
A4: Goods covered by issued SITLs merely pass through the UK. It would be misleading to compare the value for these licences with the value of items originating in the UK.
M6: Licences with: | N6: Goods rated for Military use only
A7: a = No. of licences
A8: b = Value (£) of items on licence/s | M8: Data showing for: | N8: Permanent
R9: Click on the yellow cell and use the drop-down menu to select another period
A11: United Kingdom
F12: 2008 Q1 | H12: 2008 Q2 | J12: 2008 Q3 | L12: 2008 Q4 | N12: 2009 Q1 | P12: 2009 Q2 | R12: 2009 Q3 | T12: 2009 Q4 | V12: 2010 Q1 | X12: 2010 Q2 | Z12: 2010 Q3 | AB12: 2010 Q4 | AD12: 2011 Q1 | AF12: 2011 Q2 | AH12: 2011 Q3 | AJ12: 2011 Q4 | AL12: 2012 Q1 | AN12: 2012 Q2 | AP12: 2012 Q3 | AR12: 2012 Q4 | AT12: 2013 Q1 | AV12: 2013 Q2 | AX12: 2013 Q3 | AZ12: 2013 Q4 | BB12: 2014 Q1 | BD12: 2014 Q2 | BF12: 2014 Q3 | BH12: 2014 Q4 | BJ12: 2015 Q1
A13: End user destination
D14: Total | E14: a | F14: =SUMPRODUCT((F$16:F$537)*($E$16:$E$537="a")) -> 1333 | H14: =SUMPRODUCT((H$16:H$537)*($E$16:$E$537="a")) -> 1268 | J14: =SUMPRODUCT((J$16:J$537)*($E$16:$E$537="a")) -> 1295 | L14: =SUMPRODUCT((L$16:L$537)*($E$16:$E$537="a")) -> 1488 | N14: =SUMPRODUCT((N$16:N$537)*($E$16:$E$537="a")) -> 1463 | P14: =SUMPRODUCT((P$16:P$537)*($E$16:$E$537="a")) -> 1541 | R14: 1570 | T14: 1577 | V14: 1673 | X14: 1720 | Z14: 1627 | AB14: 1594 | AD14: 1499 | AF14: 1552 | AH14: 1509 | AJ14: 1568 | AL14: 1662 | AN14: 1515 | AP14: 1647 | AR14: 1544 | AT14: 1610 | AV14: 1672 | AX14: 1588 | AZ14: 1468 | BB14: 1697 | BD14: 1379 | BF14: 1701 | BH14: 1446 | BJ14: 1407
D15: Total | E15: b | F15: =SUMPRODUCT((F$16:F$537)*($E$16:$E$537="b")) -> 339756949 | H15: =SUMPRODUCT((H$16:H$537)*($E$16:$E$537="b")) -> 163026553 | J15: =SUMPRODUCT((J$16:J$537)*($E$16:$E$537="b")) -> 342597891 | L15: =SUMPRODUCT((L$16:L$537)*($E$16:$E$537="b")) -> 247232668 | N15: =SUMPRODUCT((N$16:N$537)*($E$16:$E$537="b")) -> 244767124 | P15: =SUMPRODUCT((P$16:P$537)*($E$16:$E$537="b")) -> 1913029196 | R15: 414307950 | T15: 272933607 | V15: 229605720 | X15: 180748213 | Z15: 1007916284 | AB15: 867889397 | AD15: 214975655 | AF15: 4710195937 | AH15: 390941830 | AJ15: 273866064 | AL15: 494082631 | AN15: 266592594 | AP15: 646422335 | AR15: 249081676 | AT15: 404913614 | AV15: 2215811165 | AX15: 326971593 | AZ15: 467565699 | BB15: 352868491 | BD15: 352402737 | BF15: 609622360 | BH15: 223485899 | BJ15: 362387138
D16: Afghanistan | E16: a | F16: =VLOOKUP(CONCATENATE($N$6,$D16,$N$8,$E16),Data!$A:$BU,MATCH(E!F$12,Data!$A$1:$BU$1,0),FALSE) -> 9 | H16: =VLOOKUP(CONCATENATE($N$6,$D16,$N$8,$E16),Data!$A:$BU,MATCH(E!H$12,Data!$A$1:$BU$1,0),FALSE) -> 3 | J16: =VLOOKUP(CONCATENATE($N$6,$D16,$N$8,$E16),Data!$A:$BU,MATCH(E!J$12,Data!$A$1:$BU$1,0),FALSE) -> 6 | L16: =VLOOKUP(CONCATENATE($N$6,$D16,$N$8,$E16),Data!$A:$BU,MATCH(E!L$12,Data!$A$1:$BU$1,0),FALSE) -> 8 | N16: =VLOOKUP(CONCATENATE($N$6,$D16,$N$8,$E16),Data!$A:$BU,MATCH(E!N$12,Data!$A$1:$BU$1,0),FALSE) -> 6 | P16: =VLOOKUP(CONCATENATE($N$6,$D16,$N$8,$E16),Data!$A:$BU,MATCH(E!P$12,Data!$A$1:$BU$1,0),FALSE) -> 5 | R16: =VLOOKUP(CONCATENATE($N$6,$D16,$N$8,$E16),Data!$A:$BU,MATCH(E!R$12,Data!$A$1:$BU$1,0),FALSE) -> 9 | T16: =VLOOKUP(CONCATENATE($N$6,$D16,$N$8,$E16),Data!$A:$BU,MATCH(E!T$12,Data!$A$1:$BU$1,0),FALSE) -> 12 | V16: =VLOOKUP(CONCATENATE($N$6,$D16,$N$8,$E16),Data!$A:$BU,MATCH(E!V$12,Data!$A$1:$BU$1,0),FALSE) -> 9 | X16: =VLOOKUP(CONCATENATE($N$6,$D16,$N$8,$E16),Data!$A:$BU,MATCH(E!X$12,Data!$A$1:$BU$1,0),FALSE) -> 15 | Z16: =VLOOKUP(CONCATENATE($N$6,$D16,$N$8,$E16),Data!$A:$BU,MATCH(E!Z$12,Data!$A$1:$BU$1,0),FALSE) -> 13 | AB16: =VLOOKUP(CONCATENATE($N$6,$D16,$N$8,$E16),Data!$A:$BU,MATCH(E!AB$12,Data!$A$1:$BU$1,0),FALSE) -> 8 | AD16: =VLOOKUP(CONCATENATE($N$6,$D16,$N$8,$E16),Data!$A:$BU,MATCH(E!AD$12,Data!$A$1:$BU$1,0),FALSE) -> 12 | AF16: =VLOOKUP(CONCATENATE($N$6,$D16,$N$8,$E16),Data!$A:$BU,MATCH(E!AF$12,Data!$A$1:$BU$1,0),FALSE) -> 3 | AH16: =VLOOKUP(CONCATENATE($N$6,$D16,$N$8,$E16),Data!$A:$BU,MATCH(E!AH$12,Data!$A$1:$BU$1,0),FALSE) -> 14 | AJ16: =VLOOKUP(CONCATENATE($N$6,$D16,$N$8,$E16),Data!$A:$BU,MATCH(E!AJ$12,Data!$A$1:$BU$1,0),FALSE) -> 7 | AL16: =VLOOKUP(CONCATENATE($N$6,$D16,$N$8,$E16),Data!$A:$BU,MATCH(E!AL$12,Data!$A$1:$BU$1,0),FALSE) -> 9 | AN16: =VLOOKUP(CONCATENATE($N$6,$D16,$N$8,$E16),Data!$A:$BU,MATCH(E!AN$12,Data!$A$1:$BU$1,0),FALSE) -> 9 | AP16: =VLOOKUP(CONCATENATE($N$6,$D16,$N$8,$E16),Data!$A:$BU,MATCH(E!AP$12,Data!$A$1:$BU$1,0),FALSE) -> 12 | AR16: =VLOOKUP(CONCATENATE($N$6,$D16,$N$8,$E16),Data!$A:$BU,MATCH(E!AR$12,Data!$A$1:$BU$1,0),FALSE) -> 9 | AT16: =VLOOKUP(CONCATENATE($N$6,$D16,$N$8,$E16),Data!$A:$BU,MATCH(E!AT$12,Data!$A$1:$BU$1,0),FALSE) -> 4 | AV16: =VLOOKUP(CONCATENATE($N$6,$D16,$N$8,$E16),Data!$A:$BU,MATCH(E!AV$12,Data!$A$1:$BU$1,0),FALSE) -> 14 | AX16: =VLOOKUP(CONCATENATE($N$6,$D16,$N$8,$E16),Data!$A:$BU,MATCH(E!AX$12,Data!$A$1:$BU$1,0),FALSE) -> 1 | AZ16: =VLOOKUP(CONCATENATE($N$6,$D16,$N$8,$E16),Data!$A:$BU,MATCH(E!AZ$12,Data!$A$1:$BU$1,0),FALSE) -> 8 | BB16: =VLOOKUP(CONCATENATE($N$6,$D16,$N$8,$E16),Data!$A:$BU,MATCH(E!BB$12,Data!$A$1:$BU$1,0),FALSE) -> 10 | BD16: =VLOOKUP(CONCATENATE($N$6,$D16,$N$8,$E16),Data!$A:$BU,MATCH(E!BD$12,Data!$A$1:$BU$1,0),FALSE) -> 9 | BF16: =VLOOKUP(CONCATENATE($N$6,$D16,$N$8,$E16),Data!$A:$BU,MATCH(E!BF$12,Data!$A$1:$BU$1,0),FALSE) -> 13 | BH16: =VLOOKUP(CONCATENATE($N$6,$D16,$N$8,$E16),Data!$A:$BU,MATCH(E!BH$12,Data!$A$1:$BU$1,0),FALSE) -> 3 | BJ16: =VLOOKUP(CONCATENATE($N$6,$D16,$N$8,$E16),Data!$A:$BU,MATCH(E!BJ$12,Data!$A$1:$BU$1,0),FALSE) -> 11
D17: Afghanistan | E17: b | F17: =VLOOKUP(CONCATENATE($N$6,$D17,$N$8,$E17),Data!$A:$BU,MATCH(E!F$12,Data!$A$1:$BU$1,0),FALSE) -> 1636321 | H17: =VLOOKUP(CONCATENATE($N$6,$D17,$N$8,$E17),Data!$A:$BU,MATCH(E!H$12,Data!$A$1:$BU$1,0),FALSE) -> 466254 | J17: =VLOOKUP(CONCATENATE($N$6,$D17,$N$8,$E17),Data!$A:$BU,MATCH(E!J$12,Data!$A$1:$BU$1,0),FALSE) -> 3242563 | L17: =VLOOKUP(CONCATENATE($N$6,$D17,$N$8,$E17),Data!$A:$BU,MATCH(E!L$12,Data!$A$1:$BU$1,0),FALSE) -> 5847809 | N17: =VLOOKUP(CONCATENATE($N$6,$D17,$N$8,$E17),Data!$A:$BU,MATCH(E!N$12,Data!$A$1:$BU$1,0),FALSE) -> 1558428 | P17: =VLOOKUP(CONCATENATE($N$6,$D17,$N$8,$E17),Data!$A:$BU,MATCH(E!P$12,Data!$A$1:$BU$1,0),FALSE) -> 516659 | R17: =VLOOKUP(CONCATENATE($N$6,$D17,$N$8,$E17),Data!$A:$BU,MATCH(E!R$12,Data!$A$1:$BU$1,0),FALSE) -> 3918958 | T17: =VLOOKUP(CONCATENATE($N$6,$D17,$N$8,$E17),Data!$A:$BU,MATCH(E!T$12,Data!$A$1:$BU$1,0),FALSE) -> 6805330 | V17: =VLOOKUP(CONCATENATE($N$6,$D17,$N$8,$E17),Data!$A:$BU,MATCH(E!V$12,Data!$A$1:$BU$1,0),FALSE) -> 8500048 | X17: =VLOOKUP(CONCATENATE($N$6,$D17,$N$8,$E17),Data!$A:$BU,MATCH(E!X$12,Data!$A$1:$BU$1,0),FALSE) -> 442049 | Z17: =VLOOKUP(CONCATENATE($N$6,$D17,$N$8,$E17),Data!$A:$BU,MATCH(E!Z$12,Data!$A$1:$BU$1,0),FALSE) -> 1457379 | AB17: =VLOOKUP(CONCATENATE($N$6,$D17,$N$8,$E17),Data!$A:$BU,MATCH(E!AB$12,Data!$A$1:$BU$1,0),FALSE) -> 1674186 | AD17: =VLOOKUP(CONCATENATE($N$6,$D17,$N$8,$E17),Data!$A:$BU,MATCH(E!AD$12,Data!$A$1:$BU$1,0),FALSE) -> 6108972 | AF17: =VLOOKUP(CONCATENATE($N$6,$D17,$N$8,$E17),Data!$A:$BU,MATCH(E!AF$12,Data!$A$1:$BU$1,0),FALSE) -> 94092 | AH17: =VLOOKUP(CONCATENATE($N$6,$D17,$N$8,$E17),Data!$A:$BU,MATCH(E!AH$12,Data!$A$1:$BU$1,0),FALSE) -> 9023622 | AJ17: =VLOOKUP(CONCATENATE($N$6,$D17,$N$8,$E17),Data!$A:$BU,MATCH(E!AJ$12,Data!$A$1:$BU$1,0),FALSE) -> 610330 | AL17: =VLOOKUP(CONCATENATE($N$6,$D17,$N$8,$E17),Data!$A:$BU,MATCH(E!AL$12,Data!$A$1:$BU$1,0),FALSE) -> 5162831 | AN17: =VLOOKUP(CONCATENATE($N$6,$D17,$N$8,$E17),Data!$A:$BU,MATCH(E!AN$12,Data!$A$1:$BU$1,0),FALSE) -> 3305746 | AP17: =VLOOKUP(CONCATENATE($N$6,$D17,$N$8,$E17),Data!$A:$BU,MATCH(E!AP$12,Data!$A$1:$BU$1,0),FALSE) -> 1698655 | AR17: =VLOOKUP(CONCATENATE($N$6,$D17,$N$8,$E17),Data!$A:$BU,MATCH(E!AR$12,Data!$A$1:$BU$1,0),FALSE) -> 442296 | AT17: =VLOOKUP(CONCATENATE($N$6,$D17,$N$8,$E17),Data!$A:$BU,MATCH(E!AT$12,Data!$A$1:$BU$1,0),FALSE) -> 91978 | AV17: =VLOOKUP(CONCATENATE($N$6,$D17,$N$8,$E17),Data!$A:$BU,MATCH(E!AV$12,Data!$A$1:$BU$1,0),FALSE) -> 1759854 | AX17: =VLOOKUP(CONCATENATE($N$6,$D17,$N$8,$E17),Data!$A:$BU,MATCH(E!AX$12,Data!$A$1:$BU$1,0),FALSE) -> 80742 | AZ17: =VLOOKUP(CONCATENATE($N$6,$D17,$N$8,$E17),Data!$A:$BU,MATCH(E!AZ$12,Data!$A$1:$BU$1,0),FALSE) -> 6328245 | BB17: =VLOOKUP(CONCATENATE($N$6,$D17,$N$8,$E17),Data!$A:$BU,MATCH(E!BB$12,Data!$A$1:$BU$1,0),FALSE) -> 566843 | BD17: =VLOOKUP(CONCATENATE($N$6,$D17,$N$8,$E17),Data!$A:$BU,MATCH(E!BD$12,Data!$A$1:$BU$1,0),FALSE) -> 2317375 | BF17: =VLOOKUP(CONCATENATE($N$6,$D17,$N$8,$E17),Data!$A:$BU,MATCH(E!BF$12,Data!$A$1:$BU$1,0),FALSE) -> 886341 | BH17: =VLOOKUP(CONCATENATE($N$6,$D17,$N$8,$E17),Data!$A:$BU,MATCH(E!BH$12,Data!$A$1:$BU$1,0),FALSE) -> 10088 | BJ17: =VLOOKUP(CONCATENATE($N$6,$D17,$N$8,$E17),Data!$A:$BU,MATCH(E!BJ$12,Data!$A$1:$BU$1,0),FALSE) -> 1369326
D18: Aland Islands | E18: a | F18: =VLOOKUP(CONCATENATE($N$6,$D18,$N$8,$E18),Data!$A:$BU,MATCH(E!F$12,Data!$A$1:$BU$1,0),FALSE) -> 0 | H18: =VLOOKUP(CONCATENATE($N$6,$D18,$N$8,$E18),Data!$A:$BU,MATCH(E!H$12,Data!$A$1:$BU$1,0),FALSE) -> 0 | J18: =VLOOKUP(CONCATENATE($N$6,$D18,$N$8,$E18),Data!$A:$BU,MATCH(E!J$12,Data!$A$1:$BU$1,0),FALSE) -> 0 | L18: =VLOOKUP(CONCATENATE($N$6,$D18,$N$8,$E18),Data!$A:$BU,MATCH(E!L$12,Data!$A$1:$BU$1,0),FALSE) -> 0 | N18: =VLOOKUP(CONCATENATE($N$6,$D18,$N$8,$E18),Data!$A:$BU,MATCH(E!N$12,Data!$A$1:$BU$1,0),FALSE) -> 0 | P18: =VLOOKUP(CONCATENATE($N$6,$D18,$N$8,$E18),Data!$A:$BU,MATCH(E!P$12,Data!$A$1:$BU$1,0),FALSE) -> 0 | R18: =VLOOKUP(CONCATENATE($N$6,$D18,$N$8,$E18),Data!$A:$BU,MATCH(E!R$12,Data!$A$1:$BU$1,0),FALSE) -> 0 | T18: =VLOOKUP(CONCATENATE($N$6,$D18,$N$8,$E18),Data!$A:$BU,MATCH(E!T$12,Data!$A$1:$BU$1,0),FALSE) -> 0 | V18: =VLOOKUP(CONCATENATE($N$6,$D18,$N$8,$E18),Data!$A:$BU,MATCH(E!V$12,Data!$A$1:$BU$1,0),FALSE) -> 0 | X18: =VLOOKUP(CONCATENATE($N$6,$D18,$N$8,$E18),Data!$A:$BU,MATCH(E!X$12,Data!$A$1:$BU$1,0),FALSE) -> 0 | Z18: =VLOOKUP(CONCATENATE($N$6,$D18,$N$8,$E18),Data!$A:$BU,MATCH(E!Z$12,Data!$A$1:$BU$1,0),FALSE) -> 0 | AB18: =VLOOKUP(CONCATENATE($N$6,$D18,$N$8,$E18),Data!$A:$BU,MATCH(E!AB$12,Data!$A$1:$BU$1,0),FALSE) -> 0 | AD18: =VLOOKUP(CONCATENATE($N$6,$D18,$N$8,$E18),Data!$A:$BU,MATCH(E!AD$12,Data!$A$1:$BU$1,0),FALSE) -> 0 | AF18: =VLOOKUP(CONCATENATE($N$6,$D18,$N$8,$E18),Data!$A:$BU,MATCH(E!AF$12,Data!$A$1:$BU$1,0),FALSE) -> 0 | AH18: =VLOOKUP(CONCATENATE($N$6,$D18,$N$8,$E18),Data!$A:$BU,MATCH(E!AH$12,Data!$A$1:$BU$1,0),FALSE) -> 0 | AJ18: =VLOOKUP(CONCATENATE($N$6,$D18,$N$8,$E18),Data!$A:$BU,MATCH(E!AJ$12,Data!$A$1:$BU$1,0),FALSE) -> 0 | AL18: =VLOOKUP(CONCATENATE($N$6,$D18,$N$8,$E18),Data!$A:$BU,MATCH(E!AL$12,Data!$A$1:$BU$1,0),FALSE) -> 0 | AN18: =VLOOKUP(CONCATENATE($N$6,$D18,$N$8,$E18),Data!$A:$BU,MATCH(E!AN$12,Data!$A$1:$BU$1,0),FALSE) -> 0 | AP18: =VLOOKUP(CONCATENATE($N$6,$D18,$N$8,$E18),Data!$A:$BU,MATCH(E!AP$12,Data!$A$1:$BU$1,0),FALSE) -> 0 | AR18: =VLOOKUP(CONCATENATE($N$6,$D18,$N$8,$E18),Data!$A:$BU,MATCH(E!AR$12,Data!$A$1:$BU$1,0),FALSE) -> 0 | AT18: =VLOOKUP(CONCATENATE($N$6,$D18,$N$8,$E18),Data!$A:$BU,MATCH(E!AT$12,Data!$A$1:$BU$1,0),FALSE) -> 0 | AV18: =VLOOKUP(CONCATENATE($N$6,$D18,$N$8,$E18),Data!$A:$BU,MATCH(E!AV$12,Data!$A$1:$BU$1,0),FALSE) -> 0 | AX18: =VLOOKUP(CONCATENATE($N$6,$D18,$N$8,$E18),Data!$A:$BU,MATCH(E!AX$12,Data!$A$1:$BU$1,0),FALSE) -> 0 | AZ18: =VLOOKUP(CONCATENATE($N$6,$D18,$N$8,$E18),Data!$A:$BU,MATCH(E!AZ$12,Data!$A$1:$BU$1,0),FALSE) -> 1 | BB18: =VLOOKUP(CONCATENATE($N$6,$D18,$N$8,$E18),Data!$A:$BU,MATCH(E!BB$12,Data!$A$1:$BU$1,0),FALSE) -> 0 | BD18: =VLOOKUP(CONCATENATE($N$6,$D18,$N$8,$E18),Data!$A:$BU,MATCH(E!BD$12,Data!$A$1:$BU$1,0),FALSE) -> 0 | BF18: =VLOOKUP(CONCATENATE($N$6,$D18,$N$8,$E18),Data!$A:$BU,MATCH(E!BF$12,Data!$A$1:$BU$1,0),FALSE) -> 0 | BH18: =VLOOKUP(CONCATENATE($N$6,$D18,$N$8,$E18),Data!$A:$BU,MATCH(E!BH$12,Data!$A$1:$BU$1,0),FALSE) -> 0 | BJ18: =VLOOKUP(CONCATENATE($N$6,$D18,$N$8,$E18),Data!$A:$BU,MATCH(E!BJ$12,Data!$A$1:$BU$1,0),FALSE) -> 0
D19: Aland Islands | E19: b | F19: =VLOOKUP(CONCATENATE($N$6,$D19,$N$8,$E19),Data!$A:$BU,MATCH(E!F$12,Data!$A$1:$BU$1,0),FALSE) -> 0 | H19: =VLOOKUP(CONCATENATE($N$6,$D19,$N$8,$E19),Data!$A:$BU,MATCH(E!H$12,Data!$A$1:$BU$1,0),FALSE) -> 0 | J19: =VLOOKUP(CONCATENATE($N$6,$D19,$N$8,$E19),Data!$A:$BU,MATCH(E!J$12,Data!$A$1:$BU$1,0),FALSE) -> 0 | L19: =VLOOKUP(CONCATENATE($N$6,$D19,$N$8,$E19),Data!$A:$BU,MATCH(E!L$12,Data!$A$1:$BU$1,0),FALSE) -> 0 | N19: =VLOOKUP(CONCATENATE($N$6,$D19,$N$8,$E19),Data!$A:$BU,MATCH(E!N$12,Data!$A$1:$BU$1,0),FALSE) -> 0 | P19: =VLOOKUP(CONCATENATE($N$6,$D19,$N$8,$E19),Data!$A:$BU,MATCH(E!P$12,Data!$A$1:$BU$1,0),FALSE) -> 0 | R19: =VLOOKUP(CONCATENATE($N$6,$D19,$N$8,$E19),Data!$A:$BU,MATCH(E!R$12,Data!$A$1:$BU$1,0),FALSE) -> 0 | T19: =VLOOKUP(CONCATENATE($N$6,$D19,$N$8,$E19),Data!$A:$BU,MATCH(E!T$12,Data!$A$1:$BU$1,0),FALSE) -> 0 | V19: =VLOOKUP(CONCATENATE($N$6,$D19,$N$8,$E19),Data!$A:$BU,MATCH(E!V$12,Data!$A$1:$BU$1,0),FALSE) -> 0 | X19: =VLOOKUP(CONCATENATE($N$6,$D19,$N$8,$E19),Data!$A:$BU,MATCH(E!X$12,Data!$A$1:$BU$1,0),FALSE) -> 0 | Z19: =VLOOKUP(CONCATENATE($N$6,$D19,$N$8,$E19),Data!$A:$BU,MATCH(E!Z$12,Data!$A$1:$BU$1,0),FALSE) -> 0 | AB19: =VLOOKUP(CONCATENATE($N$6,$D19,$N$8,$E19),Data!$A:$BU,MATCH(E!AB$12,Data!$A$1:$BU$1,0),FALSE) -> 0 | AD19: =VLOOKUP(CONCATENATE($N$6,$D19,$N$8,$E19),Data!$A:$BU,MATCH(E!AD$12,Data!$A$1:$BU$1,0),FALSE) -> 0 | AF19: =VLOOKUP(CONCATENATE($N$6,$D19,$N$8,$E19),Data!$A:$BU,MATCH(E!AF$12,Data!$A$1:$BU$1,0),FALSE) -> 0 | AH19: =VLOOKUP(CONCATENATE($N$6,$D19,$N$8,$E19),Data!$A:$BU,MATCH(E!AH$12,Data!$A$1:$BU$1,0),FALSE) -> 0 | AJ19: =VLOOKUP(CONCATENATE($N$6,$D19,$N$8,$E19),Data!$A:$BU,MATCH(E!AJ$12,Data!$A$1:$BU$1,0),FALSE) -> 0 | AL19: =VLOOKUP(CONCATENATE($N$6,$D19,$N$8,$E19),Data!$A:$BU,MATCH(E!AL$12,Data!$A$1:$BU$1,0),FALSE) -> 0 | AN19: =VLOOKUP(CONCATENATE($N$6,$D19,$N$8,$E19),Data!$A:$BU,MATCH(E!AN$12,Data!$A$1:$BU$1,0),FALSE) -> 0 | AP19: =VLOOKUP(CONCATENATE($N$6,$D19,$N$8,$E19),Data!$A:$BU,MATCH(E!AP$12,Data!$A$1:$BU$1,0),FALSE) -> 0 | AR19: =VLOOKUP(CONCATENATE($N$6,$D19,$N$8,$E19),Data!$A:$BU,MATCH(E!AR$12,Data!$A$1:$BU$1,0),FALSE) -> 0 | AT19: =VLOOKUP(CONCATENATE($N$6,$D19,$N$8,$E19),Data!$A:$BU,MATCH(E!AT$12,Data!$A$1:$BU$1,0),FALSE) -> 0 | AV19: =VLOOKUP(CONCATENATE($N$6,$D19,$N$8,$E19),Data!$A:$BU,MATCH(E!AV$12,Data!$A$1:$BU$1,0),FALSE) -> 0 | AX19: =VLOOKUP(CONCATENATE($N$6,$D19,$N$8,$E19),Data!$A:$BU,MATCH(E!AX$12,Data!$A$1:$BU$1,0),FALSE) -> 0 | AZ19: =VLOOKUP(CONCATENATE($N$6,$D19,$N$8,$E19),Data!$A:$BU,MATCH(E!AZ$12,Data!$A$1:$BU$1,0),FALSE) -> 535 | BB19: =VLOOKUP(CONCATENATE($N$6,$D19,$N$8,$E19),Data!$A:$BU,MATCH(E!BB$12,Data!$A$1:$BU$1,0),FALSE) -> 0 | BD19: =VLOOKUP(CONCATENATE($N$6,$D19,$N$8,$E19),Data!$A:$BU,MATCH(E!BD$12,Data!$A$1:$BU$1,0),FALSE) -> 0 | BF19: =VLOOKUP(CONCATENATE($N$6,$D19,$N$8,$E19),Data!$A:$BU,MATCH(E!BF$12,Data!$A$1:$BU$1,0),FALSE) -> 0 | BH19: =VLOOKUP(CONCATENATE($N$6,$D19,$N$8,$E19),Data!$A:$BU,MATCH(E!BH$12,Data!$A$1:$BU$1,0),FALSE) -> 0 | BJ19: =VLOOKUP(CONCATENATE($N$6,$D19,$N$8,$E19),Data!$A:$BU,MATCH(E!BJ$12,Data!$A$1:$BU$1,0),FALSE) -> 0
D20: Albania | E20: a | F20: =VLOOKUP(CONCATENATE($N$6,$D20,$N$8,$E20),Data!$A:$BU,MATCH(E!F$12,Data!$A$1:$BU$1,0),FALSE) -> 0 | H20: =VLOOKUP(CONCATENATE($N$6,$D20,$N$8,$E20),Data!$A:$BU,MATCH(E!H$12,Data!$A$1:$BU$1,0),FALSE) -> 0 | J20: =VLOOKUP(CONCATENATE($N$6,$D20,$N$8,$E20),Data!$A:$BU,MATCH(E!J$12,Data!$A$1:$BU$1,0),FALSE) -> 0 | L20: =VLOOKUP(CONCATENATE($N$6,$D20,$N$8,$E20),Data!$A:$BU,MATCH(E!L$12,Data!$A$1:$BU$1,0),FALSE) -> 2 | N20: =VLOOKUP(CONCATENATE($N$6,$D20,$N$8,$E20),Data!$A:$BU,MATCH(E!N$12,Data!$A$1:$BU$1,0),FALSE) -> 0 | P20: =VLOOKUP(CONCATENATE($N$6,$D20,$N$8,$E20),Data!$A:$BU,MATCH(E!P$12,Data!$A$1:$BU$1,0),FALSE) -> 0 | R20: =VLOOKUP(CONCATENATE($N$6,$D20,$N$8,$E20),Data!$A:$BU,MATCH(E!R$12,Data!$A$1:$BU$1,0),FALSE) -> 1 | T20: =VLOOKUP(CONCATENATE($N$6,$D20,$N$8,$E20),Data!$A:$BU,MATCH(E!T$12,Data!$A$1:$BU$1,0),FALSE) -> 0 | V20: =VLOOKUP(CONCATENATE($N$6,$D20,$N$8,$E20),Data!$A:$BU,MATCH(E!V$12,Data!$A$1:$BU$1,0),FALSE) -> 0 | X20: =VLOOKUP(CONCATENATE($N$6,$D20,$N$8,$E20),Data!$A:$BU,MATCH(E!X$12,Data!$A$1:$BU$1,0),FALSE) -> 1 | Z20: =VLOOKUP(CONCATENATE($N$6,$D20,$N$8,$E20),Data!$A:$BU,MATCH(E!Z$12,Data!$A$1:$BU$1,0),FALSE) -> 0 | AB20: =VLOOKUP(CONCATENATE($N$6,$D20,$N$8,$E20),Data!$A:$BU,MATCH(E!AB$12,Data!$A$1:$BU$1,0),FALSE) -> 0 | AD20: =VLOOKUP(CONCATENATE($N$6,$D20,$N$8,$E20),Data!$A:$BU,MATCH(E!AD$12,Data!$A$1:$BU$1,0),FALSE) -> 0 | AF20: =VLOOKUP(CONCATENATE($N$6,$D20,$N$8,$E20),Data!$A:$BU,MATCH(E!AF$12,Data!$A$1:$BU$1,0),FALSE) -> 0 | AH20: =VLOOKUP(CONCATENATE($N$6,$D20,$N$8,$E20),Data!$A:$BU,MATCH(E!AH$12,Data!$A$1:$BU$1,0),FALSE) -> 0 | AJ20: =VLOOKUP(CONCATENATE($N$6,$D20,$N$8,$E20),Data!$A:$BU,MATCH(E!AJ$12,Data!$A$1:$BU$1,0),FALSE) -> 0 | AL20: =VLOOKUP(CONCATENATE($N$6,$D20,$N$8,$E20),Data!$A:$BU,MATCH(E!AL$12,Data!$A$1:$BU$1,0),FALSE) -> 0 | AN20: =VLOOKUP(CONCATENATE($N$6,$D20,$N$8,$E20),Data!$A:$BU,MATCH(E!AN$12,Data!$A$1:$BU$1,0),FALSE) -> 0 | AP20: =VLOOKUP(CONCATENATE($N$6,$D20,$N$8,$E20),Data!$A:$BU,MATCH(E!AP$12,Data!$A$1:$BU$1,0),FALSE) -> 0 | AR20: =VLOOKUP(CONCATENATE($N$6,$D20,$N$8,$E20),Data!$A:$BU,MATCH(E!AR$12,Data!$A$1:$BU$1,0),FALSE) -> 0 | AT20: =VLOOKUP(CONCATENATE($N$6,$D20,$N$8,$E20),Data!$A:$BU,MATCH(E!AT$12,Data!$A$1:$BU$1,0),FALSE) -> 0 | AV20: =VLOOKUP(CONCATENATE($N$6,$D20,$N$8,$E20),Data!$A:$BU,MATCH(E!AV$12,Data!$A$1:$BU$1,0),FALSE) -> 0 | AX20: =VLOOKUP(CONCATENATE($N$6,$D20,$N$8,$E20),Data!$A:$BU,MATCH(E!AX$12,Data!$A$1:$BU$1,0),FALSE) -> 0 | AZ20: =VLOOKUP(CONCATENATE($N$6,$D20,$N$8,$E20),Data!$A:$BU,MATCH(E!AZ$12,Data!$A$1:$BU$1,0),FALSE) -> 0 | BB20: =VLOOKUP(CONCATENATE($N$6,$D20,$N$8,$E20),Data!$A:$BU,MATCH(E!BB$12,Data!$A$1:$BU$1,0),FALSE) -> 0 | BD20: =VLOOKUP(CONCATENATE($N$6,$D20,$N$8,$E20),Data!$A:$BU,MATCH(E!BD$12,Data!$A$1:$BU$1,0),FALSE) -> 0 | BF20: =VLOOKUP(CONCATENATE($N$6,$D20,$N$8,$E20),Data!$A:$BU,MATCH(E!BF$12,Data!$A$1:$BU$1,0),FALSE) -> 0 | BH20: =VLOOKUP(CONCATENATE($N$6,$D20,$N$8,$E20),Data!$A:$BU,MATCH(E!BH$12,Data!$A$1:$BU$1,0),FALSE) -> 0 | BJ20: =VLOOKUP(CONCATENATE($N$6,$D20,$N$8,$E20),Data!$A:$BU,MATCH(E!BJ$12,Data!$A$1:$BU$1,0),FALSE) -> 0
D21: Albania | E21: b | F21: =VLOOKUP(CONCATENATE($N$6,$D21,$N$8,$E21),Data!$A:$BU,MATCH(E!F$12,Data!$A$1:$BU$1,0),FALSE) -> 0 | H21: =VLOOKUP(CONCATENATE($N$6,$D21,$N$8,$E21),Data!$A:$BU,MATCH(E!H$12,Data!$A$1:$BU$1,0),FALSE) -> 0 | J21: =VLOOKUP(CONCATENATE($N$6,$D21,$N$8,$E21),Data!$A:$BU,MATCH(E!J$12,Data!$A$1:$BU$1,0),FALSE) -> 0 | L21: =VLOOKUP(CONCATENATE($N$6,$D21,$N$8,$E21),Data!$A:$BU,MATCH(E!L$12,Data!$A$1:$BU$1,0),FALSE) -> 28208 | N21: =VLOOKUP(CONCATENATE($N$6,$D21,$N$8,$E21),Data!$A:$BU,MATCH(E!N$12,Data!$A$1:$BU$1,0),FALSE) -> 0 | P21: =VLOOKUP(CONCATENATE($N$6,$D21,$N$8,$E21),Data!$A:$BU,MATCH(E!P$12,Data!$A$1:$BU$1,0),FALSE) -> 0 | R21: =VLOOKUP(CONCATENATE($N$6,$D21,$N$8,$E21),Data!$A:$BU,MATCH(E!R$12,Data!$A$1:$BU$1,0),FALSE) -> 31453 | T21: =VLOOKUP(CONCATENATE($N$6,$D21,$N$8,$E21),Data!$A:$BU,MATCH(E!T$12,Data!$A$1:$BU$1,0),FALSE) -> 0 | V21: =VLOOKUP(CONCATENATE($N$6,$D21,$N$8,$E21),Data!$A:$BU,MATCH(E!V$12,Data!$A$1:$BU$1,0),FALSE) -> 0 | X21: =VLOOKUP(CONCATENATE($N$6,$D21,$N$8,$E21),Data!$A:$BU,MATCH(E!X$12,Data!$A$1:$BU$1,0),FALSE) -> 9191 | Z21: =VLOOKUP(CONCATENATE($N$6,$D21,$N$8,$E21),Data!$A:$BU,MATCH(E!Z$12,Data!$A$1:$BU$1,0),FALSE) -> 0 | AB21: =VLOOKUP(CONCATENATE($N$6,$D21,$N$8,$E21),Data!$A:$BU,MATCH(E!AB$12,Data!$A$1:$BU$1,0),FALSE) -> 0 | AD21: =VLOOKUP(CONCATENATE($N$6,$D21,$N$8,$E21),Data!$A:$BU,MATCH(E!AD$12,Data!$A$1:$BU$1,0),FALSE) -> 0 | AF21: =VLOOKUP(CONCATENATE($N$6,$D21,$N$8,$E21),Data!$A:$BU,MATCH(E!AF$12,Data!$A$1:$BU$1,0),FALSE) -> 0 | AH21: =VLOOKUP(CONCATENATE($N$6,$D21,$N$8,$E21),Data!$A:$BU,MATCH(E!AH$12,Data!$A$1:$BU$1,0),FALSE) -> 0 | AJ21: =VLOOKUP(CONCATENATE($N$6,$D21,$N$8,$E21),Data!$A:$BU,MATCH(E!AJ$12,Data!$A$1:$BU$1,0),FALSE) -> 0 | AL21: =VLOOKUP(CONCATENATE($N$6,$D21,$N$8,$E21),Data!$A:$BU,MATCH(E!AL$12,Data!$A$1:$BU$1,0),FALSE) -> 0 | AN21: =VLOOKUP(CONCATENATE($N$6,$D21,$N$8,$E21),Data!$A:$BU,MATCH(E!AN$12,Data!$A$1:$BU$1,0),FALSE) -> 0 | AP21: =VLOOKUP(CONCATENATE($N$6,$D21,$N$8,$E21),Data!$A:$BU,MATCH(E!AP$12,Data!$A$1:$BU$1,0),FALSE) -> 0 | AR21: =VLOOKUP(CONCATENATE($N$6,$D21,$N$8,$E21),Data!$A:$BU,MATCH(E!AR$12,Data!$A$1:$BU$1,0),FALSE) -> 0 | AT21: =VLOOKUP(CONCATENATE($N$6,$D21,$N$8,$E21),Data!$A:$BU,MATCH(E!AT$12,Data!$A$1:$BU$1,0),FALSE) -> 0 | AV21: =VLOOKUP(CONCATENATE($N$6,$D21,$N$8,$E21),Data!$A:$BU,MATCH(E!AV$12,Data!$A$1:$BU$1,0),FALSE) -> 0 | AX21: =VLOOKUP(CONCATENATE($N$6,$D21,$N$8,$E21),Data!$A:$BU,MATCH(E!AX$12,Data!$A$1:$BU$1,0),FALSE) -> 0 | AZ21: =VLOOKUP(CONCATENATE($N$6,$D21,$N$8,$E21),Data!$A:$BU,MATCH(E!AZ$12,Data!$A$1:$BU$1,0),FALSE) -> 0 | BB21: =VLOOKUP(CONCATENATE($N$6,$D21,$N$8,$E21),Data!$A:$BU,MATCH(E!BB$12,Data!$A$1:$BU$1,0),FALSE) -> 0 | BD21: =VLOOKUP(CONCATENATE($N$6,$D21,$N$8,$E21),Data!$A:$BU,MATCH(E!BD$12,Data!$A$1:$BU$1,0),FALSE) -> 0 | BF21: =VLOOKUP(CONCATENATE($N$6,$D21,$N$8,$E21),Data!$A:$BU,MATCH(E!BF$12,Data!$A$1:$BU$1,0),FALSE) -> 0 | BH21: =VLOOKUP(CONCATENATE($N$6,$D21,$N$8,$E21),Data!$A:$BU,MATCH(E!BH$12,Data!$A$1:$BU$1,0),FALSE) -> 0 | BJ21: =VLOOKUP(CONCATENATE($N$6,$D21,$N$8,$E21),Data!$A:$BU,MATCH(E!BJ$12,Data!$A$1:$BU$1,0),FALSE) -> 0
D22: Algeria | E22: a | F22: =VLOOKUP(CONCATENATE($N$6,$D22,$N$8,$E22),Data!$A:$BU,MATCH(E!F$12,Data!$A$1:$BU$1,0),FALSE) -> 2 | H22: =VLOOKUP(CONCATENATE($N$6,$D22,$N$8,$E22),Data!$A:$BU,MATCH(E!H$12,Data!$A$1:$BU$1,0),FALSE) -> 3 | J22: =VLOOKUP(CONCATENATE($N$6,$D22,$N$8,$E22),Data!$A:$BU,MATCH(E!J$12,Data!$A$1:$BU$1,0),FALSE) -> 2 | L22: =VLOOKUP(CONCATENATE($N$6,$D22,$N$8,$E22),Data!$A:$BU,MATCH(E!L$12,Data!$A$1:$BU$1,0),FALSE) -> 0 | N22: =VLOOKUP(CONCATENATE($N$6,$D22,$N$8,$E22),Data!$A:$BU,MATCH(E!N$12,Data!$A$1:$BU$1,0),FALSE) -> 1 | P22: =VLOOKUP(CONCATENATE($N$6,$D22,$N$8,$E22),Data!$A:$BU,MATCH(E!P$12,Data!$A$1:$BU$1,0),FALSE) -> 4 | R22: =VLOOKUP(CONCATENATE($N$6,$D22,$N$8,$E22),Data!$A:$BU,MATCH(E!R$12,Data!$A$1:$BU$1,0),FALSE) -> 0 | T22: =VLOOKUP(CONCATENATE($N$6,$D22,$N$8,$E22),Data!$A:$BU,MATCH(E!T$12,Data!$A$1:$BU$1,0),FALSE) -> 0 | V22: =VLOOKUP(CONCATENATE($N$6,$D22,$N$8,$E22),Data!$A:$BU,MATCH(E!V$12,Data!$A$1:$BU$1,0),FALSE) -> 0 | X22: =VLOOKUP(CONCATENATE($N$6,$D22,$N$8,$E22),Data!$A:$BU,MATCH(E!X$12,Data!$A$1:$BU$1,0),FALSE) -> 1 | Z22: =VLOOKUP(CONCATENATE($N$6,$D22,$N$8,$E22),Data!$A:$BU,MATCH(E!Z$12,Data!$A$1:$BU$1,0),FALSE) -> 2 | AB22: =VLOOKUP(CONCATENATE($N$6,$D22,$N$8,$E22),Data!$A:$BU,MATCH(E!AB$12,Data!$A$1:$BU$1,0),FALSE) -> 0 | AD22: =VLOOKUP(CONCATENATE($N$6,$D22,$N$8,$E22),Data!$A:$BU,MATCH(E!AD$12,Data!$A$1:$BU$1,0),FALSE) -> 3 | AF22: =VLOOKUP(CONCATENATE($N$6,$D22,$N$8,$E22),Data!$A:$BU,MATCH(E!AF$12,Data!$A$1:$BU$1,0),FALSE) -> 3 | AH22: =VLOOKUP(CONCATENATE($N$6,$D22,$N$8,$E22),Data!$A:$BU,MATCH(E!AH$12,Data!$A$1:$BU$1,0),FALSE) -> 1 | AJ22: =VLOOKUP(CONCATENATE($N$6,$D22,$N$8,$E22),Data!$A:$BU,MATCH(E!AJ$12,Data!$A$1:$BU$1,0),FALSE) -> 1 | AL22: =VLOOKUP(CONCATENATE($N$6,$D22,$N$8,$E22),Data!$A:$BU,MATCH(E!AL$12,Data!$A$1:$BU$1,0),FALSE) -> 2 | AN22: =VLOOKUP(CONCATENATE($N$6,$D22,$N$8,$E22),Data!$A:$BU,MATCH(E!AN$12,Data!$A$1:$BU$1,0),FALSE) -> 1 | AP22: =VLOOKUP(CONCATENATE($N$6,$D22,$N$8,$E22),Data!$A:$BU,MATCH(E!AP$12,Data!$A$1:$BU$1,0),FALSE) -> 2 | AR22: =VLOOKUP(CONCATENATE($N$6,$D22,$N$8,$E22),Data!$A:$BU,MATCH(E!AR$12,Data!$A$1:$BU$1,0),FALSE) -> 0 | AT22: =VLOOKUP(CONCATENATE($N$6,$D22,$N$8,$E22),Data!$A:$BU,MATCH(E!AT$12,Data!$A$1:$BU$1,0),FALSE) -> 2 | AV22: =VLOOKUP(CONCATENATE($N$6,$D22,$N$8,$E22),Data!$A:$BU,MATCH(E!AV$12,Data!$A$1:$BU$1,0),FALSE) -> 4 | AX22: =VLOOKUP(CONCATENATE($N$6,$D22,$N$8,$E22),Data!$A:$BU,MATCH(E!AX$12,Data!$A$1:$BU$1,0),FALSE) -> 1 | AZ22: =VLOOKUP(CONCATENATE($N$6,$D22,$N$8,$E22),Data!$A:$BU,MATCH(E!AZ$12,Data!$A$1:$BU$1,0),FALSE) -> 3 | BB22: =VLOOKUP(CONCATENATE($N$6,$D22,$N$8,$E22),Data!$A:$BU,MATCH(E!BB$12,Data!$A$1:$BU$1,0),FALSE) -> 2 | BD22: =VLOOKUP(CONCATENATE($N$6,$D22,$N$8,$E22),Data!$A:$BU,MATCH(E!BD$12,Data!$A$1:$BU$1,0),FALSE) -> 2 | BF22: =VLOOKUP(CONCATENATE($N$6,$D22,$N$8,$E22),Data!$A:$BU,MATCH(E!BF$12,Data!$A$1:$BU$1,0),FALSE) -> 4 | BH22: =VLOOKUP(CONCATENATE($N$6,$D22,$N$8,$E22),Data!$A:$BU,MATCH(E!BH$12,Data!$A$1:$BU$1,0),FALSE) -> 2 | BJ22: =VLOOKUP(CONCATENATE($N$6,$D22,$N$8,$E22),Data!$A:$BU,MATCH(E!BJ$12,Data!$A$1:$BU$1,0),FALSE) -> 3
D23: Algeria | E23: b | F23: =VLOOKUP(CONCATENATE($N$6,$D23,$N$8,$E23),Data!$A:$BU,MATCH(E!F$12,Data!$A$1:$BU$1,0),FALSE) -> 260644 | H23: =VLOOKUP(CONCATENATE($N$6,$D23,$N$8,$E23),Data!$A:$BU,MATCH(E!H$12,Data!$A$1:$BU$1,0),FALSE) -> 7626 | J23: =VLOOKUP(CONCATENATE($N$6,$D23,$N$8,$E23),Data!$A:$BU,MATCH(E!J$12,Data!$A$1:$BU$1,0),FALSE) -> 6240553 | L23: =VLOOKUP(CONCATENATE($N$6,$D23,$N$8,$E23),Data!$A:$BU,MATCH(E!L$12,Data!$A$1:$BU$1,0),FALSE) -> 0 | N23: =VLOOKUP(CONCATENATE($N$6,$D23,$N$8,$E23),Data!$A:$BU,MATCH(E!N$12,Data!$A$1:$BU$1,0),FALSE) -> 22133 | P23: =VLOOKUP(CONCATENATE($N$6,$D23,$N$8,$E23),Data!$A:$BU,MATCH(E!P$12,Data!$A$1:$BU$1,0),FALSE) -> 6367300 | R23: =VLOOKUP(CONCATENATE($N$6,$D23,$N$8,$E23),Data!$A:$BU,MATCH(E!R$12,Data!$A$1:$BU$1,0),FALSE) -> 0 | T23: =VLOOKUP(CONCATENATE($N$6,$D23,$N$8,$E23),Data!$A:$BU,MATCH(E!T$12,Data!$A$1:$BU$1,0),FALSE) -> 0 | V23: =VLOOKUP(CONCATENATE($N$6,$D23,$N$8,$E23),Data!$A:$BU,MATCH(E!V$12,Data!$A$1:$BU$1,0),FALSE) -> 0 | X23: =VLOOKUP(CONCATENATE($N$6,$D23,$N$8,$E23),Data!$A:$BU,MATCH(E!X$12,Data!$A$1:$BU$1,0),FALSE) -> 500 | Z23: =VLOOKUP(CONCATENATE($N$6,$D23,$N$8,$E23),Data!$A:$BU,MATCH(E!Z$12,Data!$A$1:$BU$1,0),FALSE) -> 267926091 | AB23: =VLOOKUP(CONCATENATE($N$6,$D23,$N$8,$E23),Data!$A:$BU,MATCH(E!AB$12,Data!$A$1:$BU$1,0),FALSE) -> 0 | AD23: =VLOOKUP(CONCATENATE($N$6,$D23,$N$8,$E23),Data!$A:$BU,MATCH(E!AD$12,Data!$A$1:$BU$1,0),FALSE) -> 1400995 | AF23: =VLOOKUP(CONCATENATE($N$6,$D23,$N$8,$E23),Data!$A:$BU,MATCH(E!AF$12,Data!$A$1:$BU$1,0),FALSE) -> 475894 | AH23: =VLOOKUP(CONCATENATE($N$6,$D23,$N$8,$E23),Data!$A:$BU,MATCH(E!AH$12,Data!$A$1:$BU$1,0),FALSE) -> 39516 | AJ23: =VLOOKUP(CONCATENATE($N$6,$D23,$N$8,$E23),Data!$A:$BU,MATCH(E!AJ$12,Data!$A$1:$BU$1,0),FALSE) -> 4641 | AL23: =VLOOKUP(CONCATENATE($N$6,$D23,$N$8,$E23),Data!$A:$BU,MATCH(E!AL$12,Data!$A$1:$BU$1,0),FALSE) -> 128077 | AN23: =VLOOKUP(CONCATENATE($N$6,$D23,$N$8,$E23),Data!$A:$BU,MATCH(E!AN$12,Data!$A$1:$BU$1,0),FALSE) -> 25 | AP23: =VLOOKUP(CONCATENATE($N$6,$D23,$N$8,$E23),Data!$A:$BU,MATCH(E!AP$12,Data!$A$1:$BU$1,0),FALSE) -> 534365 | AR23: =VLOOKUP(CONCATENATE($N$6,$D23,$N$8,$E23),Data!$A:$BU,MATCH(E!AR$12,Data!$A$1:$BU$1,0),FALSE) -> 0 | AT23: =VLOOKUP(CONCATENATE($N$6,$D23,$N$8,$E23),Data!$A:$BU,MATCH(E!AT$12,Data!$A$1:$BU$1,0),FALSE) -> 1622370 | AV23: =VLOOKUP(CONCATENATE($N$6,$D23,$N$8,$E23),Data!$A:$BU,MATCH(E!AV$12,Data!$A$1:$BU$1,0),FALSE) -> 330712 | AX23: =VLOOKUP(CONCATENATE($N$6,$D23,$N$8,$E23),Data!$A:$BU,MATCH(E!AX$12,Data!$A$1:$BU$1,0),FALSE) -> 49026 | AZ23: =VLOOKUP(CONCATENATE($N$6,$D23,$N$8,$E23),Data!$A:$BU,MATCH(E!AZ$12,Data!$A$1:$BU$1,0),FALSE) -> 958890 | BB23: =VLOOKUP(CONCATENATE($N$6,$D23,$N$8,$E23),Data!$A:$BU,MATCH(E!BB$12,Data!$A$1:$BU$1,0),FALSE) -> 380060 | BD23: =VLOOKUP(CONCATENATE($N$6,$D23,$N$8,$E23),Data!$A:$BU,MATCH(E!BD$12,Data!$A$1:$BU$1,0),FALSE) -> 1768 | BF23: =VLOOKUP(CONCATENATE($N$6,$D23,$N$8,$E23),Data!$A:$BU,MATCH(E!BF$12,Data!$A$1:$BU$1,0),FALSE) -> 578454 | BH23: =VLOOKUP(CONCATENATE($N$6,$D23,$N$8,$E23),Data!$A:$BU,MATCH(E!BH$12,Data!$A$1:$BU$1,0),FALSE) -> 155852 | BJ23: =VLOOKUP(CONCATENATE($N$6,$D23,$N$8,$E23),Data!$A:$BU,MATCH(E!BJ$12,Data!$A$1:$BU$1,0),FALSE) -> 1129070
D24: American Samoa | E24: a | F24: =VLOOKUP(CONCATENATE($N$6,$D24,$N$8,$E24),Data!$A:$BU,MATCH(E!F$12,Data!$A$1:$BU$1,0),FALSE) -> 0 | H24: =VLOOKUP(CONCATENATE($N$6,$D24,$N$8,$E24),Data!$A:$BU,MATCH(E!H$12,Data!$A$1:$BU$1,0),FALSE) -> 0 | J24: =VLOOKUP(CONCATENATE($N$6,$D24,$N$8,$E24),Data!$A:$BU,MATCH(E!J$12,Data!$A$1:$BU$1,0),FALSE) -> 0 | L24: =VLOOKUP(CONCATENATE($N$6,$D24,$N$8,$E24),Data!$A:$BU,MATCH(E!L$12,Data!$A$1:$BU$1,0),FALSE) -> 0 | N24: =VLOOKUP(CONCATENATE($N$6,$D24,$N$8,$E24),Data!$A:$BU,MATCH(E!N$12,Data!$A$1:$BU$1,0),FALSE) -> 0 | P24: =VLOOKUP(CONCATENATE($N$6,$D24,$N$8,$E24),Data!$A:$BU,MATCH(E!P$12,Data!$A$1:$BU$1,0),FALSE) -> 0 | R24: =VLOOKUP(CONCATENATE($N$6,$D24,$N$8,$E24),Data!$A:$BU,MATCH(E!R$12,Data!$A$1:$BU$1,0),FALSE) -> 0 | T24: =VLOOKUP(CONCATENATE($N$6,$D24,$N$8,$E24),Data!$A:$BU,MATCH(E!T$12,Data!$A$1:$BU$1,0),FALSE) -> 0 | V24: =VLOOKUP(CONCATENATE($N$6,$D24,$N$8,$E24),Data!$A:$BU,MATCH(E!V$12,Data!$A$1:$BU$1,0),FALSE) -> 0 | X24: =VLOOKUP(CONCATENATE($N$6,$D24,$N$8,$E24),Data!$A:$BU,MATCH(E!X$12,Data!$A$1:$BU$1,0),FALSE) -> 0 | Z24: =VLOOKUP(CONCATENATE($N$6,$D24,$N$8,$E24),Data!$A:$BU,MATCH(E!Z$12,Data!$A$1:$BU$1,0),FALSE) -> 0 | AB24: =VLOOKUP(CONCATENATE($N$6,$D24,$N$8,$E24),Data!$A:$BU,MATCH(E!AB$12,Data!$A$1:$BU$1,0),FALSE) -> 0 | AD24: =VLOOKUP(CONCATENATE($N$6,$D24,$N$8,$E24),Data!$A:$BU,MATCH(E!AD$12,Data!$A$1:$BU$1,0),FALSE) -> 0 | AF24: =VLOOKUP(CONCATENATE($N$6,$D24,$N$8,$E24),Data!$A:$BU,MATCH(E!AF$12,Data!$A$1:$BU$1,0),FALSE) -> 0 | AH24: =VLOOKUP(CONCATENATE($N$6,$D24,$N$8,$E24),Data!$A:$BU,MATCH(E!AH$12,Data!$A$1:$BU$1,0),FALSE) -> 0 | AJ24: =VLOOKUP(CONCATENATE($N$6,$D24,$N$8,$E24),Data!$A:$BU,MATCH(E!AJ$12,Data!$A$1:$BU$1,0),FALSE) -> 0 | AL24: =VLOOKUP(CONCATENATE($N$6,$D24,$N$8,$E24),Data!$A:$BU,MATCH(E!AL$12,Data!$A$1:$BU$1,0),FALSE) -> 0 | AN24: =VLOOKUP(CONCATENATE($N$6,$D24,$N$8,$E24),Data!$A:$BU,MATCH(E!AN$12,Data!$A$1:$BU$1,0),FALSE) -> 0 | AP24: =VLOOKUP(CONCATENATE($N$6,$D24,$N$8,$E24),Data!$A:$BU,MATCH(E!AP$12,Data!$A$1:$BU$1,0),FALSE) -> 0 | AR24: =VLOOKUP(CONCATENATE($N$6,$D24,$N$8,$E24),Data!$A:$BU,MATCH(E!AR$12,Data!$A$1:$BU$1,0),FALSE) -> 0 | AT24: =VLOOKUP(CONCATENATE($N$6,$D24,$N$8,$E24),Data!$A:$BU,MATCH(E!AT$12,Data!$A$1:$BU$1,0),FALSE) -> 0 | AV24: =VLOOKUP(CONCATENATE($N$6,$D24,$N$8,$E24),Data!$A:$BU,MATCH(E!AV$12,Data!$A$1:$BU$1,0),FALSE) -> 0 | AX24: =VLOOKUP(CONCATENATE($N$6,$D24,$N$8,$E24),Data!$A:$BU,MATCH(E!AX$12,Data!$A$1:$BU$1,0),FALSE) -> 0 | AZ24: =VLOOKUP(CONCATENATE($N$6,$D24,$N$8,$E24),Data!$A:$BU,MATCH(E!AZ$12,Data!$A$1:$BU$1,0),FALSE) -> 0 | BB24: =VLOOKUP(CONCATENATE($N$6,$D24,$N$8,$E24),Data!$A:$BU,MATCH(E!BB$12,Data!$A$1:$BU$1,0),FALSE) -> 0 | BD24: =VLOOKUP(CONCATENATE($N$6,$D24,$N$8,$E24),Data!$A:$BU,MATCH(E!BD$12,Data!$A$1:$BU$1,0),FALSE) -> 0 | BF24: =VLOOKUP(CONCATENATE($N$6,$D24,$N$8,$E24),Data!$A:$BU,MATCH(E!BF$12,Data!$A$1:$BU$1,0),FALSE) -> 0 | BH24: =VLOOKUP(CONCATENATE($N$6,$D24,$N$8,$E24),Data!$A:$BU,MATCH(E!BH$12,Data!$A$1:$BU$1,0),FALSE) -> 0 | BJ24: =VLOOKUP(CONCATENATE($N$6,$D24,$N$8,$E24),Data!$A:$BU,MATCH(E!BJ$12,Data!$A$1:$BU$1,0),FALSE) -> 0
D25: American Samoa | E25: b | F25: =VLOOKUP(CONCATENATE($N$6,$D25,$N$8,$E25),Data!$A:$BU,MATCH(E!F$12,Data!$A$1:$BU$1,0),FALSE) -> 0 | H25: =VLOOKUP(CONCATENATE($N$6,$D25,$N$8,$E25),Data!$A:$BU,MATCH(E!H$12,Data!$A$1:$BU$1,0),FALSE) -> 0 | J25: =VLOOKUP(CONCATENATE($N$6,$D25,$N$8,$E25),Data!$A:$BU,MATCH(E!J$12,Data!$A$1:$BU$1,0),FALSE) -> 0 | L25: =VLOOKUP(CONCATENATE($N$6,$D25,$N$8,$E25),Data!$A:$BU,MATCH(E!L$12,Data!$A$1:$BU$1,0),FALSE) -> 0 | N25: =VLOOKUP(CONCATENATE($N$6,$D25,$N$8,$E25),Data!$A:$BU,MATCH(E!N$12,Data!$A$1:$BU$1,0),FALSE) -> 0 | P25: =VLOOKUP(CONCATENATE($N$6,$D25,$N$8,$E25),Data!$A:$BU,MATCH(E!P$12,Data!$A$1:$BU$1,0),FALSE) -> 0 | R25: =VLOOKUP(CONCATENATE($N$6,$D25,$N$8,$E25),Data!$A:$BU,MATCH(E!R$12,Data!$A$1:$BU$1,0),FALSE) -> 0 | T25: =VLOOKUP(CONCATENATE($N$6,$D25,$N$8,$E25),Data!$A:$BU,MATCH(E!T$12,Data!$A$1:$BU$1,0),FALSE) -> 0 | V25: =VLOOKUP(CONCATENATE($N$6,$D25,$N$8,$E25),Data!$A:$BU,MATCH(E!V$12,Data!$A$1:$BU$1,0),FALSE) -> 0 | X25: =VLOOKUP(CONCATENATE($N$6,$D25,$N$8,$E25),Data!$A:$BU,MATCH(E!X$12,Data!$A$1:$BU$1,0),FALSE) -> 0 | Z25: =VLOOKUP(CONCATENATE($N$6,$D25,$N$8,$E25),Data!$A:$BU,MATCH(E!Z$12,Data!$A$1:$BU$1,0),FALSE) -> 0 | AB25: =VLOOKUP(CONCATENATE($N$6,$D25,$N$8,$E25),Data!$A:$BU,MATCH(E!AB$12,Data!$A$1:$BU$1,0),FALSE) -> 0 | AD25: =VLOOKUP(CONCATENATE($N$6,$D25,$N$8,$E25),Data!$A:$BU,MATCH(E!AD$12,Data!$A$1:$BU$1,0),FALSE) -> 0 | AF25: =VLOOKUP(CONCATENATE($N$6,$D25,$N$8,$E25),Data!$A:$BU,MATCH(E!AF$12,Data!$A$1:$BU$1,0),FALSE) -> 0 | AH25: =VLOOKUP(CONCATENATE($N$6,$D25,$N$8,$E25),Data!$A:$BU,MATCH(E!AH$12,Data!$A$1:$BU$1,0),FALSE) -> 0 | AJ25: =VLOOKUP(CONCATENATE($N$6,$D25,$N$8,$E25),Data!$A:$BU,MATCH(E!AJ$12,Data!$A$1:$BU$1,0),FALSE) -> 0 | AL25: =VLOOKUP(CONCATENATE($N$6,$D25,$N$8,$E25),Data!$A:$BU,MATCH(E!AL$12,Data!$A$1:$BU$1,0),FALSE) -> 0 | AN25: =VLOOKUP(CONCATENATE($N$6,$D25,$N$8,$E25),Data!$A:$BU,MATCH(E!AN$12,Data!$A$1:$BU$1,0),FALSE) -> 0 | AP25: =VLOOKUP(CONCATENATE($N$6,$D25,$N$8,$E25),Data!$A:$BU,MATCH(E!AP$12,Data!$A$1:$BU$1,0),FALSE) -> 0 | AR25: =VLOOKUP(CONCATENATE($N$6,$D25,$N$8,$E25),Data!$A:$BU,MATCH(E!AR$12,Data!$A$1:$BU$1,0),FALSE) -> 0 | AT25: =VLOOKUP(CONCATENATE($N$6,$D25,$N$8,$E25),Data!$A:$BU,MATCH(E!AT$12,Data!$A$1:$BU$1,0),FALSE) -> 0 | AV25: =VLOOKUP(CONCATENATE($N$6,$D25,$N$8,$E25),Data!$A:$BU,MATCH(E!AV$12,Data!$A$1:$BU$1,0),FALSE) -> 0 | AX25: =VLOOKUP(CONCATENATE($N$6,$D25,$N$8,$E25),Data!$A:$BU,MATCH(E!AX$12,Data!$A$1:$BU$1,0),FALSE) -> 0 | AZ25: =VLOOKUP(CONCATENATE($N$6,$D25,$N$8,$E25),Data!$A:$BU,MATCH(E!AZ$12,Data!$A$1:$BU$1,0),FALSE) -> 0 | BB25: =VLOOKUP(CONCATENATE($N$6,$D25,$N$8,$E25),Data!$A:$BU,MATCH(E!BB$12,Data!$A$1:$BU$1,0),FALSE) -> 0 | BD25: =VLOOKUP(CONCATENATE($N$6,$D25,$N$8,$E25),Data!$A:$BU,MATCH(E!BD$12,Data!$A$1:$BU$1,0),FALSE) -> 0 | BF25: =VLOOKUP(CONCATENATE($N$6,$D25,$N$8,$E25),Data!$A:$BU,MATCH(E!BF$12,Data!$A$1:$BU$1,0),FALSE) -> 0 | BH25: =VLOOKUP(CONCATENATE($N$6,$D25,$N$8,$E25),Data!$A:$BU,MATCH(E!BH$12,Data!$A$1:$BU$1,0),FALSE) -> 0 | BJ25: =VLOOKUP(CONCATENATE($N$6,$D25,$N$8,$E25),Data!$A:$BU,MATCH(E!BJ$12,Data!$A$1:$BU$1,0),FALSE) -> 0
D26: Andorra | E26: a | F26: =VLOOKUP(CONCATENATE($N$6,$D26,$N$8,$E26),Data!$A:$BU,MATCH(E!F$12,Data!$A$1:$BU$1,0),FALSE) -> 0 | H26: =VLOOKUP(CONCATENATE($N$6,$D26,$N$8,$E26),Data!$A:$BU,MATCH(E!H$12,Data!$A$1:$BU$1,0),FALSE) -> 0 | J26: =VLOOKUP(CONCATENATE($N$6,$D26,$N$8,$E26),Data!$A:$BU,MATCH(E!J$12,Data!$A$1:$BU$1,0),FALSE) -> 0 | L26: =VLOOKUP(CONCATENATE($N$6,$D26,$N$8,$E26),Data!$A:$BU,MATCH(E!L$12,Data!$A$1:$BU$1,0),FALSE) -> 0 | N26: =VLOOKUP(CONCATENATE($N$6,$D26,$N$8,$E26),Data!$A:$BU,MATCH(E!N$12,Data!$A$1:$BU$1,0),FALSE) -> 0 | P26: =VLOOKUP(CONCATENATE($N$6,$D26,$N$8,$E26),Data!$A:$BU,MATCH(E!P$12,Data!$A$1:$BU$1,0),FALSE) -> 0 | R26: =VLOOKUP(CONCATENATE($N$6,$D26,$N$8,$E26),Data!$A:$BU,MATCH(E!R$12,Data!$A$1:$BU$1,0),FALSE) -> 0 | T26: =VLOOKUP(CONCATENATE($N$6,$D26,$N$8,$E26),Data!$A:$BU,MATCH(E!T$12,Data!$A$1:$BU$1,0),FALSE) -> 0 | V26: =VLOOKUP(CONCATENATE($N$6,$D26,$N$8,$E26),Data!$A:$BU,MATCH(E!V$12,Data!$A$1:$BU$1,0),FALSE) -> 0 | X26: =VLOOKUP(CONCATENATE($N$6,$D26,$N$8,$E26),Data!$A:$BU,MATCH(E!X$12,Data!$A$1:$BU$1,0),FALSE) -> 0 | Z26: =VLOOKUP(CONCATENATE($N$6,$D26,$N$8,$E26),Data!$A:$BU,MATCH(E!Z$12,Data!$A$1:$BU$1,0),FALSE) -> 0 | AB26: =VLOOKUP(CONCATENATE($N$6,$D26,$N$8,$E26),Data!$A:$BU,MATCH(E!AB$12,Data!$A$1:$BU$1,0),FALSE) -> 0 | AD26: =VLOOKUP(CONCATENATE($N$6,$D26,$N$8,$E26),Data!$A:$BU,MATCH(E!AD$12,Data!$A$1:$BU$1,0),FALSE) -> 0 | AF26: =VLOOKUP(CONCATENATE($N$6,$D26,$N$8,$E26),Data!$A:$BU,MATCH(E!AF$12,Data!$A$1:$BU$1,0),FALSE) -> 0 | AH26: =VLOOKUP(CONCATENATE($N$6,$D26,$N$8,$E26),Data!$A:$BU,MATCH(E!AH$12,Data!$A$1:$BU$1,0),FALSE) -> 0 | AJ26: =VLOOKUP(CONCATENATE($N$6,$D26,$N$8,$E26),Data!$A:$BU,MATCH(E!AJ$12,Data!$A$1:$BU$1,0),FALSE) -> 0 | AL26: =VLOOKUP(CONCATENATE($N$6,$D26,$N$8,$E26),Data!$A:$BU,MATCH(E!AL$12,Data!$A$1:$BU$1,0),FALSE) -> 0 | AN26: =VLOOKUP(CONCATENATE($N$6,$D26,$N$8,$E26),Data!$A:$BU,MATCH(E!AN$12,Data!$A$1:$BU$1,0),FALSE) -> 0 | AP26: =VLOOKUP(CONCATENATE($N$6,$D26,$N$8,$E26),Data!$A:$BU,MATCH(E!AP$12,Data!$A$1:$BU$1,0),FALSE) -> 0 | AR26: =VLOOKUP(CONCATENATE($N$6,$D26,$N$8,$E26),Data!$A:$BU,MATCH(E!AR$12,Data!$A$1:$BU$1,0),FALSE) -> 0 | AT26: =VLOOKUP(CONCATENATE($N$6,$D26,$N$8,$E26),Data!$A:$BU,MATCH(E!AT$12,Data!$A$1:$BU$1,0),FALSE) -> 0 | AV26: =VLOOKUP(CONCATENATE($N$6,$D26,$N$8,$E26),Data!$A:$BU,MATCH(E!AV$12,Data!$A$1:$BU$1,0),FALSE) -> 0 | AX26: =VLOOKUP(CONCATENATE($N$6,$D26,$N$8,$E26),Data!$A:$BU,MATCH(E!AX$12,Data!$A$1:$BU$1,0),FALSE) -> 0 | AZ26: =VLOOKUP(CONCATENATE($N$6,$D26,$N$8,$E26),Data!$A:$BU,MATCH(E!AZ$12,Data!$A$1:$BU$1,0),FALSE) -> 0 | BB26: =VLOOKUP(CONCATENATE($N$6,$D26,$N$8,$E26),Data!$A:$BU,MATCH(E!BB$12,Data!$A$1:$BU$1,0),FALSE) -> 0 | BD26: =VLOOKUP(CONCATENATE($N$6,$D26,$N$8,$E26),Data!$A:$BU,MATCH(E!BD$12,Data!$A$1:$BU$1,0),FALSE) -> 0 | BF26: =VLOOKUP(CONCATENATE($N$6,$D26,$N$8,$E26),Data!$A:$BU,MATCH(E!BF$12,Data!$A$1:$BU$1,0),FALSE) -> 0 | BH26: =VLOOKUP(CONCATENATE($N$6,$D26,$N$8,$E26),Data!$A:$BU,MATCH(E!BH$12,Data!$A$1:$BU$1,0),FALSE) -> 0 | BJ26: =VLOOKUP(CONCATENATE($N$6,$D26,$N$8,$E26),Data!$A:$BU,MATCH(E!BJ$12,Data!$A$1:$BU$1,0),FALSE) -> 0
D27: Andorra | E27: b | F27: =VLOOKUP(CONCATENATE($N$6,$D27,$N$8,$E27),Data!$A:$BU,MATCH(E!F$12,Data!$A$1:$BU$1,0),FALSE) -> 0 | H27: =VLOOKUP(CONCATENATE($N$6,$D27,$N$8,$E27),Data!$A:$BU,MATCH(E!H$12,Data!$A$1:$BU$1,0),FALSE) -> 0 | J27: =VLOOKUP(CONCATENATE($N$6,$D27,$N$8,$E27),Data!$A:$BU,MATCH(E!J$12,Data!$A$1:$BU$1,0),FALSE) -> 0 | L27: =VLOOKUP(CONCATENATE($N$6,$D27,$N$8,$E27),Data!$A:$BU,MATCH(E!L$12,Data!$A$1:$BU$1,0),FALSE) -> 0 | N27: =VLOOKUP(CONCATENATE($N$6,$D27,$N$8,$E27),Data!$A:$BU,MATCH(E!N$12,Data!$A$1:$BU$1,0),FALSE) -> 0 | P27: =VLOOKUP(CONCATENATE($N$6,$D27,$N$8,$E27),Data!$A:$BU,MATCH(E!P$12,Data!$A$1:$BU$1,0),FALSE) -> 0 | R27: =VLOOKUP(CONCATENATE($N$6,$D27,$N$8,$E27),Data!$A:$BU,MATCH(E!R$12,Data!$A$1:$BU$1,0),FALSE) -> 0 | T27: =VLOOKUP(CONCATENATE($N$6,$D27,$N$8,$E27),Data!$A:$BU,MATCH(E!T$12,Data!$A$1:$BU$1,0),FALSE) -> 0 | V27: =VLOOKUP(CONCATENATE($N$6,$D27,$N$8,$E27),Data!$A:$BU,MATCH(E!V$12,Data!$A$1:$BU$1,0),FALSE) -> 0 | X27: =VLOOKUP(CONCATENATE($N$6,$D27,$N$8,$E27),Data!$A:$BU,MATCH(E!X$12,Data!$A$1:$BU$1,0),FALSE) -> 0 | Z27: =VLOOKUP(CONCATENATE($N$6,$D27,$N$8,$E27),Data!$A:$BU,MATCH(E!Z$12,Data!$A$1:$BU$1,0),FALSE) -> 0 | AB27: =VLOOKUP(CONCATENATE($N$6,$D27,$N$8,$E27),Data!$A:$BU,MATCH(E!AB$12,Data!$A$1:$BU$1,0),FALSE) -> 0 | AD27: =VLOOKUP(CONCATENATE($N$6,$D27,$N$8,$E27),Data!$A:$BU,MATCH(E!AD$12,Data!$A$1:$BU$1,0),FALSE) -> 0 | AF27: =VLOOKUP(CONCATENATE($N$6,$D27,$N$8,$E27),Data!$A:$BU,MATCH(E!AF$12,Data!$A$1:$BU$1,0),FALSE) -> 0 | AH27: =VLOOKUP(CONCATENATE($N$6,$D27,$N$8,$E27),Data!$A:$BU,MATCH(E!AH$12,Data!$A$1:$BU$1,0),FALSE) -> 0 | AJ27: =VLOOKUP(CONCATENATE($N$6,$D27,$N$8,$E27),Data!$A:$BU,MATCH(E!AJ$12,Data!$A$1:$BU$1,0),FALSE) -> 0 | AL27: =VLOOKUP(CONCATENATE($N$6,$D27,$N$8,$E27),Data!$A:$BU,MATCH(E!AL$12,Data!$A$1:$BU$1,0),FALSE) -> 0 | AN27: =VLOOKUP(CONCATENATE($N$6,$D27,$N$8,$E27),Data!$A:$BU,MATCH(E!AN$12,Data!$A$1:$BU$1,0),FALSE) -> 0 | AP27: =VLOOKUP(CONCATENATE($N$6,$D27,$N$8,$E27),Data!$A:$BU,MATCH(E!AP$12,Data!$A$1:$BU$1,0),FALSE) -> 0 | AR27: =VLOOKUP(CONCATENATE($N$6,$D27,$N$8,$E27),Data!$A:$BU,MATCH(E!AR$12,Data!$A$1:$BU$1,0),FALSE) -> 0 | AT27: =VLOOKUP(CONCATENATE($N$6,$D27,$N$8,$E27),Data!$A:$BU,MATCH(E!AT$12,Data!$A$1:$BU$1,0),FALSE) -> 0 | AV27: =VLOOKUP(CONCATENATE($N$6,$D27,$N$8,$E27),Data!$A:$BU,MATCH(E!AV$12,Data!$A$1:$BU$1,0),FALSE) -> 0 | AX27: =VLOOKUP(CONCATENATE($N$6,$D27,$N$8,$E27),Data!$A:$BU,MATCH(E!AX$12,Data!$A$1:$BU$1,0),FALSE) -> 0 | AZ27: =VLOOKUP(CONCATENATE($N$6,$D27,$N$8,$E27),Data!$A:$BU,MATCH(E!AZ$12,Data!$A$1:$BU$1,0),FALSE) -> 0 | BB27: =VLOOKUP(CONCATENATE($N$6,$D27,$N$8,$E27),Data!$A:$BU,MATCH(E!BB$12,Data!$A$1:$BU$1,0),FALSE) -> 0 | BD27: =VLOOKUP(CONCATENATE($N$6,$D27,$N$8,$E27),Data!$A:$BU,MATCH(E!BD$12,Data!$A$1:$BU$1,0),FALSE) -> 0 | BF27: =VLOOKUP(CONCATENATE($N$6,$D27,$N$8,$E27),Data!$A:$BU,MATCH(E!BF$12,Data!$A$1:$BU$1,0),FALSE) -> 0 | BH27: =VLOOKUP(CONCATENATE($N$6,$D27,$N$8,$E27),Data!$A:$BU,MATCH(E!BH$12,Data!$A$1:$BU$1,0),FALSE) -> 0 | BJ27: =VLOOKUP(CONCATENATE($N$6,$D27,$N$8,$E27),Data!$A:$BU,MATCH(E!BJ$12,Data!$A$1:$BU$1,0),FALSE) -> 0
D28: Angola | E28: a | F28: =VLOOKUP(CONCATENATE($N$6,$D28,$N$8,$E28),Data!$A:$BU,MATCH(E!F$12,Data!$A$1:$BU$1,0),FALSE) -> 2 | H28: =VLOOKUP(CONCATENATE($N$6,$D28,$N$8,$E28),Data!$A:$BU,MATCH(E!H$12,Data!$A$1:$BU$1,0),FALSE) -> 0 | J28: =VLOOKUP(CONCATENATE($N$6,$D28,$N$8,$E28),Data!$A:$BU,MATCH(E!J$12,Data!$A$1:$BU$1,0),FALSE) -> 1 | L28: =VLOOKUP(CONCATENATE($N$6,$D28,$N$8,$E28),Data!$A:$BU,MATCH(E!L$12,Data!$A$1:$BU$1,0),FALSE) -> 3 | N28: =VLOOKUP(CONCATENATE($N$6,$D28,$N$8,$E28),Data!$A:$BU,MATCH(E!N$12,Data!$A$1:$BU$1,0),FALSE) -> 3 | P28: =VLOOKUP(CONCATENATE($N$6,$D28,$N$8,$E28),Data!$A:$BU,MATCH(E!P$12,Data!$A$1:$BU$1,0),FALSE) -> 6 | R28: =VLOOKUP(CONCATENATE($N$6,$D28,$N$8,$E28),Data!$A:$BU,MATCH(E!R$12,Data!$A$1:$BU$1,0),FALSE) -> 4 | T28: =VLOOKUP(CONCATENATE($N$6,$D28,$N$8,$E28),Data!$A:$BU,MATCH(E!T$12,Data!$A$1:$BU$1,0),FALSE) -> 1 | V28: =VLOOKUP(CONCATENATE($N$6,$D28,$N$8,$E28),Data!$A:$BU,MATCH(E!V$12,Data!$A$1:$BU$1,0),FALSE) -> 2 | X28: =VLOOKUP(CONCATENATE($N$6,$D28,$N$8,$E28),Data!$A:$BU,MATCH(E!X$12,Data!$A$1:$BU$1,0),FALSE) -> 3 | Z28: =VLOOKUP(CONCATENATE($N$6,$D28,$N$8,$E28),Data!$A:$BU,MATCH(E!Z$12,Data!$A$1:$BU$1,0),FALSE) -> 2 | AB28: =VLOOKUP(CONCATENATE($N$6,$D28,$N$8,$E28),Data!$A:$BU,MATCH(E!AB$12,Data!$A$1:$BU$1,0),FALSE) -> 1 | AD28: =VLOOKUP(CONCATENATE($N$6,$D28,$N$8,$E28),Data!$A:$BU,MATCH(E!AD$12,Data!$A$1:$BU$1,0),FALSE) -> 0 | AF28: =VLOOKUP(CONCATENATE($N$6,$D28,$N$8,$E28),Data!$A:$BU,MATCH(E!AF$12,Data!$A$1:$BU$1,0),FALSE) -> 2 | AH28: =VLOOKUP(CONCATENATE($N$6,$D28,$N$8,$E28),Data!$A:$BU,MATCH(E!AH$12,Data!$A$1:$BU$1,0),FALSE) -> 2 | AJ28: =VLOOKUP(CONCATENATE($N$6,$D28,$N$8,$E28),Data!$A:$BU,MATCH(E!AJ$12,Data!$A$1:$BU$1,0),FALSE) -> 0 | AL28: =VLOOKUP(CONCATENATE($N$6,$D28,$N$8,$E28),Data!$A:$BU,MATCH(E!AL$12,Data!$A$1:$BU$1,0),FALSE) -> 0 | AN28: =VLOOKUP(CONCATENATE($N$6,$D28,$N$8,$E28),Data!$A:$BU,MATCH(E!AN$12,Data!$A$1:$BU$1,0),FALSE) -> 0 | AP28: =VLOOKUP(CONCATENATE($N$6,$D28,$N$8,$E28),Data!$A:$BU,MATCH(E!AP$12,Data!$A$1:$BU$1,0),FALSE) -> 3 | AR28: =VLOOKUP(CONCATENATE($N$6,$D28,$N$8,$E28),Data!$A:$BU,MATCH(E!AR$12,Data!$A$1:$BU$1,0),FALSE) -> 0 | AT28: =VLOOKUP(CONCATENATE($N$6,$D28,$N$8,$E28),Data!$A:$BU,MATCH(E!AT$12,Data!$A$1:$BU$1,0),FALSE) -> 1 | AV28: =VLOOKUP(CONCATENATE($N$6,$D28,$N$8,$E28),Data!$A:$BU,MATCH(E!AV$12,Data!$A$1:$BU$1,0),FALSE) -> 1 | AX28: =VLOOKUP(CONCATENATE($N$6,$D28,$N$8,$E28),Data!$A:$BU,MATCH(E!AX$12,Data!$A$1:$BU$1,0),FALSE) -> 2 | AZ28: =VLOOKUP(CONCATENATE($N$6,$D28,$N$8,$E28),Data!$A:$BU,MATCH(E!AZ$12,Data!$A$1:$BU$1,0),FALSE) -> 0 | BB28: =VLOOKUP(CONCATENATE($N$6,$D28,$N$8,$E28),Data!$A:$BU,MATCH(E!BB$12,Data!$A$1:$BU$1,0),FALSE) -> 0 | BD28: =VLOOKUP(CONCATENATE($N$6,$D28,$N$8,$E28),Data!$A:$BU,MATCH(E!BD$12,Data!$A$1:$BU$1,0),FALSE) -> 0 | BF28: =VLOOKUP(CONCATENATE($N$6,$D28,$N$8,$E28),Data!$A:$BU,MATCH(E!BF$12,Data!$A$1:$BU$1,0),FALSE) -> 0 | BH28: =VLOOKUP(CONCATENATE($N$6,$D28,$N$8,$E28),Data!$A:$BU,MATCH(E!BH$12,Data!$A$1:$BU$1,0),FALSE) -> 1 | BJ28: =VLOOKUP(CONCATENATE($N$6,$D28,$N$8,$E28),Data!$A:$BU,MATCH(E!BJ$12,Data!$A$1:$BU$1,0),FALSE) -> 0
D29: Angola | E29: b | F29: =VLOOKUP(CONCATENATE($N$6,$D29,$N$8,$E29),Data!$A:$BU,MATCH(E!F$12,Data!$A$1:$BU$1,0),FALSE) -> 353500 | H29: =VLOOKUP(CONCATENATE($N$6,$D29,$N$8,$E29),Data!$A:$BU,MATCH(E!H$12,Data!$A$1:$BU$1,0),FALSE) -> 0 | J29: =VLOOKUP(CONCATENATE($N$6,$D29,$N$8,$E29),Data!$A:$BU,MATCH(E!J$12,Data!$A$1:$BU$1,0),FALSE) -> 195000 | L29: =VLOOKUP(CONCATENATE($N$6,$D29,$N$8,$E29),Data!$A:$BU,MATCH(E!L$12,Data!$A$1:$BU$1,0),FALSE) -> 270300 | N29: =VLOOKUP(CONCATENATE($N$6,$D29,$N$8,$E29),Data!$A:$BU,MATCH(E!N$12,Data!$A$1:$BU$1,0),FALSE) -> 120900 | P29: =VLOOKUP(CONCATENATE($N$6,$D29,$N$8,$E29),Data!$A:$BU,MATCH(E!P$12,Data!$A$1:$BU$1,0),FALSE) -> 647100 | R29: =VLOOKUP(CONCATENATE($N$6,$D29,$N$8,$E29),Data!$A:$BU,MATCH(E!R$12,Data!$A$1:$BU$1,0),FALSE) -> 1040691 | T29: =VLOOKUP(CONCATENATE($N$6,$D29,$N$8,$E29),Data!$A:$BU,MATCH(E!T$12,Data!$A$1:$BU$1,0),FALSE) -> 2500 | V29: =VLOOKUP(CONCATENATE($N$6,$D29,$N$8,$E29),Data!$A:$BU,MATCH(E!V$12,Data!$A$1:$BU$1,0),FALSE) -> 495913 | X29: =VLOOKUP(CONCATENATE($N$6,$D29,$N$8,$E29),Data!$A:$BU,MATCH(E!X$12,Data!$A$1:$BU$1,0),FALSE) -> 224775 | Z29: =VLOOKUP(CONCATENATE($N$6,$D29,$N$8,$E29),Data!$A:$BU,MATCH(E!Z$12,Data!$A$1:$BU$1,0),FALSE) -> 290250 | AB29: =VLOOKUP(CONCATENATE($N$6,$D29,$N$8,$E29),Data!$A:$BU,MATCH(E!AB$12,Data!$A$1:$BU$1,0),FALSE) -> 21000 | AD29: =VLOOKUP(CONCATENATE($N$6,$D29,$N$8,$E29),Data!$A:$BU,MATCH(E!AD$12,Data!$A$1:$BU$1,0),FALSE) -> 0 | AF29: =VLOOKUP(CONCATENATE($N$6,$D29,$N$8,$E29),Data!$A:$BU,MATCH(E!AF$12,Data!$A$1:$BU$1,0),FALSE) -> 797300 | AH29: =VLOOKUP(CONCATENATE($N$6,$D29,$N$8,$E29),Data!$A:$BU,MATCH(E!AH$12,Data!$A$1:$BU$1,0),FALSE) -> 415000 | AJ29: =VLOOKUP(CONCATENATE($N$6,$D29,$N$8,$E29),Data!$A:$BU,MATCH(E!AJ$12,Data!$A$1:$BU$1,0),FALSE) -> 0 | AL29: =VLOOKUP(CONCATENATE($N$6,$D29,$N$8,$E29),Data!$A:$BU,MATCH(E!AL$12,Data!$A$1:$BU$1,0),FALSE) -> 0 | AN29: =VLOOKUP(CONCATENATE($N$6,$D29,$N$8,$E29),Data!$A:$BU,MATCH(E!AN$12,Data!$A$1:$BU$1,0),FALSE) -> 0 | AP29: =VLOOKUP(CONCATENATE($N$6,$D29,$N$8,$E29),Data!$A:$BU,MATCH(E!AP$12,Data!$A$1:$BU$1,0),FALSE) -> 66505 | AR29: =VLOOKUP(CONCATENATE($N$6,$D29,$N$8,$E29),Data!$A:$BU,MATCH(E!AR$12,Data!$A$1:$BU$1,0),FALSE) -> 0 | AT29: =VLOOKUP(CONCATENATE($N$6,$D29,$N$8,$E29),Data!$A:$BU,MATCH(E!AT$12,Data!$A$1:$BU$1,0),FALSE) -> 32895 | AV29: =VLOOKUP(CONCATENATE($N$6,$D29,$N$8,$E29),Data!$A:$BU,MATCH(E!AV$12,Data!$A$1:$BU$1,0),FALSE) -> 32305 | AX29: =VLOOKUP(CONCATENATE($N$6,$D29,$N$8,$E29),Data!$A:$BU,MATCH(E!AX$12,Data!$A$1:$BU$1,0),FALSE) -> 189057 | AZ29: =VLOOKUP(CONCATENATE($N$6,$D29,$N$8,$E29),Data!$A:$BU,MATCH(E!AZ$12,Data!$A$1:$BU$1,0),FALSE) -> 0 | BB29: =VLOOKUP(CONCATENATE($N$6,$D29,$N$8,$E29),Data!$A:$BU,MATCH(E!BB$12,Data!$A$1:$BU$1,0),FALSE) -> 0 | BD29: =VLOOKUP(CONCATENATE($N$6,$D29,$N$8,$E29),Data!$A:$BU,MATCH(E!BD$12,Data!$A$1:$BU$1,0),FALSE) -> 0 | BF29: =VLOOKUP(CONCATENATE($N$6,$D29,$N$8,$E29),Data!$A:$BU,MATCH(E!BF$12,Data!$A$1:$BU$1,0),FALSE) -> 0 | BH29: =VLOOKUP(CONCATENATE($N$6,$D29,$N$8,$E29),Data!$A:$BU,MATCH(E!BH$12,Data!$A$1:$BU$1,0),FALSE) -> 59575 | BJ29: =VLOOKUP(CONCATENATE($N$6,$D29,$N$8,$E29),Data!$A:$BU,MATCH(E!BJ$12,Data!$A$1:$BU$1,0),FALSE) -> 0
D30: Anguilla | E30: a | F30: =VLOOKUP(CONCATENATE($N$6,$D30,$N$8,$E30),Data!$A:$BU,MATCH(E!F$12,Data!$A$1:$BU$1,0),FALSE) -> 0 | H30: =VLOOKUP(CONCATENATE($N$6,$D30,$N$8,$E30),Data!$A:$BU,MATCH(E!H$12,Data!$A$1:$BU$1,0),FALSE) -> 0 | J30: =VLOOKUP(CONCATENATE($N$6,$D30,$N$8,$E30),Data!$A:$BU,MATCH(E!J$12,Data!$A$1:$BU$1,0),FALSE) -> 0 | L30: =VLOOKUP(CONCATENATE($N$6,$D30,$N$8,$E30),Data!$A:$BU,MATCH(E!L$12,Data!$A$1:$BU$1,0),FALSE) -> 0 | N30: =VLOOKUP(CONCATENATE($N$6,$D30,$N$8,$E30),Data!$A:$BU,MATCH(E!N$12,Data!$A$1:$BU$1,0),FALSE) -> 0 | P30: =VLOOKUP(CONCATENATE($N$6,$D30,$N$8,$E30),Data!$A:$BU,MATCH(E!P$12,Data!$A$1:$BU$1,0),FALSE) -> 0 | R30: =VLOOKUP(CONCATENATE($N$6,$D30,$N$8,$E30),Data!$A:$BU,MATCH(E!R$12,Data!$A$1:$BU$1,0),FALSE) -> 0 | T30: =VLOOKUP(CONCATENATE($N$6,$D30,$N$8,$E30),Data!$A:$BU,MATCH(E!T$12,Data!$A$1:$BU$1,0),FALSE) -> 0 | V30: =VLOOKUP(CONCATENATE($N$6,$D30,$N$8,$E30),Data!$A:$BU,MATCH(E!V$12,Data!$A$1:$BU$1,0),FALSE) -> 0 | X30: =VLOOKUP(CONCATENATE($N$6,$D30,$N$8,$E30),Data!$A:$BU,MATCH(E!X$12,Data!$A$1:$BU$1,0),FALSE) -> 0 | Z30: =VLOOKUP(CONCATENATE($N$6,$D30,$N$8,$E30),Data!$A:$BU,MATCH(E!Z$12,Data!$A$1:$BU$1,0),FALSE) -> 0 | AB30: =VLOOKUP(CONCATENATE($N$6,$D30,$N$8,$E30),Data!$A:$BU,MATCH(E!AB$12,Data!$A$1:$BU$1,0),FALSE) -> 0 | AD30: =VLOOKUP(CONCATENATE($N$6,$D30,$N$8,$E30),Data!$A:$BU,MATCH(E!AD$12,Data!$A$1:$BU$1,0),FALSE) -> 0 | AF30: =VLOOKUP(CONCATENATE($N$6,$D30,$N$8,$E30),Data!$A:$BU,MATCH(E!AF$12,Data!$A$1:$BU$1,0),FALSE) -> 0 | AH30: =VLOOKUP(CONCATENATE($N$6,$D30,$N$8,$E30),Data!$A:$BU,MATCH(E!AH$12,Data!$A$1:$BU$1,0),FALSE) -> 0 | AJ30: =VLOOKUP(CONCATENATE($N$6,$D30,$N$8,$E30),Data!$A:$BU,MATCH(E!AJ$12,Data!$A$1:$BU$1,0),FALSE) -> 0 | AL30: =VLOOKUP(CONCATENATE($N$6,$D30,$N$8,$E30),Data!$A:$BU,MATCH(E!AL$12,Data!$A$1:$BU$1,0),FALSE) -> 0 | AN30: =VLOOKUP(CONCATENATE($N$6,$D30,$N$8,$E30),Data!$A:$BU,MATCH(E!AN$12,Data!$A$1:$BU$1,0),FALSE) -> 0 | AP30: =VLOOKUP(CONCATENATE($N$6,$D30,$N$8,$E30),Data!$A:$BU,MATCH(E!AP$12,Data!$A$1:$BU$1,0),FALSE) -> 0 | AR30: =VLOOKUP(CONCATENATE($N$6,$D30,$N$8,$E30),Data!$A:$BU,MATCH(E!AR$12,Data!$A$1:$BU$1,0),FALSE) -> 0 | AT30: =VLOOKUP(CONCATENATE($N$6,$D30,$N$8,$E30),Data!$A:$BU,MATCH(E!AT$12,Data!$A$1:$BU$1,0),FALSE) -> 0 | AV30: =VLOOKUP(CONCATENATE($N$6,$D30,$N$8,$E30),Data!$A:$BU,MATCH(E!AV$12,Data!$A$1:$BU$1,0),FALSE) -> 0 | AX30: =VLOOKUP(CONCATENATE($N$6,$D30,$N$8,$E30),Data!$A:$BU,MATCH(E!AX$12,Data!$A$1:$BU$1,0),FALSE) -> 0 | AZ30: =VLOOKUP(CONCATENATE($N$6,$D30,$N$8,$E30),Data!$A:$BU,MATCH(E!AZ$12,Data!$A$1:$BU$1,0),FALSE) -> 0 | BB30: =VLOOKUP(CONCATENATE($N$6,$D30,$N$8,$E30),Data!$A:$BU,MATCH(E!BB$12,Data!$A$1:$BU$1,0),FALSE) -> 0 | BD30: =VLOOKUP(CONCATENATE($N$6,$D30,$N$8,$E30),Data!$A:$BU,MATCH(E!BD$12,Data!$A$1:$BU$1,0),FALSE) -> 0 | BF30: =VLOOKUP(CONCATENATE($N$6,$D30,$N$8,$E30),Data!$A:$BU,MATCH(E!BF$12,Data!$A$1:$BU$1,0),FALSE) -> 0 | BH30: =VLOOKUP(CONCATENATE($N$6,$D30,$N$8,$E30),Data!$A:$BU,MATCH(E!BH$12,Data!$A$1:$BU$1,0),FALSE) -> 0 | BJ30: =VLOOKUP(CONCATENATE($N$6,$D30,$N$8,$E30),Data!$A:$BU,MATCH(E!BJ$12,Data!$A$1:$BU$1,0),FALSE) -> 0
D31: Anguilla | E31: b | F31: =VLOOKUP(CONCATENATE($N$6,$D31,$N$8,$E31),Data!$A:$BU,MATCH(E!F$12,Data!$A$1:$BU$1,0),FALSE) -> 0 | H31: =VLOOKUP(CONCATENATE($N$6,$D31,$N$8,$E31),Data!$A:$BU,MATCH(E!H$12,Data!$A$1:$BU$1,0),FALSE) -> 0 | J31: =VLOOKUP(CONCATENATE($N$6,$D31,$N$8,$E31),Data!$A:$BU,MATCH(E!J$12,Data!$A$1:$BU$1,0),FALSE) -> 0 | L31: =VLOOKUP(CONCATENATE($N$6,$D31,$N$8,$E31),Data!$A:$BU,MATCH(E!L$12,Data!$A$1:$BU$1,0),FALSE) -> 0 | N31: =VLOOKUP(CONCATENATE($N$6,$D31,$N$8,$E31),Data!$A:$BU,MATCH(E!N$12,Data!$A$1:$BU$1,0),FALSE) -> 0 | P31: =VLOOKUP(CONCATENATE($N$6,$D31,$N$8,$E31),Data!$A:$BU,MATCH(E!P$12,Data!$A$1:$BU$1,0),FALSE) -> 0 | R31: =VLOOKUP(CONCATENATE($N$6,$D31,$N$8,$E31),Data!$A:$BU,MATCH(E!R$12,Data!$A$1:$BU$1,0),FALSE) -> 0 | T31: =VLOOKUP(CONCATENATE($N$6,$D31,$N$8,$E31),Data!$A:$BU,MATCH(E!T$12,Data!$A$1:$BU$1,0),FALSE) -> 0 | V31: =VLOOKUP(CONCATENATE($N$6,$D31,$N$8,$E31),Data!$A:$BU,MATCH(E!V$12,Data!$A$1:$BU$1,0),FALSE) -> 0 | X31: =VLOOKUP(CONCATENATE($N$6,$D31,$N$8,$E31),Data!$A:$BU,MATCH(E!X$12,Data!$A$1:$BU$1,0),FALSE) -> 0 | Z31: =VLOOKUP(CONCATENATE($N$6,$D31,$N$8,$E31),Data!$A:$BU,MATCH(E!Z$12,Data!$A$1:$BU$1,0),FALSE) -> 0 | AB31: =VLOOKUP(CONCATENATE($N$6,$D31,$N$8,$E31),Data!$A:$BU,MATCH(E!AB$12,Data!$A$1:$BU$1,0),FALSE) -> 0 | AD31: =VLOOKUP(CONCATENATE($N$6,$D31,$N$8,$E31),Data!$A:$BU,MATCH(E!AD$12,Data!$A$1:$BU$1,0),FALSE) -> 0 | AF31: =VLOOKUP(CONCATENATE($N$6,$D31,$N$8,$E31),Data!$A:$BU,MATCH(E!AF$12,Data!$A$1:$BU$1,0),FALSE) -> 0 | AH31: =VLOOKUP(CONCATENATE($N$6,$D31,$N$8,$E31),Data!$A:$BU,MATCH(E!AH$12,Data!$A$1:$BU$1,0),FALSE) -> 0 | AJ31: =VLOOKUP(CONCATENATE($N$6,$D31,$N$8,$E31),Data!$A:$BU,MATCH(E!AJ$12,Data!$A$1:$BU$1,0),FALSE) -> 0 | AL31: =VLOOKUP(CONCATENATE($N$6,$D31,$N$8,$E31),Data!$A:$BU,MATCH(E!AL$12,Data!$A$1:$BU$1,0),FALSE) -> 0 | AN31: =VLOOKUP(CONCATENATE($N$6,$D31,$N$8,$E31),Data!$A:$BU,MATCH(E!AN$12,Data!$A$1:$BU$1,0),FALSE) -> 0 | AP31: =VLOOKUP(CONCATENATE($N$6,$D31,$N$8,$E31),Data!$A:$BU,MATCH(E!AP$12,Data!$A$1:$BU$1,0),FALSE) -> 0 | AR31: =VLOOKUP(CONCATENATE($N$6,$D31,$N$8,$E31),Data!$A:$BU,MATCH(E!AR$12,Data!$A$1:$BU$1,0),FALSE) -> 0 | AT31: =VLOOKUP(CONCATENATE($N$6,$D31,$N$8,$E31),Data!$A:$BU,MATCH(E!AT$12,Data!$A$1:$BU$1,0),FALSE) -> 0 | AV31: =VLOOKUP(CONCATENATE($N$6,$D31,$N$8,$E31),Data!$A:$BU,MATCH(E!AV$12,Data!$A$1:$BU$1,0),FALSE) -> 0 | AX31: =VLOOKUP(CONCATENATE($N$6,$D31,$N$8,$E31),Data!$A:$BU,MATCH(E!AX$12,Data!$A$1:$BU$1,0),FALSE) -> 0 | AZ31: =VLOOKUP(CONCATENATE($N$6,$D31,$N$8,$E31),Data!$A:$BU,MATCH(E!AZ$12,Data!$A$1:$BU$1,0),FALSE) -> 0 | BB31: =VLOOKUP(CONCATENATE($N$6,$D31,$N$8,$E31),Data!$A:$BU,MATCH(E!BB$12,Data!$A$1:$BU$1,0),FALSE) -> 0 | BD31: =VLOOKUP(CONCATENATE($N$6,$D31,$N$8,$E31),Data!$A:$BU,MATCH(E!BD$12,Data!$A$1:$BU$1,0),FALSE) -> 0 | BF31: =VLOOKUP(CONCATENATE($N$6,$D31,$N$8,$E31),Data!$A:$BU,MATCH(E!BF$12,Data!$A$1:$BU$1,0),FALSE) -> 0 | BH31: =VLOOKUP(CONCATENATE($N$6,$D31,$N$8,$E31),Data!$A:$BU,MATCH(E!BH$12,Data!$A$1:$BU$1,0),FALSE) -> 0 | BJ31: =VLOOKUP(CONCATENATE($N$6,$D31,$N$8,$E31),Data!$A:$BU,MATCH(E!BJ$12,Data!$A$1:$BU$1,0),FALSE) -> 0
D32: Antarctica | E32: a | F32: =VLOOKUP(CONCATENATE($N$6,$D32,$N$8,$E32),Data!$A:$BU,MATCH(E!F$12,Data!$A$1:$BU$1,0),FALSE) -> 0 | H32: =VLOOKUP(CONCATENATE($N$6,$D32,$N$8,$E32),Data!$A:$BU,MATCH(E!H$12,Data!$A$1:$BU$1,0),FALSE) -> 0 | J32: =VLOOKUP(CONCATENATE($N$6,$D32,$N$8,$E32),Data!$A:$BU,MATCH(E!J$12,Data!$A$1:$BU$1,0),FALSE) -> 0 | L32: =VLOOKUP(CONCATENATE($N$6,$D32,$N$8,$E32),Data!$A:$BU,MATCH(E!L$12,Data!$A$1:$BU$1,0),FALSE) -> 0 | N32: =VLOOKUP(CONCATENATE($N$6,$D32,$N$8,$E32),Data!$A:$BU,MATCH(E!N$12,Data!$A$1:$BU$1,0),FALSE) -> 0 | P32: =VLOOKUP(CONCATENATE($N$6,$D32,$N$8,$E32),Data!$A:$BU,MATCH(E!P$12,Data!$A$1:$BU$1,0),FALSE) -> 0 | R32: =VLOOKUP(CONCATENATE($N$6,$D32,$N$8,$E32),Data!$A:$BU,MATCH(E!R$12,Data!$A$1:$BU$1,0),FALSE) -> 0 | T32: =VLOOKUP(CONCATENATE($N$6,$D32,$N$8,$E32),Data!$A:$BU,MATCH(E!T$12,Data!$A$1:$BU$1,0),FALSE) -> 0 | V32: =VLOOKUP(CONCATENATE($N$6,$D32,$N$8,$E32),Data!$A:$BU,MATCH(E!V$12,Data!$A$1:$BU$1,0),FALSE) -> 0 | X32: =VLOOKUP(CONCATENATE($N$6,$D32,$N$8,$E32),Data!$A:$BU,MATCH(E!X$12,Data!$A$1:$BU$1,0),FALSE) -> 0 | Z32: =VLOOKUP(CONCATENATE($N$6,$D32,$N$8,$E32),Data!$A:$BU,MATCH(E!Z$12,Data!$A$1:$BU$1,0),FALSE) -> 0 | AB32: =VLOOKUP(CONCATENATE($N$6,$D32,$N$8,$E32),Data!$A:$BU,MATCH(E!AB$12,Data!$A$1:$BU$1,0),FALSE) -> 0 | AD32: =VLOOKUP(CONCATENATE($N$6,$D32,$N$8,$E32),Data!$A:$BU,MATCH(E!AD$12,Data!$A$1:$BU$1,0),FALSE) -> 0 | AF32: =VLOOKUP(CONCATENATE($N$6,$D32,$N$8,$E32),Data!$A:$BU,MATCH(E!AF$12,Data!$A$1:$BU$1,0),FALSE) -> 0 | AH32: =VLOOKUP(CONCATENATE($N$6,$D32,$N$8,$E32),Data!$A:$BU,MATCH(E!AH$12,Data!$A$1:$BU$1,0),FALSE) -> 0 | AJ32: =VLOOKUP(CONCATENATE($N$6,$D32,$N$8,$E32),Data!$A:$BU,MATCH(E!AJ$12,Data!$A$1:$BU$1,0),FALSE) -> 0 | AL32: =VLOOKUP(CONCATENATE($N$6,$D32,$N$8,$E32),Data!$A:$BU,MATCH(E!AL$12,Data!$A$1:$BU$1,0),FALSE) -> 0 | AN32: =VLOOKUP(CONCATENATE($N$6,$D32,$N$8,$E32),Data!$A:$BU,MATCH(E!AN$12,Data!$A$1:$BU$1,0),FALSE) -> 0 | AP32: =VLOOKUP(CONCATENATE($N$6,$D32,$N$8,$E32),Data!$A:$BU,MATCH(E!AP$12,Data!$A$1:$BU$1,0),FALSE) -> 0 | AR32: =VLOOKUP(CONCATENATE($N$6,$D32,$N$8,$E32),Data!$A:$BU,MATCH(E!AR$12,Data!$A$1:$BU$1,0),FALSE) -> 0 | AT32: =VLOOKUP(CONCATENATE($N$6,$D32,$N$8,$E32),Data!$A:$BU,MATCH(E!AT$12,Data!$A$1:$BU$1,0),FALSE) -> 0 | AV32: =VLOOKUP(CONCATENATE($N$6,$D32,$N$8,$E32),Data!$A:$BU,MATCH(E!AV$12,Data!$A$1:$BU$1,0),FALSE) -> 0 | AX32: =VLOOKUP(CONCATENATE($N$6,$D32,$N$8,$E32),Data!$A:$BU,MATCH(E!AX$12,Data!$A$1:$BU$1,0),FALSE) -> 0 | AZ32: =VLOOKUP(CONCATENATE($N$6,$D32,$N$8,$E32),Data!$A:$BU,MATCH(E!AZ$12,Data!$A$1:$BU$1,0),FALSE) -> 0 | BB32: =VLOOKUP(CONCATENATE($N$6,$D32,$N$8,$E32),Data!$A:$BU,MATCH(E!BB$12,Data!$A$1:$BU$1,0),FALSE) -> 0 | BD32: =VLOOKUP(CONCATENATE($N$6,$D32,$N$8,$E32),Data!$A:$BU,MATCH(E!BD$12,Data!$A$1:$BU$1,0),FALSE) -> 0 | BF32: =VLOOKUP(CONCATENATE($N$6,$D32,$N$8,$E32),Data!$A:$BU,MATCH(E!BF$12,Data!$A$1:$BU$1,0),FALSE) -> 0 | BH32: =VLOOKUP(CONCATENATE($N$6,$D32,$N$8,$E32),Data!$A:$BU,MATCH(E!BH$12,Data!$A$1:$BU$1,0),FALSE) -> 0 | BJ32: =VLOOKUP(CONCATENATE($N$6,$D32,$N$8,$E32),Data!$A:$BU,MATCH(E!BJ$12,Data!$A$1:$BU$1,0),FALSE) -> 0
D33: Antarctica | E33: b | F33: =VLOOKUP(CONCATENATE($N$6,$D33,$N$8,$E33),Data!$A:$BU,MATCH(E!F$12,Data!$A$1:$BU$1,0),FALSE) -> 0 | H33: =VLOOKUP(CONCATENATE($N$6,$D33,$N$8,$E33),Data!$A:$BU,MATCH(E!H$12,Data!$A$1:$BU$1,0),FALSE) -> 0 | J33: =VLOOKUP(CONCATENATE($N$6,$D33,$N$8,$E33),Data!$A:$BU,MATCH(E!J$12,Data!$A$1:$BU$1,0),FALSE) -> 0 | L33: =VLOOKUP(CONCATENATE($N$6,$D33,$N$8,$E33),Data!$A:$BU,MATCH(E!L$12,Data!$A$1:$BU$1,0),FALSE) -> 0 | N33: =VLOOKUP(CONCATENATE($N$6,$D33,$N$8,$E33),Data!$A:$BU,MATCH(E!N$12,Data!$A$1:$BU$1,0),FALSE) -> 0 | P33: =VLOOKUP(CONCATENATE($N$6,$D33,$N$8,$E33),Data!$A:$BU,MATCH(E!P$12,Data!$A$1:$BU$1,0),FALSE) -> 0 | R33: =VLOOKUP(CONCATENATE($N$6,$D33,$N$8,$E33),Data!$A:$BU,MATCH(E!R$12,Data!$A$1:$BU$1,0),FALSE) -> 0 | T33: =VLOOKUP(CONCATENATE($N$6,$D33,$N$8,$E33),Data!$A:$BU,MATCH(E!T$12,Data!$A$1:$BU$1,0),FALSE) -> 0 | V33: =VLOOKUP(CONCATENATE($N$6,$D33,$N$8,$E33),Data!$A:$BU,MATCH(E!V$12,Data!$A$1:$BU$1,0),FALSE) -> 0 | X33: =VLOOKUP(CONCATENATE($N$6,$D33,$N$8,$E33),Data!$A:$BU,MATCH(E!X$12,Data!$A$1:$BU$1,0),FALSE) -> 0 | Z33: =VLOOKUP(CONCATENATE($N$6,$D33,$N$8,$E33),Data!$A:$BU,MATCH(E!Z$12,Data!$A$1:$BU$1,0),FALSE) -> 0 | AB33: =VLOOKUP(CONCATENATE($N$6,$D33,$N$8,$E33),Data!$A:$BU,MATCH(E!AB$12,Data!$A$1:$BU$1,0),FALSE) -> 0 | AD33: =VLOOKUP(CONCATENATE($N$6,$D33,$N$8,$E33),Data!$A:$BU,MATCH(E!AD$12,Data!$A$1:$BU$1,0),FALSE) -> 0 | AF33: =VLOOKUP(CONCATENATE($N$6,$D33,$N$8,$E33),Data!$A:$BU,MATCH(E!AF$12,Data!$A$1:$BU$1,0),FALSE) -> 0 | AH33: =VLOOKUP(CONCATENATE($N$6,$D33,$N$8,$E33),Data!$A:$BU,MATCH(E!AH$12,Data!$A$1:$BU$1,0),FALSE) -> 0 | AJ33: =VLOOKUP(CONCATENATE($N$6,$D33,$N$8,$E33),Data!$A:$BU,MATCH(E!AJ$12,Data!$A$1:$BU$1,0),FALSE) -> 0 | AL33: =VLOOKUP(CONCATENATE($N$6,$D33,$N$8,$E33),Data!$A:$BU,MATCH(E!AL$12,Data!$A$1:$BU$1,0),FALSE) -> 0 | AN33: =VLOOKUP(CONCATENATE($N$6,$D33,$N$8,$E33),Data!$A:$BU,MATCH(E!AN$12,Data!$A$1:$BU$1,0),FALSE) -> 0 | AP33: =VLOOKUP(CONCATENATE($N$6,$D33,$N$8,$E33),Data!$A:$BU,MATCH(E!AP$12,Data!$A$1:$BU$1,0),FALSE) -> 0 | AR33: =VLOOKUP(CONCATENATE($N$6,$D33,$N$8,$E33),Data!$A:$BU,MATCH(E!AR$12,Data!$A$1:$BU$1,0),FALSE) -> 0 | AT33: =VLOOKUP(CONCATENATE($N$6,$D33,$N$8,$E33),Data!$A:$BU,MATCH(E!AT$12,Data!$A$1:$BU$1,0),FALSE) -> 0 | AV33: =VLOOKUP(CONCATENATE($N$6,$D33,$N$8,$E33),Data!$A:$BU,MATCH(E!AV$12,Data!$A$1:$BU$1,0),FALSE) -> 0 | AX33: =VLOOKUP(CONCATENATE($N$6,$D33,$N$8,$E33),Data!$A:$BU,MATCH(E!AX$12,Data!$A$1:$BU$1,0),FALSE) -> 0 | AZ33: =VLOOKUP(CONCATENATE($N$6,$D33,$N$8,$E33),Data!$A:$BU,MATCH(E!AZ$12,Data!$A$1:$BU$1,0),FALSE) -> 0 | BB33: =VLOOKUP(CONCATENATE($N$6,$D33,$N$8,$E33),Data!$A:$BU,MATCH(E!BB$12,Data!$A$1:$BU$1,0),FALSE) -> 0 | BD33: =VLOOKUP(CONCATENATE($N$6,$D33,$N$8,$E33),Data!$A:$BU,MATCH(E!BD$12,Data!$A$1:$BU$1,0),FALSE) -> 0 | BF33: =VLOOKUP(CONCATENATE($N$6,$D33,$N$8,$E33),Data!$A:$BU,MATCH(E!BF$12,Data!$A$1:$BU$1,0),FALSE) -> 0 | BH33: =VLOOKUP(CONCATENATE($N$6,$D33,$N$8,$E33),Data!$A:$BU,MATCH(E!BH$12,Data!$A$1:$BU$1,0),FALSE) -> 0 | BJ33: =VLOOKUP(CONCATENATE($N$6,$D33,$N$8,$E33),Data!$A:$BU,MATCH(E!BJ$12,Data!$A$1:$BU$1,0),FALSE) -> 0
D34: Antigua and Barbuda | E34: a | F34: =VLOOKUP(CONCATENATE($N$6,$D34,$N$8,$E34),Data!$A:$BU,MATCH(E!F$12,Data!$A$1:$BU$1,0),FALSE) -> 0 | H34: =VLOOKUP(CONCATENATE($N$6,$D34,$N$8,$E34),Data!$A:$BU,MATCH(E!H$12,Data!$A$1:$BU$1,0),FALSE) -> 0 | J34: =VLOOKUP(CONCATENATE($N$6,$D34,$N$8,$E34),Data!$A:$BU,MATCH(E!J$12,Data!$A$1:$BU$1,0),FALSE) -> 0 | L34: =VLOOKUP(CONCATENATE($N$6,$D34,$N$8,$E34),Data!$A:$BU,MATCH(E!L$12,Data!$A$1:$BU$1,0),FALSE) -> 0 | N34: =VLOOKUP(CONCATENATE($N$6,$D34,$N$8,$E34),Data!$A:$BU,MATCH(E!N$12,Data!$A$1:$BU$1,0),FALSE) -> 1 | P34: =VLOOKUP(CONCATENATE($N$6,$D34,$N$8,$E34),Data!$A:$BU,MATCH(E!P$12,Data!$A$1:$BU$1,0),FALSE) -> 0 | R34: =VLOOKUP(CONCATENATE($N$6,$D34,$N$8,$E34),Data!$A:$BU,MATCH(E!R$12,Data!$A$1:$BU$1,0),FALSE) -> 0 | T34: =VLOOKUP(CONCATENATE($N$6,$D34,$N$8,$E34),Data!$A:$BU,MATCH(E!T$12,Data!$A$1:$BU$1,0),FALSE) -> 0 | V34: =VLOOKUP(CONCATENATE($N$6,$D34,$N$8,$E34),Data!$A:$BU,MATCH(E!V$12,Data!$A$1:$BU$1,0),FALSE) -> 1 | X34: =VLOOKUP(CONCATENATE($N$6,$D34,$N$8,$E34),Data!$A:$BU,MATCH(E!X$12,Data!$A$1:$BU$1,0),FALSE) -> 0 | Z34: =VLOOKUP(CONCATENATE($N$6,$D34,$N$8,$E34),Data!$A:$BU,MATCH(E!Z$12,Data!$A$1:$BU$1,0),FALSE) -> 0 | AB34: =VLOOKUP(CONCATENATE($N$6,$D34,$N$8,$E34),Data!$A:$BU,MATCH(E!AB$12,Data!$A$1:$BU$1,0),FALSE) -> 0 | AD34: =VLOOKUP(CONCATENATE($N$6,$D34,$N$8,$E34),Data!$A:$BU,MATCH(E!AD$12,Data!$A$1:$BU$1,0),FALSE) -> 0 | AF34: =VLOOKUP(CONCATENATE($N$6,$D34,$N$8,$E34),Data!$A:$BU,MATCH(E!AF$12,Data!$A$1:$BU$1,0),FALSE) -> 1 | AH34: =VLOOKUP(CONCATENATE($N$6,$D34,$N$8,$E34),Data!$A:$BU,MATCH(E!AH$12,Data!$A$1:$BU$1,0),FALSE) -> 0 | AJ34: =VLOOKUP(CONCATENATE($N$6,$D34,$N$8,$E34),Data!$A:$BU,MATCH(E!AJ$12,Data!$A$1:$BU$1,0),FALSE) -> 2 | AL34: =VLOOKUP(CONCATENATE($N$6,$D34,$N$8,$E34),Data!$A:$BU,MATCH(E!AL$12,Data!$A$1:$BU$1,0),FALSE) -> 0 | AN34: =VLOOKUP(CONCATENATE($N$6,$D34,$N$8,$E34),Data!$A:$BU,MATCH(E!AN$12,Data!$A$1:$BU$1,0),FALSE) -> 1 | AP34: =VLOOKUP(CONCATENATE($N$6,$D34,$N$8,$E34),Data!$A:$BU,MATCH(E!AP$12,Data!$A$1:$BU$1,0),FALSE) -> 0 | AR34: =VLOOKUP(CONCATENATE($N$6,$D34,$N$8,$E34),Data!$A:$BU,MATCH(E!AR$12,Data!$A$1:$BU$1,0),FALSE) -> 0 | AT34: =VLOOKUP(CONCATENATE($N$6,$D34,$N$8,$E34),Data!$A:$BU,MATCH(E!AT$12,Data!$A$1:$BU$1,0),FALSE) -> 0 | AV34: =VLOOKUP(CONCATENATE($N$6,$D34,$N$8,$E34),Data!$A:$BU,MATCH(E!AV$12,Data!$A$1:$BU$1,0),FALSE) -> 0 | AX34: =VLOOKUP(CONCATENATE($N$6,$D34,$N$8,$E34),Data!$A:$BU,MATCH(E!AX$12,Data!$A$1:$BU$1,0),FALSE) -> 2 | AZ34: =VLOOKUP(CONCATENATE($N$6,$D34,$N$8,$E34),Data!$A:$BU,MATCH(E!AZ$12,Data!$A$1:$BU$1,0),FALSE) -> 0 | BB34: =VLOOKUP(CONCATENATE($N$6,$D34,$N$8,$E34),Data!$A:$BU,MATCH(E!BB$12,Data!$A$1:$BU$1,0),FALSE) -> 0 | BD34: =VLOOKUP(CONCATENATE($N$6,$D34,$N$8,$E34),Data!$A:$BU,MATCH(E!BD$12,Data!$A$1:$BU$1,0),FALSE) -> 0 | BF34: =VLOOKUP(CONCATENATE($N$6,$D34,$N$8,$E34),Data!$A:$BU,MATCH(E!BF$12,Data!$A$1:$BU$1,0),FALSE) -> 0 | BH34: =VLOOKUP(CONCATENATE($N$6,$D34,$N$8,$E34),Data!$A:$BU,MATCH(E!BH$12,Data!$A$1:$BU$1,0),FALSE) -> 0 | BJ34: =VLOOKUP(CONCATENATE($N$6,$D34,$N$8,$E34),Data!$A:$BU,MATCH(E!BJ$12,Data!$A$1:$BU$1,0),FALSE) -> 0
D35: Antigua and Barbuda | E35: b | F35: =VLOOKUP(CONCATENATE($N$6,$D35,$N$8,$E35),Data!$A:$BU,MATCH(E!F$12,Data!$A$1:$BU$1,0),FALSE) -> 0 | H35: =VLOOKUP(CONCATENATE($N$6,$D35,$N$8,$E35),Data!$A:$BU,MATCH(E!H$12,Data!$A$1:$BU$1,0),FALSE) -> 0 | J35: =VLOOKUP(CONCATENATE($N$6,$D35,$N$8,$E35),Data!$A:$BU,MATCH(E!J$12,Data!$A$1:$BU$1,0),FALSE) -> 0 | L35: =VLOOKUP(CONCATENATE($N$6,$D35,$N$8,$E35),Data!$A:$BU,MATCH(E!L$12,Data!$A$1:$BU$1,0),FALSE) -> 0 | N35: =VLOOKUP(CONCATENATE($N$6,$D35,$N$8,$E35),Data!$A:$BU,MATCH(E!N$12,Data!$A$1:$BU$1,0),FALSE) -> 17695 | P35: =VLOOKUP(CONCATENATE($N$6,$D35,$N$8,$E35),Data!$A:$BU,MATCH(E!P$12,Data!$A$1:$BU$1,0),FALSE) -> 0 | R35: =VLOOKUP(CONCATENATE($N$6,$D35,$N$8,$E35),Data!$A:$BU,MATCH(E!R$12,Data!$A$1:$BU$1,0),FALSE) -> 0 | T35: =VLOOKUP(CONCATENATE($N$6,$D35,$N$8,$E35),Data!$A:$BU,MATCH(E!T$12,Data!$A$1:$BU$1,0),FALSE) -> 0 | V35: =VLOOKUP(CONCATENATE($N$6,$D35,$N$8,$E35),Data!$A:$BU,MATCH(E!V$12,Data!$A$1:$BU$1,0),FALSE) -> 26400 | X35: =VLOOKUP(CONCATENATE($N$6,$D35,$N$8,$E35),Data!$A:$BU,MATCH(E!X$12,Data!$A$1:$BU$1,0),FALSE) -> 0 | Z35: =VLOOKUP(CONCATENATE($N$6,$D35,$N$8,$E35),Data!$A:$BU,MATCH(E!Z$12,Data!$A$1:$BU$1,0),FALSE) -> 0 | AB35: =VLOOKUP(CONCATENATE($N$6,$D35,$N$8,$E35),Data!$A:$BU,MATCH(E!AB$12,Data!$A$1:$BU$1,0),FALSE) -> 0 | AD35: =VLOOKUP(CONCATENATE($N$6,$D35,$N$8,$E35),Data!$A:$BU,MATCH(E!AD$12,Data!$A$1:$BU$1,0),FALSE) -> 0 | AF35: =VLOOKUP(CONCATENATE($N$6,$D35,$N$8,$E35),Data!$A:$BU,MATCH(E!AF$12,Data!$A$1:$BU$1,0),FALSE) -> 70000 | AH35: =VLOOKUP(CONCATENATE($N$6,$D35,$N$8,$E35),Data!$A:$BU,MATCH(E!AH$12,Data!$A$1:$BU$1,0),FALSE) -> 0 | AJ35: =VLOOKUP(CONCATENATE($N$6,$D35,$N$8,$E35),Data!$A:$BU,MATCH(E!AJ$12,Data!$A$1:$BU$1,0),FALSE) -> 10820 | AL35: =VLOOKUP(CONCATENATE($N$6,$D35,$N$8,$E35),Data!$A:$BU,MATCH(E!AL$12,Data!$A$1:$BU$1,0),FALSE) -> 0 | AN35: =VLOOKUP(CONCATENATE($N$6,$D35,$N$8,$E35),Data!$A:$BU,MATCH(E!AN$12,Data!$A$1:$BU$1,0),FALSE) -> 10864 | AP35: =VLOOKUP(CONCATENATE($N$6,$D35,$N$8,$E35),Data!$A:$BU,MATCH(E!AP$12,Data!$A$1:$BU$1,0),FALSE) -> 0 | AR35: =VLOOKUP(CONCATENATE($N$6,$D35,$N$8,$E35),Data!$A:$BU,MATCH(E!AR$12,Data!$A$1:$BU$1,0),FALSE) -> 0 | AT35: =VLOOKUP(CONCATENATE($N$6,$D35,$N$8,$E35),Data!$A:$BU,MATCH(E!AT$12,Data!$A$1:$BU$1,0),FALSE) -> 0 | AV35: =VLOOKUP(CONCATENATE($N$6,$D35,$N$8,$E35),Data!$A:$BU,MATCH(E!AV$12,Data!$A$1:$BU$1,0),FALSE) -> 0 | AX35: =VLOOKUP(CONCATENATE($N$6,$D35,$N$8,$E35),Data!$A:$BU,MATCH(E!AX$12,Data!$A$1:$BU$1,0),FALSE) -> 30864 | AZ35: =VLOOKUP(CONCATENATE($N$6,$D35,$N$8,$E35),Data!$A:$BU,MATCH(E!AZ$12,Data!$A$1:$BU$1,0),FALSE) -> 0 | BB35: =VLOOKUP(CONCATENATE($N$6,$D35,$N$8,$E35),Data!$A:$BU,MATCH(E!BB$12,Data!$A$1:$BU$1,0),FALSE) -> 0 | BD35: =VLOOKUP(CONCATENATE($N$6,$D35,$N$8,$E35),Data!$A:$BU,MATCH(E!BD$12,Data!$A$1:$BU$1,0),FALSE) -> 0 | BF35: =VLOOKUP(CONCATENATE($N$6,$D35,$N$8,$E35),Data!$A:$BU,MATCH(E!BF$12,Data!$A$1:$BU$1,0),FALSE) -> 0 | BH35: =VLOOKUP(CONCATENATE($N$6,$D35,$N$8,$E35),Data!$A:$BU,MATCH(E!BH$12,Data!$A$1:$BU$1,0),FALSE) -> 0 | BJ35: =VLOOKUP(CONCATENATE($N$6,$D35,$N$8,$E35),Data!$A:$BU,MATCH(E!BJ$12,Data!$A$1:$BU$1,0),FALSE) -> 0
D36: Argentina | E36: a | F36: =VLOOKUP(CONCATENATE($N$6,$D36,$N$8,$E36),Data!$A:$BU,MATCH(E!F$12,Data!$A$1:$BU$1,0),FALSE) -> 2 | H36: =VLOOKUP(CONCATENATE($N$6,$D36,$N$8,$E36),Data!$A:$BU,MATCH(E!H$12,Data!$A$1:$BU$1,0),FALSE) -> 0 | J36: =VLOOKUP(CONCATENATE($N$6,$D36,$N$8,$E36),Data!$A:$BU,MATCH(E!J$12,Data!$A$1:$BU$1,0),FALSE) -> 2 | L36: =VLOOKUP(CONCATENATE($N$6,$D36,$N$8,$E36),Data!$A:$BU,MATCH(E!L$12,Data!$A$1:$BU$1,0),FALSE) -> 4 | N36: =VLOOKUP(CONCATENATE($N$6,$D36,$N$8,$E36),Data!$A:$BU,MATCH(E!N$12,Data!$A$1:$BU$1,0),FALSE) -> 9 | P36: =VLOOKUP(CONCATENATE($N$6,$D36,$N$8,$E36),Data!$A:$BU,MATCH(E!P$12,Data!$A$1:$BU$1,0),FALSE) -> 1 | R36: =VLOOKUP(CONCATENATE($N$6,$D36,$N$8,$E36),Data!$A:$BU,MATCH(E!R$12,Data!$A$1:$BU$1,0),FALSE) -> 3 | T36: =VLOOKUP(CONCATENATE($N$6,$D36,$N$8,$E36),Data!$A:$BU,MATCH(E!T$12,Data!$A$1:$BU$1,0),FALSE) -> 2 | V36: =VLOOKUP(CONCATENATE($N$6,$D36,$N$8,$E36),Data!$A:$BU,MATCH(E!V$12,Data!$A$1:$BU$1,0),FALSE) -> 3 | X36: =VLOOKUP(CONCATENATE($N$6,$D36,$N$8,$E36),Data!$A:$BU,MATCH(E!X$12,Data!$A$1:$BU$1,0),FALSE) -> 1 | Z36: =VLOOKUP(CONCATENATE($N$6,$D36,$N$8,$E36),Data!$A:$BU,MATCH(E!Z$12,Data!$A$1:$BU$1,0),FALSE) -> 2 | AB36: =VLOOKUP(CONCATENATE($N$6,$D36,$N$8,$E36),Data!$A:$BU,MATCH(E!AB$12,Data!$A$1:$BU$1,0),FALSE) -> 9 | AD36: =VLOOKUP(CONCATENATE($N$6,$D36,$N$8,$E36),Data!$A:$BU,MATCH(E!AD$12,Data!$A$1:$BU$1,0),FALSE) -> 1 | AF36: =VLOOKUP(CONCATENATE($N$6,$D36,$N$8,$E36),Data!$A:$BU,MATCH(E!AF$12,Data!$A$1:$BU$1,0),FALSE) -> 8 | AH36: =VLOOKUP(CONCATENATE($N$6,$D36,$N$8,$E36),Data!$A:$BU,MATCH(E!AH$12,Data!$A$1:$BU$1,0),FALSE) -> 10 | AJ36: =VLOOKUP(CONCATENATE($N$6,$D36,$N$8,$E36),Data!$A:$BU,MATCH(E!AJ$12,Data!$A$1:$BU$1,0),FALSE) -> 17 | AL36: =VLOOKUP(CONCATENATE($N$6,$D36,$N$8,$E36),Data!$A:$BU,MATCH(E!AL$12,Data!$A$1:$BU$1,0),FALSE) -> 4 | AN36: =VLOOKUP(CONCATENATE($N$6,$D36,$N$8,$E36),Data!$A:$BU,MATCH(E!AN$12,Data!$A$1:$BU$1,0),FALSE) -> 2 | AP36: =VLOOKUP(CONCATENATE($N$6,$D36,$N$8,$E36),Data!$A:$BU,MATCH(E!AP$12,Data!$A$1:$BU$1,0),FALSE) -> 1 | AR36: =VLOOKUP(CONCATENATE($N$6,$D36,$N$8,$E36),Data!$A:$BU,MATCH(E!AR$12,Data!$A$1:$BU$1,0),FALSE) -> 2 | AT36: =VLOOKUP(CONCATENATE($N$6,$D36,$N$8,$E36),Data!$A:$BU,MATCH(E!AT$12,Data!$A$1:$BU$1,0),FALSE) -> 3 | AV36: =VLOOKUP(CONCATENATE($N$6,$D36,$N$8,$E36),Data!$A:$BU,MATCH(E!AV$12,Data!$A$1:$BU$1,0),FALSE) -> 0 | AX36: =VLOOKUP(CONCATENATE($N$6,$D36,$N$8,$E36),Data!$A:$BU,MATCH(E!AX$12,Data!$A$1:$BU$1,0),FALSE) -> 2 | AZ36: =VLOOKUP(CONCATENATE($N$6,$D36,$N$8,$E36),Data!$A:$BU,MATCH(E!AZ$12,Data!$A$1:$BU$1,0),FALSE) -> 2 | BB36: =VLOOKUP(CONCATENATE($N$6,$D36,$N$8,$E36),Data!$A:$BU,MATCH(E!BB$12,Data!$A$1:$BU$1,0),FALSE) -> 1 | BD36: =VLOOKUP(CONCATENATE($N$6,$D36,$N$8,$E36),Data!$A:$BU,MATCH(E!BD$12,Data!$A$1:$BU$1,0),FALSE) -> 2 | BF36: =VLOOKUP(CONCATENATE($N$6,$D36,$N$8,$E36),Data!$A:$BU,MATCH(E!BF$12,Data!$A$1:$BU$1,0),FALSE) -> 2 | BH36: =VLOOKUP(CONCATENATE($N$6,$D36,$N$8,$E36),Data!$A:$BU,MATCH(E!BH$12,Data!$A$1:$BU$1,0),FALSE) -> 1 | BJ36: =VLOOKUP(CONCATENATE($N$6,$D36,$N$8,$E36),Data!$A:$BU,MATCH(E!BJ$12,Data!$A$1:$BU$1,0),FALSE) -> 0
D37: Argentina | E37: b | F37: =VLOOKUP(CONCATENATE($N$6,$D37,$N$8,$E37),Data!$A:$BU,MATCH(E!F$12,Data!$A$1:$BU$1,0),FALSE) -> 28975 | H37: =VLOOKUP(CONCATENATE($N$6,$D37,$N$8,$E37),Data!$A:$BU,MATCH(E!H$12,Data!$A$1:$BU$1,0),FALSE) -> 0 | J37: =VLOOKUP(CONCATENATE($N$6,$D37,$N$8,$E37),Data!$A:$BU,MATCH(E!J$12,Data!$A$1:$BU$1,0),FALSE) -> 7049 | L37: =VLOOKUP(CONCATENATE($N$6,$D37,$N$8,$E37),Data!$A:$BU,MATCH(E!L$12,Data!$A$1:$BU$1,0),FALSE) -> 13335 | N37: =VLOOKUP(CONCATENATE($N$6,$D37,$N$8,$E37),Data!$A:$BU,MATCH(E!N$12,Data!$A$1:$BU$1,0),FALSE) -> 1918475 | P37: =VLOOKUP(CONCATENATE($N$6,$D37,$N$8,$E37),Data!$A:$BU,MATCH(E!P$12,Data!$A$1:$BU$1,0),FALSE) -> 6689 | R37: =VLOOKUP(CONCATENATE($N$6,$D37,$N$8,$E37),Data!$A:$BU,MATCH(E!R$12,Data!$A$1:$BU$1,0),FALSE) -> 20834 | T37: =VLOOKUP(CONCATENATE($N$6,$D37,$N$8,$E37),Data!$A:$BU,MATCH(E!T$12,Data!$A$1:$BU$1,0),FALSE) -> 11854 | V37: =VLOOKUP(CONCATENATE($N$6,$D37,$N$8,$E37),Data!$A:$BU,MATCH(E!V$12,Data!$A$1:$BU$1,0),FALSE) -> 12957 | X37: =VLOOKUP(CONCATENATE($N$6,$D37,$N$8,$E37),Data!$A:$BU,MATCH(E!X$12,Data!$A$1:$BU$1,0),FALSE) -> 9506 | Z37: =VLOOKUP(CONCATENATE($N$6,$D37,$N$8,$E37),Data!$A:$BU,MATCH(E!Z$12,Data!$A$1:$BU$1,0),FALSE) -> 185900 | AB37: =VLOOKUP(CONCATENATE($N$6,$D37,$N$8,$E37),Data!$A:$BU,MATCH(E!AB$12,Data!$A$1:$BU$1,0),FALSE) -> 89088 | AD37: =VLOOKUP(CONCATENATE($N$6,$D37,$N$8,$E37),Data!$A:$BU,MATCH(E!AD$12,Data!$A$1:$BU$1,0),FALSE) -> 40000 | AF37: =VLOOKUP(CONCATENATE($N$6,$D37,$N$8,$E37),Data!$A:$BU,MATCH(E!AF$12,Data!$A$1:$BU$1,0),FALSE) -> 178134 | AH37: =VLOOKUP(CONCATENATE($N$6,$D37,$N$8,$E37),Data!$A:$BU,MATCH(E!AH$12,Data!$A$1:$BU$1,0),FALSE) -> 108554 | AJ37: =VLOOKUP(CONCATENATE($N$6,$D37,$N$8,$E37),Data!$A:$BU,MATCH(E!AJ$12,Data!$A$1:$BU$1,0),FALSE) -> 559645 | AL37: =VLOOKUP(CONCATENATE($N$6,$D37,$N$8,$E37),Data!$A:$BU,MATCH(E!AL$12,Data!$A$1:$BU$1,0),FALSE) -> 13983 | AN37: =VLOOKUP(CONCATENATE($N$6,$D37,$N$8,$E37),Data!$A:$BU,MATCH(E!AN$12,Data!$A$1:$BU$1,0),FALSE) -> 61230 | AP37: =VLOOKUP(CONCATENATE($N$6,$D37,$N$8,$E37),Data!$A:$BU,MATCH(E!AP$12,Data!$A$1:$BU$1,0),FALSE) -> 50000 | AR37: =VLOOKUP(CONCATENATE($N$6,$D37,$N$8,$E37),Data!$A:$BU,MATCH(E!AR$12,Data!$A$1:$BU$1,0),FALSE) -> 29863 | AT37: =VLOOKUP(CONCATENATE($N$6,$D37,$N$8,$E37),Data!$A:$BU,MATCH(E!AT$12,Data!$A$1:$BU$1,0),FALSE) -> 50742 | AV37: =VLOOKUP(CONCATENATE($N$6,$D37,$N$8,$E37),Data!$A:$BU,MATCH(E!AV$12,Data!$A$1:$BU$1,0),FALSE) -> 0 | AX37: =VLOOKUP(CONCATENATE($N$6,$D37,$N$8,$E37),Data!$A:$BU,MATCH(E!AX$12,Data!$A$1:$BU$1,0),FALSE) -> 211700 | AZ37: =VLOOKUP(CONCATENATE($N$6,$D37,$N$8,$E37),Data!$A:$BU,MATCH(E!AZ$12,Data!$A$1:$BU$1,0),FALSE) -> 101277 | BB37: =VLOOKUP(CONCATENATE($N$6,$D37,$N$8,$E37),Data!$A:$BU,MATCH(E!BB$12,Data!$A$1:$BU$1,0),FALSE) -> 1493 | BD37: =VLOOKUP(CONCATENATE($N$6,$D37,$N$8,$E37),Data!$A:$BU,MATCH(E!BD$12,Data!$A$1:$BU$1,0),FALSE) -> 15020 | BF37: =VLOOKUP(CONCATENATE($N$6,$D37,$N$8,$E37),Data!$A:$BU,MATCH(E!BF$12,Data!$A$1:$BU$1,0),FALSE) -> 11668 | BH37: =VLOOKUP(CONCATENATE($N$6,$D37,$N$8,$E37),Data!$A:$BU,MATCH(E!BH$12,Data!$A$1:$BU$1,0),FALSE) -> 2377 | BJ37: =VLOOKUP(CONCATENATE($N$6,$D37,$N$8,$E37),Data!$A:$BU,MATCH(E!BJ$12,Data!$A$1:$BU$1,0),FALSE) -> 0
D38: Armenia | E38: a | F38: =VLOOKUP(CONCATENATE($N$6,$D38,$N$8,$E38),Data!$A:$BU,MATCH(E!F$12,Data!$A$1:$BU$1,0),FALSE) -> 0 | H38: =VLOOKUP(CONCATENATE($N$6,$D38,$N$8,$E38),Data!$A:$BU,MATCH(E!H$12,Data!$A$1:$BU$1,0),FALSE) -> 0 | J38: =VLOOKUP(CONCATENATE($N$6,$D38,$N$8,$E38),Data!$A:$BU,MATCH(E!J$12,Data!$A$1:$BU$1,0),FALSE) -> 0 | L38: =VLOOKUP(CONCATENATE($N$6,$D38,$N$8,$E38),Data!$A:$BU,MATCH(E!L$12,Data!$A$1:$BU$1,0),FALSE) -> 1 | N38: =VLOOKUP(CONCATENATE($N$6,$D38,$N$8,$E38),Data!$A:$BU,MATCH(E!N$12,Data!$A$1:$BU$1,0),FALSE) -> 0 | P38: =VLOOKUP(CONCATENATE($N$6,$D38,$N$8,$E38),Data!$A:$BU,MATCH(E!P$12,Data!$A$1:$BU$1,0),FALSE) -> 0 | R38: =VLOOKUP(CONCATENATE($N$6,$D38,$N$8,$E38),Data!$A:$BU,MATCH(E!R$12,Data!$A$1:$BU$1,0),FALSE) -> 0 | T38: =VLOOKUP(CONCATENATE($N$6,$D38,$N$8,$E38),Data!$A:$BU,MATCH(E!T$12,Data!$A$1:$BU$1,0),FALSE) -> 1 | V38: =VLOOKUP(CONCATENATE($N$6,$D38,$N$8,$E38),Data!$A:$BU,MATCH(E!V$12,Data!$A$1:$BU$1,0),FALSE) -> 0 | X38: =VLOOKUP(CONCATENATE($N$6,$D38,$N$8,$E38),Data!$A:$BU,MATCH(E!X$12,Data!$A$1:$BU$1,0),FALSE) -> 0 | Z38: =VLOOKUP(CONCATENATE($N$6,$D38,$N$8,$E38),Data!$A:$BU,MATCH(E!Z$12,Data!$A$1:$BU$1,0),FALSE) -> 0 | AB38: =VLOOKUP(CONCATENATE($N$6,$D38,$N$8,$E38),Data!$A:$BU,MATCH(E!AB$12,Data!$A$1:$BU$1,0),FALSE) -> 0 | AD38: =VLOOKUP(CONCATENATE($N$6,$D38,$N$8,$E38),Data!$A:$BU,MATCH(E!AD$12,Data!$A$1:$BU$1,0),FALSE) -> 0 | AF38: =VLOOKUP(CONCATENATE($N$6,$D38,$N$8,$E38),Data!$A:$BU,MATCH(E!AF$12,Data!$A$1:$BU$1,0),FALSE) -> 0 | AH38: =VLOOKUP(CONCATENATE($N$6,$D38,$N$8,$E38),Data!$A:$BU,MATCH(E!AH$12,Data!$A$1:$BU$1,0),FALSE) -> 0 | AJ38: =VLOOKUP(CONCATENATE($N$6,$D38,$N$8,$E38),Data!$A:$BU,MATCH(E!AJ$12,Data!$A$1:$BU$1,0),FALSE) -> 0 | AL38: =VLOOKUP(CONCATENATE($N$6,$D38,$N$8,$E38),Data!$A:$BU,MATCH(E!AL$12,Data!$A$1:$BU$1,0),FALSE) -> 0 | AN38: =VLOOKUP(CONCATENATE($N$6,$D38,$N$8,$E38),Data!$A:$BU,MATCH(E!AN$12,Data!$A$1:$BU$1,0),FALSE) -> 0 | AP38: =VLOOKUP(CONCATENATE($N$6,$D38,$N$8,$E38),Data!$A:$BU,MATCH(E!AP$12,Data!$A$1:$BU$1,0),FALSE) -> 0 | AR38: =VLOOKUP(CONCATENATE($N$6,$D38,$N$8,$E38),Data!$A:$BU,MATCH(E!AR$12,Data!$A$1:$BU$1,0),FALSE) -> 0 | AT38: =VLOOKUP(CONCATENATE($N$6,$D38,$N$8,$E38),Data!$A:$BU,MATCH(E!AT$12,Data!$A$1:$BU$1,0),FALSE) -> 1 | AV38: =VLOOKUP(CONCATENATE($N$6,$D38,$N$8,$E38),Data!$A:$BU,MATCH(E!AV$12,Data!$A$1:$BU$1,0),FALSE) -> 0 | AX38: =VLOOKUP(CONCATENATE($N$6,$D38,$N$8,$E38),Data!$A:$BU,MATCH(E!AX$12,Data!$A$1:$BU$1,0),FALSE) -> 0 | AZ38: =VLOOKUP(CONCATENATE($N$6,$D38,$N$8,$E38),Data!$A:$BU,MATCH(E!AZ$12,Data!$A$1:$BU$1,0),FALSE) -> 0 | BB38: =VLOOKUP(CONCATENATE($N$6,$D38,$N$8,$E38),Data!$A:$BU,MATCH(E!BB$12,Data!$A$1:$BU$1,0),FALSE) -> 0 | BD38: =VLOOKUP(CONCATENATE($N$6,$D38,$N$8,$E38),Data!$A:$BU,MATCH(E!BD$12,Data!$A$1:$BU$1,0),FALSE) -> 0 | BF38: =VLOOKUP(CONCATENATE($N$6,$D38,$N$8,$E38),Data!$A:$BU,MATCH(E!BF$12,Data!$A$1:$BU$1,0),FALSE) -> 0 | BH38: =VLOOKUP(CONCATENATE($N$6,$D38,$N$8,$E38),Data!$A:$BU,MATCH(E!BH$12,Data!$A$1:$BU$1,0),FALSE) -> 0 | BJ38: =VLOOKUP(CONCATENATE($N$6,$D38,$N$8,$E38),Data!$A:$BU,MATCH(E!BJ$12,Data!$A$1:$BU$1,0),FALSE) -> 0
D39: Armenia | E39: b | F39: =VLOOKUP(CONCATENATE($N$6,$D39,$N$8,$E39),Data!$A:$BU,MATCH(E!F$12,Data!$A$1:$BU$1,0),FALSE) -> 0 | H39: =VLOOKUP(CONCATENATE($N$6,$D39,$N$8,$E39),Data!$A:$BU,MATCH(E!H$12,Data!$A$1:$BU$1,0),FALSE) -> 0 | J39: =VLOOKUP(CONCATENATE($N$6,$D39,$N$8,$E39),Data!$A:$BU,MATCH(E!J$12,Data!$A$1:$BU$1,0),FALSE) -> 0 | L39: =VLOOKUP(CONCATENATE($N$6,$D39,$N$8,$E39),Data!$A:$BU,MATCH(E!L$12,Data!$A$1:$BU$1,0),FALSE) -> 75000 | N39: =VLOOKUP(CONCATENATE($N$6,$D39,$N$8,$E39),Data!$A:$BU,MATCH(E!N$12,Data!$A$1:$BU$1,0),FALSE) -> 0 | P39: =VLOOKUP(CONCATENATE($N$6,$D39,$N$8,$E39),Data!$A:$BU,MATCH(E!P$12,Data!$A$1:$BU$1,0),FALSE) -> 0 | R39: =VLOOKUP(CONCATENATE($N$6,$D39,$N$8,$E39),Data!$A:$BU,MATCH(E!R$12,Data!$A$1:$BU$1,0),FALSE) -> 0 | T39: =VLOOKUP(CONCATENATE($N$6,$D39,$N$8,$E39),Data!$A:$BU,MATCH(E!T$12,Data!$A$1:$BU$1,0),FALSE) -> 1775 | V39: =VLOOKUP(CONCATENATE($N$6,$D39,$N$8,$E39),Data!$A:$BU,MATCH(E!V$12,Data!$A$1:$BU$1,0),FALSE) -> 0 | X39: =VLOOKUP(CONCATENATE($N$6,$D39,$N$8,$E39),Data!$A:$BU,MATCH(E!X$12,Data!$A$1:$BU$1,0),FALSE) -> 0 | Z39: =VLOOKUP(CONCATENATE($N$6,$D39,$N$8,$E39),Data!$A:$BU,MATCH(E!Z$12,Data!$A$1:$BU$1,0),FALSE) -> 0 | AB39: =VLOOKUP(CONCATENATE($N$6,$D39,$N$8,$E39),Data!$A:$BU,MATCH(E!AB$12,Data!$A$1:$BU$1,0),FALSE) -> 0 | AD39: =VLOOKUP(CONCATENATE($N$6,$D39,$N$8,$E39),Data!$A:$BU,MATCH(E!AD$12,Data!$A$1:$BU$1,0),FALSE) -> 0 | AF39: =VLOOKUP(CONCATENATE($N$6,$D39,$N$8,$E39),Data!$A:$BU,MATCH(E!AF$12,Data!$A$1:$BU$1,0),FALSE) -> 0 | AH39: =VLOOKUP(CONCATENATE($N$6,$D39,$N$8,$E39),Data!$A:$BU,MATCH(E!AH$12,Data!$A$1:$BU$1,0),FALSE) -> 0 | AJ39: =VLOOKUP(CONCATENATE($N$6,$D39,$N$8,$E39),Data!$A:$BU,MATCH(E!AJ$12,Data!$A$1:$BU$1,0),FALSE) -> 0 | AL39: =VLOOKUP(CONCATENATE($N$6,$D39,$N$8,$E39),Data!$A:$BU,MATCH(E!AL$12,Data!$A$1:$BU$1,0),FALSE) -> 0 | AN39: =VLOOKUP(CONCATENATE($N$6,$D39,$N$8,$E39),Data!$A:$BU,MATCH(E!AN$12,Data!$A$1:$BU$1,0),FALSE) -> 0 | AP39: =VLOOKUP(CONCATENATE($N$6,$D39,$N$8,$E39),Data!$A:$BU,MATCH(E!AP$12,Data!$A$1:$BU$1,0),FALSE) -> 0 | AR39: =VLOOKUP(CONCATENATE($N$6,$D39,$N$8,$E39),Data!$A:$BU,MATCH(E!AR$12,Data!$A$1:$BU$1,0),FALSE) -> 0 | AT39: =VLOOKUP(CONCATENATE($N$6,$D39,$N$8,$E39),Data!$A:$BU,MATCH(E!AT$12,Data!$A$1:$BU$1,0),FALSE) -> 72500 | AV39: =VLOOKUP(CONCATENATE($N$6,$D39,$N$8,$E39),Data!$A:$BU,MATCH(E!AV$12,Data!$A$1:$BU$1,0),FALSE) -> 0 | AX39: =VLOOKUP(CONCATENATE($N$6,$D39,$N$8,$E39),Data!$A:$BU,MATCH(E!AX$12,Data!$A$1:$BU$1,0),FALSE) -> 0 | AZ39: =VLOOKUP(CONCATENATE($N$6,$D39,$N$8,$E39),Data!$A:$BU,MATCH(E!AZ$12,Data!$A$1:$BU$1,0),FALSE) -> 0 | BB39: =VLOOKUP(CONCATENATE($N$6,$D39,$N$8,$E39),Data!$A:$BU,MATCH(E!BB$12,Data!$A$1:$BU$1,0),FALSE) -> 0 | BD39: =VLOOKUP(CONCATENATE($N$6,$D39,$N$8,$E39),Data!$A:$BU,MATCH(E!BD$12,Data!$A$1:$BU$1,0),FALSE) -> 0 | BF39: =VLOOKUP(CONCATENATE($N$6,$D39,$N$8,$E39),Data!$A:$BU,MATCH(E!BF$12,Data!$A$1:$BU$1,0),FALSE) -> 0 | BH39: =VLOOKUP(CONCATENATE($N$6,$D39,$N$8,$E39),Data!$A:$BU,MATCH(E!BH$12,Data!$A$1:$BU$1,0),FALSE) -> 0 | BJ39: =VLOOKUP(CONCATENATE($N$6,$D39,$N$8,$E39),Data!$A:$BU,MATCH(E!BJ$12,Data!$A$1:$BU$1,0),FALSE) -> 0
D40: Aruba | E40: a | F40: =VLOOKUP(CONCATENATE($N$6,$D40,$N$8,$E40),Data!$A:$BU,MATCH(E!F$12,Data!$A$1:$BU$1,0),FALSE) -> 0 | H40: =VLOOKUP(CONCATENATE($N$6,$D40,$N$8,$E40),Data!$A:$BU,MATCH(E!H$12,Data!$A$1:$BU$1,0),FALSE) -> 0 | J40: =VLOOKUP(CONCATENATE($N$6,$D40,$N$8,$E40),Data!$A:$BU,MATCH(E!J$12,Data!$A$1:$BU$1,0),FALSE) -> 0 | L40: =VLOOKUP(CONCATENATE($N$6,$D40,$N$8,$E40),Data!$A:$BU,MATCH(E!L$12,Data!$A$1:$BU$1,0),FALSE) -> 0 | N40: =VLOOKUP(CONCATENATE($N$6,$D40,$N$8,$E40),Data!$A:$BU,MATCH(E!N$12,Data!$A$1:$BU$1,0),FALSE) -> 0 | P40: =VLOOKUP(CONCATENATE($N$6,$D40,$N$8,$E40),Data!$A:$BU,MATCH(E!P$12,Data!$A$1:$BU$1,0),FALSE) -> 0 | R40: =VLOOKUP(CONCATENATE($N$6,$D40,$N$8,$E40),Data!$A:$BU,MATCH(E!R$12,Data!$A$1:$BU$1,0),FALSE) -> 0 | T40: =VLOOKUP(CONCATENATE($N$6,$D40,$N$8,$E40),Data!$A:$BU,MATCH(E!T$12,Data!$A$1:$BU$1,0),FALSE) -> 0 | V40: =VLOOKUP(CONCATENATE($N$6,$D40,$N$8,$E40),Data!$A:$BU,MATCH(E!V$12,Data!$A$1:$BU$1,0),FALSE) -> 0 | X40: =VLOOKUP(CONCATENATE($N$6,$D40,$N$8,$E40),Data!$A:$BU,MATCH(E!X$12,Data!$A$1:$BU$1,0),FALSE) -> 0 | Z40: =VLOOKUP(CONCATENATE($N$6,$D40,$N$8,$E40),Data!$A:$BU,MATCH(E!Z$12,Data!$A$1:$BU$1,0),FALSE) -> 0 | AB40: =VLOOKUP(CONCATENATE($N$6,$D40,$N$8,$E40),Data!$A:$BU,MATCH(E!AB$12,Data!$A$1:$BU$1,0),FALSE) -> 0 | AD40: =VLOOKUP(CONCATENATE($N$6,$D40,$N$8,$E40),Data!$A:$BU,MATCH(E!AD$12,Data!$A$1:$BU$1,0),FALSE) -> 0 | AF40: =VLOOKUP(CONCATENATE($N$6,$D40,$N$8,$E40),Data!$A:$BU,MATCH(E!AF$12,Data!$A$1:$BU$1,0),FALSE) -> 0 | AH40: =VLOOKUP(CONCATENATE($N$6,$D40,$N$8,$E40),Data!$A:$BU,MATCH(E!AH$12,Data!$A$1:$BU$1,0),FALSE) -> 0 | AJ40: =VLOOKUP(CONCATENATE($N$6,$D40,$N$8,$E40),Data!$A:$BU,MATCH(E!AJ$12,Data!$A$1:$BU$1,0),FALSE) -> 0 | AL40: =VLOOKUP(CONCATENATE($N$6,$D40,$N$8,$E40),Data!$A:$BU,MATCH(E!AL$12,Data!$A$1:$BU$1,0),FALSE) -> 0 | AN40: =VLOOKUP(CONCATENATE($N$6,$D40,$N$8,$E40),Data!$A:$BU,MATCH(E!AN$12,Data!$A$1:$BU$1,0),FALSE) -> 0 | AP40: =VLOOKUP(CONCATENATE($N$6,$D40,$N$8,$E40),Data!$A:$BU,MATCH(E!AP$12,Data!$A$1:$BU$1,0),FALSE) -> 1 | AR40: =VLOOKUP(CONCATENATE($N$6,$D40,$N$8,$E40),Data!$A:$BU,MATCH(E!AR$12,Data!$A$1:$BU$1,0),FALSE) -> 0 | AT40: =VLOOKUP(CONCATENATE($N$6,$D40,$N$8,$E40),Data!$A:$BU,MATCH(E!AT$12,Data!$A$1:$BU$1,0),FALSE) -> 0 | AV40: =VLOOKUP(CONCATENATE($N$6,$D40,$N$8,$E40),Data!$A:$BU,MATCH(E!AV$12,Data!$A$1:$BU$1,0),FALSE) -> 0 | AX40: =VLOOKUP(CONCATENATE($N$6,$D40,$N$8,$E40),Data!$A:$BU,MATCH(E!AX$12,Data!$A$1:$BU$1,0),FALSE) -> 0 | AZ40: =VLOOKUP(CONCATENATE($N$6,$D40,$N$8,$E40),Data!$A:$BU,MATCH(E!AZ$12,Data!$A$1:$BU$1,0),FALSE) -> 0 | BB40: =VLOOKUP(CONCATENATE($N$6,$D40,$N$8,$E40),Data!$A:$BU,MATCH(E!BB$12,Data!$A$1:$BU$1,0),FALSE) -> 1 | BD40: =VLOOKUP(CONCATENATE($N$6,$D40,$N$8,$E40),Data!$A:$BU,MATCH(E!BD$12,Data!$A$1:$BU$1,0),FALSE) -> 0 | BF40: =VLOOKUP(CONCATENATE($N$6,$D40,$N$8,$E40),Data!$A:$BU,MATCH(E!BF$12,Data!$A$1:$BU$1,0),FALSE) -> 0 | BH40: =VLOOKUP(CONCATENATE($N$6,$D40,$N$8,$E40),Data!$A:$BU,MATCH(E!BH$12,Data!$A$1:$BU$1,0),FALSE) -> 0 | BJ40: =VLOOKUP(CONCATENATE($N$6,$D40,$N$8,$E40),Data!$A:$BU,MATCH(E!BJ$12,Data!$A$1:$BU$1,0),FALSE) -> 0
D41: Aruba | E41: b | F41: =VLOOKUP(CONCATENATE($N$6,$D41,$N$8,$E41),Data!$A:$BU,MATCH(E!F$12,Data!$A$1:$BU$1,0),FALSE) -> 0 | H41: =VLOOKUP(CONCATENATE($N$6,$D41,$N$8,$E41),Data!$A:$BU,MATCH(E!H$12,Data!$A$1:$BU$1,0),FALSE) -> 0 | J41: =VLOOKUP(CONCATENATE($N$6,$D41,$N$8,$E41),Data!$A:$BU,MATCH(E!J$12,Data!$A$1:$BU$1,0),FALSE) -> 0 | L41: =VLOOKUP(CONCATENATE($N$6,$D41,$N$8,$E41),Data!$A:$BU,MATCH(E!L$12,Data!$A$1:$BU$1,0),FALSE) -> 0 | N41: =VLOOKUP(CONCATENATE($N$6,$D41,$N$8,$E41),Data!$A:$BU,MATCH(E!N$12,Data!$A$1:$BU$1,0),FALSE) -> 0 | P41: =VLOOKUP(CONCATENATE($N$6,$D41,$N$8,$E41),Data!$A:$BU,MATCH(E!P$12,Data!$A$1:$BU$1,0),FALSE) -> 0 | R41: =VLOOKUP(CONCATENATE($N$6,$D41,$N$8,$E41),Data!$A:$BU,MATCH(E!R$12,Data!$A$1:$BU$1,0),FALSE) -> 0 | T41: =VLOOKUP(CONCATENATE($N$6,$D41,$N$8,$E41),Data!$A:$BU,MATCH(E!T$12,Data!$A$1:$BU$1,0),FALSE) -> 0 | V41: =VLOOKUP(CONCATENATE($N$6,$D41,$N$8,$E41),Data!$A:$BU,MATCH(E!V$12,Data!$A$1:$BU$1,0),FALSE) -> 0 | X41: =VLOOKUP(CONCATENATE($N$6,$D41,$N$8,$E41),Data!$A:$BU,MATCH(E!X$12,Data!$A$1:$BU$1,0),FALSE) -> 0 | Z41: =VLOOKUP(CONCATENATE($N$6,$D41,$N$8,$E41),Data!$A:$BU,MATCH(E!Z$12,Data!$A$1:$BU$1,0),FALSE) -> 0 | AB41: =VLOOKUP(CONCATENATE($N$6,$D41,$N$8,$E41),Data!$A:$BU,MATCH(E!AB$12,Data!$A$1:$BU$1,0),FALSE) -> 0 | AD41: =VLOOKUP(CONCATENATE($N$6,$D41,$N$8,$E41),Data!$A:$BU,MATCH(E!AD$12,Data!$A$1:$BU$1,0),FALSE) -> 0 | AF41: =VLOOKUP(CONCATENATE($N$6,$D41,$N$8,$E41),Data!$A:$BU,MATCH(E!AF$12,Data!$A$1:$BU$1,0),FALSE) -> 0 | AH41: =VLOOKUP(CONCATENATE($N$6,$D41,$N$8,$E41),Data!$A:$BU,MATCH(E!AH$12,Data!$A$1:$BU$1,0),FALSE) -> 0 | AJ41: =VLOOKUP(CONCATENATE($N$6,$D41,$N$8,$E41),Data!$A:$BU,MATCH(E!AJ$12,Data!$A$1:$BU$1,0),FALSE) -> 0 | AL41: =VLOOKUP(CONCATENATE($N$6,$D41,$N$8,$E41),Data!$A:$BU,MATCH(E!AL$12,Data!$A$1:$BU$1,0),FALSE) -> 0 | AN41: =VLOOKUP(CONCATENATE($N$6,$D41,$N$8,$E41),Data!$A:$BU,MATCH(E!AN$12,Data!$A$1:$BU$1,0),FALSE) -> 0 | AP41: =VLOOKUP(CONCATENATE($N$6,$D41,$N$8,$E41),Data!$A:$BU,MATCH(E!AP$12,Data!$A$1:$BU$1,0),FALSE) -> 3139 | AR41: =VLOOKUP(CONCATENATE($N$6,$D41,$N$8,$E41),Data!$A:$BU,MATCH(E!AR$12,Data!$A$1:$BU$1,0),FALSE) -> 0 | AT41: =VLOOKUP(CONCATENATE($N$6,$D41,$N$8,$E41),Data!$A:$BU,MATCH(E!AT$12,Data!$A$1:$BU$1,0),FALSE) -> 0 | AV41: =VLOOKUP(CONCATENATE($N$6,$D41,$N$8,$E41),Data!$A:$BU,MATCH(E!AV$12,Data!$A$1:$BU$1,0),FALSE) -> 0 | AX41: =VLOOKUP(CONCATENATE($N$6,$D41,$N$8,$E41),Data!$A:$BU,MATCH(E!AX$12,Data!$A$1:$BU$1,0),FALSE) -> 0 | AZ41: =VLOOKUP(CONCATENATE($N$6,$D41,$N$8,$E41),Data!$A:$BU,MATCH(E!AZ$12,Data!$A$1:$BU$1,0),FALSE) -> 0 | BB41: =VLOOKUP(CONCATENATE($N$6,$D41,$N$8,$E41),Data!$A:$BU,MATCH(E!BB$12,Data!$A$1:$BU$1,0),FALSE) -> 400 | BD41: =VLOOKUP(CONCATENATE($N$6,$D41,$N$8,$E41),Data!$A:$BU,MATCH(E!BD$12,Data!$A$1:$BU$1,0),FALSE) -> 0 | BF41: =VLOOKUP(CONCATENATE($N$6,$D41,$N$8,$E41),Data!$A:$BU,MATCH(E!BF$12,Data!$A$1:$BU$1,0),FALSE) -> 0 | BH41: =VLOOKUP(CONCATENATE($N$6,$D41,$N$8,$E41),Data!$A:$BU,MATCH(E!BH$12,Data!$A$1:$BU$1,0),FALSE) -> 0 | BJ41: =VLOOKUP(CONCATENATE($N$6,$D41,$N$8,$E41),Data!$A:$BU,MATCH(E!BJ$12,Data!$A$1:$BU$1,0),FALSE) -> 0
D42: Australia | E42: a | F42: =VLOOKUP(CONCATENATE($N$6,$D42,$N$8,$E42),Data!$A:$BU,MATCH(E!F$12,Data!$A$1:$BU$1,0),FALSE) -> 32 | H42: =VLOOKUP(CONCATENATE($N$6,$D42,$N$8,$E42),Data!$A:$BU,MATCH(E!H$12,Data!$A$1:$BU$1,0),FALSE) -> 40 | J42: =VLOOKUP(CONCATENATE($N$6,$D42,$N$8,$E42),Data!$A:$BU,MATCH(E!J$12,Data!$A$1:$BU$1,0),FALSE) -> 33 | L42: =VLOOKUP(CONCATENATE($N$6,$D42,$N$8,$E42),Data!$A:$BU,MATCH(E!L$12,Data!$A$1:$BU$1,0),FALSE) -> 31 | N42: =VLOOKUP(CONCATENATE($N$6,$D42,$N$8,$E42),Data!$A:$BU,MATCH(E!N$12,Data!$A$1:$BU$1,0),FALSE) -> 41 | P42: =VLOOKUP(CONCATENATE($N$6,$D42,$N$8,$E42),Data!$A:$BU,MATCH(E!P$12,Data!$A$1:$BU$1,0),FALSE) -> 40 | R42: =VLOOKUP(CONCATENATE($N$6,$D42,$N$8,$E42),Data!$A:$BU,MATCH(E!R$12,Data!$A$1:$BU$1,0),FALSE) -> 38 | T42: =VLOOKUP(CONCATENATE($N$6,$D42,$N$8,$E42),Data!$A:$BU,MATCH(E!T$12,Data!$A$1:$BU$1,0),FALSE) -> 31 | V42: =VLOOKUP(CONCATENATE($N$6,$D42,$N$8,$E42),Data!$A:$BU,MATCH(E!V$12,Data!$A$1:$BU$1,0),FALSE) -> 41 | X42: =VLOOKUP(CONCATENATE($N$6,$D42,$N$8,$E42),Data!$A:$BU,MATCH(E!X$12,Data!$A$1:$BU$1,0),FALSE) -> 42 | Z42: =VLOOKUP(CONCATENATE($N$6,$D42,$N$8,$E42),Data!$A:$BU,MATCH(E!Z$12,Data!$A$1:$BU$1,0),FALSE) -> 47 | AB42: =VLOOKUP(CONCATENATE($N$6,$D42,$N$8,$E42),Data!$A:$BU,MATCH(E!AB$12,Data!$A$1:$BU$1,0),FALSE) -> 53 | AD42: =VLOOKUP(CONCATENATE($N$6,$D42,$N$8,$E42),Data!$A:$BU,MATCH(E!AD$12,Data!$A$1:$BU$1,0),FALSE) -> 38 | AF42: =VLOOKUP(CONCATENATE($N$6,$D42,$N$8,$E42),Data!$A:$BU,MATCH(E!AF$12,Data!$A$1:$BU$1,0),FALSE) -> 35 | AH42: =VLOOKUP(CONCATENATE($N$6,$D42,$N$8,$E42),Data!$A:$BU,MATCH(E!AH$12,Data!$A$1:$BU$1,0),FALSE) -> 36 | AJ42: =VLOOKUP(CONCATENATE($N$6,$D42,$N$8,$E42),Data!$A:$BU,MATCH(E!AJ$12,Data!$A$1:$BU$1,0),FALSE) -> 40 | AL42: =VLOOKUP(CONCATENATE($N$6,$D42,$N$8,$E42),Data!$A:$BU,MATCH(E!AL$12,Data!$A$1:$BU$1,0),FALSE) -> 36 | AN42: =VLOOKUP(CONCATENATE($N$6,$D42,$N$8,$E42),Data!$A:$BU,MATCH(E!AN$12,Data!$A$1:$BU$1,0),FALSE) -> 49 | AP42: =VLOOKUP(CONCATENATE($N$6,$D42,$N$8,$E42),Data!$A:$BU,MATCH(E!AP$12,Data!$A$1:$BU$1,0),FALSE) -> 38 | AR42: =VLOOKUP(CONCATENATE($N$6,$D42,$N$8,$E42),Data!$A:$BU,MATCH(E!AR$12,Data!$A$1:$BU$1,0),FALSE) -> 34 | AT42: =VLOOKUP(CONCATENATE($N$6,$D42,$N$8,$E42),Data!$A:$BU,MATCH(E!AT$12,Data!$A$1:$BU$1,0),FALSE) -> 45 | AV42: =VLOOKUP(CONCATENATE($N$6,$D42,$N$8,$E42),Data!$A:$BU,MATCH(E!AV$12,Data!$A$1:$BU$1,0),FALSE) -> 44 | AX42: =VLOOKUP(CONCATENATE($N$6,$D42,$N$8,$E42),Data!$A:$BU,MATCH(E!AX$12,Data!$A$1:$BU$1,0),FALSE) -> 42 | AZ42: =VLOOKUP(CONCATENATE($N$6,$D42,$N$8,$E42),Data!$A:$BU,MATCH(E!AZ$12,Data!$A$1:$BU$1,0),FALSE) -> 32 | BB42: =VLOOKUP(CONCATENATE($N$6,$D42,$N$8,$E42),Data!$A:$BU,MATCH(E!BB$12,Data!$A$1:$BU$1,0),FALSE) -> 42 | BD42: =VLOOKUP(CONCATENATE($N$6,$D42,$N$8,$E42),Data!$A:$BU,MATCH(E!BD$12,Data!$A$1:$BU$1,0),FALSE) -> 27 | BF42: =VLOOKUP(CONCATENATE($N$6,$D42,$N$8,$E42),Data!$A:$BU,MATCH(E!BF$12,Data!$A$1:$BU$1,0),FALSE) -> 31 | BH42: =VLOOKUP(CONCATENATE($N$6,$D42,$N$8,$E42),Data!$A:$BU,MATCH(E!BH$12,Data!$A$1:$BU$1,0),FALSE) -> 23 | BJ42: =VLOOKUP(CONCATENATE($N$6,$D42,$N$8,$E42),Data!$A:$BU,MATCH(E!BJ$12,Data!$A$1:$BU$1,0),FALSE) -> 30
D43: Australia | E43: b | F43: =VLOOKUP(CONCATENATE($N$6,$D43,$N$8,$E43),Data!$A:$BU,MATCH(E!F$12,Data!$A$1:$BU$1,0),FALSE) -> 4731187 | H43: =VLOOKUP(CONCATENATE($N$6,$D43,$N$8,$E43),Data!$A:$BU,MATCH(E!H$12,Data!$A$1:$BU$1,0),FALSE) -> 469354 | J43: =VLOOKUP(CONCATENATE($N$6,$D43,$N$8,$E43),Data!$A:$BU,MATCH(E!J$12,Data!$A$1:$BU$1,0),FALSE) -> 710023 | L43: =VLOOKUP(CONCATENATE($N$6,$D43,$N$8,$E43),Data!$A:$BU,MATCH(E!L$12,Data!$A$1:$BU$1,0),FALSE) -> 604910 | N43: =VLOOKUP(CONCATENATE($N$6,$D43,$N$8,$E43),Data!$A:$BU,MATCH(E!N$12,Data!$A$1:$BU$1,0),FALSE) -> 2090740 | P43: =VLOOKUP(CONCATENATE($N$6,$D43,$N$8,$E43),Data!$A:$BU,MATCH(E!P$12,Data!$A$1:$BU$1,0),FALSE) -> 1237334 | R43: =VLOOKUP(CONCATENATE($N$6,$D43,$N$8,$E43),Data!$A:$BU,MATCH(E!R$12,Data!$A$1:$BU$1,0),FALSE) -> 2640289 | T43: =VLOOKUP(CONCATENATE($N$6,$D43,$N$8,$E43),Data!$A:$BU,MATCH(E!T$12,Data!$A$1:$BU$1,0),FALSE) -> 1237604 | V43: =VLOOKUP(CONCATENATE($N$6,$D43,$N$8,$E43),Data!$A:$BU,MATCH(E!V$12,Data!$A$1:$BU$1,0),FALSE) -> 2653457 | X43: =VLOOKUP(CONCATENATE($N$6,$D43,$N$8,$E43),Data!$A:$BU,MATCH(E!X$12,Data!$A$1:$BU$1,0),FALSE) -> 1157978 | Z43: =VLOOKUP(CONCATENATE($N$6,$D43,$N$8,$E43),Data!$A:$BU,MATCH(E!Z$12,Data!$A$1:$BU$1,0),FALSE) -> 2643241 | AB43: =VLOOKUP(CONCATENATE($N$6,$D43,$N$8,$E43),Data!$A:$BU,MATCH(E!AB$12,Data!$A$1:$BU$1,0),FALSE) -> 3511959 | AD43: =VLOOKUP(CONCATENATE($N$6,$D43,$N$8,$E43),Data!$A:$BU,MATCH(E!AD$12,Data!$A$1:$BU$1,0),FALSE) -> 2119543 | AF43: =VLOOKUP(CONCATENATE($N$6,$D43,$N$8,$E43),Data!$A:$BU,MATCH(E!AF$12,Data!$A$1:$BU$1,0),FALSE) -> 711892 | AH43: =VLOOKUP(CONCATENATE($N$6,$D43,$N$8,$E43),Data!$A:$BU,MATCH(E!AH$12,Data!$A$1:$BU$1,0),FALSE) -> 80547955 | AJ43: =VLOOKUP(CONCATENATE($N$6,$D43,$N$8,$E43),Data!$A:$BU,MATCH(E!AJ$12,Data!$A$1:$BU$1,0),FALSE) -> 1439862 | AL43: =VLOOKUP(CONCATENATE($N$6,$D43,$N$8,$E43),Data!$A:$BU,MATCH(E!AL$12,Data!$A$1:$BU$1,0),FALSE) -> 1706661 | AN43: =VLOOKUP(CONCATENATE($N$6,$D43,$N$8,$E43),Data!$A:$BU,MATCH(E!AN$12,Data!$A$1:$BU$1,0),FALSE) -> 1854584 | AP43: =VLOOKUP(CONCATENATE($N$6,$D43,$N$8,$E43),Data!$A:$BU,MATCH(E!AP$12,Data!$A$1:$BU$1,0),FALSE) -> 32915443 | AR43: =VLOOKUP(CONCATENATE($N$6,$D43,$N$8,$E43),Data!$A:$BU,MATCH(E!AR$12,Data!$A$1:$BU$1,0),FALSE) -> 417221 | AT43: =VLOOKUP(CONCATENATE($N$6,$D43,$N$8,$E43),Data!$A:$BU,MATCH(E!AT$12,Data!$A$1:$BU$1,0),FALSE) -> 20144749 | AV43: =VLOOKUP(CONCATENATE($N$6,$D43,$N$8,$E43),Data!$A:$BU,MATCH(E!AV$12,Data!$A$1:$BU$1,0),FALSE) -> 569491 | AX43: =VLOOKUP(CONCATENATE($N$6,$D43,$N$8,$E43),Data!$A:$BU,MATCH(E!AX$12,Data!$A$1:$BU$1,0),FALSE) -> 2652703 | AZ43: =VLOOKUP(CONCATENATE($N$6,$D43,$N$8,$E43),Data!$A:$BU,MATCH(E!AZ$12,Data!$A$1:$BU$1,0),FALSE) -> 2247494 | BB43: =VLOOKUP(CONCATENATE($N$6,$D43,$N$8,$E43),Data!$A:$BU,MATCH(E!BB$12,Data!$A$1:$BU$1,0),FALSE) -> 1831482 | BD43: =VLOOKUP(CONCATENATE($N$6,$D43,$N$8,$E43),Data!$A:$BU,MATCH(E!BD$12,Data!$A$1:$BU$1,0),FALSE) -> 1391010 | BF43: =VLOOKUP(CONCATENATE($N$6,$D43,$N$8,$E43),Data!$A:$BU,MATCH(E!BF$12,Data!$A$1:$BU$1,0),FALSE) -> 11541968 | BH43: =VLOOKUP(CONCATENATE($N$6,$D43,$N$8,$E43),Data!$A:$BU,MATCH(E!BH$12,Data!$A$1:$BU$1,0),FALSE) -> 25881271 | BJ43: =VLOOKUP(CONCATENATE($N$6,$D43,$N$8,$E43),Data!$A:$BU,MATCH(E!BJ$12,Data!$A$1:$BU$1,0),FALSE) -> 5808958
D44: Australian Antarctic Territory | E44: a | F44: =VLOOKUP(CONCATENATE($N$6,$D44,$N$8,$E44),Data!$A:$BU,MATCH(E!F$12,Data!$A$1:$BU$1,0),FALSE) -> 0 | H44: =VLOOKUP(CONCATENATE($N$6,$D44,$N$8,$E44),Data!$A:$BU,MATCH(E!H$12,Data!$A$1:$BU$1,0),FALSE) -> 0 | J44: =VLOOKUP(CONCATENATE($N$6,$D44,$N$8,$E44),Data!$A:$BU,MATCH(E!J$12,Data!$A$1:$BU$1,0),FALSE) -> 0 | L44: =VLOOKUP(CONCATENATE($N$6,$D44,$N$8,$E44),Data!$A:$BU,MATCH(E!L$12,Data!$A$1:$BU$1,0),FALSE) -> 0 | N44: =VLOOKUP(CONCATENATE($N$6,$D44,$N$8,$E44),Data!$A:$BU,MATCH(E!N$12,Data!$A$1:$BU$1,0),FALSE) -> 0 | P44: =VLOOKUP(CONCATENATE($N$6,$D44,$N$8,$E44),Data!$A:$BU,MATCH(E!P$12,Data!$A$1:$BU$1,0),FALSE) -> 0 | R44: =VLOOKUP(CONCATENATE($N$6,$D44,$N$8,$E44),Data!$A:$BU,MATCH(E!R$12,Data!$A$1:$BU$1,0),FALSE) -> 0 | T44: =VLOOKUP(CONCATENATE($N$6,$D44,$N$8,$E44),Data!$A:$BU,MATCH(E!T$12,Data!$A$1:$BU$1,0),FALSE) -> 0 | V44: =VLOOKUP(CONCATENATE($N$6,$D44,$N$8,$E44),Data!$A:$BU,MATCH(E!V$12,Data!$A$1:$BU$1,0),FALSE) -> 0 | X44: =VLOOKUP(CONCATENATE($N$6,$D44,$N$8,$E44),Data!$A:$BU,MATCH(E!X$12,Data!$A$1:$BU$1,0),FALSE) -> 0 | Z44: =VLOOKUP(CONCATENATE($N$6,$D44,$N$8,$E44),Data!$A:$BU,MATCH(E!Z$12,Data!$A$1:$BU$1,0),FALSE) -> 0 | AB44: =VLOOKUP(CONCATENATE($N$6,$D44,$N$8,$E44),Data!$A:$BU,MATCH(E!AB$12,Data!$A$1:$BU$1,0),FALSE) -> 0 | AD44: =VLOOKUP(CONCATENATE($N$6,$D44,$N$8,$E44),Data!$A:$BU,MATCH(E!AD$12,Data!$A$1:$BU$1,0),FALSE) -> 0 | AF44: =VLOOKUP(CONCATENATE($N$6,$D44,$N$8,$E44),Data!$A:$BU,MATCH(E!AF$12,Data!$A$1:$BU$1,0),FALSE) -> 0 | AH44: =VLOOKUP(CONCATENATE($N$6,$D44,$N$8,$E44),Data!$A:$BU,MATCH(E!AH$12,Data!$A$1:$BU$1,0),FALSE) -> 0 | AJ44: =VLOOKUP(CONCATENATE($N$6,$D44,$N$8,$E44),Data!$A:$BU,MATCH(E!AJ$12,Data!$A$1:$BU$1,0),FALSE) -> 0 | AL44: =VLOOKUP(CONCATENATE($N$6,$D44,$N$8,$E44),Data!$A:$BU,MATCH(E!AL$12,Data!$A$1:$BU$1,0),FALSE) -> 0 | AN44: =VLOOKUP(CONCATENATE($N$6,$D44,$N$8,$E44),Data!$A:$BU,MATCH(E!AN$12,Data!$A$1:$BU$1,0),FALSE) -> 0 | AP44: =VLOOKUP(CONCATENATE($N$6,$D44,$N$8,$E44),Data!$A:$BU,MATCH(E!AP$12,Data!$A$1:$BU$1,0),FALSE) -> 0 | AR44: =VLOOKUP(CONCATENATE($N$6,$D44,$N$8,$E44),Data!$A:$BU,MATCH(E!AR$12,Data!$A$1:$BU$1,0),FALSE) -> 0 | AT44: =VLOOKUP(CONCATENATE($N$6,$D44,$N$8,$E44),Data!$A:$BU,MATCH(E!AT$12,Data!$A$1:$BU$1,0),FALSE) -> 0 | AV44: =VLOOKUP(CONCATENATE($N$6,$D44,$N$8,$E44),Data!$A:$BU,MATCH(E!AV$12,Data!$A$1:$BU$1,0),FALSE) -> 0 | AX44: =VLOOKUP(CONCATENATE($N$6,$D44,$N$8,$E44),Data!$A:$BU,MATCH(E!AX$12,Data!$A$1:$BU$1,0),FALSE) -> 0 | AZ44: =VLOOKUP(CONCATENATE($N$6,$D44,$N$8,$E44),Data!$A:$BU,MATCH(E!AZ$12,Data!$A$1:$BU$1,0),FALSE) -> 0 | BB44: =VLOOKUP(CONCATENATE($N$6,$D44,$N$8,$E44),Data!$A:$BU,MATCH(E!BB$12,Data!$A$1:$BU$1,0),FALSE) -> 0 | BD44: =VLOOKUP(CONCATENATE($N$6,$D44,$N$8,$E44),Data!$A:$BU,MATCH(E!BD$12,Data!$A$1:$BU$1,0),FALSE) -> 0 | BF44: =VLOOKUP(CONCATENATE($N$6,$D44,$N$8,$E44),Data!$A:$BU,MATCH(E!BF$12,Data!$A$1:$BU$1,0),FALSE) -> 0 | BH44: =VLOOKUP(CONCATENATE($N$6,$D44,$N$8,$E44),Data!$A:$BU,MATCH(E!BH$12,Data!$A$1:$BU$1,0),FALSE) -> 0 | BJ44: =VLOOKUP(CONCATENATE($N$6,$D44,$N$8,$E44),Data!$A:$BU,MATCH(E!BJ$12,Data!$A$1:$BU$1,0),FALSE) -> 0
D45: Australian Antarctic Territory | E45: b | F45: =VLOOKUP(CONCATENATE($N$6,$D45,$N$8,$E45),Data!$A:$BU,MATCH(E!F$12,Data!$A$1:$BU$1,0),FALSE) -> 0 | H45: =VLOOKUP(CONCATENATE($N$6,$D45,$N$8,$E45),Data!$A:$BU,MATCH(E!H$12,Data!$A$1:$BU$1,0),FALSE) -> 0 | J45: =VLOOKUP(CONCATENATE($N$6,$D45,$N$8,$E45),Data!$A:$BU,MATCH(E!J$12,Data!$A$1:$BU$1,0),FALSE) -> 0 | L45: =VLOOKUP(CONCATENATE($N$6,$D45,$N$8,$E45),Data!$A:$BU,MATCH(E!L$12,Data!$A$1:$BU$1,0),FALSE) -> 0 | N45: =VLOOKUP(CONCATENATE($N$6,$D45,$N$8,$E45),Data!$A:$BU,MATCH(E!N$12,Data!$A$1:$BU$1,0),FALSE) -> 0 | P45: =VLOOKUP(CONCATENATE($N$6,$D45,$N$8,$E45),Data!$A:$BU,MATCH(E!P$12,Data!$A$1:$BU$1,0),FALSE) -> 0 | R45: =VLOOKUP(CONCATENATE($N$6,$D45,$N$8,$E45),Data!$A:$BU,MATCH(E!R$12,Data!$A$1:$BU$1,0),FALSE) -> 0 | T45: =VLOOKUP(CONCATENATE($N$6,$D45,$N$8,$E45),Data!$A:$BU,MATCH(E!T$12,Data!$A$1:$BU$1,0),FALSE) -> 0 | V45: =VLOOKUP(CONCATENATE($N$6,$D45,$N$8,$E45),Data!$A:$BU,MATCH(E!V$12,Data!$A$1:$BU$1,0),FALSE) -> 0 | X45: =VLOOKUP(CONCATENATE($N$6,$D45,$N$8,$E45),Data!$A:$BU,MATCH(E!X$12,Data!$A$1:$BU$1,0),FALSE) -> 0 | Z45: =VLOOKUP(CONCATENATE($N$6,$D45,$N$8,$E45),Data!$A:$BU,MATCH(E!Z$12,Data!$A$1:$BU$1,0),FALSE) -> 0 | AB45: =VLOOKUP(CONCATENATE($N$6,$D45,$N$8,$E45),Data!$A:$BU,MATCH(E!AB$12,Data!$A$1:$BU$1,0),FALSE) -> 0 | AD45: =VLOOKUP(CONCATENATE($N$6,$D45,$N$8,$E45),Data!$A:$BU,MATCH(E!AD$12,Data!$A$1:$BU$1,0),FALSE) -> 0 | AF45: =VLOOKUP(CONCATENATE($N$6,$D45,$N$8,$E45),Data!$A:$BU,MATCH(E!AF$12,Data!$A$1:$BU$1,0),FALSE) -> 0 | AH45: =VLOOKUP(CONCATENATE($N$6,$D45,$N$8,$E45),Data!$A:$BU,MATCH(E!AH$12,Data!$A$1:$BU$1,0),FALSE) -> 0 | AJ45: =VLOOKUP(CONCATENATE($N$6,$D45,$N$8,$E45),Data!$A:$BU,MATCH(E!AJ$12,Data!$A$1:$BU$1,0),FALSE) -> 0 | AL45: =VLOOKUP(CONCATENATE($N$6,$D45,$N$8,$E45),Data!$A:$BU,MATCH(E!AL$12,Data!$A$1:$BU$1,0),FALSE) -> 0 | AN45: =VLOOKUP(CONCATENATE($N$6,$D45,$N$8,$E45),Data!$A:$BU,MATCH(E!AN$12,Data!$A$1:$BU$1,0),FALSE) -> 0 | AP45: =VLOOKUP(CONCATENATE($N$6,$D45,$N$8,$E45),Data!$A:$BU,MATCH(E!AP$12,Data!$A$1:$BU$1,0),FALSE) -> 0 | AR45: =VLOOKUP(CONCATENATE($N$6,$D45,$N$8,$E45),Data!$A:$BU,MATCH(E!AR$12,Data!$A$1:$BU$1,0),FALSE) -> 0 | AT45: =VLOOKUP(CONCATENATE($N$6,$D45,$N$8,$E45),Data!$A:$BU,MATCH(E!AT$12,Data!$A$1:$BU$1,0),FALSE) -> 0 | AV45: =VLOOKUP(CONCATENATE($N$6,$D45,$N$8,$E45),Data!$A:$BU,MATCH(E!AV$12,Data!$A$1:$BU$1,0),FALSE) -> 0 | AX45: =VLOOKUP(CONCATENATE($N$6,$D45,$N$8,$E45),Data!$A:$BU,MATCH(E!AX$12,Data!$A$1:$BU$1,0),FALSE) -> 0 | AZ45: =VLOOKUP(CONCATENATE($N$6,$D45,$N$8,$E45),Data!$A:$BU,MATCH(E!AZ$12,Data!$A$1:$BU$1,0),FALSE) -> 0 | BB45: =VLOOKUP(CONCATENATE($N$6,$D45,$N$8,$E45),Data!$A:$BU,MATCH(E!BB$12,Data!$A$1:$BU$1,0),FALSE) -> 0 | BD45: =VLOOKUP(CONCATENATE($N$6,$D45,$N$8,$E45),Data!$A:$BU,MATCH(E!BD$12,Data!$A$1:$BU$1,0),FALSE) -> 0 | BF45: =VLOOKUP(CONCATENATE($N$6,$D45,$N$8,$E45),Data!$A:$BU,MATCH(E!BF$12,Data!$A$1:$BU$1,0),FALSE) -> 0 | BH45: =VLOOKUP(CONCATENATE($N$6,$D45,$N$8,$E45),Data!$A:$BU,MATCH(E!BH$12,Data!$A$1:$BU$1,0),FALSE) -> 0 | BJ45: =VLOOKUP(CONCATENATE($N$6,$D45,$N$8,$E45),Data!$A:$BU,MATCH(E!BJ$12,Data!$A$1:$BU$1,0),FALSE) -> 0
D46: Austria | E46: a | F46: =VLOOKUP(CONCATENATE($N$6,$D46,$N$8,$E46),Data!$A:$BU,MATCH(E!F$12,Data!$A$1:$BU$1,0),FALSE) -> 7 | H46: =VLOOKUP(CONCATENATE($N$6,$D46,$N$8,$E46),Data!$A:$BU,MATCH(E!H$12,Data!$A$1:$BU$1,0),FALSE) -> 4 | J46: =VLOOKUP(CONCATENATE($N$6,$D46,$N$8,$E46),Data!$A:$BU,MATCH(E!J$12,Data!$A$1:$BU$1,0),FALSE) -> 4 | L46: =VLOOKUP(CONCATENATE($N$6,$D46,$N$8,$E46),Data!$A:$BU,MATCH(E!L$12,Data!$A$1:$BU$1,0),FALSE) -> 6 | N46: =VLOOKUP(CONCATENATE($N$6,$D46,$N$8,$E46),Data!$A:$BU,MATCH(E!N$12,Data!$A$1:$BU$1,0),FALSE) -> 5 | P46: =VLOOKUP(CONCATENATE($N$6,$D46,$N$8,$E46),Data!$A:$BU,MATCH(E!P$12,Data!$A$1:$BU$1,0),FALSE) -> 6 | R46: =VLOOKUP(CONCATENATE($N$6,$D46,$N$8,$E46),Data!$A:$BU,MATCH(E!R$12,Data!$A$1:$BU$1,0),FALSE) -> 4 | T46: =VLOOKUP(CONCATENATE($N$6,$D46,$N$8,$E46),Data!$A:$BU,MATCH(E!T$12,Data!$A$1:$BU$1,0),FALSE) -> 2 | V46: =VLOOKUP(CONCATENATE($N$6,$D46,$N$8,$E46),Data!$A:$BU,MATCH(E!V$12,Data!$A$1:$BU$1,0),FALSE) -> 6 | X46: =VLOOKUP(CONCATENATE($N$6,$D46,$N$8,$E46),Data!$A:$BU,MATCH(E!X$12,Data!$A$1:$BU$1,0),FALSE) -> 8 | Z46: =VLOOKUP(CONCATENATE($N$6,$D46,$N$8,$E46),Data!$A:$BU,MATCH(E!Z$12,Data!$A$1:$BU$1,0),FALSE) -> 9 | AB46: =VLOOKUP(CONCATENATE($N$6,$D46,$N$8,$E46),Data!$A:$BU,MATCH(E!AB$12,Data!$A$1:$BU$1,0),FALSE) -> 5 | AD46: =VLOOKUP(CONCATENATE($N$6,$D46,$N$8,$E46),Data!$A:$BU,MATCH(E!AD$12,Data!$A$1:$BU$1,0),FALSE) -> 4 | AF46: =VLOOKUP(CONCATENATE($N$6,$D46,$N$8,$E46),Data!$A:$BU,MATCH(E!AF$12,Data!$A$1:$BU$1,0),FALSE) -> 9 | AH46: =VLOOKUP(CONCATENATE($N$6,$D46,$N$8,$E46),Data!$A:$BU,MATCH(E!AH$12,Data!$A$1:$BU$1,0),FALSE) -> 3 | AJ46: =VLOOKUP(CONCATENATE($N$6,$D46,$N$8,$E46),Data!$A:$BU,MATCH(E!AJ$12,Data!$A$1:$BU$1,0),FALSE) -> 11 | AL46: =VLOOKUP(CONCATENATE($N$6,$D46,$N$8,$E46),Data!$A:$BU,MATCH(E!AL$12,Data!$A$1:$BU$1,0),FALSE) -> 6 | AN46: =VLOOKUP(CONCATENATE($N$6,$D46,$N$8,$E46),Data!$A:$BU,MATCH(E!AN$12,Data!$A$1:$BU$1,0),FALSE) -> 9 | AP46: =VLOOKUP(CONCATENATE($N$6,$D46,$N$8,$E46),Data!$A:$BU,MATCH(E!AP$12,Data!$A$1:$BU$1,0),FALSE) -> 12 | AR46: =VLOOKUP(CONCATENATE($N$6,$D46,$N$8,$E46),Data!$A:$BU,MATCH(E!AR$12,Data!$A$1:$BU$1,0),FALSE) -> 6 | AT46: =VLOOKUP(CONCATENATE($N$6,$D46,$N$8,$E46),Data!$A:$BU,MATCH(E!AT$12,Data!$A$1:$BU$1,0),FALSE) -> 5 | AV46: =VLOOKUP(CONCATENATE($N$6,$D46,$N$8,$E46),Data!$A:$BU,MATCH(E!AV$12,Data!$A$1:$BU$1,0),FALSE) -> 5 | AX46: =VLOOKUP(CONCATENATE($N$6,$D46,$N$8,$E46),Data!$A:$BU,MATCH(E!AX$12,Data!$A$1:$BU$1,0),FALSE) -> 5 | AZ46: =VLOOKUP(CONCATENATE($N$6,$D46,$N$8,$E46),Data!$A:$BU,MATCH(E!AZ$12,Data!$A$1:$BU$1,0),FALSE) -> 6 | BB46: =VLOOKUP(CONCATENATE($N$6,$D46,$N$8,$E46),Data!$A:$BU,MATCH(E!BB$12,Data!$A$1:$BU$1,0),FALSE) -> 8 | BD46: =VLOOKUP(CONCATENATE($N$6,$D46,$N$8,$E46),Data!$A:$BU,MATCH(E!BD$12,Data!$A$1:$BU$1,0),FALSE) -> 11 | BF46: =VLOOKUP(CONCATENATE($N$6,$D46,$N$8,$E46),Data!$A:$BU,MATCH(E!BF$12,Data!$A$1:$BU$1,0),FALSE) -> 16 | BH46: =VLOOKUP(CONCATENATE($N$6,$D46,$N$8,$E46),Data!$A:$BU,MATCH(E!BH$12,Data!$A$1:$BU$1,0),FALSE) -> 9 | BJ46: =VLOOKUP(CONCATENATE($N$6,$D46,$N$8,$E46),Data!$A:$BU,MATCH(E!BJ$12,Data!$A$1:$BU$1,0),FALSE) -> 8
D47: Austria | E47: b | F47: =VLOOKUP(CONCATENATE($N$6,$D47,$N$8,$E47),Data!$A:$BU,MATCH(E!F$12,Data!$A$1:$BU$1,0),FALSE) -> 36805 | H47: =VLOOKUP(CONCATENATE($N$6,$D47,$N$8,$E47),Data!$A:$BU,MATCH(E!H$12,Data!$A$1:$BU$1,0),FALSE) -> 192841 | J47: =VLOOKUP(CONCATENATE($N$6,$D47,$N$8,$E47),Data!$A:$BU,MATCH(E!J$12,Data!$A$1:$BU$1,0),FALSE) -> 19846 | L47: =VLOOKUP(CONCATENATE($N$6,$D47,$N$8,$E47),Data!$A:$BU,MATCH(E!L$12,Data!$A$1:$BU$1,0),FALSE) -> 839273 | N47: =VLOOKUP(CONCATENATE($N$6,$D47,$N$8,$E47),Data!$A:$BU,MATCH(E!N$12,Data!$A$1:$BU$1,0),FALSE) -> 1020776 | P47: =VLOOKUP(CONCATENATE($N$6,$D47,$N$8,$E47),Data!$A:$BU,MATCH(E!P$12,Data!$A$1:$BU$1,0),FALSE) -> 516154 | R47: =VLOOKUP(CONCATENATE($N$6,$D47,$N$8,$E47),Data!$A:$BU,MATCH(E!R$12,Data!$A$1:$BU$1,0),FALSE) -> 207972 | T47: =VLOOKUP(CONCATENATE($N$6,$D47,$N$8,$E47),Data!$A:$BU,MATCH(E!T$12,Data!$A$1:$BU$1,0),FALSE) -> 3924 | V47: =VLOOKUP(CONCATENATE($N$6,$D47,$N$8,$E47),Data!$A:$BU,MATCH(E!V$12,Data!$A$1:$BU$1,0),FALSE) -> 27235 | X47: =VLOOKUP(CONCATENATE($N$6,$D47,$N$8,$E47),Data!$A:$BU,MATCH(E!X$12,Data!$A$1:$BU$1,0),FALSE) -> 44326 | Z47: =VLOOKUP(CONCATENATE($N$6,$D47,$N$8,$E47),Data!$A:$BU,MATCH(E!Z$12,Data!$A$1:$BU$1,0),FALSE) -> 87050 | AB47: =VLOOKUP(CONCATENATE($N$6,$D47,$N$8,$E47),Data!$A:$BU,MATCH(E!AB$12,Data!$A$1:$BU$1,0),FALSE) -> 6340 | AD47: =VLOOKUP(CONCATENATE($N$6,$D47,$N$8,$E47),Data!$A:$BU,MATCH(E!AD$12,Data!$A$1:$BU$1,0),FALSE) -> 4353 | AF47: =VLOOKUP(CONCATENATE($N$6,$D47,$N$8,$E47),Data!$A:$BU,MATCH(E!AF$12,Data!$A$1:$BU$1,0),FALSE) -> 1049144 | AH47: =VLOOKUP(CONCATENATE($N$6,$D47,$N$8,$E47),Data!$A:$BU,MATCH(E!AH$12,Data!$A$1:$BU$1,0),FALSE) -> 10271 | AJ47: =VLOOKUP(CONCATENATE($N$6,$D47,$N$8,$E47),Data!$A:$BU,MATCH(E!AJ$12,Data!$A$1:$BU$1,0),FALSE) -> 56138 | AL47: =VLOOKUP(CONCATENATE($N$6,$D47,$N$8,$E47),Data!$A:$BU,MATCH(E!AL$12,Data!$A$1:$BU$1,0),FALSE) -> 112331 | AN47: =VLOOKUP(CONCATENATE($N$6,$D47,$N$8,$E47),Data!$A:$BU,MATCH(E!AN$12,Data!$A$1:$BU$1,0),FALSE) -> 68839 | AP47: =VLOOKUP(CONCATENATE($N$6,$D47,$N$8,$E47),Data!$A:$BU,MATCH(E!AP$12,Data!$A$1:$BU$1,0),FALSE) -> 51247 | AR47: =VLOOKUP(CONCATENATE($N$6,$D47,$N$8,$E47),Data!$A:$BU,MATCH(E!AR$12,Data!$A$1:$BU$1,0),FALSE) -> 21415 | AT47: =VLOOKUP(CONCATENATE($N$6,$D47,$N$8,$E47),Data!$A:$BU,MATCH(E!AT$12,Data!$A$1:$BU$1,0),FALSE) -> 30015519 | AV47: =VLOOKUP(CONCATENATE($N$6,$D47,$N$8,$E47),Data!$A:$BU,MATCH(E!AV$12,Data!$A$1:$BU$1,0),FALSE) -> 75392 | AX47: =VLOOKUP(CONCATENATE($N$6,$D47,$N$8,$E47),Data!$A:$BU,MATCH(E!AX$12,Data!$A$1:$BU$1,0),FALSE) -> 2737772 | AZ47: =VLOOKUP(CONCATENATE($N$6,$D47,$N$8,$E47),Data!$A:$BU,MATCH(E!AZ$12,Data!$A$1:$BU$1,0),FALSE) -> 56278 | BB47: =VLOOKUP(CONCATENATE($N$6,$D47,$N$8,$E47),Data!$A:$BU,MATCH(E!BB$12,Data!$A$1:$BU$1,0),FALSE) -> 1512960 | BD47: =VLOOKUP(CONCATENATE($N$6,$D47,$N$8,$E47),Data!$A:$BU,MATCH(E!BD$12,Data!$A$1:$BU$1,0),FALSE) -> 221345 | BF47: =VLOOKUP(CONCATENATE($N$6,$D47,$N$8,$E47),Data!$A:$BU,MATCH(E!BF$12,Data!$A$1:$BU$1,0),FALSE) -> 12455574 | BH47: =VLOOKUP(CONCATENATE($N$6,$D47,$N$8,$E47),Data!$A:$BU,MATCH(E!BH$12,Data!$A$1:$BU$1,0),FALSE) -> 519974 | BJ47: =VLOOKUP(CONCATENATE($N$6,$D47,$N$8,$E47),Data!$A:$BU,MATCH(E!BJ$12,Data!$A$1:$BU$1,0),FALSE) -> 10605839
D48: Azerbaijan | E48: a | F48: =VLOOKUP(CONCATENATE($N$6,$D48,$N$8,$E48),Data!$A:$BU,MATCH(E!F$12,Data!$A$1:$BU$1,0),FALSE) -> 0 | H48: =VLOOKUP(CONCATENATE($N$6,$D48,$N$8,$E48),Data!$A:$BU,MATCH(E!H$12,Data!$A$1:$BU$1,0),FALSE) -> 0 | J48: =VLOOKUP(CONCATENATE($N$6,$D48,$N$8,$E48),Data!$A:$BU,MATCH(E!J$12,Data!$A$1:$BU$1,0),FALSE) -> 0 | L48: =VLOOKUP(CONCATENATE($N$6,$D48,$N$8,$E48),Data!$A:$BU,MATCH(E!L$12,Data!$A$1:$BU$1,0),FALSE) -> 0 | N48: =VLOOKUP(CONCATENATE($N$6,$D48,$N$8,$E48),Data!$A:$BU,MATCH(E!N$12,Data!$A$1:$BU$1,0),FALSE) -> 0 | P48: =VLOOKUP(CONCATENATE($N$6,$D48,$N$8,$E48),Data!$A:$BU,MATCH(E!P$12,Data!$A$1:$BU$1,0),FALSE) -> 0 | R48: =VLOOKUP(CONCATENATE($N$6,$D48,$N$8,$E48),Data!$A:$BU,MATCH(E!R$12,Data!$A$1:$BU$1,0),FALSE) -> 0 | T48: =VLOOKUP(CONCATENATE($N$6,$D48,$N$8,$E48),Data!$A:$BU,MATCH(E!T$12,Data!$A$1:$BU$1,0),FALSE) -> 0 | V48: =VLOOKUP(CONCATENATE($N$6,$D48,$N$8,$E48),Data!$A:$BU,MATCH(E!V$12,Data!$A$1:$BU$1,0),FALSE) -> 0 | X48: =VLOOKUP(CONCATENATE($N$6,$D48,$N$8,$E48),Data!$A:$BU,MATCH(E!X$12,Data!$A$1:$BU$1,0),FALSE) -> 0 | Z48: =VLOOKUP(CONCATENATE($N$6,$D48,$N$8,$E48),Data!$A:$BU,MATCH(E!Z$12,Data!$A$1:$BU$1,0),FALSE) -> 0 | AB48: =VLOOKUP(CONCATENATE($N$6,$D48,$N$8,$E48),Data!$A:$BU,MATCH(E!AB$12,Data!$A$1:$BU$1,0),FALSE) -> 0 | AD48: =VLOOKUP(CONCATENATE($N$6,$D48,$N$8,$E48),Data!$A:$BU,MATCH(E!AD$12,Data!$A$1:$BU$1,0),FALSE) -> 0 | AF48: =VLOOKUP(CONCATENATE($N$6,$D48,$N$8,$E48),Data!$A:$BU,MATCH(E!AF$12,Data!$A$1:$BU$1,0),FALSE) -> 0 | AH48: =VLOOKUP(CONCATENATE($N$6,$D48,$N$8,$E48),Data!$A:$BU,MATCH(E!AH$12,Data!$A$1:$BU$1,0),FALSE) -> 0 | AJ48: =VLOOKUP(CONCATENATE($N$6,$D48,$N$8,$E48),Data!$A:$BU,MATCH(E!AJ$12,Data!$A$1:$BU$1,0),FALSE) -> 0 | AL48: =VLOOKUP(CONCATENATE($N$6,$D48,$N$8,$E48),Data!$A:$BU,MATCH(E!AL$12,Data!$A$1:$BU$1,0),FALSE) -> 0 | AN48: =VLOOKUP(CONCATENATE($N$6,$D48,$N$8,$E48),Data!$A:$BU,MATCH(E!AN$12,Data!$A$1:$BU$1,0),FALSE) -> 0 | AP48: =VLOOKUP(CONCATENATE($N$6,$D48,$N$8,$E48),Data!$A:$BU,MATCH(E!AP$12,Data!$A$1:$BU$1,0),FALSE) -> 0 | AR48: =VLOOKUP(CONCATENATE($N$6,$D48,$N$8,$E48),Data!$A:$BU,MATCH(E!AR$12,Data!$A$1:$BU$1,0),FALSE) -> 0 | AT48: =VLOOKUP(CONCATENATE($N$6,$D48,$N$8,$E48),Data!$A:$BU,MATCH(E!AT$12,Data!$A$1:$BU$1,0),FALSE) -> 0 | AV48: =VLOOKUP(CONCATENATE($N$6,$D48,$N$8,$E48),Data!$A:$BU,MATCH(E!AV$12,Data!$A$1:$BU$1,0),FALSE) -> 1 | AX48: =VLOOKUP(CONCATENATE($N$6,$D48,$N$8,$E48),Data!$A:$BU,MATCH(E!AX$12,Data!$A$1:$BU$1,0),FALSE) -> 0 | AZ48: =VLOOKUP(CONCATENATE($N$6,$D48,$N$8,$E48),Data!$A:$BU,MATCH(E!AZ$12,Data!$A$1:$BU$1,0),FALSE) -> 0 | BB48: =VLOOKUP(CONCATENATE($N$6,$D48,$N$8,$E48),Data!$A:$BU,MATCH(E!BB$12,Data!$A$1:$BU$1,0),FALSE) -> 0 | BD48: =VLOOKUP(CONCATENATE($N$6,$D48,$N$8,$E48),Data!$A:$BU,MATCH(E!BD$12,Data!$A$1:$BU$1,0),FALSE) -> 0 | BF48: =VLOOKUP(CONCATENATE($N$6,$D48,$N$8,$E48),Data!$A:$BU,MATCH(E!BF$12,Data!$A$1:$BU$1,0),FALSE) -> 0 | BH48: =VLOOKUP(CONCATENATE($N$6,$D48,$N$8,$E48),Data!$A:$BU,MATCH(E!BH$12,Data!$A$1:$BU$1,0),FALSE) -> 0 | BJ48: =VLOOKUP(CONCATENATE($N$6,$D48,$N$8,$E48),Data!$A:$BU,MATCH(E!BJ$12,Data!$A$1:$BU$1,0),FALSE) -> 0
D49: Azerbaijan | E49: b | F49: =VLOOKUP(CONCATENATE($N$6,$D49,$N$8,$E49),Data!$A:$BU,MATCH(E!F$12,Data!$A$1:$BU$1,0),FALSE) -> 0 | H49: =VLOOKUP(CONCATENATE($N$6,$D49,$N$8,$E49),Data!$A:$BU,MATCH(E!H$12,Data!$A$1:$BU$1,0),FALSE) -> 0 | J49: =VLOOKUP(CONCATENATE($N$6,$D49,$N$8,$E49),Data!$A:$BU,MATCH(E!J$12,Data!$A$1:$BU$1,0),FALSE) -> 0 | L49: =VLOOKUP(CONCATENATE($N$6,$D49,$N$8,$E49),Data!$A:$BU,MATCH(E!L$12,Data!$A$1:$BU$1,0),FALSE) -> 0 | N49: =VLOOKUP(CONCATENATE($N$6,$D49,$N$8,$E49),Data!$A:$BU,MATCH(E!N$12,Data!$A$1:$BU$1,0),FALSE) -> 0 | P49: =VLOOKUP(CONCATENATE($N$6,$D49,$N$8,$E49),Data!$A:$BU,MATCH(E!P$12,Data!$A$1:$BU$1,0),FALSE) -> 0 | R49: =VLOOKUP(CONCATENATE($N$6,$D49,$N$8,$E49),Data!$A:$BU,MATCH(E!R$12,Data!$A$1:$BU$1,0),FALSE) -> 0 | T49: =VLOOKUP(CONCATENATE($N$6,$D49,$N$8,$E49),Data!$A:$BU,MATCH(E!T$12,Data!$A$1:$BU$1,0),FALSE) -> 0 | V49: =VLOOKUP(CONCATENATE($N$6,$D49,$N$8,$E49),Data!$A:$BU,MATCH(E!V$12,Data!$A$1:$BU$1,0),FALSE) -> 0 | X49: =VLOOKUP(CONCATENATE($N$6,$D49,$N$8,$E49),Data!$A:$BU,MATCH(E!X$12,Data!$A$1:$BU$1,0),FALSE) -> 0 | Z49: =VLOOKUP(CONCATENATE($N$6,$D49,$N$8,$E49),Data!$A:$BU,MATCH(E!Z$12,Data!$A$1:$BU$1,0),FALSE) -> 0 | AB49: =VLOOKUP(CONCATENATE($N$6,$D49,$N$8,$E49),Data!$A:$BU,MATCH(E!AB$12,Data!$A$1:$BU$1,0),FALSE) -> 0 | AD49: =VLOOKUP(CONCATENATE($N$6,$D49,$N$8,$E49),Data!$A:$BU,MATCH(E!AD$12,Data!$A$1:$BU$1,0),FALSE) -> 0 | AF49: =VLOOKUP(CONCATENATE($N$6,$D49,$N$8,$E49),Data!$A:$BU,MATCH(E!AF$12,Data!$A$1:$BU$1,0),FALSE) -> 0 | AH49: =VLOOKUP(CONCATENATE($N$6,$D49,$N$8,$E49),Data!$A:$BU,MATCH(E!AH$12,Data!$A$1:$BU$1,0),FALSE) -> 0 | AJ49: =VLOOKUP(CONCATENATE($N$6,$D49,$N$8,$E49),Data!$A:$BU,MATCH(E!AJ$12,Data!$A$1:$BU$1,0),FALSE) -> 0 | AL49: =VLOOKUP(CONCATENATE($N$6,$D49,$N$8,$E49),Data!$A:$BU,MATCH(E!AL$12,Data!$A$1:$BU$1,0),FALSE) -> 0 | AN49: =VLOOKUP(CONCATENATE($N$6,$D49,$N$8,$E49),Data!$A:$BU,MATCH(E!AN$12,Data!$A$1:$BU$1,0),FALSE) -> 0 | AP49: =VLOOKUP(CONCATENATE($N$6,$D49,$N$8,$E49),Data!$A:$BU,MATCH(E!AP$12,Data!$A$1:$BU$1,0),FALSE) -> 0 | AR49: =VLOOKUP(CONCATENATE($N$6,$D49,$N$8,$E49),Data!$A:$BU,MATCH(E!AR$12,Data!$A$1:$BU$1,0),FALSE) -> 0 | AT49: =VLOOKUP(CONCATENATE($N$6,$D49,$N$8,$E49),Data!$A:$BU,MATCH(E!AT$12,Data!$A$1:$BU$1,0),FALSE) -> 0 | AV49: =VLOOKUP(CONCATENATE($N$6,$D49,$N$8,$E49),Data!$A:$BU,MATCH(E!AV$12,Data!$A$1:$BU$1,0),FALSE) -> 8750 | AX49: =VLOOKUP(CONCATENATE($N$6,$D49,$N$8,$E49),Data!$A:$BU,MATCH(E!AX$12,Data!$A$1:$BU$1,0),FALSE) -> 0 | AZ49: =VLOOKUP(CONCATENATE($N$6,$D49,$N$8,$E49),Data!$A:$BU,MATCH(E!AZ$12,Data!$A$1:$BU$1,0),FALSE) -> 0 | BB49: =VLOOKUP(CONCATENATE($N$6,$D49,$N$8,$E49),Data!$A:$BU,MATCH(E!BB$12,Data!$A$1:$BU$1,0),FALSE) -> 0 | BD49: =VLOOKUP(CONCATENATE($N$6,$D49,$N$8,$E49),Data!$A:$BU,MATCH(E!BD$12,Data!$A$1:$BU$1,0),FALSE) -> 0 | BF49: =VLOOKUP(CONCATENATE($N$6,$D49,$N$8,$E49),Data!$A:$BU,MATCH(E!BF$12,Data!$A$1:$BU$1,0),FALSE) -> 0 | BH49: =VLOOKUP(CONCATENATE($N$6,$D49,$N$8,$E49),Data!$A:$BU,MATCH(E!BH$12,Data!$A$1:$BU$1,0),FALSE) -> 0 | BJ49: =VLOOKUP(CONCATENATE($N$6,$D49,$N$8,$E49),Data!$A:$BU,MATCH(E!BJ$12,Data!$A$1:$BU$1,0),FALSE) -> 0
D50: Azores | E50: a | F50: =VLOOKUP(CONCATENATE($N$6,$D50,$N$8,$E50),Data!$A:$BU,MATCH(E!F$12,Data!$A$1:$BU$1,0),FALSE) -> 0 | H50: =VLOOKUP(CONCATENATE($N$6,$D50,$N$8,$E50),Data!$A:$BU,MATCH(E!H$12,Data!$A$1:$BU$1,0),FALSE) -> 0 | J50: =VLOOKUP(CONCATENATE($N$6,$D50,$N$8,$E50),Data!$A:$BU,MATCH(E!J$12,Data!$A$1:$BU$1,0),FALSE) -> 0 | L50: =VLOOKUP(CONCATENATE($N$6,$D50,$N$8,$E50),Data!$A:$BU,MATCH(E!L$12,Data!$A$1:$BU$1,0),FALSE) -> 0 | N50: =VLOOKUP(CONCATENATE($N$6,$D50,$N$8,$E50),Data!$A:$BU,MATCH(E!N$12,Data!$A$1:$BU$1,0),FALSE) -> 0 | P50: =VLOOKUP(CONCATENATE($N$6,$D50,$N$8,$E50),Data!$A:$BU,MATCH(E!P$12,Data!$A$1:$BU$1,0),FALSE) -> 0 | R50: =VLOOKUP(CONCATENATE($N$6,$D50,$N$8,$E50),Data!$A:$BU,MATCH(E!R$12,Data!$A$1:$BU$1,0),FALSE) -> 0 | T50: =VLOOKUP(CONCATENATE($N$6,$D50,$N$8,$E50),Data!$A:$BU,MATCH(E!T$12,Data!$A$1:$BU$1,0),FALSE) -> 0 | V50: =VLOOKUP(CONCATENATE($N$6,$D50,$N$8,$E50),Data!$A:$BU,MATCH(E!V$12,Data!$A$1:$BU$1,0),FALSE) -> 0 | X50: =VLOOKUP(CONCATENATE($N$6,$D50,$N$8,$E50),Data!$A:$BU,MATCH(E!X$12,Data!$A$1:$BU$1,0),FALSE) -> 0 | Z50: =VLOOKUP(CONCATENATE($N$6,$D50,$N$8,$E50),Data!$A:$BU,MATCH(E!Z$12,Data!$A$1:$BU$1,0),FALSE) -> 0 | AB50: =VLOOKUP(CONCATENATE($N$6,$D50,$N$8,$E50),Data!$A:$BU,MATCH(E!AB$12,Data!$A$1:$BU$1,0),FALSE) -> 0 | AD50: =VLOOKUP(CONCATENATE($N$6,$D50,$N$8,$E50),Data!$A:$BU,MATCH(E!AD$12,Data!$A$1:$BU$1,0),FALSE) -> 0 | AF50: =VLOOKUP(CONCATENATE($N$6,$D50,$N$8,$E50),Data!$A:$BU,MATCH(E!AF$12,Data!$A$1:$BU$1,0),FALSE) -> 0 | AH50: =VLOOKUP(CONCATENATE($N$6,$D50,$N$8,$E50),Data!$A:$BU,MATCH(E!AH$12,Data!$A$1:$BU$1,0),FALSE) -> 0 | AJ50: =VLOOKUP(CONCATENATE($N$6,$D50,$N$8,$E50),Data!$A:$BU,MATCH(E!AJ$12,Data!$A$1:$BU$1,0),FALSE) -> 0 | AL50: =VLOOKUP(CONCATENATE($N$6,$D50,$N$8,$E50),Data!$A:$BU,MATCH(E!AL$12,Data!$A$1:$BU$1,0),FALSE) -> 0 | AN50: =VLOOKUP(CONCATENATE($N$6,$D50,$N$8,$E50),Data!$A:$BU,MATCH(E!AN$12,Data!$A$1:$BU$1,0),FALSE) -> 0 | AP50: =VLOOKUP(CONCATENATE($N$6,$D50,$N$8,$E50),Data!$A:$BU,MATCH(E!AP$12,Data!$A$1:$BU$1,0),FALSE) -> 0 | AR50: =VLOOKUP(CONCATENATE($N$6,$D50,$N$8,$E50),Data!$A:$BU,MATCH(E!AR$12,Data!$A$1:$BU$1,0),FALSE) -> 0 | AT50: =VLOOKUP(CONCATENATE($N$6,$D50,$N$8,$E50),Data!$A:$BU,MATCH(E!AT$12,Data!$A$1:$BU$1,0),FALSE) -> 0 | AV50: =VLOOKUP(CONCATENATE($N$6,$D50,$N$8,$E50),Data!$A:$BU,MATCH(E!AV$12,Data!$A$1:$BU$1,0),FALSE) -> 0 | AX50: =VLOOKUP(CONCATENATE($N$6,$D50,$N$8,$E50),Data!$A:$BU,MATCH(E!AX$12,Data!$A$1:$BU$1,0),FALSE) -> 0 | AZ50: =VLOOKUP(CONCATENATE($N$6,$D50,$N$8,$E50),Data!$A:$BU,MATCH(E!AZ$12,Data!$A$1:$BU$1,0),FALSE) -> 0 | BB50: =VLOOKUP(CONCATENATE($N$6,$D50,$N$8,$E50),Data!$A:$BU,MATCH(E!BB$12,Data!$A$1:$BU$1,0),FALSE) -> 0 | BD50: =VLOOKUP(CONCATENATE($N$6,$D50,$N$8,$E50),Data!$A:$BU,MATCH(E!BD$12,Data!$A$1:$BU$1,0),FALSE) -> 0 | BF50: =VLOOKUP(CONCATENATE($N$6,$D50,$N$8,$E50),Data!$A:$BU,MATCH(E!BF$12,Data!$A$1:$BU$1,0),FALSE) -> 0 | BH50: =VLOOKUP(CONCATENATE($N$6,$D50,$N$8,$E50),Data!$A:$BU,MATCH(E!BH$12,Data!$A$1:$BU$1,0),FALSE) -> 0 | BJ50: =VLOOKUP(CONCATENATE($N$6,$D50,$N$8,$E50),Data!$A:$BU,MATCH(E!BJ$12,Data!$A$1:$BU$1,0),FALSE) -> 0
D51: Azores | E51: b | F51: =VLOOKUP(CONCATENATE($N$6,$D51,$N$8,$E51),Data!$A:$BU,MATCH(E!F$12,Data!$A$1:$BU$1,0),FALSE) -> 0 | H51: =VLOOKUP(CONCATENATE($N$6,$D51,$N$8,$E51),Data!$A:$BU,MATCH(E!H$12,Data!$A$1:$BU$1,0),FALSE) -> 0 | J51: =VLOOKUP(CONCATENATE($N$6,$D51,$N$8,$E51),Data!$A:$BU,MATCH(E!J$12,Data!$A$1:$BU$1,0),FALSE) -> 0 | L51: =VLOOKUP(CONCATENATE($N$6,$D51,$N$8,$E51),Data!$A:$BU,MATCH(E!L$12,Data!$A$1:$BU$1,0),FALSE) -> 0 | N51: =VLOOKUP(CONCATENATE($N$6,$D51,$N$8,$E51),Data!$A:$BU,MATCH(E!N$12,Data!$A$1:$BU$1,0),FALSE) -> 0 | P51: =VLOOKUP(CONCATENATE($N$6,$D51,$N$8,$E51),Data!$A:$BU,MATCH(E!P$12,Data!$A$1:$BU$1,0),FALSE) -> 0 | R51: =VLOOKUP(CONCATENATE($N$6,$D51,$N$8,$E51),Data!$A:$BU,MATCH(E!R$12,Data!$A$1:$BU$1,0),FALSE) -> 0 | T51: =VLOOKUP(CONCATENATE($N$6,$D51,$N$8,$E51),Data!$A:$BU,MATCH(E!T$12,Data!$A$1:$BU$1,0),FALSE) -> 0 | V51: =VLOOKUP(CONCATENATE($N$6,$D51,$N$8,$E51),Data!$A:$BU,MATCH(E!V$12,Data!$A$1:$BU$1,0),FALSE) -> 0 | X51: =VLOOKUP(CONCATENATE($N$6,$D51,$N$8,$E51),Data!$A:$BU,MATCH(E!X$12,Data!$A$1:$BU$1,0),FALSE) -> 0 | Z51: =VLOOKUP(CONCATENATE($N$6,$D51,$N$8,$E51),Data!$A:$BU,MATCH(E!Z$12,Data!$A$1:$BU$1,0),FALSE) -> 0 | AB51: =VLOOKUP(CONCATENATE($N$6,$D51,$N$8,$E51),Data!$A:$BU,MATCH(E!AB$12,Data!$A$1:$BU$1,0),FALSE) -> 0 | AD51: =VLOOKUP(CONCATENATE($N$6,$D51,$N$8,$E51),Data!$A:$BU,MATCH(E!AD$12,Data!$A$1:$BU$1,0),FALSE) -> 0 | AF51: =VLOOKUP(CONCATENATE($N$6,$D51,$N$8,$E51),Data!$A:$BU,MATCH(E!AF$12,Data!$A$1:$BU$1,0),FALSE) -> 0 | AH51: =VLOOKUP(CONCATENATE($N$6,$D51,$N$8,$E51),Data!$A:$BU,MATCH(E!AH$12,Data!$A$1:$BU$1,0),FALSE) -> 0 | AJ51: =VLOOKUP(CONCATENATE($N$6,$D51,$N$8,$E51),Data!$A:$BU,MATCH(E!AJ$12,Data!$A$1:$BU$1,0),FALSE) -> 0 | AL51: =VLOOKUP(CONCATENATE($N$6,$D51,$N$8,$E51),Data!$A:$BU,MATCH(E!AL$12,Data!$A$1:$BU$1,0),FALSE) -> 0 | AN51: =VLOOKUP(CONCATENATE($N$6,$D51,$N$8,$E51),Data!$A:$BU,MATCH(E!AN$12,Data!$A$1:$BU$1,0),FALSE) -> 0 | AP51: =VLOOKUP(CONCATENATE($N$6,$D51,$N$8,$E51),Data!$A:$BU,MATCH(E!AP$12,Data!$A$1:$BU$1,0),FALSE) -> 0 | AR51: =VLOOKUP(CONCATENATE($N$6,$D51,$N$8,$E51),Data!$A:$BU,MATCH(E!AR$12,Data!$A$1:$BU$1,0),FALSE) -> 0 | AT51: =VLOOKUP(CONCATENATE($N$6,$D51,$N$8,$E51),Data!$A:$BU,MATCH(E!AT$12,Data!$A$1:$BU$1,0),FALSE) -> 0 | AV51: =VLOOKUP(CONCATENATE($N$6,$D51,$N$8,$E51),Data!$A:$BU,MATCH(E!AV$12,Data!$A$1:$BU$1,0),FALSE) -> 0 | AX51: =VLOOKUP(CONCATENATE($N$6,$D51,$N$8,$E51),Data!$A:$BU,MATCH(E!AX$12,Data!$A$1:$BU$1,0),FALSE) -> 0 | AZ51: =VLOOKUP(CONCATENATE($N$6,$D51,$N$8,$E51),Data!$A:$BU,MATCH(E!AZ$12,Data!$A$1:$BU$1,0),FALSE) -> 0 | BB51: =VLOOKUP(CONCATENATE($N$6,$D51,$N$8,$E51),Data!$A:$BU,MATCH(E!BB$12,Data!$A$1:$BU$1,0),FALSE) -> 0 | BD51: =VLOOKUP(CONCATENATE($N$6,$D51,$N$8,$E51),Data!$A:$BU,MATCH(E!BD$12,Data!$A$1:$BU$1,0),FALSE) -> 0 | BF51: =VLOOKUP(CONCATENATE($N$6,$D51,$N$8,$E51),Data!$A:$BU,MATCH(E!BF$12,Data!$A$1:$BU$1,0),FALSE) -> 0 | BH51: =VLOOKUP(CONCATENATE($N$6,$D51,$N$8,$E51),Data!$A:$BU,MATCH(E!BH$12,Data!$A$1:$BU$1,0),FALSE) -> 0 | BJ51: =VLOOKUP(CONCATENATE($N$6,$D51,$N$8,$E51),Data!$A:$BU,MATCH(E!BJ$12,Data!$A$1:$BU$1,0),FALSE) -> 0
D52: Bahamas | E52: a | F52: =VLOOKUP(CONCATENATE($N$6,$D52,$N$8,$E52),Data!$A:$BU,MATCH(E!F$12,Data!$A$1:$BU$1,0),FALSE) -> 1 | H52: =VLOOKUP(CONCATENATE($N$6,$D52,$N$8,$E52),Data!$A:$BU,MATCH(E!H$12,Data!$A$1:$BU$1,0),FALSE) -> 0 | J52: =VLOOKUP(CONCATENATE($N$6,$D52,$N$8,$E52),Data!$A:$BU,MATCH(E!J$12,Data!$A$1:$BU$1,0),FALSE) -> 0 | L52: =VLOOKUP(CONCATENATE($N$6,$D52,$N$8,$E52),Data!$A:$BU,MATCH(E!L$12,Data!$A$1:$BU$1,0),FALSE) -> 0 | N52: =VLOOKUP(CONCATENATE($N$6,$D52,$N$8,$E52),Data!$A:$BU,MATCH(E!N$12,Data!$A$1:$BU$1,0),FALSE) -> 0 | P52: =VLOOKUP(CONCATENATE($N$6,$D52,$N$8,$E52),Data!$A:$BU,MATCH(E!P$12,Data!$A$1:$BU$1,0),FALSE) -> 0 | R52: =VLOOKUP(CONCATENATE($N$6,$D52,$N$8,$E52),Data!$A:$BU,MATCH(E!R$12,Data!$A$1:$BU$1,0),FALSE) -> 0 | T52: =VLOOKUP(CONCATENATE($N$6,$D52,$N$8,$E52),Data!$A:$BU,MATCH(E!T$12,Data!$A$1:$BU$1,0),FALSE) -> 0 | V52: =VLOOKUP(CONCATENATE($N$6,$D52,$N$8,$E52),Data!$A:$BU,MATCH(E!V$12,Data!$A$1:$BU$1,0),FALSE) -> 0 | X52: =VLOOKUP(CONCATENATE($N$6,$D52,$N$8,$E52),Data!$A:$BU,MATCH(E!X$12,Data!$A$1:$BU$1,0),FALSE) -> 0 | Z52: =VLOOKUP(CONCATENATE($N$6,$D52,$N$8,$E52),Data!$A:$BU,MATCH(E!Z$12,Data!$A$1:$BU$1,0),FALSE) -> 1 | AB52: =VLOOKUP(CONCATENATE($N$6,$D52,$N$8,$E52),Data!$A:$BU,MATCH(E!AB$12,Data!$A$1:$BU$1,0),FALSE) -> 1 | AD52: =VLOOKUP(CONCATENATE($N$6,$D52,$N$8,$E52),Data!$A:$BU,MATCH(E!AD$12,Data!$A$1:$BU$1,0),FALSE) -> 0 | AF52: =VLOOKUP(CONCATENATE($N$6,$D52,$N$8,$E52),Data!$A:$BU,MATCH(E!AF$12,Data!$A$1:$BU$1,0),FALSE) -> 0 | AH52: =VLOOKUP(CONCATENATE($N$6,$D52,$N$8,$E52),Data!$A:$BU,MATCH(E!AH$12,Data!$A$1:$BU$1,0),FALSE) -> 0 | AJ52: =VLOOKUP(CONCATENATE($N$6,$D52,$N$8,$E52),Data!$A:$BU,MATCH(E!AJ$12,Data!$A$1:$BU$1,0),FALSE) -> 0 | AL52: =VLOOKUP(CONCATENATE($N$6,$D52,$N$8,$E52),Data!$A:$BU,MATCH(E!AL$12,Data!$A$1:$BU$1,0),FALSE) -> 0 | AN52: =VLOOKUP(CONCATENATE($N$6,$D52,$N$8,$E52),Data!$A:$BU,MATCH(E!AN$12,Data!$A$1:$BU$1,0),FALSE) -> 0 | AP52: =VLOOKUP(CONCATENATE($N$6,$D52,$N$8,$E52),Data!$A:$BU,MATCH(E!AP$12,Data!$A$1:$BU$1,0),FALSE) -> 0 | AR52: =VLOOKUP(CONCATENATE($N$6,$D52,$N$8,$E52),Data!$A:$BU,MATCH(E!AR$12,Data!$A$1:$BU$1,0),FALSE) -> 0 | AT52: =VLOOKUP(CONCATENATE($N$6,$D52,$N$8,$E52),Data!$A:$BU,MATCH(E!AT$12,Data!$A$1:$BU$1,0),FALSE) -> 0 | AV52: =VLOOKUP(CONCATENATE($N$6,$D52,$N$8,$E52),Data!$A:$BU,MATCH(E!AV$12,Data!$A$1:$BU$1,0),FALSE) -> 0 | AX52: =VLOOKUP(CONCATENATE($N$6,$D52,$N$8,$E52),Data!$A:$BU,MATCH(E!AX$12,Data!$A$1:$BU$1,0),FALSE) -> 0 | AZ52: =VLOOKUP(CONCATENATE($N$6,$D52,$N$8,$E52),Data!$A:$BU,MATCH(E!AZ$12,Data!$A$1:$BU$1,0),FALSE) -> 0 | BB52: =VLOOKUP(CONCATENATE($N$6,$D52,$N$8,$E52),Data!$A:$BU,MATCH(E!BB$12,Data!$A$1:$BU$1,0),FALSE) -> 0 | BD52: =VLOOKUP(CONCATENATE($N$6,$D52,$N$8,$E52),Data!$A:$BU,MATCH(E!BD$12,Data!$A$1:$BU$1,0),FALSE) -> 0 | BF52: =VLOOKUP(CONCATENATE($N$6,$D52,$N$8,$E52),Data!$A:$BU,MATCH(E!BF$12,Data!$A$1:$BU$1,0),FALSE) -> 0 | BH52: =VLOOKUP(CONCATENATE($N$6,$D52,$N$8,$E52),Data!$A:$BU,MATCH(E!BH$12,Data!$A$1:$BU$1,0),FALSE) -> 0 | BJ52: =VLOOKUP(CONCATENATE($N$6,$D52,$N$8,$E52),Data!$A:$BU,MATCH(E!BJ$12,Data!$A$1:$BU$1,0),FALSE) -> 0
D53: Bahamas | E53: b | F53: =VLOOKUP(CONCATENATE($N$6,$D53,$N$8,$E53),Data!$A:$BU,MATCH(E!F$12,Data!$A$1:$BU$1,0),FALSE) -> 2250 | H53: =VLOOKUP(CONCATENATE($N$6,$D53,$N$8,$E53),Data!$A:$BU,MATCH(E!H$12,Data!$A$1:$BU$1,0),FALSE) -> 0 | J53: =VLOOKUP(CONCATENATE($N$6,$D53,$N$8,$E53),Data!$A:$BU,MATCH(E!J$12,Data!$A$1:$BU$1,0),FALSE) -> 0 | L53: =VLOOKUP(CONCATENATE($N$6,$D53,$N$8,$E53),Data!$A:$BU,MATCH(E!L$12,Data!$A$1:$BU$1,0),FALSE) -> 0 | N53: =VLOOKUP(CONCATENATE($N$6,$D53,$N$8,$E53),Data!$A:$BU,MATCH(E!N$12,Data!$A$1:$BU$1,0),FALSE) -> 0 | P53: =VLOOKUP(CONCATENATE($N$6,$D53,$N$8,$E53),Data!$A:$BU,MATCH(E!P$12,Data!$A$1:$BU$1,0),FALSE) -> 0 | R53: =VLOOKUP(CONCATENATE($N$6,$D53,$N$8,$E53),Data!$A:$BU,MATCH(E!R$12,Data!$A$1:$BU$1,0),FALSE) -> 0 | T53: =VLOOKUP(CONCATENATE($N$6,$D53,$N$8,$E53),Data!$A:$BU,MATCH(E!T$12,Data!$A$1:$BU$1,0),FALSE) -> 0 | V53: =VLOOKUP(CONCATENATE($N$6,$D53,$N$8,$E53),Data!$A:$BU,MATCH(E!V$12,Data!$A$1:$BU$1,0),FALSE) -> 0 | X53: =VLOOKUP(CONCATENATE($N$6,$D53,$N$8,$E53),Data!$A:$BU,MATCH(E!X$12,Data!$A$1:$BU$1,0),FALSE) -> 0 | Z53: =VLOOKUP(CONCATENATE($N$6,$D53,$N$8,$E53),Data!$A:$BU,MATCH(E!Z$12,Data!$A$1:$BU$1,0),FALSE) -> 5550 | AB53: =VLOOKUP(CONCATENATE($N$6,$D53,$N$8,$E53),Data!$A:$BU,MATCH(E!AB$12,Data!$A$1:$BU$1,0),FALSE) -> 11610 | AD53: =VLOOKUP(CONCATENATE($N$6,$D53,$N$8,$E53),Data!$A:$BU,MATCH(E!AD$12,Data!$A$1:$BU$1,0),FALSE) -> 0 | AF53: =VLOOKUP(CONCATENATE($N$6,$D53,$N$8,$E53),Data!$A:$BU,MATCH(E!AF$12,Data!$A$1:$BU$1,0),FALSE) -> 0 | AH53: =VLOOKUP(CONCATENATE($N$6,$D53,$N$8,$E53),Data!$A:$BU,MATCH(E!AH$12,Data!$A$1:$BU$1,0),FALSE) -> 0 | AJ53: =VLOOKUP(CONCATENATE($N$6,$D53,$N$8,$E53),Data!$A:$BU,MATCH(E!AJ$12,Data!$A$1:$BU$1,0),FALSE) -> 0 | AL53: =VLOOKUP(CONCATENATE($N$6,$D53,$N$8,$E53),Data!$A:$BU,MATCH(E!AL$12,Data!$A$1:$BU$1,0),FALSE) -> 0 | AN53: =VLOOKUP(CONCATENATE($N$6,$D53,$N$8,$E53),Data!$A:$BU,MATCH(E!AN$12,Data!$A$1:$BU$1,0),FALSE) -> 0 | AP53: =VLOOKUP(CONCATENATE($N$6,$D53,$N$8,$E53),Data!$A:$BU,MATCH(E!AP$12,Data!$A$1:$BU$1,0),FALSE) -> 0 | AR53: =VLOOKUP(CONCATENATE($N$6,$D53,$N$8,$E53),Data!$A:$BU,MATCH(E!AR$12,Data!$A$1:$BU$1,0),FALSE) -> 0 | AT53: =VLOOKUP(CONCATENATE($N$6,$D53,$N$8,$E53),Data!$A:$BU,MATCH(E!AT$12,Data!$A$1:$BU$1,0),FALSE) -> 0 | AV53: =VLOOKUP(CONCATENATE($N$6,$D53,$N$8,$E53),Data!$A:$BU,MATCH(E!AV$12,Data!$A$1:$BU$1,0),FALSE) -> 0 | AX53: =VLOOKUP(CONCATENATE($N$6,$D53,$N$8,$E53),Data!$A:$BU,MATCH(E!AX$12,Data!$A$1:$BU$1,0),FALSE) -> 0 | AZ53: =VLOOKUP(CONCATENATE($N$6,$D53,$N$8,$E53),Data!$A:$BU,MATCH(E!AZ$12,Data!$A$1:$BU$1,0),FALSE) -> 0 | BB53: =VLOOKUP(CONCATENATE($N$6,$D53,$N$8,$E53),Data!$A:$BU,MATCH(E!BB$12,Data!$A$1:$BU$1,0),FALSE) -> 0 | BD53: =VLOOKUP(CONCATENATE($N$6,$D53,$N$8,$E53),Data!$A:$BU,MATCH(E!BD$12,Data!$A$1:$BU$1,0),FALSE) -> 0 | BF53: =VLOOKUP(CONCATENATE($N$6,$D53,$N$8,$E53),Data!$A:$BU,MATCH(E!BF$12,Data!$A$1:$BU$1,0),FALSE) -> 0 | BH53: =VLOOKUP(CONCATENATE($N$6,$D53,$N$8,$E53),Data!$A:$BU,MATCH(E!BH$12,Data!$A$1:$BU$1,0),FALSE) -> 0 | BJ53: =VLOOKUP(CONCATENATE($N$6,$D53,$N$8,$E53),Data!$A:$BU,MATCH(E!BJ$12,Data!$A$1:$BU$1,0),FALSE) -> 0
D54: Bahrain | E54: a | F54: =VLOOKUP(CONCATENATE($N$6,$D54,$N$8,$E54),Data!$A:$BU,MATCH(E!F$12,Data!$A$1:$BU$1,0),FALSE) -> 3 | H54: =VLOOKUP(CONCATENATE($N$6,$D54,$N$8,$E54),Data!$A:$BU,MATCH(E!H$12,Data!$A$1:$BU$1,0),FALSE) -> 2 | J54: =VLOOKUP(CONCATENATE($N$6,$D54,$N$8,$E54),Data!$A:$BU,MATCH(E!J$12,Data!$A$1:$BU$1,0),FALSE) -> 5 | L54: =VLOOKUP(CONCATENATE($N$6,$D54,$N$8,$E54),Data!$A:$BU,MATCH(E!L$12,Data!$A$1:$BU$1,0),FALSE) -> 8 | N54: =VLOOKUP(CONCATENATE($N$6,$D54,$N$8,$E54),Data!$A:$BU,MATCH(E!N$12,Data!$A$1:$BU$1,0),FALSE) -> 3 | P54: =VLOOKUP(CONCATENATE($N$6,$D54,$N$8,$E54),Data!$A:$BU,MATCH(E!P$12,Data!$A$1:$BU$1,0),FALSE) -> 8 | R54: =VLOOKUP(CONCATENATE($N$6,$D54,$N$8,$E54),Data!$A:$BU,MATCH(E!R$12,Data!$A$1:$BU$1,0),FALSE) -> 1 | T54: =VLOOKUP(CONCATENATE($N$6,$D54,$N$8,$E54),Data!$A:$BU,MATCH(E!T$12,Data!$A$1:$BU$1,0),FALSE) -> 4 | V54: =VLOOKUP(CONCATENATE($N$6,$D54,$N$8,$E54),Data!$A:$BU,MATCH(E!V$12,Data!$A$1:$BU$1,0),FALSE) -> 12 | X54: =VLOOKUP(CONCATENATE($N$6,$D54,$N$8,$E54),Data!$A:$BU,MATCH(E!X$12,Data!$A$1:$BU$1,0),FALSE) -> 18 | Z54: =VLOOKUP(CONCATENATE($N$6,$D54,$N$8,$E54),Data!$A:$BU,MATCH(E!Z$12,Data!$A$1:$BU$1,0),FALSE) -> 10 | AB54: =VLOOKUP(CONCATENATE($N$6,$D54,$N$8,$E54),Data!$A:$BU,MATCH(E!AB$12,Data!$A$1:$BU$1,0),FALSE) -> 10 | AD54: =VLOOKUP(CONCATENATE($N$6,$D54,$N$8,$E54),Data!$A:$BU,MATCH(E!AD$12,Data!$A$1:$BU$1,0),FALSE) -> 6 | AF54: =VLOOKUP(CONCATENATE($N$6,$D54,$N$8,$E54),Data!$A:$BU,MATCH(E!AF$12,Data!$A$1:$BU$1,0),FALSE) -> 5 | AH54: =VLOOKUP(CONCATENATE($N$6,$D54,$N$8,$E54),Data!$A:$BU,MATCH(E!AH$12,Data!$A$1:$BU$1,0),FALSE) -> 5 | AJ54: =VLOOKUP(CONCATENATE($N$6,$D54,$N$8,$E54),Data!$A:$BU,MATCH(E!AJ$12,Data!$A$1:$BU$1,0),FALSE) -> 6 | AL54: =VLOOKUP(CONCATENATE($N$6,$D54,$N$8,$E54),Data!$A:$BU,MATCH(E!AL$12,Data!$A$1:$BU$1,0),FALSE) -> 7 | AN54: =VLOOKUP(CONCATENATE($N$6,$D54,$N$8,$E54),Data!$A:$BU,MATCH(E!AN$12,Data!$A$1:$BU$1,0),FALSE) -> 2 | AP54: =VLOOKUP(CONCATENATE($N$6,$D54,$N$8,$E54),Data!$A:$BU,MATCH(E!AP$12,Data!$A$1:$BU$1,0),FALSE) -> 4 | AR54: =VLOOKUP(CONCATENATE($N$6,$D54,$N$8,$E54),Data!$A:$BU,MATCH(E!AR$12,Data!$A$1:$BU$1,0),FALSE) -> 9 | AT54: =VLOOKUP(CONCATENATE($N$6,$D54,$N$8,$E54),Data!$A:$BU,MATCH(E!AT$12,Data!$A$1:$BU$1,0),FALSE) -> 9 | AV54: =VLOOKUP(CONCATENATE($N$6,$D54,$N$8,$E54),Data!$A:$BU,MATCH(E!AV$12,Data!$A$1:$BU$1,0),FALSE) -> 18 | AX54: =VLOOKUP(CONCATENATE($N$6,$D54,$N$8,$E54),Data!$A:$BU,MATCH(E!AX$12,Data!$A$1:$BU$1,0),FALSE) -> 8 | AZ54: =VLOOKUP(CONCATENATE($N$6,$D54,$N$8,$E54),Data!$A:$BU,MATCH(E!AZ$12,Data!$A$1:$BU$1,0),FALSE) -> 5 | BB54: =VLOOKUP(CONCATENATE($N$6,$D54,$N$8,$E54),Data!$A:$BU,MATCH(E!BB$12,Data!$A$1:$BU$1,0),FALSE) -> 6 | BD54: =VLOOKUP(CONCATENATE($N$6,$D54,$N$8,$E54),Data!$A:$BU,MATCH(E!BD$12,Data!$A$1:$BU$1,0),FALSE) -> 5 | BF54: =VLOOKUP(CONCATENATE($N$6,$D54,$N$8,$E54),Data!$A:$BU,MATCH(E!BF$12,Data!$A$1:$BU$1,0),FALSE) -> 7 | BH54: =VLOOKUP(CONCATENATE($N$6,$D54,$N$8,$E54),Data!$A:$BU,MATCH(E!BH$12,Data!$A$1:$BU$1,0),FALSE) -> 6 | BJ54: =VLOOKUP(CONCATENATE($N$6,$D54,$N$8,$E54),Data!$A:$BU,MATCH(E!BJ$12,Data!$A$1:$BU$1,0),FALSE) -> 11
D55: Bahrain | E55: b | F55: =VLOOKUP(CONCATENATE($N$6,$D55,$N$8,$E55),Data!$A:$BU,MATCH(E!F$12,Data!$A$1:$BU$1,0),FALSE) -> 42825 | H55: =VLOOKUP(CONCATENATE($N$6,$D55,$N$8,$E55),Data!$A:$BU,MATCH(E!H$12,Data!$A$1:$BU$1,0),FALSE) -> 5450 | J55: =VLOOKUP(CONCATENATE($N$6,$D55,$N$8,$E55),Data!$A:$BU,MATCH(E!J$12,Data!$A$1:$BU$1,0),FALSE) -> 27001 | L55: =VLOOKUP(CONCATENATE($N$6,$D55,$N$8,$E55),Data!$A:$BU,MATCH(E!L$12,Data!$A$1:$BU$1,0),FALSE) -> 552959 | N55: =VLOOKUP(CONCATENATE($N$6,$D55,$N$8,$E55),Data!$A:$BU,MATCH(E!N$12,Data!$A$1:$BU$1,0),FALSE) -> 17444 | P55: =VLOOKUP(CONCATENATE($N$6,$D55,$N$8,$E55),Data!$A:$BU,MATCH(E!P$12,Data!$A$1:$BU$1,0),FALSE) -> 259504 | R55: =VLOOKUP(CONCATENATE($N$6,$D55,$N$8,$E55),Data!$A:$BU,MATCH(E!R$12,Data!$A$1:$BU$1,0),FALSE) -> 1500 | T55: =VLOOKUP(CONCATENATE($N$6,$D55,$N$8,$E55),Data!$A:$BU,MATCH(E!T$12,Data!$A$1:$BU$1,0),FALSE) -> 57673 | V55: =VLOOKUP(CONCATENATE($N$6,$D55,$N$8,$E55),Data!$A:$BU,MATCH(E!V$12,Data!$A$1:$BU$1,0),FALSE) -> 594069 | X55: =VLOOKUP(CONCATENATE($N$6,$D55,$N$8,$E55),Data!$A:$BU,MATCH(E!X$12,Data!$A$1:$BU$1,0),FALSE) -> 1678430 | Z55: =VLOOKUP(CONCATENATE($N$6,$D55,$N$8,$E55),Data!$A:$BU,MATCH(E!Z$12,Data!$A$1:$BU$1,0),FALSE) -> 451253 | AB55: =VLOOKUP(CONCATENATE($N$6,$D55,$N$8,$E55),Data!$A:$BU,MATCH(E!AB$12,Data!$A$1:$BU$1,0),FALSE) -> 1585263 | AD55: =VLOOKUP(CONCATENATE($N$6,$D55,$N$8,$E55),Data!$A:$BU,MATCH(E!AD$12,Data!$A$1:$BU$1,0),FALSE) -> 118805 | AF55: =VLOOKUP(CONCATENATE($N$6,$D55,$N$8,$E55),Data!$A:$BU,MATCH(E!AF$12,Data!$A$1:$BU$1,0),FALSE) -> 127196 | AH55: =VLOOKUP(CONCATENATE($N$6,$D55,$N$8,$E55),Data!$A:$BU,MATCH(E!AH$12,Data!$A$1:$BU$1,0),FALSE) -> 1348042 | AJ55: =VLOOKUP(CONCATENATE($N$6,$D55,$N$8,$E55),Data!$A:$BU,MATCH(E!AJ$12,Data!$A$1:$BU$1,0),FALSE) -> 63235 | AL55: =VLOOKUP(CONCATENATE($N$6,$D55,$N$8,$E55),Data!$A:$BU,MATCH(E!AL$12,Data!$A$1:$BU$1,0),FALSE) -> 322928 | AN55: =VLOOKUP(CONCATENATE($N$6,$D55,$N$8,$E55),Data!$A:$BU,MATCH(E!AN$12,Data!$A$1:$BU$1,0),FALSE) -> 16848 | AP55: =VLOOKUP(CONCATENATE($N$6,$D55,$N$8,$E55),Data!$A:$BU,MATCH(E!AP$12,Data!$A$1:$BU$1,0),FALSE) -> 21944 | AR55: =VLOOKUP(CONCATENATE($N$6,$D55,$N$8,$E55),Data!$A:$BU,MATCH(E!AR$12,Data!$A$1:$BU$1,0),FALSE) -> 4203011 | AT55: =VLOOKUP(CONCATENATE($N$6,$D55,$N$8,$E55),Data!$A:$BU,MATCH(E!AT$12,Data!$A$1:$BU$1,0),FALSE) -> 126166 | AV55: =VLOOKUP(CONCATENATE($N$6,$D55,$N$8,$E55),Data!$A:$BU,MATCH(E!AV$12,Data!$A$1:$BU$1,0),FALSE) -> 9351429 | AX55: =VLOOKUP(CONCATENATE($N$6,$D55,$N$8,$E55),Data!$A:$BU,MATCH(E!AX$12,Data!$A$1:$BU$1,0),FALSE) -> 3604293 | AZ55: =VLOOKUP(CONCATENATE($N$6,$D55,$N$8,$E55),Data!$A:$BU,MATCH(E!AZ$12,Data!$A$1:$BU$1,0),FALSE) -> 436529 | BB55: =VLOOKUP(CONCATENATE($N$6,$D55,$N$8,$E55),Data!$A:$BU,MATCH(E!BB$12,Data!$A$1:$BU$1,0),FALSE) -> 859594 | BD55: =VLOOKUP(CONCATENATE($N$6,$D55,$N$8,$E55),Data!$A:$BU,MATCH(E!BD$12,Data!$A$1:$BU$1,0),FALSE) -> 51989 | BF55: =VLOOKUP(CONCATENATE($N$6,$D55,$N$8,$E55),Data!$A:$BU,MATCH(E!BF$12,Data!$A$1:$BU$1,0),FALSE) -> 117012 | BH55: =VLOOKUP(CONCATENATE($N$6,$D55,$N$8,$E55),Data!$A:$BU,MATCH(E!BH$12,Data!$A$1:$BU$1,0),FALSE) -> 302997 | BJ55: =VLOOKUP(CONCATENATE($N$6,$D55,$N$8,$E55),Data!$A:$BU,MATCH(E!BJ$12,Data!$A$1:$BU$1,0),FALSE) -> 1438513
D56: Baker Island | E56: a | F56: =VLOOKUP(CONCATENATE($N$6,$D56,$N$8,$E56),Data!$A:$BU,MATCH(E!F$12,Data!$A$1:$BU$1,0),FALSE) -> 0 | H56: =VLOOKUP(CONCATENATE($N$6,$D56,$N$8,$E56),Data!$A:$BU,MATCH(E!H$12,Data!$A$1:$BU$1,0),FALSE) -> 0 | J56: =VLOOKUP(CONCATENATE($N$6,$D56,$N$8,$E56),Data!$A:$BU,MATCH(E!J$12,Data!$A$1:$BU$1,0),FALSE) -> 0 | L56: =VLOOKUP(CONCATENATE($N$6,$D56,$N$8,$E56),Data!$A:$BU,MATCH(E!L$12,Data!$A$1:$BU$1,0),FALSE) -> 0 | N56: =VLOOKUP(CONCATENATE($N$6,$D56,$N$8,$E56),Data!$A:$BU,MATCH(E!N$12,Data!$A$1:$BU$1,0),FALSE) -> 0 | P56: =VLOOKUP(CONCATENATE($N$6,$D56,$N$8,$E56),Data!$A:$BU,MATCH(E!P$12,Data!$A$1:$BU$1,0),FALSE) -> 0 | R56: =VLOOKUP(CONCATENATE($N$6,$D56,$N$8,$E56),Data!$A:$BU,MATCH(E!R$12,Data!$A$1:$BU$1,0),FALSE) -> 0 | T56: =VLOOKUP(CONCATENATE($N$6,$D56,$N$8,$E56),Data!$A:$BU,MATCH(E!T$12,Data!$A$1:$BU$1,0),FALSE) -> 0 | V56: =VLOOKUP(CONCATENATE($N$6,$D56,$N$8,$E56),Data!$A:$BU,MATCH(E!V$12,Data!$A$1:$BU$1,0),FALSE) -> 0 | X56: =VLOOKUP(CONCATENATE($N$6,$D56,$N$8,$E56),Data!$A:$BU,MATCH(E!X$12,Data!$A$1:$BU$1,0),FALSE) -> 0 | Z56: =VLOOKUP(CONCATENATE($N$6,$D56,$N$8,$E56),Data!$A:$BU,MATCH(E!Z$12,Data!$A$1:$BU$1,0),FALSE) -> 0 | AB56: =VLOOKUP(CONCATENATE($N$6,$D56,$N$8,$E56),Data!$A:$BU,MATCH(E!AB$12,Data!$A$1:$BU$1,0),FALSE) -> 0 | AD56: =VLOOKUP(CONCATENATE($N$6,$D56,$N$8,$E56),Data!$A:$BU,MATCH(E!AD$12,Data!$A$1:$BU$1,0),FALSE) -> 0 | AF56: =VLOOKUP(CONCATENATE($N$6,$D56,$N$8,$E56),Data!$A:$BU,MATCH(E!AF$12,Data!$A$1:$BU$1,0),FALSE) -> 0 | AH56: =VLOOKUP(CONCATENATE($N$6,$D56,$N$8,$E56),Data!$A:$BU,MATCH(E!AH$12,Data!$A$1:$BU$1,0),FALSE) -> 0 | AJ56: =VLOOKUP(CONCATENATE($N$6,$D56,$N$8,$E56),Data!$A:$BU,MATCH(E!AJ$12,Data!$A$1:$BU$1,0),FALSE) -> 0 | AL56: =VLOOKUP(CONCATENATE($N$6,$D56,$N$8,$E56),Data!$A:$BU,MATCH(E!AL$12,Data!$A$1:$BU$1,0),FALSE) -> 0 | AN56: =VLOOKUP(CONCATENATE($N$6,$D56,$N$8,$E56),Data!$A:$BU,MATCH(E!AN$12,Data!$A$1:$BU$1,0),FALSE) -> 0 | AP56: =VLOOKUP(CONCATENATE($N$6,$D56,$N$8,$E56),Data!$A:$BU,MATCH(E!AP$12,Data!$A$1:$BU$1,0),FALSE) -> 0 | AR56: =VLOOKUP(CONCATENATE($N$6,$D56,$N$8,$E56),Data!$A:$BU,MATCH(E!AR$12,Data!$A$1:$BU$1,0),FALSE) -> 0 | AT56: =VLOOKUP(CONCATENATE($N$6,$D56,$N$8,$E56),Data!$A:$BU,MATCH(E!AT$12,Data!$A$1:$BU$1,0),FALSE) -> 0 | AV56: =VLOOKUP(CONCATENATE($N$6,$D56,$N$8,$E56),Data!$A:$BU,MATCH(E!AV$12,Data!$A$1:$BU$1,0),FALSE) -> 0 | AX56: =VLOOKUP(CONCATENATE($N$6,$D56,$N$8,$E56),Data!$A:$BU,MATCH(E!AX$12,Data!$A$1:$BU$1,0),FALSE) -> 0 | AZ56: =VLOOKUP(CONCATENATE($N$6,$D56,$N$8,$E56),Data!$A:$BU,MATCH(E!AZ$12,Data!$A$1:$BU$1,0),FALSE) -> 0 | BB56: =VLOOKUP(CONCATENATE($N$6,$D56,$N$8,$E56),Data!$A:$BU,MATCH(E!BB$12,Data!$A$1:$BU$1,0),FALSE) -> 0 | BD56: =VLOOKUP(CONCATENATE($N$6,$D56,$N$8,$E56),Data!$A:$BU,MATCH(E!BD$12,Data!$A$1:$BU$1,0),FALSE) -> 0 | BF56: =VLOOKUP(CONCATENATE($N$6,$D56,$N$8,$E56),Data!$A:$BU,MATCH(E!BF$12,Data!$A$1:$BU$1,0),FALSE) -> 0 | BH56: =VLOOKUP(CONCATENATE($N$6,$D56,$N$8,$E56),Data!$A:$BU,MATCH(E!BH$12,Data!$A$1:$BU$1,0),FALSE) -> 0 | BJ56: =VLOOKUP(CONCATENATE($N$6,$D56,$N$8,$E56),Data!$A:$BU,MATCH(E!BJ$12,Data!$A$1:$BU$1,0),FALSE) -> 0
D57: Baker Island | E57: b | F57: =VLOOKUP(CONCATENATE($N$6,$D57,$N$8,$E57),Data!$A:$BU,MATCH(E!F$12,Data!$A$1:$BU$1,0),FALSE) -> 0 | H57: =VLOOKUP(CONCATENATE($N$6,$D57,$N$8,$E57),Data!$A:$BU,MATCH(E!H$12,Data!$A$1:$BU$1,0),FALSE) -> 0 | J57: =VLOOKUP(CONCATENATE($N$6,$D57,$N$8,$E57),Data!$A:$BU,MATCH(E!J$12,Data!$A$1:$BU$1,0),FALSE) -> 0 | L57: =VLOOKUP(CONCATENATE($N$6,$D57,$N$8,$E57),Data!$A:$BU,MATCH(E!L$12,Data!$A$1:$BU$1,0),FALSE) -> 0 | N57: =VLOOKUP(CONCATENATE($N$6,$D57,$N$8,$E57),Data!$A:$BU,MATCH(E!N$12,Data!$A$1:$BU$1,0),FALSE) -> 0 | P57: =VLOOKUP(CONCATENATE($N$6,$D57,$N$8,$E57),Data!$A:$BU,MATCH(E!P$12,Data!$A$1:$BU$1,0),FALSE) -> 0 | R57: =VLOOKUP(CONCATENATE($N$6,$D57,$N$8,$E57),Data!$A:$BU,MATCH(E!R$12,Data!$A$1:$BU$1,0),FALSE) -> 0 | T57: =VLOOKUP(CONCATENATE($N$6,$D57,$N$8,$E57),Data!$A:$BU,MATCH(E!T$12,Data!$A$1:$BU$1,0),FALSE) -> 0 | V57: =VLOOKUP(CONCATENATE($N$6,$D57,$N$8,$E57),Data!$A:$BU,MATCH(E!V$12,Data!$A$1:$BU$1,0),FALSE) -> 0 | X57: =VLOOKUP(CONCATENATE($N$6,$D57,$N$8,$E57),Data!$A:$BU,MATCH(E!X$12,Data!$A$1:$BU$1,0),FALSE) -> 0 | Z57: =VLOOKUP(CONCATENATE($N$6,$D57,$N$8,$E57),Data!$A:$BU,MATCH(E!Z$12,Data!$A$1:$BU$1,0),FALSE) -> 0 | AB57: =VLOOKUP(CONCATENATE($N$6,$D57,$N$8,$E57),Data!$A:$BU,MATCH(E!AB$12,Data!$A$1:$BU$1,0),FALSE) -> 0 | AD57: =VLOOKUP(CONCATENATE($N$6,$D57,$N$8,$E57),Data!$A:$BU,MATCH(E!AD$12,Data!$A$1:$BU$1,0),FALSE) -> 0 | AF57: =VLOOKUP(CONCATENATE($N$6,$D57,$N$8,$E57),Data!$A:$BU,MATCH(E!AF$12,Data!$A$1:$BU$1,0),FALSE) -> 0 | AH57: =VLOOKUP(CONCATENATE($N$6,$D57,$N$8,$E57),Data!$A:$BU,MATCH(E!AH$12,Data!$A$1:$BU$1,0),FALSE) -> 0 | AJ57: =VLOOKUP(CONCATENATE($N$6,$D57,$N$8,$E57),Data!$A:$BU,MATCH(E!AJ$12,Data!$A$1:$BU$1,0),FALSE) -> 0 | AL57: =VLOOKUP(CONCATENATE($N$6,$D57,$N$8,$E57),Data!$A:$BU,MATCH(E!AL$12,Data!$A$1:$BU$1,0),FALSE) -> 0 | AN57: =VLOOKUP(CONCATENATE($N$6,$D57,$N$8,$E57),Data!$A:$BU,MATCH(E!AN$12,Data!$A$1:$BU$1,0),FALSE) -> 0 | AP57: =VLOOKUP(CONCATENATE($N$6,$D57,$N$8,$E57),Data!$A:$BU,MATCH(E!AP$12,Data!$A$1:$BU$1,0),FALSE) -> 0 | AR57: =VLOOKUP(CONCATENATE($N$6,$D57,$N$8,$E57),Data!$A:$BU,MATCH(E!AR$12,Data!$A$1:$BU$1,0),FALSE) -> 0 | AT57: =VLOOKUP(CONCATENATE($N$6,$D57,$N$8,$E57),Data!$A:$BU,MATCH(E!AT$12,Data!$A$1:$BU$1,0),FALSE) -> 0 | AV57: =VLOOKUP(CONCATENATE($N$6,$D57,$N$8,$E57),Data!$A:$BU,MATCH(E!AV$12,Data!$A$1:$BU$1,0),FALSE) -> 0 | AX57: =VLOOKUP(CONCATENATE($N$6,$D57,$N$8,$E57),Data!$A:$BU,MATCH(E!AX$12,Data!$A$1:$BU$1,0),FALSE) -> 0 | AZ57: =VLOOKUP(CONCATENATE($N$6,$D57,$N$8,$E57),Data!$A:$BU,MATCH(E!AZ$12,Data!$A$1:$BU$1,0),FALSE) -> 0 | BB57: =VLOOKUP(CONCATENATE($N$6,$D57,$N$8,$E57),Data!$A:$BU,MATCH(E!BB$12,Data!$A$1:$BU$1,0),FALSE) -> 0 | BD57: =VLOOKUP(CONCATENATE($N$6,$D57,$N$8,$E57),Data!$A:$BU,MATCH(E!BD$12,Data!$A$1:$BU$1,0),FALSE) -> 0 | BF57: =VLOOKUP(CONCATENATE($N$6,$D57,$N$8,$E57),Data!$A:$BU,MATCH(E!BF$12,Data!$A$1:$BU$1,0),FALSE) -> 0 | BH57: =VLOOKUP(CONCATENATE($N$6,$D57,$N$8,$E57),Data!$A:$BU,MATCH(E!BH$12,Data!$A$1:$BU$1,0),FALSE) -> 0 | BJ57: =VLOOKUP(CONCATENATE($N$6,$D57,$N$8,$E57),Data!$A:$BU,MATCH(E!BJ$12,Data!$A$1:$BU$1,0),FALSE) -> 0
D58: Bangladesh | E58: a | F58: =VLOOKUP(CONCATENATE($N$6,$D58,$N$8,$E58),Data!$A:$BU,MATCH(E!F$12,Data!$A$1:$BU$1,0),FALSE) -> 0 | H58: =VLOOKUP(CONCATENATE($N$6,$D58,$N$8,$E58),Data!$A:$BU,MATCH(E!H$12,Data!$A$1:$BU$1,0),FALSE) -> 1 | J58: =VLOOKUP(CONCATENATE($N$6,$D58,$N$8,$E58),Data!$A:$BU,MATCH(E!J$12,Data!$A$1:$BU$1,0),FALSE) -> 1 | L58: =VLOOKUP(CONCATENATE($N$6,$D58,$N$8,$E58),Data!$A:$BU,MATCH(E!L$12,Data!$A$1:$BU$1,0),FALSE) -> 2 | N58: =VLOOKUP(CONCATENATE($N$6,$D58,$N$8,$E58),Data!$A:$BU,MATCH(E!N$12,Data!$A$1:$BU$1,0),FALSE) -> 0 | P58: =VLOOKUP(CONCATENATE($N$6,$D58,$N$8,$E58),Data!$A:$BU,MATCH(E!P$12,Data!$A$1:$BU$1,0),FALSE) -> 0 | R58: =VLOOKUP(CONCATENATE($N$6,$D58,$N$8,$E58),Data!$A:$BU,MATCH(E!R$12,Data!$A$1:$BU$1,0),FALSE) -> 1 | T58: =VLOOKUP(CONCATENATE($N$6,$D58,$N$8,$E58),Data!$A:$BU,MATCH(E!T$12,Data!$A$1:$BU$1,0),FALSE) -> 2 | V58: =VLOOKUP(CONCATENATE($N$6,$D58,$N$8,$E58),Data!$A:$BU,MATCH(E!V$12,Data!$A$1:$BU$1,0),FALSE) -> 2 | X58: =VLOOKUP(CONCATENATE($N$6,$D58,$N$8,$E58),Data!$A:$BU,MATCH(E!X$12,Data!$A$1:$BU$1,0),FALSE) -> 6 | Z58: =VLOOKUP(CONCATENATE($N$6,$D58,$N$8,$E58),Data!$A:$BU,MATCH(E!Z$12,Data!$A$1:$BU$1,0),FALSE) -> 11 | AB58: =VLOOKUP(CONCATENATE($N$6,$D58,$N$8,$E58),Data!$A:$BU,MATCH(E!AB$12,Data!$A$1:$BU$1,0),FALSE) -> 3 | AD58: =VLOOKUP(CONCATENATE($N$6,$D58,$N$8,$E58),Data!$A:$BU,MATCH(E!AD$12,Data!$A$1:$BU$1,0),FALSE) -> 0 | AF58: =VLOOKUP(CONCATENATE($N$6,$D58,$N$8,$E58),Data!$A:$BU,MATCH(E!AF$12,Data!$A$1:$BU$1,0),FALSE) -> 1 | AH58: =VLOOKUP(CONCATENATE($N$6,$D58,$N$8,$E58),Data!$A:$BU,MATCH(E!AH$12,Data!$A$1:$BU$1,0),FALSE) -> 5 | AJ58: =VLOOKUP(CONCATENATE($N$6,$D58,$N$8,$E58),Data!$A:$BU,MATCH(E!AJ$12,Data!$A$1:$BU$1,0),FALSE) -> 2 | AL58: =VLOOKUP(CONCATENATE($N$6,$D58,$N$8,$E58),Data!$A:$BU,MATCH(E!AL$12,Data!$A$1:$BU$1,0),FALSE) -> 2 | AN58: =VLOOKUP(CONCATENATE($N$6,$D58,$N$8,$E58),Data!$A:$BU,MATCH(E!AN$12,Data!$A$1:$BU$1,0),FALSE) -> 3 | AP58: =VLOOKUP(CONCATENATE($N$6,$D58,$N$8,$E58),Data!$A:$BU,MATCH(E!AP$12,Data!$A$1:$BU$1,0),FALSE) -> 1 | AR58: =VLOOKUP(CONCATENATE($N$6,$D58,$N$8,$E58),Data!$A:$BU,MATCH(E!AR$12,Data!$A$1:$BU$1,0),FALSE) -> 1 | AT58: =VLOOKUP(CONCATENATE($N$6,$D58,$N$8,$E58),Data!$A:$BU,MATCH(E!AT$12,Data!$A$1:$BU$1,0),FALSE) -> 5 | AV58: =VLOOKUP(CONCATENATE($N$6,$D58,$N$8,$E58),Data!$A:$BU,MATCH(E!AV$12,Data!$A$1:$BU$1,0),FALSE) -> 3 | AX58: =VLOOKUP(CONCATENATE($N$6,$D58,$N$8,$E58),Data!$A:$BU,MATCH(E!AX$12,Data!$A$1:$BU$1,0),FALSE) -> 1 | AZ58: =VLOOKUP(CONCATENATE($N$6,$D58,$N$8,$E58),Data!$A:$BU,MATCH(E!AZ$12,Data!$A$1:$BU$1,0),FALSE) -> 3 | BB58: =VLOOKUP(CONCATENATE($N$6,$D58,$N$8,$E58),Data!$A:$BU,MATCH(E!BB$12,Data!$A$1:$BU$1,0),FALSE) -> 3 | BD58: =VLOOKUP(CONCATENATE($N$6,$D58,$N$8,$E58),Data!$A:$BU,MATCH(E!BD$12,Data!$A$1:$BU$1,0),FALSE) -> 2 | BF58: =VLOOKUP(CONCATENATE($N$6,$D58,$N$8,$E58),Data!$A:$BU,MATCH(E!BF$12,Data!$A$1:$BU$1,0),FALSE) -> 3 | BH58: =VLOOKUP(CONCATENATE($N$6,$D58,$N$8,$E58),Data!$A:$BU,MATCH(E!BH$12,Data!$A$1:$BU$1,0),FALSE) -> 3 | BJ58: =VLOOKUP(CONCATENATE($N$6,$D58,$N$8,$E58),Data!$A:$BU,MATCH(E!BJ$12,Data!$A$1:$BU$1,0),FALSE) -> 4
D59: Bangladesh | E59: b | F59: =VLOOKUP(CONCATENATE($N$6,$D59,$N$8,$E59),Data!$A:$BU,MATCH(E!F$12,Data!$A$1:$BU$1,0),FALSE) -> 0 | H59: =VLOOKUP(CONCATENATE($N$6,$D59,$N$8,$E59),Data!$A:$BU,MATCH(E!H$12,Data!$A$1:$BU$1,0),FALSE) -> 3369 | J59: =VLOOKUP(CONCATENATE($N$6,$D59,$N$8,$E59),Data!$A:$BU,MATCH(E!J$12,Data!$A$1:$BU$1,0),FALSE) -> 33069 | L59: =VLOOKUP(CONCATENATE($N$6,$D59,$N$8,$E59),Data!$A:$BU,MATCH(E!L$12,Data!$A$1:$BU$1,0),FALSE) -> 27954 | N59: =VLOOKUP(CONCATENATE($N$6,$D59,$N$8,$E59),Data!$A:$BU,MATCH(E!N$12,Data!$A$1:$BU$1,0),FALSE) -> 0 | P59: =VLOOKUP(CONCATENATE($N$6,$D59,$N$8,$E59),Data!$A:$BU,MATCH(E!P$12,Data!$A$1:$BU$1,0),FALSE) -> 0 | R59: =VLOOKUP(CONCATENATE($N$6,$D59,$N$8,$E59),Data!$A:$BU,MATCH(E!R$12,Data!$A$1:$BU$1,0),FALSE) -> 6400 | T59: =VLOOKUP(CONCATENATE($N$6,$D59,$N$8,$E59),Data!$A:$BU,MATCH(E!T$12,Data!$A$1:$BU$1,0),FALSE) -> 26400 | V59: =VLOOKUP(CONCATENATE($N$6,$D59,$N$8,$E59),Data!$A:$BU,MATCH(E!V$12,Data!$A$1:$BU$1,0),FALSE) -> 1336265 | X59: =VLOOKUP(CONCATENATE($N$6,$D59,$N$8,$E59),Data!$A:$BU,MATCH(E!X$12,Data!$A$1:$BU$1,0),FALSE) -> 4980648 | Z59: =VLOOKUP(CONCATENATE($N$6,$D59,$N$8,$E59),Data!$A:$BU,MATCH(E!Z$12,Data!$A$1:$BU$1,0),FALSE) -> 3764815 | AB59: =VLOOKUP(CONCATENATE($N$6,$D59,$N$8,$E59),Data!$A:$BU,MATCH(E!AB$12,Data!$A$1:$BU$1,0),FALSE) -> 13763 | AD59: =VLOOKUP(CONCATENATE($N$6,$D59,$N$8,$E59),Data!$A:$BU,MATCH(E!AD$12,Data!$A$1:$BU$1,0),FALSE) -> 0 | AF59: =VLOOKUP(CONCATENATE($N$6,$D59,$N$8,$E59),Data!$A:$BU,MATCH(E!AF$12,Data!$A$1:$BU$1,0),FALSE) -> 19052 | AH59: =VLOOKUP(CONCATENATE($N$6,$D59,$N$8,$E59),Data!$A:$BU,MATCH(E!AH$12,Data!$A$1:$BU$1,0),FALSE) -> 485474 | AJ59: =VLOOKUP(CONCATENATE($N$6,$D59,$N$8,$E59),Data!$A:$BU,MATCH(E!AJ$12,Data!$A$1:$BU$1,0),FALSE) -> 110052 | AL59: =VLOOKUP(CONCATENATE($N$6,$D59,$N$8,$E59),Data!$A:$BU,MATCH(E!AL$12,Data!$A$1:$BU$1,0),FALSE) -> 545210 | AN59: =VLOOKUP(CONCATENATE($N$6,$D59,$N$8,$E59),Data!$A:$BU,MATCH(E!AN$12,Data!$A$1:$BU$1,0),FALSE) -> 67788 | AP59: =VLOOKUP(CONCATENATE($N$6,$D59,$N$8,$E59),Data!$A:$BU,MATCH(E!AP$12,Data!$A$1:$BU$1,0),FALSE) -> 143208 | AR59: =VLOOKUP(CONCATENATE($N$6,$D59,$N$8,$E59),Data!$A:$BU,MATCH(E!AR$12,Data!$A$1:$BU$1,0),FALSE) -> 29150 | AT59: =VLOOKUP(CONCATENATE($N$6,$D59,$N$8,$E59),Data!$A:$BU,MATCH(E!AT$12,Data!$A$1:$BU$1,0),FALSE) -> 8628647 | AV59: =VLOOKUP(CONCATENATE($N$6,$D59,$N$8,$E59),Data!$A:$BU,MATCH(E!AV$12,Data!$A$1:$BU$1,0),FALSE) -> 441350 | AX59: =VLOOKUP(CONCATENATE($N$6,$D59,$N$8,$E59),Data!$A:$BU,MATCH(E!AX$12,Data!$A$1:$BU$1,0),FALSE) -> 6081 | AZ59: =VLOOKUP(CONCATENATE($N$6,$D59,$N$8,$E59),Data!$A:$BU,MATCH(E!AZ$12,Data!$A$1:$BU$1,0),FALSE) -> 4312912 | BB59: =VLOOKUP(CONCATENATE($N$6,$D59,$N$8,$E59),Data!$A:$BU,MATCH(E!BB$12,Data!$A$1:$BU$1,0),FALSE) -> 165830 | BD59: =VLOOKUP(CONCATENATE($N$6,$D59,$N$8,$E59),Data!$A:$BU,MATCH(E!BD$12,Data!$A$1:$BU$1,0),FALSE) -> 29040 | BF59: =VLOOKUP(CONCATENATE($N$6,$D59,$N$8,$E59),Data!$A:$BU,MATCH(E!BF$12,Data!$A$1:$BU$1,0),FALSE) -> 9073 | BH59: =VLOOKUP(CONCATENATE($N$6,$D59,$N$8,$E59),Data!$A:$BU,MATCH(E!BH$12,Data!$A$1:$BU$1,0),FALSE) -> 186216 | BJ59: =VLOOKUP(CONCATENATE($N$6,$D59,$N$8,$E59),Data!$A:$BU,MATCH(E!BJ$12,Data!$A$1:$BU$1,0),FALSE) -> 198838
D60: Barbados | E60: a | F60: =VLOOKUP(CONCATENATE($N$6,$D60,$N$8,$E60),Data!$A:$BU,MATCH(E!F$12,Data!$A$1:$BU$1,0),FALSE) -> 0 | H60: =VLOOKUP(CONCATENATE($N$6,$D60,$N$8,$E60),Data!$A:$BU,MATCH(E!H$12,Data!$A$1:$BU$1,0),FALSE) -> 0 | J60: =VLOOKUP(CONCATENATE($N$6,$D60,$N$8,$E60),Data!$A:$BU,MATCH(E!J$12,Data!$A$1:$BU$1,0),FALSE) -> 1 | L60: =VLOOKUP(CONCATENATE($N$6,$D60,$N$8,$E60),Data!$A:$BU,MATCH(E!L$12,Data!$A$1:$BU$1,0),FALSE) -> 1 | N60: =VLOOKUP(CONCATENATE($N$6,$D60,$N$8,$E60),Data!$A:$BU,MATCH(E!N$12,Data!$A$1:$BU$1,0),FALSE) -> 1 | P60: =VLOOKUP(CONCATENATE($N$6,$D60,$N$8,$E60),Data!$A:$BU,MATCH(E!P$12,Data!$A$1:$BU$1,0),FALSE) -> 0 | R60: =VLOOKUP(CONCATENATE($N$6,$D60,$N$8,$E60),Data!$A:$BU,MATCH(E!R$12,Data!$A$1:$BU$1,0),FALSE) -> 1 | T60: =VLOOKUP(CONCATENATE($N$6,$D60,$N$8,$E60),Data!$A:$BU,MATCH(E!T$12,Data!$A$1:$BU$1,0),FALSE) -> 1 | V60: =VLOOKUP(CONCATENATE($N$6,$D60,$N$8,$E60),Data!$A:$BU,MATCH(E!V$12,Data!$A$1:$BU$1,0),FALSE) -> 1 | X60: =VLOOKUP(CONCATENATE($N$6,$D60,$N$8,$E60),Data!$A:$BU,MATCH(E!X$12,Data!$A$1:$BU$1,0),FALSE) -> 1 | Z60: =VLOOKUP(CONCATENATE($N$6,$D60,$N$8,$E60),Data!$A:$BU,MATCH(E!Z$12,Data!$A$1:$BU$1,0),FALSE) -> 2 | AB60: =VLOOKUP(CONCATENATE($N$6,$D60,$N$8,$E60),Data!$A:$BU,MATCH(E!AB$12,Data!$A$1:$BU$1,0),FALSE) -> 1 | AD60: =VLOOKUP(CONCATENATE($N$6,$D60,$N$8,$E60),Data!$A:$BU,MATCH(E!AD$12,Data!$A$1:$BU$1,0),FALSE) -> 0 | AF60: =VLOOKUP(CONCATENATE($N$6,$D60,$N$8,$E60),Data!$A:$BU,MATCH(E!AF$12,Data!$A$1:$BU$1,0),FALSE) -> 1 | AH60: =VLOOKUP(CONCATENATE($N$6,$D60,$N$8,$E60),Data!$A:$BU,MATCH(E!AH$12,Data!$A$1:$BU$1,0),FALSE) -> 0 | AJ60: =VLOOKUP(CONCATENATE($N$6,$D60,$N$8,$E60),Data!$A:$BU,MATCH(E!AJ$12,Data!$A$1:$BU$1,0),FALSE) -> 1 | AL60: =VLOOKUP(CONCATENATE($N$6,$D60,$N$8,$E60),Data!$A:$BU,MATCH(E!AL$12,Data!$A$1:$BU$1,0),FALSE) -> 3 | AN60: =VLOOKUP(CONCATENATE($N$6,$D60,$N$8,$E60),Data!$A:$BU,MATCH(E!AN$12,Data!$A$1:$BU$1,0),FALSE) -> 0 | AP60: =VLOOKUP(CONCATENATE($N$6,$D60,$N$8,$E60),Data!$A:$BU,MATCH(E!AP$12,Data!$A$1:$BU$1,0),FALSE) -> 1 | AR60: =VLOOKUP(CONCATENATE($N$6,$D60,$N$8,$E60),Data!$A:$BU,MATCH(E!AR$12,Data!$A$1:$BU$1,0),FALSE) -> 0 | AT60: =VLOOKUP(CONCATENATE($N$6,$D60,$N$8,$E60),Data!$A:$BU,MATCH(E!AT$12,Data!$A$1:$BU$1,0),FALSE) -> 0 | AV60: =VLOOKUP(CONCATENATE($N$6,$D60,$N$8,$E60),Data!$A:$BU,MATCH(E!AV$12,Data!$A$1:$BU$1,0),FALSE) -> 1 | AX60: =VLOOKUP(CONCATENATE($N$6,$D60,$N$8,$E60),Data!$A:$BU,MATCH(E!AX$12,Data!$A$1:$BU$1,0),FALSE) -> 1 | AZ60: =VLOOKUP(CONCATENATE($N$6,$D60,$N$8,$E60),Data!$A:$BU,MATCH(E!AZ$12,Data!$A$1:$BU$1,0),FALSE) -> 0 | BB60: =VLOOKUP(CONCATENATE($N$6,$D60,$N$8,$E60),Data!$A:$BU,MATCH(E!BB$12,Data!$A$1:$BU$1,0),FALSE) -> 3 | BD60: =VLOOKUP(CONCATENATE($N$6,$D60,$N$8,$E60),Data!$A:$BU,MATCH(E!BD$12,Data!$A$1:$BU$1,0),FALSE) -> 1 | BF60: =VLOOKUP(CONCATENATE($N$6,$D60,$N$8,$E60),Data!$A:$BU,MATCH(E!BF$12,Data!$A$1:$BU$1,0),FALSE) -> 3 | BH60: =VLOOKUP(CONCATENATE($N$6,$D60,$N$8,$E60),Data!$A:$BU,MATCH(E!BH$12,Data!$A$1:$BU$1,0),FALSE) -> 1 | BJ60: =VLOOKUP(CONCATENATE($N$6,$D60,$N$8,$E60),Data!$A:$BU,MATCH(E!BJ$12,Data!$A$1:$BU$1,0),FALSE) -> 1
D61: Barbados | E61: b | F61: =VLOOKUP(CONCATENATE($N$6,$D61,$N$8,$E61),Data!$A:$BU,MATCH(E!F$12,Data!$A$1:$BU$1,0),FALSE) -> 0 | H61: =VLOOKUP(CONCATENATE($N$6,$D61,$N$8,$E61),Data!$A:$BU,MATCH(E!H$12,Data!$A$1:$BU$1,0),FALSE) -> 0 | J61: =VLOOKUP(CONCATENATE($N$6,$D61,$N$8,$E61),Data!$A:$BU,MATCH(E!J$12,Data!$A$1:$BU$1,0),FALSE) -> 9000 | L61: =VLOOKUP(CONCATENATE($N$6,$D61,$N$8,$E61),Data!$A:$BU,MATCH(E!L$12,Data!$A$1:$BU$1,0),FALSE) -> 9675 | N61: =VLOOKUP(CONCATENATE($N$6,$D61,$N$8,$E61),Data!$A:$BU,MATCH(E!N$12,Data!$A$1:$BU$1,0),FALSE) -> 2800 | P61: =VLOOKUP(CONCATENATE($N$6,$D61,$N$8,$E61),Data!$A:$BU,MATCH(E!P$12,Data!$A$1:$BU$1,0),FALSE) -> 0 | R61: =VLOOKUP(CONCATENATE($N$6,$D61,$N$8,$E61),Data!$A:$BU,MATCH(E!R$12,Data!$A$1:$BU$1,0),FALSE) -> 2485 | T61: =VLOOKUP(CONCATENATE($N$6,$D61,$N$8,$E61),Data!$A:$BU,MATCH(E!T$12,Data!$A$1:$BU$1,0),FALSE) -> 11660 | V61: =VLOOKUP(CONCATENATE($N$6,$D61,$N$8,$E61),Data!$A:$BU,MATCH(E!V$12,Data!$A$1:$BU$1,0),FALSE) -> 12000 | X61: =VLOOKUP(CONCATENATE($N$6,$D61,$N$8,$E61),Data!$A:$BU,MATCH(E!X$12,Data!$A$1:$BU$1,0),FALSE) -> 10000 | Z61: =VLOOKUP(CONCATENATE($N$6,$D61,$N$8,$E61),Data!$A:$BU,MATCH(E!Z$12,Data!$A$1:$BU$1,0),FALSE) -> 33715 | AB61: =VLOOKUP(CONCATENATE($N$6,$D61,$N$8,$E61),Data!$A:$BU,MATCH(E!AB$12,Data!$A$1:$BU$1,0),FALSE) -> 4200 | AD61: =VLOOKUP(CONCATENATE($N$6,$D61,$N$8,$E61),Data!$A:$BU,MATCH(E!AD$12,Data!$A$1:$BU$1,0),FALSE) -> 0 | AF61: =VLOOKUP(CONCATENATE($N$6,$D61,$N$8,$E61),Data!$A:$BU,MATCH(E!AF$12,Data!$A$1:$BU$1,0),FALSE) -> 27782 | AH61: =VLOOKUP(CONCATENATE($N$6,$D61,$N$8,$E61),Data!$A:$BU,MATCH(E!AH$12,Data!$A$1:$BU$1,0),FALSE) -> 0 | AJ61: =VLOOKUP(CONCATENATE($N$6,$D61,$N$8,$E61),Data!$A:$BU,MATCH(E!AJ$12,Data!$A$1:$BU$1,0),FALSE) -> 250 | AL61: =VLOOKUP(CONCATENATE($N$6,$D61,$N$8,$E61),Data!$A:$BU,MATCH(E!AL$12,Data!$A$1:$BU$1,0),FALSE) -> 77139 | AN61: =VLOOKUP(CONCATENATE($N$6,$D61,$N$8,$E61),Data!$A:$BU,MATCH(E!AN$12,Data!$A$1:$BU$1,0),FALSE) -> 0 | AP61: =VLOOKUP(CONCATENATE($N$6,$D61,$N$8,$E61),Data!$A:$BU,MATCH(E!AP$12,Data!$A$1:$BU$1,0),FALSE) -> 5000 | AR61: =VLOOKUP(CONCATENATE($N$6,$D61,$N$8,$E61),Data!$A:$BU,MATCH(E!AR$12,Data!$A$1:$BU$1,0),FALSE) -> 0 | AT61: =VLOOKUP(CONCATENATE($N$6,$D61,$N$8,$E61),Data!$A:$BU,MATCH(E!AT$12,Data!$A$1:$BU$1,0),FALSE) -> 0 | AV61: =VLOOKUP(CONCATENATE($N$6,$D61,$N$8,$E61),Data!$A:$BU,MATCH(E!AV$12,Data!$A$1:$BU$1,0),FALSE) -> 939 | AX61: =VLOOKUP(CONCATENATE($N$6,$D61,$N$8,$E61),Data!$A:$BU,MATCH(E!AX$12,Data!$A$1:$BU$1,0),FALSE) -> 350 | AZ61: =VLOOKUP(CONCATENATE($N$6,$D61,$N$8,$E61),Data!$A:$BU,MATCH(E!AZ$12,Data!$A$1:$BU$1,0),FALSE) -> 0 | BB61: =VLOOKUP(CONCATENATE($N$6,$D61,$N$8,$E61),Data!$A:$BU,MATCH(E!BB$12,Data!$A$1:$BU$1,0),FALSE) -> 12403 | BD61: =VLOOKUP(CONCATENATE($N$6,$D61,$N$8,$E61),Data!$A:$BU,MATCH(E!BD$12,Data!$A$1:$BU$1,0),FALSE) -> 290 | BF61: =VLOOKUP(CONCATENATE($N$6,$D61,$N$8,$E61),Data!$A:$BU,MATCH(E!BF$12,Data!$A$1:$BU$1,0),FALSE) -> 34762 | BH61: =VLOOKUP(CONCATENATE($N$6,$D61,$N$8,$E61),Data!$A:$BU,MATCH(E!BH$12,Data!$A$1:$BU$1,0),FALSE) -> 290 | BJ61: =VLOOKUP(CONCATENATE($N$6,$D61,$N$8,$E61),Data!$A:$BU,MATCH(E!BJ$12,Data!$A$1:$BU$1,0),FALSE) -> 11700
D62: Belarus | E62: a | F62: =VLOOKUP(CONCATENATE($N$6,$D62,$N$8,$E62),Data!$A:$BU,MATCH(E!F$12,Data!$A$1:$BU$1,0),FALSE) -> 0 | H62: =VLOOKUP(CONCATENATE($N$6,$D62,$N$8,$E62),Data!$A:$BU,MATCH(E!H$12,Data!$A$1:$BU$1,0),FALSE) -> 0 | J62: =VLOOKUP(CONCATENATE($N$6,$D62,$N$8,$E62),Data!$A:$BU,MATCH(E!J$12,Data!$A$1:$BU$1,0),FALSE) -> 0 | L62: =VLOOKUP(CONCATENATE($N$6,$D62,$N$8,$E62),Data!$A:$BU,MATCH(E!L$12,Data!$A$1:$BU$1,0),FALSE) -> 0 | N62: =VLOOKUP(CONCATENATE($N$6,$D62,$N$8,$E62),Data!$A:$BU,MATCH(E!N$12,Data!$A$1:$BU$1,0),FALSE) -> 1 | P62: =VLOOKUP(CONCATENATE($N$6,$D62,$N$8,$E62),Data!$A:$BU,MATCH(E!P$12,Data!$A$1:$BU$1,0),FALSE) -> 0 | R62: =VLOOKUP(CONCATENATE($N$6,$D62,$N$8,$E62),Data!$A:$BU,MATCH(E!R$12,Data!$A$1:$BU$1,0),FALSE) -> 0 | T62: =VLOOKUP(CONCATENATE($N$6,$D62,$N$8,$E62),Data!$A:$BU,MATCH(E!T$12,Data!$A$1:$BU$1,0),FALSE) -> 0 | V62: =VLOOKUP(CONCATENATE($N$6,$D62,$N$8,$E62),Data!$A:$BU,MATCH(E!V$12,Data!$A$1:$BU$1,0),FALSE) -> 0 | X62: =VLOOKUP(CONCATENATE($N$6,$D62,$N$8,$E62),Data!$A:$BU,MATCH(E!X$12,Data!$A$1:$BU$1,0),FALSE) -> 1 | Z62: =VLOOKUP(CONCATENATE($N$6,$D62,$N$8,$E62),Data!$A:$BU,MATCH(E!Z$12,Data!$A$1:$BU$1,0),FALSE) -> 0 | AB62: =VLOOKUP(CONCATENATE($N$6,$D62,$N$8,$E62),Data!$A:$BU,MATCH(E!AB$12,Data!$A$1:$BU$1,0),FALSE) -> 0 | AD62: =VLOOKUP(CONCATENATE($N$6,$D62,$N$8,$E62),Data!$A:$BU,MATCH(E!AD$12,Data!$A$1:$BU$1,0),FALSE) -> 0 | AF62: =VLOOKUP(CONCATENATE($N$6,$D62,$N$8,$E62),Data!$A:$BU,MATCH(E!AF$12,Data!$A$1:$BU$1,0),FALSE) -> 0 | AH62: =VLOOKUP(CONCATENATE($N$6,$D62,$N$8,$E62),Data!$A:$BU,MATCH(E!AH$12,Data!$A$1:$BU$1,0),FALSE) -> 0 | AJ62: =VLOOKUP(CONCATENATE($N$6,$D62,$N$8,$E62),Data!$A:$BU,MATCH(E!AJ$12,Data!$A$1:$BU$1,0),FALSE) -> 0 | AL62: =VLOOKUP(CONCATENATE($N$6,$D62,$N$8,$E62),Data!$A:$BU,MATCH(E!AL$12,Data!$A$1:$BU$1,0),FALSE) -> 0 | AN62: =VLOOKUP(CONCATENATE($N$6,$D62,$N$8,$E62),Data!$A:$BU,MATCH(E!AN$12,Data!$A$1:$BU$1,0),FALSE) -> 0 | AP62: =VLOOKUP(CONCATENATE($N$6,$D62,$N$8,$E62),Data!$A:$BU,MATCH(E!AP$12,Data!$A$1:$BU$1,0),FALSE) -> 0 | AR62: =VLOOKUP(CONCATENATE($N$6,$D62,$N$8,$E62),Data!$A:$BU,MATCH(E!AR$12,Data!$A$1:$BU$1,0),FALSE) -> 0 | AT62: =VLOOKUP(CONCATENATE($N$6,$D62,$N$8,$E62),Data!$A:$BU,MATCH(E!AT$12,Data!$A$1:$BU$1,0),FALSE) -> 0 | AV62: =VLOOKUP(CONCATENATE($N$6,$D62,$N$8,$E62),Data!$A:$BU,MATCH(E!AV$12,Data!$A$1:$BU$1,0),FALSE) -> 0 | AX62: =VLOOKUP(CONCATENATE($N$6,$D62,$N$8,$E62),Data!$A:$BU,MATCH(E!AX$12,Data!$A$1:$BU$1,0),FALSE) -> 0 | AZ62: =VLOOKUP(CONCATENATE($N$6,$D62,$N$8,$E62),Data!$A:$BU,MATCH(E!AZ$12,Data!$A$1:$BU$1,0),FALSE) -> 0 | BB62: =VLOOKUP(CONCATENATE($N$6,$D62,$N$8,$E62),Data!$A:$BU,MATCH(E!BB$12,Data!$A$1:$BU$1,0),FALSE) -> 0 | BD62: =VLOOKUP(CONCATENATE($N$6,$D62,$N$8,$E62),Data!$A:$BU,MATCH(E!BD$12,Data!$A$1:$BU$1,0),FALSE) -> 0 | BF62: =VLOOKUP(CONCATENATE($N$6,$D62,$N$8,$E62),Data!$A:$BU,MATCH(E!BF$12,Data!$A$1:$BU$1,0),FALSE) -> 0 | BH62: =VLOOKUP(CONCATENATE($N$6,$D62,$N$8,$E62),Data!$A:$BU,MATCH(E!BH$12,Data!$A$1:$BU$1,0),FALSE) -> 0 | BJ62: =VLOOKUP(CONCATENATE($N$6,$D62,$N$8,$E62),Data!$A:$BU,MATCH(E!BJ$12,Data!$A$1:$BU$1,0),FALSE) -> 0
D63: Belarus | E63: b | F63: =VLOOKUP(CONCATENATE($N$6,$D63,$N$8,$E63),Data!$A:$BU,MATCH(E!F$12,Data!$A$1:$BU$1,0),FALSE) -> 0 | H63: =VLOOKUP(CONCATENATE($N$6,$D63,$N$8,$E63),Data!$A:$BU,MATCH(E!H$12,Data!$A$1:$BU$1,0),FALSE) -> 0 | J63: =VLOOKUP(CONCATENATE($N$6,$D63,$N$8,$E63),Data!$A:$BU,MATCH(E!J$12,Data!$A$1:$BU$1,0),FALSE) -> 0 | L63: =VLOOKUP(CONCATENATE($N$6,$D63,$N$8,$E63),Data!$A:$BU,MATCH(E!L$12,Data!$A$1:$BU$1,0),FALSE) -> 0 | N63: =VLOOKUP(CONCATENATE($N$6,$D63,$N$8,$E63),Data!$A:$BU,MATCH(E!N$12,Data!$A$1:$BU$1,0),FALSE) -> 35000 | P63: =VLOOKUP(CONCATENATE($N$6,$D63,$N$8,$E63),Data!$A:$BU,MATCH(E!P$12,Data!$A$1:$BU$1,0),FALSE) -> 0 | R63: =VLOOKUP(CONCATENATE($N$6,$D63,$N$8,$E63),Data!$A:$BU,MATCH(E!R$12,Data!$A$1:$BU$1,0),FALSE) -> 0 | T63: =VLOOKUP(CONCATENATE($N$6,$D63,$N$8,$E63),Data!$A:$BU,MATCH(E!T$12,Data!$A$1:$BU$1,0),FALSE) -> 0 | V63: =VLOOKUP(CONCATENATE($N$6,$D63,$N$8,$E63),Data!$A:$BU,MATCH(E!V$12,Data!$A$1:$BU$1,0),FALSE) -> 0 | X63: =VLOOKUP(CONCATENATE($N$6,$D63,$N$8,$E63),Data!$A:$BU,MATCH(E!X$12,Data!$A$1:$BU$1,0),FALSE) -> 160000 | Z63: =VLOOKUP(CONCATENATE($N$6,$D63,$N$8,$E63),Data!$A:$BU,MATCH(E!Z$12,Data!$A$1:$BU$1,0),FALSE) -> 0 | AB63: =VLOOKUP(CONCATENATE($N$6,$D63,$N$8,$E63),Data!$A:$BU,MATCH(E!AB$12,Data!$A$1:$BU$1,0),FALSE) -> 0 | AD63: =VLOOKUP(CONCATENATE($N$6,$D63,$N$8,$E63),Data!$A:$BU,MATCH(E!AD$12,Data!$A$1:$BU$1,0),FALSE) -> 0 | AF63: =VLOOKUP(CONCATENATE($N$6,$D63,$N$8,$E63),Data!$A:$BU,MATCH(E!AF$12,Data!$A$1:$BU$1,0),FALSE) -> 0 | AH63: =VLOOKUP(CONCATENATE($N$6,$D63,$N$8,$E63),Data!$A:$BU,MATCH(E!AH$12,Data!$A$1:$BU$1,0),FALSE) -> 0 | AJ63: =VLOOKUP(CONCATENATE($N$6,$D63,$N$8,$E63),Data!$A:$BU,MATCH(E!AJ$12,Data!$A$1:$BU$1,0),FALSE) -> 0 | AL63: =VLOOKUP(CONCATENATE($N$6,$D63,$N$8,$E63),Data!$A:$BU,MATCH(E!AL$12,Data!$A$1:$BU$1,0),FALSE) -> 0 | AN63: =VLOOKUP(CONCATENATE($N$6,$D63,$N$8,$E63),Data!$A:$BU,MATCH(E!AN$12,Data!$A$1:$BU$1,0),FALSE) -> 0 | AP63: =VLOOKUP(CONCATENATE($N$6,$D63,$N$8,$E63),Data!$A:$BU,MATCH(E!AP$12,Data!$A$1:$BU$1,0),FALSE) -> 0 | AR63: =VLOOKUP(CONCATENATE($N$6,$D63,$N$8,$E63),Data!$A:$BU,MATCH(E!AR$12,Data!$A$1:$BU$1,0),FALSE) -> 0 | AT63: =VLOOKUP(CONCATENATE($N$6,$D63,$N$8,$E63),Data!$A:$BU,MATCH(E!AT$12,Data!$A$1:$BU$1,0),FALSE) -> 0 | AV63: =VLOOKUP(CONCATENATE($N$6,$D63,$N$8,$E63),Data!$A:$BU,MATCH(E!AV$12,Data!$A$1:$BU$1,0),FALSE) -> 0 | AX63: =VLOOKUP(CONCATENATE($N$6,$D63,$N$8,$E63),Data!$A:$BU,MATCH(E!AX$12,Data!$A$1:$BU$1,0),FALSE) -> 0 | AZ63: =VLOOKUP(CONCATENATE($N$6,$D63,$N$8,$E63),Data!$A:$BU,MATCH(E!AZ$12,Data!$A$1:$BU$1,0),FALSE) -> 0 | BB63: =VLOOKUP(CONCATENATE($N$6,$D63,$N$8,$E63),Data!$A:$BU,MATCH(E!BB$12,Data!$A$1:$BU$1,0),FALSE) -> 0 | BD63: =VLOOKUP(CONCATENATE($N$6,$D63,$N$8,$E63),Data!$A:$BU,MATCH(E!BD$12,Data!$A$1:$BU$1,0),FALSE) -> 0 | BF63: =VLOOKUP(CONCATENATE($N$6,$D63,$N$8,$E63),Data!$A:$BU,MATCH(E!BF$12,Data!$A$1:$BU$1,0),FALSE) -> 0 | BH63: =VLOOKUP(CONCATENATE($N$6,$D63,$N$8,$E63),Data!$A:$BU,MATCH(E!BH$12,Data!$A$1:$BU$1,0),FALSE) -> 0 | BJ63: =VLOOKUP(CONCATENATE($N$6,$D63,$N$8,$E63),Data!$A:$BU,MATCH(E!BJ$12,Data!$A$1:$BU$1,0),FALSE) -> 0
D64: Belgium | E64: a | F64: =VLOOKUP(CONCATENATE($N$6,$D64,$N$8,$E64),Data!$A:$BU,MATCH(E!F$12,Data!$A$1:$BU$1,0),FALSE) -> 12 | H64: =VLOOKUP(CONCATENATE($N$6,$D64,$N$8,$E64),Data!$A:$BU,MATCH(E!H$12,Data!$A$1:$BU$1,0),FALSE) -> 15 | J64: =VLOOKUP(CONCATENATE($N$6,$D64,$N$8,$E64),Data!$A:$BU,MATCH(E!J$12,Data!$A$1:$BU$1,0),FALSE) -> 8 | L64: =VLOOKUP(CONCATENATE($N$6,$D64,$N$8,$E64),Data!$A:$BU,MATCH(E!L$12,Data!$A$1:$BU$1,0),FALSE) -> 15 | N64: =VLOOKUP(CONCATENATE($N$6,$D64,$N$8,$E64),Data!$A:$BU,MATCH(E!N$12,Data!$A$1:$BU$1,0),FALSE) -> 14 | P64: =VLOOKUP(CONCATENATE($N$6,$D64,$N$8,$E64),Data!$A:$BU,MATCH(E!P$12,Data!$A$1:$BU$1,0),FALSE) -> 11 | R64: =VLOOKUP(CONCATENATE($N$6,$D64,$N$8,$E64),Data!$A:$BU,MATCH(E!R$12,Data!$A$1:$BU$1,0),FALSE) -> 16 | T64: =VLOOKUP(CONCATENATE($N$6,$D64,$N$8,$E64),Data!$A:$BU,MATCH(E!T$12,Data!$A$1:$BU$1,0),FALSE) -> 11 | V64: =VLOOKUP(CONCATENATE($N$6,$D64,$N$8,$E64),Data!$A:$BU,MATCH(E!V$12,Data!$A$1:$BU$1,0),FALSE) -> 13 | X64: =VLOOKUP(CONCATENATE($N$6,$D64,$N$8,$E64),Data!$A:$BU,MATCH(E!X$12,Data!$A$1:$BU$1,0),FALSE) -> 10 | Z64: =VLOOKUP(CONCATENATE($N$6,$D64,$N$8,$E64),Data!$A:$BU,MATCH(E!Z$12,Data!$A$1:$BU$1,0),FALSE) -> 11 | AB64: =VLOOKUP(CONCATENATE($N$6,$D64,$N$8,$E64),Data!$A:$BU,MATCH(E!AB$12,Data!$A$1:$BU$1,0),FALSE) -> 11 | AD64: =VLOOKUP(CONCATENATE($N$6,$D64,$N$8,$E64),Data!$A:$BU,MATCH(E!AD$12,Data!$A$1:$BU$1,0),FALSE) -> 9 | AF64: =VLOOKUP(CONCATENATE($N$6,$D64,$N$8,$E64),Data!$A:$BU,MATCH(E!AF$12,Data!$A$1:$BU$1,0),FALSE) -> 9 | AH64: =VLOOKUP(CONCATENATE($N$6,$D64,$N$8,$E64),Data!$A:$BU,MATCH(E!AH$12,Data!$A$1:$BU$1,0),FALSE) -> 11 | AJ64: =VLOOKUP(CONCATENATE($N$6,$D64,$N$8,$E64),Data!$A:$BU,MATCH(E!AJ$12,Data!$A$1:$BU$1,0),FALSE) -> 10 | AL64: =VLOOKUP(CONCATENATE($N$6,$D64,$N$8,$E64),Data!$A:$BU,MATCH(E!AL$12,Data!$A$1:$BU$1,0),FALSE) -> 13 | AN64: =VLOOKUP(CONCATENATE($N$6,$D64,$N$8,$E64),Data!$A:$BU,MATCH(E!AN$12,Data!$A$1:$BU$1,0),FALSE) -> 17 | AP64: =VLOOKUP(CONCATENATE($N$6,$D64,$N$8,$E64),Data!$A:$BU,MATCH(E!AP$12,Data!$A$1:$BU$1,0),FALSE) -> 15 | AR64: =VLOOKUP(CONCATENATE($N$6,$D64,$N$8,$E64),Data!$A:$BU,MATCH(E!AR$12,Data!$A$1:$BU$1,0),FALSE) -> 9 | AT64: =VLOOKUP(CONCATENATE($N$6,$D64,$N$8,$E64),Data!$A:$BU,MATCH(E!AT$12,Data!$A$1:$BU$1,0),FALSE) -> 17 | AV64: =VLOOKUP(CONCATENATE($N$6,$D64,$N$8,$E64),Data!$A:$BU,MATCH(E!AV$12,Data!$A$1:$BU$1,0),FALSE) -> 9 | AX64: =VLOOKUP(CONCATENATE($N$6,$D64,$N$8,$E64),Data!$A:$BU,MATCH(E!AX$12,Data!$A$1:$BU$1,0),FALSE) -> 24 | AZ64: =VLOOKUP(CONCATENATE($N$6,$D64,$N$8,$E64),Data!$A:$BU,MATCH(E!AZ$12,Data!$A$1:$BU$1,0),FALSE) -> 10 | BB64: =VLOOKUP(CONCATENATE($N$6,$D64,$N$8,$E64),Data!$A:$BU,MATCH(E!BB$12,Data!$A$1:$BU$1,0),FALSE) -> 13 | BD64: =VLOOKUP(CONCATENATE($N$6,$D64,$N$8,$E64),Data!$A:$BU,MATCH(E!BD$12,Data!$A$1:$BU$1,0),FALSE) -> 11 | BF64: =VLOOKUP(CONCATENATE($N$6,$D64,$N$8,$E64),Data!$A:$BU,MATCH(E!BF$12,Data!$A$1:$BU$1,0),FALSE) -> 18 | BH64: =VLOOKUP(CONCATENATE($N$6,$D64,$N$8,$E64),Data!$A:$BU,MATCH(E!BH$12,Data!$A$1:$BU$1,0),FALSE) -> 13 | BJ64: =VLOOKUP(CONCATENATE($N$6,$D64,$N$8,$E64),Data!$A:$BU,MATCH(E!BJ$12,Data!$A$1:$BU$1,0),FALSE) -> 13
D65: Belgium | E65: b | F65: =VLOOKUP(CONCATENATE($N$6,$D65,$N$8,$E65),Data!$A:$BU,MATCH(E!F$12,Data!$A$1:$BU$1,0),FALSE) -> 11265130 | H65: =VLOOKUP(CONCATENATE($N$6,$D65,$N$8,$E65),Data!$A:$BU,MATCH(E!H$12,Data!$A$1:$BU$1,0),FALSE) -> 3296001 | J65: =VLOOKUP(CONCATENATE($N$6,$D65,$N$8,$E65),Data!$A:$BU,MATCH(E!J$12,Data!$A$1:$BU$1,0),FALSE) -> 668519 | L65: =VLOOKUP(CONCATENATE($N$6,$D65,$N$8,$E65),Data!$A:$BU,MATCH(E!L$12,Data!$A$1:$BU$1,0),FALSE) -> 733884 | N65: =VLOOKUP(CONCATENATE($N$6,$D65,$N$8,$E65),Data!$A:$BU,MATCH(E!N$12,Data!$A$1:$BU$1,0),FALSE) -> 959123 | P65: =VLOOKUP(CONCATENATE($N$6,$D65,$N$8,$E65),Data!$A:$BU,MATCH(E!P$12,Data!$A$1:$BU$1,0),FALSE) -> 17650931 | R65: =VLOOKUP(CONCATENATE($N$6,$D65,$N$8,$E65),Data!$A:$BU,MATCH(E!R$12,Data!$A$1:$BU$1,0),FALSE) -> 803469 | T65: =VLOOKUP(CONCATENATE($N$6,$D65,$N$8,$E65),Data!$A:$BU,MATCH(E!T$12,Data!$A$1:$BU$1,0),FALSE) -> 118937 | V65: =VLOOKUP(CONCATENATE($N$6,$D65,$N$8,$E65),Data!$A:$BU,MATCH(E!V$12,Data!$A$1:$BU$1,0),FALSE) -> 99174 | X65: =VLOOKUP(CONCATENATE($N$6,$D65,$N$8,$E65),Data!$A:$BU,MATCH(E!X$12,Data!$A$1:$BU$1,0),FALSE) -> 29378 | Z65: =VLOOKUP(CONCATENATE($N$6,$D65,$N$8,$E65),Data!$A:$BU,MATCH(E!Z$12,Data!$A$1:$BU$1,0),FALSE) -> 247853 | AB65: =VLOOKUP(CONCATENATE($N$6,$D65,$N$8,$E65),Data!$A:$BU,MATCH(E!AB$12,Data!$A$1:$BU$1,0),FALSE) -> 135773 | AD65: =VLOOKUP(CONCATENATE($N$6,$D65,$N$8,$E65),Data!$A:$BU,MATCH(E!AD$12,Data!$A$1:$BU$1,0),FALSE) -> 86397 | AF65: =VLOOKUP(CONCATENATE($N$6,$D65,$N$8,$E65),Data!$A:$BU,MATCH(E!AF$12,Data!$A$1:$BU$1,0),FALSE) -> 97082 | AH65: =VLOOKUP(CONCATENATE($N$6,$D65,$N$8,$E65),Data!$A:$BU,MATCH(E!AH$12,Data!$A$1:$BU$1,0),FALSE) -> 693516 | AJ65: =VLOOKUP(CONCATENATE($N$6,$D65,$N$8,$E65),Data!$A:$BU,MATCH(E!AJ$12,Data!$A$1:$BU$1,0),FALSE) -> 257182 | AL65: =VLOOKUP(CONCATENATE($N$6,$D65,$N$8,$E65),Data!$A:$BU,MATCH(E!AL$12,Data!$A$1:$BU$1,0),FALSE) -> 1734593 | AN65: =VLOOKUP(CONCATENATE($N$6,$D65,$N$8,$E65),Data!$A:$BU,MATCH(E!AN$12,Data!$A$1:$BU$1,0),FALSE) -> 63779 | AP65: =VLOOKUP(CONCATENATE($N$6,$D65,$N$8,$E65),Data!$A:$BU,MATCH(E!AP$12,Data!$A$1:$BU$1,0),FALSE) -> 597361 | AR65: =VLOOKUP(CONCATENATE($N$6,$D65,$N$8,$E65),Data!$A:$BU,MATCH(E!AR$12,Data!$A$1:$BU$1,0),FALSE) -> 78902 | AT65: =VLOOKUP(CONCATENATE($N$6,$D65,$N$8,$E65),Data!$A:$BU,MATCH(E!AT$12,Data!$A$1:$BU$1,0),FALSE) -> 115450 | AV65: =VLOOKUP(CONCATENATE($N$6,$D65,$N$8,$E65),Data!$A:$BU,MATCH(E!AV$12,Data!$A$1:$BU$1,0),FALSE) -> 555538 | AX65: =VLOOKUP(CONCATENATE($N$6,$D65,$N$8,$E65),Data!$A:$BU,MATCH(E!AX$12,Data!$A$1:$BU$1,0),FALSE) -> 1538536 | AZ65: =VLOOKUP(CONCATENATE($N$6,$D65,$N$8,$E65),Data!$A:$BU,MATCH(E!AZ$12,Data!$A$1:$BU$1,0),FALSE) -> 358906 | BB65: =VLOOKUP(CONCATENATE($N$6,$D65,$N$8,$E65),Data!$A:$BU,MATCH(E!BB$12,Data!$A$1:$BU$1,0),FALSE) -> 767728 | BD65: =VLOOKUP(CONCATENATE($N$6,$D65,$N$8,$E65),Data!$A:$BU,MATCH(E!BD$12,Data!$A$1:$BU$1,0),FALSE) -> 214751 | BF65: =VLOOKUP(CONCATENATE($N$6,$D65,$N$8,$E65),Data!$A:$BU,MATCH(E!BF$12,Data!$A$1:$BU$1,0),FALSE) -> 89120 | BH65: =VLOOKUP(CONCATENATE($N$6,$D65,$N$8,$E65),Data!$A:$BU,MATCH(E!BH$12,Data!$A$1:$BU$1,0),FALSE) -> 49252 | BJ65: =VLOOKUP(CONCATENATE($N$6,$D65,$N$8,$E65),Data!$A:$BU,MATCH(E!BJ$12,Data!$A$1:$BU$1,0),FALSE) -> 820367
D66: Belize | E66: a | F66: =VLOOKUP(CONCATENATE($N$6,$D66,$N$8,$E66),Data!$A:$BU,MATCH(E!F$12,Data!$A$1:$BU$1,0),FALSE) -> 1 | H66: =VLOOKUP(CONCATENATE($N$6,$D66,$N$8,$E66),Data!$A:$BU,MATCH(E!H$12,Data!$A$1:$BU$1,0),FALSE) -> 1 | J66: =VLOOKUP(CONCATENATE($N$6,$D66,$N$8,$E66),Data!$A:$BU,MATCH(E!J$12,Data!$A$1:$BU$1,0),FALSE) -> 0 | L66: =VLOOKUP(CONCATENATE($N$6,$D66,$N$8,$E66),Data!$A:$BU,MATCH(E!L$12,Data!$A$1:$BU$1,0),FALSE) -> 0 | N66: =VLOOKUP(CONCATENATE($N$6,$D66,$N$8,$E66),Data!$A:$BU,MATCH(E!N$12,Data!$A$1:$BU$1,0),FALSE) -> 0 | P66: =VLOOKUP(CONCATENATE($N$6,$D66,$N$8,$E66),Data!$A:$BU,MATCH(E!P$12,Data!$A$1:$BU$1,0),FALSE) -> 1 | R66: =VLOOKUP(CONCATENATE($N$6,$D66,$N$8,$E66),Data!$A:$BU,MATCH(E!R$12,Data!$A$1:$BU$1,0),FALSE) -> 0 | T66: =VLOOKUP(CONCATENATE($N$6,$D66,$N$8,$E66),Data!$A:$BU,MATCH(E!T$12,Data!$A$1:$BU$1,0),FALSE) -> 0 | V66: =VLOOKUP(CONCATENATE($N$6,$D66,$N$8,$E66),Data!$A:$BU,MATCH(E!V$12,Data!$A$1:$BU$1,0),FALSE) -> 0 | X66: =VLOOKUP(CONCATENATE($N$6,$D66,$N$8,$E66),Data!$A:$BU,MATCH(E!X$12,Data!$A$1:$BU$1,0),FALSE) -> 0 | Z66: =VLOOKUP(CONCATENATE($N$6,$D66,$N$8,$E66),Data!$A:$BU,MATCH(E!Z$12,Data!$A$1:$BU$1,0),FALSE) -> 0 | AB66: =VLOOKUP(CONCATENATE($N$6,$D66,$N$8,$E66),Data!$A:$BU,MATCH(E!AB$12,Data!$A$1:$BU$1,0),FALSE) -> 1 | AD66: =VLOOKUP(CONCATENATE($N$6,$D66,$N$8,$E66),Data!$A:$BU,MATCH(E!AD$12,Data!$A$1:$BU$1,0),FALSE) -> 0 | AF66: =VLOOKUP(CONCATENATE($N$6,$D66,$N$8,$E66),Data!$A:$BU,MATCH(E!AF$12,Data!$A$1:$BU$1,0),FALSE) -> 0 | AH66: =VLOOKUP(CONCATENATE($N$6,$D66,$N$8,$E66),Data!$A:$BU,MATCH(E!AH$12,Data!$A$1:$BU$1,0),FALSE) -> 0 | AJ66: =VLOOKUP(CONCATENATE($N$6,$D66,$N$8,$E66),Data!$A:$BU,MATCH(E!AJ$12,Data!$A$1:$BU$1,0),FALSE) -> 1 | AL66: =VLOOKUP(CONCATENATE($N$6,$D66,$N$8,$E66),Data!$A:$BU,MATCH(E!AL$12,Data!$A$1:$BU$1,0),FALSE) -> 0 | AN66: =VLOOKUP(CONCATENATE($N$6,$D66,$N$8,$E66),Data!$A:$BU,MATCH(E!AN$12,Data!$A$1:$BU$1,0),FALSE) -> 0 | AP66: =VLOOKUP(CONCATENATE($N$6,$D66,$N$8,$E66),Data!$A:$BU,MATCH(E!AP$12,Data!$A$1:$BU$1,0),FALSE) -> 0 | AR66: =VLOOKUP(CONCATENATE($N$6,$D66,$N$8,$E66),Data!$A:$BU,MATCH(E!AR$12,Data!$A$1:$BU$1,0),FALSE) -> 0 | AT66: =VLOOKUP(CONCATENATE($N$6,$D66,$N$8,$E66),Data!$A:$BU,MATCH(E!AT$12,Data!$A$1:$BU$1,0),FALSE) -> 0 | AV66: =VLOOKUP(CONCATENATE($N$6,$D66,$N$8,$E66),Data!$A:$BU,MATCH(E!AV$12,Data!$A$1:$BU$1,0),FALSE) -> 0 | AX66: =VLOOKUP(CONCATENATE($N$6,$D66,$N$8,$E66),Data!$A:$BU,MATCH(E!AX$12,Data!$A$1:$BU$1,0),FALSE) -> 0 | AZ66: =VLOOKUP(CONCATENATE($N$6,$D66,$N$8,$E66),Data!$A:$BU,MATCH(E!AZ$12,Data!$A$1:$BU$1,0),FALSE) -> 1 | BB66: =VLOOKUP(CONCATENATE($N$6,$D66,$N$8,$E66),Data!$A:$BU,MATCH(E!BB$12,Data!$A$1:$BU$1,0),FALSE) -> 0 | BD66: =VLOOKUP(CONCATENATE($N$6,$D66,$N$8,$E66),Data!$A:$BU,MATCH(E!BD$12,Data!$A$1:$BU$1,0),FALSE) -> 0 | BF66: =VLOOKUP(CONCATENATE($N$6,$D66,$N$8,$E66),Data!$A:$BU,MATCH(E!BF$12,Data!$A$1:$BU$1,0),FALSE) -> 0 | BH66: =VLOOKUP(CONCATENATE($N$6,$D66,$N$8,$E66),Data!$A:$BU,MATCH(E!BH$12,Data!$A$1:$BU$1,0),FALSE) -> 0 | BJ66: =VLOOKUP(CONCATENATE($N$6,$D66,$N$8,$E66),Data!$A:$BU,MATCH(E!BJ$12,Data!$A$1:$BU$1,0),FALSE) -> 0
D67: Belize | E67: b | F67: =VLOOKUP(CONCATENATE($N$6,$D67,$N$8,$E67),Data!$A:$BU,MATCH(E!F$12,Data!$A$1:$BU$1,0),FALSE) -> 8500 | H67: =VLOOKUP(CONCATENATE($N$6,$D67,$N$8,$E67),Data!$A:$BU,MATCH(E!H$12,Data!$A$1:$BU$1,0),FALSE) -> 6609 | J67: =VLOOKUP(CONCATENATE($N$6,$D67,$N$8,$E67),Data!$A:$BU,MATCH(E!J$12,Data!$A$1:$BU$1,0),FALSE) -> 0 | L67: =VLOOKUP(CONCATENATE($N$6,$D67,$N$8,$E67),Data!$A:$BU,MATCH(E!L$12,Data!$A$1:$BU$1,0),FALSE) -> 0 | N67: =VLOOKUP(CONCATENATE($N$6,$D67,$N$8,$E67),Data!$A:$BU,MATCH(E!N$12,Data!$A$1:$BU$1,0),FALSE) -> 0 | P67: =VLOOKUP(CONCATENATE($N$6,$D67,$N$8,$E67),Data!$A:$BU,MATCH(E!P$12,Data!$A$1:$BU$1,0),FALSE) -> 15410 | R67: =VLOOKUP(CONCATENATE($N$6,$D67,$N$8,$E67),Data!$A:$BU,MATCH(E!R$12,Data!$A$1:$BU$1,0),FALSE) -> 0 | T67: =VLOOKUP(CONCATENATE($N$6,$D67,$N$8,$E67),Data!$A:$BU,MATCH(E!T$12,Data!$A$1:$BU$1,0),FALSE) -> 0 | V67: =VLOOKUP(CONCATENATE($N$6,$D67,$N$8,$E67),Data!$A:$BU,MATCH(E!V$12,Data!$A$1:$BU$1,0),FALSE) -> 0 | X67: =VLOOKUP(CONCATENATE($N$6,$D67,$N$8,$E67),Data!$A:$BU,MATCH(E!X$12,Data!$A$1:$BU$1,0),FALSE) -> 0 | Z67: =VLOOKUP(CONCATENATE($N$6,$D67,$N$8,$E67),Data!$A:$BU,MATCH(E!Z$12,Data!$A$1:$BU$1,0),FALSE) -> 0 | AB67: =VLOOKUP(CONCATENATE($N$6,$D67,$N$8,$E67),Data!$A:$BU,MATCH(E!AB$12,Data!$A$1:$BU$1,0),FALSE) -> 8170 | AD67: =VLOOKUP(CONCATENATE($N$6,$D67,$N$8,$E67),Data!$A:$BU,MATCH(E!AD$12,Data!$A$1:$BU$1,0),FALSE) -> 0 | AF67: =VLOOKUP(CONCATENATE($N$6,$D67,$N$8,$E67),Data!$A:$BU,MATCH(E!AF$12,Data!$A$1:$BU$1,0),FALSE) -> 0 | AH67: =VLOOKUP(CONCATENATE($N$6,$D67,$N$8,$E67),Data!$A:$BU,MATCH(E!AH$12,Data!$A$1:$BU$1,0),FALSE) -> 0 | AJ67: =VLOOKUP(CONCATENATE($N$6,$D67,$N$8,$E67),Data!$A:$BU,MATCH(E!AJ$12,Data!$A$1:$BU$1,0),FALSE) -> 3600 | AL67: =VLOOKUP(CONCATENATE($N$6,$D67,$N$8,$E67),Data!$A:$BU,MATCH(E!AL$12,Data!$A$1:$BU$1,0),FALSE) -> 0 | AN67: =VLOOKUP(CONCATENATE($N$6,$D67,$N$8,$E67),Data!$A:$BU,MATCH(E!AN$12,Data!$A$1:$BU$1,0),FALSE) -> 0 | AP67: =VLOOKUP(CONCATENATE($N$6,$D67,$N$8,$E67),Data!$A:$BU,MATCH(E!AP$12,Data!$A$1:$BU$1,0),FALSE) -> 0 | AR67: =VLOOKUP(CONCATENATE($N$6,$D67,$N$8,$E67),Data!$A:$BU,MATCH(E!AR$12,Data!$A$1:$BU$1,0),FALSE) -> 0 | AT67: =VLOOKUP(CONCATENATE($N$6,$D67,$N$8,$E67),Data!$A:$BU,MATCH(E!AT$12,Data!$A$1:$BU$1,0),FALSE) -> 0 | AV67: =VLOOKUP(CONCATENATE($N$6,$D67,$N$8,$E67),Data!$A:$BU,MATCH(E!AV$12,Data!$A$1:$BU$1,0),FALSE) -> 0 | AX67: =VLOOKUP(CONCATENATE($N$6,$D67,$N$8,$E67),Data!$A:$BU,MATCH(E!AX$12,Data!$A$1:$BU$1,0),FALSE) -> 0 | AZ67: =VLOOKUP(CONCATENATE($N$6,$D67,$N$8,$E67),Data!$A:$BU,MATCH(E!AZ$12,Data!$A$1:$BU$1,0),FALSE) -> 25149 | BB67: =VLOOKUP(CONCATENATE($N$6,$D67,$N$8,$E67),Data!$A:$BU,MATCH(E!BB$12,Data!$A$1:$BU$1,0),FALSE) -> 0 | BD67: =VLOOKUP(CONCATENATE($N$6,$D67,$N$8,$E67),Data!$A:$BU,MATCH(E!BD$12,Data!$A$1:$BU$1,0),FALSE) -> 0 | BF67: =VLOOKUP(CONCATENATE($N$6,$D67,$N$8,$E67),Data!$A:$BU,MATCH(E!BF$12,Data!$A$1:$BU$1,0),FALSE) -> 0 | BH67: =VLOOKUP(CONCATENATE($N$6,$D67,$N$8,$E67),Data!$A:$BU,MATCH(E!BH$12,Data!$A$1:$BU$1,0),FALSE) -> 0 | BJ67: =VLOOKUP(CONCATENATE($N$6,$D67,$N$8,$E67),Data!$A:$BU,MATCH(E!BJ$12,Data!$A$1:$BU$1,0),FALSE) -> 0
D68: Benin | E68: a | F68: =VLOOKUP(CONCATENATE($N$6,$D68,$N$8,$E68),Data!$A:$BU,MATCH(E!F$12,Data!$A$1:$BU$1,0),FALSE) -> 0 | H68: =VLOOKUP(CONCATENATE($N$6,$D68,$N$8,$E68),Data!$A:$BU,MATCH(E!H$12,Data!$A$1:$BU$1,0),FALSE) -> 0 | J68: =VLOOKUP(CONCATENATE($N$6,$D68,$N$8,$E68),Data!$A:$BU,MATCH(E!J$12,Data!$A$1:$BU$1,0),FALSE) -> 0 | L68: =VLOOKUP(CONCATENATE($N$6,$D68,$N$8,$E68),Data!$A:$BU,MATCH(E!L$12,Data!$A$1:$BU$1,0),FALSE) -> 0 | N68: =VLOOKUP(CONCATENATE($N$6,$D68,$N$8,$E68),Data!$A:$BU,MATCH(E!N$12,Data!$A$1:$BU$1,0),FALSE) -> 0 | P68: =VLOOKUP(CONCATENATE($N$6,$D68,$N$8,$E68),Data!$A:$BU,MATCH(E!P$12,Data!$A$1:$BU$1,0),FALSE) -> 0 | R68: =VLOOKUP(CONCATENATE($N$6,$D68,$N$8,$E68),Data!$A:$BU,MATCH(E!R$12,Data!$A$1:$BU$1,0),FALSE) -> 0 | T68: =VLOOKUP(CONCATENATE($N$6,$D68,$N$8,$E68),Data!$A:$BU,MATCH(E!T$12,Data!$A$1:$BU$1,0),FALSE) -> 0 | V68: =VLOOKUP(CONCATENATE($N$6,$D68,$N$8,$E68),Data!$A:$BU,MATCH(E!V$12,Data!$A$1:$BU$1,0),FALSE) -> 0 | X68: =VLOOKUP(CONCATENATE($N$6,$D68,$N$8,$E68),Data!$A:$BU,MATCH(E!X$12,Data!$A$1:$BU$1,0),FALSE) -> 0 | Z68: =VLOOKUP(CONCATENATE($N$6,$D68,$N$8,$E68),Data!$A:$BU,MATCH(E!Z$12,Data!$A$1:$BU$1,0),FALSE) -> 0 | AB68: =VLOOKUP(CONCATENATE($N$6,$D68,$N$8,$E68),Data!$A:$BU,MATCH(E!AB$12,Data!$A$1:$BU$1,0),FALSE) -> 0 | AD68: =VLOOKUP(CONCATENATE($N$6,$D68,$N$8,$E68),Data!$A:$BU,MATCH(E!AD$12,Data!$A$1:$BU$1,0),FALSE) -> 0 | AF68: =VLOOKUP(CONCATENATE($N$6,$D68,$N$8,$E68),Data!$A:$BU,MATCH(E!AF$12,Data!$A$1:$BU$1,0),FALSE) -> 0 | AH68: =VLOOKUP(CONCATENATE($N$6,$D68,$N$8,$E68),Data!$A:$BU,MATCH(E!AH$12,Data!$A$1:$BU$1,0),FALSE) -> 0 | AJ68: =VLOOKUP(CONCATENATE($N$6,$D68,$N$8,$E68),Data!$A:$BU,MATCH(E!AJ$12,Data!$A$1:$BU$1,0),FALSE) -> 0 | AL68: =VLOOKUP(CONCATENATE($N$6,$D68,$N$8,$E68),Data!$A:$BU,MATCH(E!AL$12,Data!$A$1:$BU$1,0),FALSE) -> 0 | AN68: =VLOOKUP(CONCATENATE($N$6,$D68,$N$8,$E68),Data!$A:$BU,MATCH(E!AN$12,Data!$A$1:$BU$1,0),FALSE) -> 2 | AP68: =VLOOKUP(CONCATENATE($N$6,$D68,$N$8,$E68),Data!$A:$BU,MATCH(E!AP$12,Data!$A$1:$BU$1,0),FALSE) -> 0 | AR68: =VLOOKUP(CONCATENATE($N$6,$D68,$N$8,$E68),Data!$A:$BU,MATCH(E!AR$12,Data!$A$1:$BU$1,0),FALSE) -> 0 | AT68: =VLOOKUP(CONCATENATE($N$6,$D68,$N$8,$E68),Data!$A:$BU,MATCH(E!AT$12,Data!$A$1:$BU$1,0),FALSE) -> 0 | AV68: =VLOOKUP(CONCATENATE($N$6,$D68,$N$8,$E68),Data!$A:$BU,MATCH(E!AV$12,Data!$A$1:$BU$1,0),FALSE) -> 0 | AX68: =VLOOKUP(CONCATENATE($N$6,$D68,$N$8,$E68),Data!$A:$BU,MATCH(E!AX$12,Data!$A$1:$BU$1,0),FALSE) -> 0 | AZ68: =VLOOKUP(CONCATENATE($N$6,$D68,$N$8,$E68),Data!$A:$BU,MATCH(E!AZ$12,Data!$A$1:$BU$1,0),FALSE) -> 0 | BB68: =VLOOKUP(CONCATENATE($N$6,$D68,$N$8,$E68),Data!$A:$BU,MATCH(E!BB$12,Data!$A$1:$BU$1,0),FALSE) -> 0 | BD68: =VLOOKUP(CONCATENATE($N$6,$D68,$N$8,$E68),Data!$A:$BU,MATCH(E!BD$12,Data!$A$1:$BU$1,0),FALSE) -> 2 | BF68: =VLOOKUP(CONCATENATE($N$6,$D68,$N$8,$E68),Data!$A:$BU,MATCH(E!BF$12,Data!$A$1:$BU$1,0),FALSE) -> 0 | BH68: =VLOOKUP(CONCATENATE($N$6,$D68,$N$8,$E68),Data!$A:$BU,MATCH(E!BH$12,Data!$A$1:$BU$1,0),FALSE) -> 0 | BJ68: =VLOOKUP(CONCATENATE($N$6,$D68,$N$8,$E68),Data!$A:$BU,MATCH(E!BJ$12,Data!$A$1:$BU$1,0),FALSE) -> 1
D69: Benin | E69: b | F69: =VLOOKUP(CONCATENATE($N$6,$D69,$N$8,$E69),Data!$A:$BU,MATCH(E!F$12,Data!$A$1:$BU$1,0),FALSE) -> 0 | H69: =VLOOKUP(CONCATENATE($N$6,$D69,$N$8,$E69),Data!$A:$BU,MATCH(E!H$12,Data!$A$1:$BU$1,0),FALSE) -> 0 | J69: =VLOOKUP(CONCATENATE($N$6,$D69,$N$8,$E69),Data!$A:$BU,MATCH(E!J$12,Data!$A$1:$BU$1,0),FALSE) -> 0 | L69: =VLOOKUP(CONCATENATE($N$6,$D69,$N$8,$E69),Data!$A:$BU,MATCH(E!L$12,Data!$A$1:$BU$1,0),FALSE) -> 0 | N69: =VLOOKUP(CONCATENATE($N$6,$D69,$N$8,$E69),Data!$A:$BU,MATCH(E!N$12,Data!$A$1:$BU$1,0),FALSE) -> 0 | P69: =VLOOKUP(CONCATENATE($N$6,$D69,$N$8,$E69),Data!$A:$BU,MATCH(E!P$12,Data!$A$1:$BU$1,0),FALSE) -> 0 | R69: =VLOOKUP(CONCATENATE($N$6,$D69,$N$8,$E69),Data!$A:$BU,MATCH(E!R$12,Data!$A$1:$BU$1,0),FALSE) -> 0 | T69: =VLOOKUP(CONCATENATE($N$6,$D69,$N$8,$E69),Data!$A:$BU,MATCH(E!T$12,Data!$A$1:$BU$1,0),FALSE) -> 0 | V69: =VLOOKUP(CONCATENATE($N$6,$D69,$N$8,$E69),Data!$A:$BU,MATCH(E!V$12,Data!$A$1:$BU$1,0),FALSE) -> 0 | X69: =VLOOKUP(CONCATENATE($N$6,$D69,$N$8,$E69),Data!$A:$BU,MATCH(E!X$12,Data!$A$1:$BU$1,0),FALSE) -> 0 | Z69: =VLOOKUP(CONCATENATE($N$6,$D69,$N$8,$E69),Data!$A:$BU,MATCH(E!Z$12,Data!$A$1:$BU$1,0),FALSE) -> 0 | AB69: =VLOOKUP(CONCATENATE($N$6,$D69,$N$8,$E69),Data!$A:$BU,MATCH(E!AB$12,Data!$A$1:$BU$1,0),FALSE) -> 0 | AD69: =VLOOKUP(CONCATENATE($N$6,$D69,$N$8,$E69),Data!$A:$BU,MATCH(E!AD$12,Data!$A$1:$BU$1,0),FALSE) -> 0 | AF69: =VLOOKUP(CONCATENATE($N$6,$D69,$N$8,$E69),Data!$A:$BU,MATCH(E!AF$12,Data!$A$1:$BU$1,0),FALSE) -> 0 | AH69: =VLOOKUP(CONCATENATE($N$6,$D69,$N$8,$E69),Data!$A:$BU,MATCH(E!AH$12,Data!$A$1:$BU$1,0),FALSE) -> 0 | AJ69: =VLOOKUP(CONCATENATE($N$6,$D69,$N$8,$E69),Data!$A:$BU,MATCH(E!AJ$12,Data!$A$1:$BU$1,0),FALSE) -> 0 | AL69: =VLOOKUP(CONCATENATE($N$6,$D69,$N$8,$E69),Data!$A:$BU,MATCH(E!AL$12,Data!$A$1:$BU$1,0),FALSE) -> 0 | AN69: =VLOOKUP(CONCATENATE($N$6,$D69,$N$8,$E69),Data!$A:$BU,MATCH(E!AN$12,Data!$A$1:$BU$1,0),FALSE) -> 1974450 | AP69: =VLOOKUP(CONCATENATE($N$6,$D69,$N$8,$E69),Data!$A:$BU,MATCH(E!AP$12,Data!$A$1:$BU$1,0),FALSE) -> 0 | AR69: =VLOOKUP(CONCATENATE($N$6,$D69,$N$8,$E69),Data!$A:$BU,MATCH(E!AR$12,Data!$A$1:$BU$1,0),FALSE) -> 0 | AT69: =VLOOKUP(CONCATENATE($N$6,$D69,$N$8,$E69),Data!$A:$BU,MATCH(E!AT$12,Data!$A$1:$BU$1,0),FALSE) -> 0 | AV69: =VLOOKUP(CONCATENATE($N$6,$D69,$N$8,$E69),Data!$A:$BU,MATCH(E!AV$12,Data!$A$1:$BU$1,0),FALSE) -> 0 | AX69: =VLOOKUP(CONCATENATE($N$6,$D69,$N$8,$E69),Data!$A:$BU,MATCH(E!AX$12,Data!$A$1:$BU$1,0),FALSE) -> 0 | AZ69: =VLOOKUP(CONCATENATE($N$6,$D69,$N$8,$E69),Data!$A:$BU,MATCH(E!AZ$12,Data!$A$1:$BU$1,0),FALSE) -> 0 | BB69: =VLOOKUP(CONCATENATE($N$6,$D69,$N$8,$E69),Data!$A:$BU,MATCH(E!BB$12,Data!$A$1:$BU$1,0),FALSE) -> 0 | BD69: =VLOOKUP(CONCATENATE($N$6,$D69,$N$8,$E69),Data!$A:$BU,MATCH(E!BD$12,Data!$A$1:$BU$1,0),FALSE) -> 1974450 | BF69: =VLOOKUP(CONCATENATE($N$6,$D69,$N$8,$E69),Data!$A:$BU,MATCH(E!BF$12,Data!$A$1:$BU$1,0),FALSE) -> 0 | BH69: =VLOOKUP(CONCATENATE($N$6,$D69,$N$8,$E69),Data!$A:$BU,MATCH(E!BH$12,Data!$A$1:$BU$1,0),FALSE) -> 0 | BJ69: =VLOOKUP(CONCATENATE($N$6,$D69,$N$8,$E69),Data!$A:$BU,MATCH(E!BJ$12,Data!$A$1:$BU$1,0),FALSE) -> 10200
D70: Bermuda | E70: a | F70: =VLOOKUP(CONCATENATE($N$6,$D70,$N$8,$E70),Data!$A:$BU,MATCH(E!F$12,Data!$A$1:$BU$1,0),FALSE) -> 2 | H70: =VLOOKUP(CONCATENATE($N$6,$D70,$N$8,$E70),Data!$A:$BU,MATCH(E!H$12,Data!$A$1:$BU$1,0),FALSE) -> 1 | J70: =VLOOKUP(CONCATENATE($N$6,$D70,$N$8,$E70),Data!$A:$BU,MATCH(E!J$12,Data!$A$1:$BU$1,0),FALSE) -> 1 | L70: =VLOOKUP(CONCATENATE($N$6,$D70,$N$8,$E70),Data!$A:$BU,MATCH(E!L$12,Data!$A$1:$BU$1,0),FALSE) -> 1 | N70: =VLOOKUP(CONCATENATE($N$6,$D70,$N$8,$E70),Data!$A:$BU,MATCH(E!N$12,Data!$A$1:$BU$1,0),FALSE) -> 1 | P70: =VLOOKUP(CONCATENATE($N$6,$D70,$N$8,$E70),Data!$A:$BU,MATCH(E!P$12,Data!$A$1:$BU$1,0),FALSE) -> 0 | R70: =VLOOKUP(CONCATENATE($N$6,$D70,$N$8,$E70),Data!$A:$BU,MATCH(E!R$12,Data!$A$1:$BU$1,0),FALSE) -> 1 | T70: =VLOOKUP(CONCATENATE($N$6,$D70,$N$8,$E70),Data!$A:$BU,MATCH(E!T$12,Data!$A$1:$BU$1,0),FALSE) -> 0 | V70: =VLOOKUP(CONCATENATE($N$6,$D70,$N$8,$E70),Data!$A:$BU,MATCH(E!V$12,Data!$A$1:$BU$1,0),FALSE) -> 3 | X70: =VLOOKUP(CONCATENATE($N$6,$D70,$N$8,$E70),Data!$A:$BU,MATCH(E!X$12,Data!$A$1:$BU$1,0),FALSE) -> 1 | Z70: =VLOOKUP(CONCATENATE($N$6,$D70,$N$8,$E70),Data!$A:$BU,MATCH(E!Z$12,Data!$A$1:$BU$1,0),FALSE) -> 1 | AB70: =VLOOKUP(CONCATENATE($N$6,$D70,$N$8,$E70),Data!$A:$BU,MATCH(E!AB$12,Data!$A$1:$BU$1,0),FALSE) -> 2 | AD70: =VLOOKUP(CONCATENATE($N$6,$D70,$N$8,$E70),Data!$A:$BU,MATCH(E!AD$12,Data!$A$1:$BU$1,0),FALSE) -> 0 | AF70: =VLOOKUP(CONCATENATE($N$6,$D70,$N$8,$E70),Data!$A:$BU,MATCH(E!AF$12,Data!$A$1:$BU$1,0),FALSE) -> 1 | AH70: =VLOOKUP(CONCATENATE($N$6,$D70,$N$8,$E70),Data!$A:$BU,MATCH(E!AH$12,Data!$A$1:$BU$1,0),FALSE) -> 1 | AJ70: =VLOOKUP(CONCATENATE($N$6,$D70,$N$8,$E70),Data!$A:$BU,MATCH(E!AJ$12,Data!$A$1:$BU$1,0),FALSE) -> 0 | AL70: =VLOOKUP(CONCATENATE($N$6,$D70,$N$8,$E70),Data!$A:$BU,MATCH(E!AL$12,Data!$A$1:$BU$1,0),FALSE) -> 2 | AN70: =VLOOKUP(CONCATENATE($N$6,$D70,$N$8,$E70),Data!$A:$BU,MATCH(E!AN$12,Data!$A$1:$BU$1,0),FALSE) -> 0 | AP70: =VLOOKUP(CONCATENATE($N$6,$D70,$N$8,$E70),Data!$A:$BU,MATCH(E!AP$12,Data!$A$1:$BU$1,0),FALSE) -> 2 | AR70: =VLOOKUP(CONCATENATE($N$6,$D70,$N$8,$E70),Data!$A:$BU,MATCH(E!AR$12,Data!$A$1:$BU$1,0),FALSE) -> 3 | AT70: =VLOOKUP(CONCATENATE($N$6,$D70,$N$8,$E70),Data!$A:$BU,MATCH(E!AT$12,Data!$A$1:$BU$1,0),FALSE) -> 1 | AV70: =VLOOKUP(CONCATENATE($N$6,$D70,$N$8,$E70),Data!$A:$BU,MATCH(E!AV$12,Data!$A$1:$BU$1,0),FALSE) -> 1 | AX70: =VLOOKUP(CONCATENATE($N$6,$D70,$N$8,$E70),Data!$A:$BU,MATCH(E!AX$12,Data!$A$1:$BU$1,0),FALSE) -> 2 | AZ70: =VLOOKUP(CONCATENATE($N$6,$D70,$N$8,$E70),Data!$A:$BU,MATCH(E!AZ$12,Data!$A$1:$BU$1,0),FALSE) -> 0 | BB70: =VLOOKUP(CONCATENATE($N$6,$D70,$N$8,$E70),Data!$A:$BU,MATCH(E!BB$12,Data!$A$1:$BU$1,0),FALSE) -> 0 | BD70: =VLOOKUP(CONCATENATE($N$6,$D70,$N$8,$E70),Data!$A:$BU,MATCH(E!BD$12,Data!$A$1:$BU$1,0),FALSE) -> 3 | BF70: =VLOOKUP(CONCATENATE($N$6,$D70,$N$8,$E70),Data!$A:$BU,MATCH(E!BF$12,Data!$A$1:$BU$1,0),FALSE) -> 1 | BH70: =VLOOKUP(CONCATENATE($N$6,$D70,$N$8,$E70),Data!$A:$BU,MATCH(E!BH$12,Data!$A$1:$BU$1,0),FALSE) -> 1 | BJ70: =VLOOKUP(CONCATENATE($N$6,$D70,$N$8,$E70),Data!$A:$BU,MATCH(E!BJ$12,Data!$A$1:$BU$1,0),FALSE) -> 1
D71: Bermuda | E71: b | F71: =VLOOKUP(CONCATENATE($N$6,$D71,$N$8,$E71),Data!$A:$BU,MATCH(E!F$12,Data!$A$1:$BU$1,0),FALSE) -> 6743 | H71: =VLOOKUP(CONCATENATE($N$6,$D71,$N$8,$E71),Data!$A:$BU,MATCH(E!H$12,Data!$A$1:$BU$1,0),FALSE) -> 170 | J71: =VLOOKUP(CONCATENATE($N$6,$D71,$N$8,$E71),Data!$A:$BU,MATCH(E!J$12,Data!$A$1:$BU$1,0),FALSE) -> 116300 | L71: =VLOOKUP(CONCATENATE($N$6,$D71,$N$8,$E71),Data!$A:$BU,MATCH(E!L$12,Data!$A$1:$BU$1,0),FALSE) -> 26361 | N71: =VLOOKUP(CONCATENATE($N$6,$D71,$N$8,$E71),Data!$A:$BU,MATCH(E!N$12,Data!$A$1:$BU$1,0),FALSE) -> 31716 | P71: =VLOOKUP(CONCATENATE($N$6,$D71,$N$8,$E71),Data!$A:$BU,MATCH(E!P$12,Data!$A$1:$BU$1,0),FALSE) -> 0 | R71: =VLOOKUP(CONCATENATE($N$6,$D71,$N$8,$E71),Data!$A:$BU,MATCH(E!R$12,Data!$A$1:$BU$1,0),FALSE) -> 0 | T71: =VLOOKUP(CONCATENATE($N$6,$D71,$N$8,$E71),Data!$A:$BU,MATCH(E!T$12,Data!$A$1:$BU$1,0),FALSE) -> 0 | V71: =VLOOKUP(CONCATENATE($N$6,$D71,$N$8,$E71),Data!$A:$BU,MATCH(E!V$12,Data!$A$1:$BU$1,0),FALSE) -> 40374 | X71: =VLOOKUP(CONCATENATE($N$6,$D71,$N$8,$E71),Data!$A:$BU,MATCH(E!X$12,Data!$A$1:$BU$1,0),FALSE) -> 23519 | Z71: =VLOOKUP(CONCATENATE($N$6,$D71,$N$8,$E71),Data!$A:$BU,MATCH(E!Z$12,Data!$A$1:$BU$1,0),FALSE) -> 4200 | AB71: =VLOOKUP(CONCATENATE($N$6,$D71,$N$8,$E71),Data!$A:$BU,MATCH(E!AB$12,Data!$A$1:$BU$1,0),FALSE) -> 9201 | AD71: =VLOOKUP(CONCATENATE($N$6,$D71,$N$8,$E71),Data!$A:$BU,MATCH(E!AD$12,Data!$A$1:$BU$1,0),FALSE) -> 0 | AF71: =VLOOKUP(CONCATENATE($N$6,$D71,$N$8,$E71),Data!$A:$BU,MATCH(E!AF$12,Data!$A$1:$BU$1,0),FALSE) -> 8610 | AH71: =VLOOKUP(CONCATENATE($N$6,$D71,$N$8,$E71),Data!$A:$BU,MATCH(E!AH$12,Data!$A$1:$BU$1,0),FALSE) -> 6375 | AJ71: =VLOOKUP(CONCATENATE($N$6,$D71,$N$8,$E71),Data!$A:$BU,MATCH(E!AJ$12,Data!$A$1:$BU$1,0),FALSE) -> 0 | AL71: =VLOOKUP(CONCATENATE($N$6,$D71,$N$8,$E71),Data!$A:$BU,MATCH(E!AL$12,Data!$A$1:$BU$1,0),FALSE) -> 4808 | AN71: =VLOOKUP(CONCATENATE($N$6,$D71,$N$8,$E71),Data!$A:$BU,MATCH(E!AN$12,Data!$A$1:$BU$1,0),FALSE) -> 0 | AP71: =VLOOKUP(CONCATENATE($N$6,$D71,$N$8,$E71),Data!$A:$BU,MATCH(E!AP$12,Data!$A$1:$BU$1,0),FALSE) -> 19298 | AR71: =VLOOKUP(CONCATENATE($N$6,$D71,$N$8,$E71),Data!$A:$BU,MATCH(E!AR$12,Data!$A$1:$BU$1,0),FALSE) -> 104338 | AT71: =VLOOKUP(CONCATENATE($N$6,$D71,$N$8,$E71),Data!$A:$BU,MATCH(E!AT$12,Data!$A$1:$BU$1,0),FALSE) -> 10000 | AV71: =VLOOKUP(CONCATENATE($N$6,$D71,$N$8,$E71),Data!$A:$BU,MATCH(E!AV$12,Data!$A$1:$BU$1,0),FALSE) -> 10846 | AX71: =VLOOKUP(CONCATENATE($N$6,$D71,$N$8,$E71),Data!$A:$BU,MATCH(E!AX$12,Data!$A$1:$BU$1,0),FALSE) -> 2349 | AZ71: =VLOOKUP(CONCATENATE($N$6,$D71,$N$8,$E71),Data!$A:$BU,MATCH(E!AZ$12,Data!$A$1:$BU$1,0),FALSE) -> 0 | BB71: =VLOOKUP(CONCATENATE($N$6,$D71,$N$8,$E71),Data!$A:$BU,MATCH(E!BB$12,Data!$A$1:$BU$1,0),FALSE) -> 0 | BD71: =VLOOKUP(CONCATENATE($N$6,$D71,$N$8,$E71),Data!$A:$BU,MATCH(E!BD$12,Data!$A$1:$BU$1,0),FALSE) -> 24449 | BF71: =VLOOKUP(CONCATENATE($N$6,$D71,$N$8,$E71),Data!$A:$BU,MATCH(E!BF$12,Data!$A$1:$BU$1,0),FALSE) -> 816 | BH71: =VLOOKUP(CONCATENATE($N$6,$D71,$N$8,$E71),Data!$A:$BU,MATCH(E!BH$12,Data!$A$1:$BU$1,0),FALSE) -> 11668 | BJ71: =VLOOKUP(CONCATENATE($N$6,$D71,$N$8,$E71),Data!$A:$BU,MATCH(E!BJ$12,Data!$A$1:$BU$1,0),FALSE) -> 12984
D72: Bhutan | E72: a | F72: =VLOOKUP(CONCATENATE($N$6,$D72,$N$8,$E72),Data!$A:$BU,MATCH(E!F$12,Data!$A$1:$BU$1,0),FALSE) -> 0 | H72: =VLOOKUP(CONCATENATE($N$6,$D72,$N$8,$E72),Data!$A:$BU,MATCH(E!H$12,Data!$A$1:$BU$1,0),FALSE) -> 0 | J72: =VLOOKUP(CONCATENATE($N$6,$D72,$N$8,$E72),Data!$A:$BU,MATCH(E!J$12,Data!$A$1:$BU$1,0),FALSE) -> 0 | L72: =VLOOKUP(CONCATENATE($N$6,$D72,$N$8,$E72),Data!$A:$BU,MATCH(E!L$12,Data!$A$1:$BU$1,0),FALSE) -> 0 | N72: =VLOOKUP(CONCATENATE($N$6,$D72,$N$8,$E72),Data!$A:$BU,MATCH(E!N$12,Data!$A$1:$BU$1,0),FALSE) -> 0 | P72: =VLOOKUP(CONCATENATE($N$6,$D72,$N$8,$E72),Data!$A:$BU,MATCH(E!P$12,Data!$A$1:$BU$1,0),FALSE) -> 0 | R72: =VLOOKUP(CONCATENATE($N$6,$D72,$N$8,$E72),Data!$A:$BU,MATCH(E!R$12,Data!$A$1:$BU$1,0),FALSE) -> 0 | T72: =VLOOKUP(CONCATENATE($N$6,$D72,$N$8,$E72),Data!$A:$BU,MATCH(E!T$12,Data!$A$1:$BU$1,0),FALSE) -> 0 | V72: =VLOOKUP(CONCATENATE($N$6,$D72,$N$8,$E72),Data!$A:$BU,MATCH(E!V$12,Data!$A$1:$BU$1,0),FALSE) -> 0 | X72: =VLOOKUP(CONCATENATE($N$6,$D72,$N$8,$E72),Data!$A:$BU,MATCH(E!X$12,Data!$A$1:$BU$1,0),FALSE) -> 0 | Z72: =VLOOKUP(CONCATENATE($N$6,$D72,$N$8,$E72),Data!$A:$BU,MATCH(E!Z$12,Data!$A$1:$BU$1,0),FALSE) -> 0 | AB72: =VLOOKUP(CONCATENATE($N$6,$D72,$N$8,$E72),Data!$A:$BU,MATCH(E!AB$12,Data!$A$1:$BU$1,0),FALSE) -> 0 | AD72: =VLOOKUP(CONCATENATE($N$6,$D72,$N$8,$E72),Data!$A:$BU,MATCH(E!AD$12,Data!$A$1:$BU$1,0),FALSE) -> 0 | AF72: =VLOOKUP(CONCATENATE($N$6,$D72,$N$8,$E72),Data!$A:$BU,MATCH(E!AF$12,Data!$A$1:$BU$1,0),FALSE) -> 0 | AH72: =VLOOKUP(CONCATENATE($N$6,$D72,$N$8,$E72),Data!$A:$BU,MATCH(E!AH$12,Data!$A$1:$BU$1,0),FALSE) -> 0 | AJ72: =VLOOKUP(CONCATENATE($N$6,$D72,$N$8,$E72),Data!$A:$BU,MATCH(E!AJ$12,Data!$A$1:$BU$1,0),FALSE) -> 0 | AL72: =VLOOKUP(CONCATENATE($N$6,$D72,$N$8,$E72),Data!$A:$BU,MATCH(E!AL$12,Data!$A$1:$BU$1,0),FALSE) -> 1 | AN72: =VLOOKUP(CONCATENATE($N$6,$D72,$N$8,$E72),Data!$A:$BU,MATCH(E!AN$12,Data!$A$1:$BU$1,0),FALSE) -> 0 | AP72: =VLOOKUP(CONCATENATE($N$6,$D72,$N$8,$E72),Data!$A:$BU,MATCH(E!AP$12,Data!$A$1:$BU$1,0),FALSE) -> 0 | AR72: =VLOOKUP(CONCATENATE($N$6,$D72,$N$8,$E72),Data!$A:$BU,MATCH(E!AR$12,Data!$A$1:$BU$1,0),FALSE) -> 0 | AT72: =VLOOKUP(CONCATENATE($N$6,$D72,$N$8,$E72),Data!$A:$BU,MATCH(E!AT$12,Data!$A$1:$BU$1,0),FALSE) -> 0 | AV72: =VLOOKUP(CONCATENATE($N$6,$D72,$N$8,$E72),Data!$A:$BU,MATCH(E!AV$12,Data!$A$1:$BU$1,0),FALSE) -> 0 | AX72: =VLOOKUP(CONCATENATE($N$6,$D72,$N$8,$E72),Data!$A:$BU,MATCH(E!AX$12,Data!$A$1:$BU$1,0),FALSE) -> 0 | AZ72: =VLOOKUP(CONCATENATE($N$6,$D72,$N$8,$E72),Data!$A:$BU,MATCH(E!AZ$12,Data!$A$1:$BU$1,0),FALSE) -> 0 | BB72: =VLOOKUP(CONCATENATE($N$6,$D72,$N$8,$E72),Data!$A:$BU,MATCH(E!BB$12,Data!$A$1:$BU$1,0),FALSE) -> 0 | BD72: =VLOOKUP(CONCATENATE($N$6,$D72,$N$8,$E72),Data!$A:$BU,MATCH(E!BD$12,Data!$A$1:$BU$1,0),FALSE) -> 0 | BF72: =VLOOKUP(CONCATENATE($N$6,$D72,$N$8,$E72),Data!$A:$BU,MATCH(E!BF$12,Data!$A$1:$BU$1,0),FALSE) -> 0 | BH72: =VLOOKUP(CONCATENATE($N$6,$D72,$N$8,$E72),Data!$A:$BU,MATCH(E!BH$12,Data!$A$1:$BU$1,0),FALSE) -> 0 | BJ72: =VLOOKUP(CONCATENATE($N$6,$D72,$N$8,$E72),Data!$A:$BU,MATCH(E!BJ$12,Data!$A$1:$BU$1,0),FALSE) -> 0
D73: Bhutan | E73: b | F73: =VLOOKUP(CONCATENATE($N$6,$D73,$N$8,$E73),Data!$A:$BU,MATCH(E!F$12,Data!$A$1:$BU$1,0),FALSE) -> 0 | H73: =VLOOKUP(CONCATENATE($N$6,$D73,$N$8,$E73),Data!$A:$BU,MATCH(E!H$12,Data!$A$1:$BU$1,0),FALSE) -> 0 | J73: =VLOOKUP(CONCATENATE($N$6,$D73,$N$8,$E73),Data!$A:$BU,MATCH(E!J$12,Data!$A$1:$BU$1,0),FALSE) -> 0 | L73: =VLOOKUP(CONCATENATE($N$6,$D73,$N$8,$E73),Data!$A:$BU,MATCH(E!L$12,Data!$A$1:$BU$1,0),FALSE) -> 0 | N73: =VLOOKUP(CONCATENATE($N$6,$D73,$N$8,$E73),Data!$A:$BU,MATCH(E!N$12,Data!$A$1:$BU$1,0),FALSE) -> 0 | P73: =VLOOKUP(CONCATENATE($N$6,$D73,$N$8,$E73),Data!$A:$BU,MATCH(E!P$12,Data!$A$1:$BU$1,0),FALSE) -> 0 | R73: =VLOOKUP(CONCATENATE($N$6,$D73,$N$8,$E73),Data!$A:$BU,MATCH(E!R$12,Data!$A$1:$BU$1,0),FALSE) -> 0 | T73: =VLOOKUP(CONCATENATE($N$6,$D73,$N$8,$E73),Data!$A:$BU,MATCH(E!T$12,Data!$A$1:$BU$1,0),FALSE) -> 0 | V73: =VLOOKUP(CONCATENATE($N$6,$D73,$N$8,$E73),Data!$A:$BU,MATCH(E!V$12,Data!$A$1:$BU$1,0),FALSE) -> 0 | X73: =VLOOKUP(CONCATENATE($N$6,$D73,$N$8,$E73),Data!$A:$BU,MATCH(E!X$12,Data!$A$1:$BU$1,0),FALSE) -> 0 | Z73: =VLOOKUP(CONCATENATE($N$6,$D73,$N$8,$E73),Data!$A:$BU,MATCH(E!Z$12,Data!$A$1:$BU$1,0),FALSE) -> 0 | AB73: =VLOOKUP(CONCATENATE($N$6,$D73,$N$8,$E73),Data!$A:$BU,MATCH(E!AB$12,Data!$A$1:$BU$1,0),FALSE) -> 0 | AD73: =VLOOKUP(CONCATENATE($N$6,$D73,$N$8,$E73),Data!$A:$BU,MATCH(E!AD$12,Data!$A$1:$BU$1,0),FALSE) -> 0 | AF73: =VLOOKUP(CONCATENATE($N$6,$D73,$N$8,$E73),Data!$A:$BU,MATCH(E!AF$12,Data!$A$1:$BU$1,0),FALSE) -> 0 | AH73: =VLOOKUP(CONCATENATE($N$6,$D73,$N$8,$E73),Data!$A:$BU,MATCH(E!AH$12,Data!$A$1:$BU$1,0),FALSE) -> 0 | AJ73: =VLOOKUP(CONCATENATE($N$6,$D73,$N$8,$E73),Data!$A:$BU,MATCH(E!AJ$12,Data!$A$1:$BU$1,0),FALSE) -> 0 | AL73: =VLOOKUP(CONCATENATE($N$6,$D73,$N$8,$E73),Data!$A:$BU,MATCH(E!AL$12,Data!$A$1:$BU$1,0),FALSE) -> 85 | AN73: =VLOOKUP(CONCATENATE($N$6,$D73,$N$8,$E73),Data!$A:$BU,MATCH(E!AN$12,Data!$A$1:$BU$1,0),FALSE) -> 0 | AP73: =VLOOKUP(CONCATENATE($N$6,$D73,$N$8,$E73),Data!$A:$BU,MATCH(E!AP$12,Data!$A$1:$BU$1,0),FALSE) -> 0 | AR73: =VLOOKUP(CONCATENATE($N$6,$D73,$N$8,$E73),Data!$A:$BU,MATCH(E!AR$12,Data!$A$1:$BU$1,0),FALSE) -> 0 | AT73: =VLOOKUP(CONCATENATE($N$6,$D73,$N$8,$E73),Data!$A:$BU,MATCH(E!AT$12,Data!$A$1:$BU$1,0),FALSE) -> 0 | AV73: =VLOOKUP(CONCATENATE($N$6,$D73,$N$8,$E73),Data!$A:$BU,MATCH(E!AV$12,Data!$A$1:$BU$1,0),FALSE) -> 0 | AX73: =VLOOKUP(CONCATENATE($N$6,$D73,$N$8,$E73),Data!$A:$BU,MATCH(E!AX$12,Data!$A$1:$BU$1,0),FALSE) -> 0 | AZ73: =VLOOKUP(CONCATENATE($N$6,$D73,$N$8,$E73),Data!$A:$BU,MATCH(E!AZ$12,Data!$A$1:$BU$1,0),FALSE) -> 0 | BB73: =VLOOKUP(CONCATENATE($N$6,$D73,$N$8,$E73),Data!$A:$BU,MATCH(E!BB$12,Data!$A$1:$BU$1,0),FALSE) -> 0 | BD73: =VLOOKUP(CONCATENATE($N$6,$D73,$N$8,$E73),Data!$A:$BU,MATCH(E!BD$12,Data!$A$1:$BU$1,0),FALSE) -> 0 | BF73: =VLOOKUP(CONCATENATE($N$6,$D73,$N$8,$E73),Data!$A:$BU,MATCH(E!BF$12,Data!$A$1:$BU$1,0),FALSE) -> 0 | BH73: =VLOOKUP(CONCATENATE($N$6,$D73,$N$8,$E73),Data!$A:$BU,MATCH(E!BH$12,Data!$A$1:$BU$1,0),FALSE) -> 0 | BJ73: =VLOOKUP(CONCATENATE($N$6,$D73,$N$8,$E73),Data!$A:$BU,MATCH(E!BJ$12,Data!$A$1:$BU$1,0),FALSE) -> 0
D74: Bolivia | E74: a | F74: =VLOOKUP(CONCATENATE($N$6,$D74,$N$8,$E74),Data!$A:$BU,MATCH(E!F$12,Data!$A$1:$BU$1,0),FALSE) -> 0 | H74: =VLOOKUP(CONCATENATE($N$6,$D74,$N$8,$E74),Data!$A:$BU,MATCH(E!H$12,Data!$A$1:$BU$1,0),FALSE) -> 0 | J74: =VLOOKUP(CONCATENATE($N$6,$D74,$N$8,$E74),Data!$A:$BU,MATCH(E!J$12,Data!$A$1:$BU$1,0),FALSE) -> 0 | L74: =VLOOKUP(CONCATENATE($N$6,$D74,$N$8,$E74),Data!$A:$BU,MATCH(E!L$12,Data!$A$1:$BU$1,0),FALSE) -> 0 | N74: =VLOOKUP(CONCATENATE($N$6,$D74,$N$8,$E74),Data!$A:$BU,MATCH(E!N$12,Data!$A$1:$BU$1,0),FALSE) -> 0 | P74: =VLOOKUP(CONCATENATE($N$6,$D74,$N$8,$E74),Data!$A:$BU,MATCH(E!P$12,Data!$A$1:$BU$1,0),FALSE) -> 0 | R74: =VLOOKUP(CONCATENATE($N$6,$D74,$N$8,$E74),Data!$A:$BU,MATCH(E!R$12,Data!$A$1:$BU$1,0),FALSE) -> 0 | T74: =VLOOKUP(CONCATENATE($N$6,$D74,$N$8,$E74),Data!$A:$BU,MATCH(E!T$12,Data!$A$1:$BU$1,0),FALSE) -> 0 | V74: =VLOOKUP(CONCATENATE($N$6,$D74,$N$8,$E74),Data!$A:$BU,MATCH(E!V$12,Data!$A$1:$BU$1,0),FALSE) -> 0 | X74: =VLOOKUP(CONCATENATE($N$6,$D74,$N$8,$E74),Data!$A:$BU,MATCH(E!X$12,Data!$A$1:$BU$1,0),FALSE) -> 1 | Z74: =VLOOKUP(CONCATENATE($N$6,$D74,$N$8,$E74),Data!$A:$BU,MATCH(E!Z$12,Data!$A$1:$BU$1,0),FALSE) -> 0 | AB74: =VLOOKUP(CONCATENATE($N$6,$D74,$N$8,$E74),Data!$A:$BU,MATCH(E!AB$12,Data!$A$1:$BU$1,0),FALSE) -> 0 | AD74: =VLOOKUP(CONCATENATE($N$6,$D74,$N$8,$E74),Data!$A:$BU,MATCH(E!AD$12,Data!$A$1:$BU$1,0),FALSE) -> 0 | AF74: =VLOOKUP(CONCATENATE($N$6,$D74,$N$8,$E74),Data!$A:$BU,MATCH(E!AF$12,Data!$A$1:$BU$1,0),FALSE) -> 0 | AH74: =VLOOKUP(CONCATENATE($N$6,$D74,$N$8,$E74),Data!$A:$BU,MATCH(E!AH$12,Data!$A$1:$BU$1,0),FALSE) -> 0 | AJ74: =VLOOKUP(CONCATENATE($N$6,$D74,$N$8,$E74),Data!$A:$BU,MATCH(E!AJ$12,Data!$A$1:$BU$1,0),FALSE) -> 0 | AL74: =VLOOKUP(CONCATENATE($N$6,$D74,$N$8,$E74),Data!$A:$BU,MATCH(E!AL$12,Data!$A$1:$BU$1,0),FALSE) -> 0 | AN74: =VLOOKUP(CONCATENATE($N$6,$D74,$N$8,$E74),Data!$A:$BU,MATCH(E!AN$12,Data!$A$1:$BU$1,0),FALSE) -> 0 | AP74: =VLOOKUP(CONCATENATE($N$6,$D74,$N$8,$E74),Data!$A:$BU,MATCH(E!AP$12,Data!$A$1:$BU$1,0),FALSE) -> 0 | AR74: =VLOOKUP(CONCATENATE($N$6,$D74,$N$8,$E74),Data!$A:$BU,MATCH(E!AR$12,Data!$A$1:$BU$1,0),FALSE) -> 0 | AT74: =VLOOKUP(CONCATENATE($N$6,$D74,$N$8,$E74),Data!$A:$BU,MATCH(E!AT$12,Data!$A$1:$BU$1,0),FALSE) -> 0 | AV74: =VLOOKUP(CONCATENATE($N$6,$D74,$N$8,$E74),Data!$A:$BU,MATCH(E!AV$12,Data!$A$1:$BU$1,0),FALSE) -> 0 | AX74: =VLOOKUP(CONCATENATE($N$6,$D74,$N$8,$E74),Data!$A:$BU,MATCH(E!AX$12,Data!$A$1:$BU$1,0),FALSE) -> 0 | AZ74: =VLOOKUP(CONCATENATE($N$6,$D74,$N$8,$E74),Data!$A:$BU,MATCH(E!AZ$12,Data!$A$1:$BU$1,0),FALSE) -> 0 | BB74: =VLOOKUP(CONCATENATE($N$6,$D74,$N$8,$E74),Data!$A:$BU,MATCH(E!BB$12,Data!$A$1:$BU$1,0),FALSE) -> 0 | BD74: =VLOOKUP(CONCATENATE($N$6,$D74,$N$8,$E74),Data!$A:$BU,MATCH(E!BD$12,Data!$A$1:$BU$1,0),FALSE) -> 0 | BF74: =VLOOKUP(CONCATENATE($N$6,$D74,$N$8,$E74),Data!$A:$BU,MATCH(E!BF$12,Data!$A$1:$BU$1,0),FALSE) -> 0 | BH74: =VLOOKUP(CONCATENATE($N$6,$D74,$N$8,$E74),Data!$A:$BU,MATCH(E!BH$12,Data!$A$1:$BU$1,0),FALSE) -> 0 | BJ74: =VLOOKUP(CONCATENATE($N$6,$D74,$N$8,$E74),Data!$A:$BU,MATCH(E!BJ$12,Data!$A$1:$BU$1,0),FALSE) -> 0
D75: Bolivia | E75: b | F75: =VLOOKUP(CONCATENATE($N$6,$D75,$N$8,$E75),Data!$A:$BU,MATCH(E!F$12,Data!$A$1:$BU$1,0),FALSE) -> 0 | H75: =VLOOKUP(CONCATENATE($N$6,$D75,$N$8,$E75),Data!$A:$BU,MATCH(E!H$12,Data!$A$1:$BU$1,0),FALSE) -> 0 | J75: =VLOOKUP(CONCATENATE($N$6,$D75,$N$8,$E75),Data!$A:$BU,MATCH(E!J$12,Data!$A$1:$BU$1,0),FALSE) -> 0 | L75: =VLOOKUP(CONCATENATE($N$6,$D75,$N$8,$E75),Data!$A:$BU,MATCH(E!L$12,Data!$A$1:$BU$1,0),FALSE) -> 0 | N75: =VLOOKUP(CONCATENATE($N$6,$D75,$N$8,$E75),Data!$A:$BU,MATCH(E!N$12,Data!$A$1:$BU$1,0),FALSE) -> 0 | P75: =VLOOKUP(CONCATENATE($N$6,$D75,$N$8,$E75),Data!$A:$BU,MATCH(E!P$12,Data!$A$1:$BU$1,0),FALSE) -> 0 | R75: =VLOOKUP(CONCATENATE($N$6,$D75,$N$8,$E75),Data!$A:$BU,MATCH(E!R$12,Data!$A$1:$BU$1,0),FALSE) -> 0 | T75: =VLOOKUP(CONCATENATE($N$6,$D75,$N$8,$E75),Data!$A:$BU,MATCH(E!T$12,Data!$A$1:$BU$1,0),FALSE) -> 0 | V75: =VLOOKUP(CONCATENATE($N$6,$D75,$N$8,$E75),Data!$A:$BU,MATCH(E!V$12,Data!$A$1:$BU$1,0),FALSE) -> 0 | X75: =VLOOKUP(CONCATENATE($N$6,$D75,$N$8,$E75),Data!$A:$BU,MATCH(E!X$12,Data!$A$1:$BU$1,0),FALSE) -> 65000 | Z75: =VLOOKUP(CONCATENATE($N$6,$D75,$N$8,$E75),Data!$A:$BU,MATCH(E!Z$12,Data!$A$1:$BU$1,0),FALSE) -> 0 | AB75: =VLOOKUP(CONCATENATE($N$6,$D75,$N$8,$E75),Data!$A:$BU,MATCH(E!AB$12,Data!$A$1:$BU$1,0),FALSE) -> 0 | AD75: =VLOOKUP(CONCATENATE($N$6,$D75,$N$8,$E75),Data!$A:$BU,MATCH(E!AD$12,Data!$A$1:$BU$1,0),FALSE) -> 0 | AF75: =VLOOKUP(CONCATENATE($N$6,$D75,$N$8,$E75),Data!$A:$BU,MATCH(E!AF$12,Data!$A$1:$BU$1,0),FALSE) -> 0 | AH75: =VLOOKUP(CONCATENATE($N$6,$D75,$N$8,$E75),Data!$A:$BU,MATCH(E!AH$12,Data!$A$1:$BU$1,0),FALSE) -> 0 | AJ75: =VLOOKUP(CONCATENATE($N$6,$D75,$N$8,$E75),Data!$A:$BU,MATCH(E!AJ$12,Data!$A$1:$BU$1,0),FALSE) -> 0 | AL75: =VLOOKUP(CONCATENATE($N$6,$D75,$N$8,$E75),Data!$A:$BU,MATCH(E!AL$12,Data!$A$1:$BU$1,0),FALSE) -> 0 | AN75: =VLOOKUP(CONCATENATE($N$6,$D75,$N$8,$E75),Data!$A:$BU,MATCH(E!AN$12,Data!$A$1:$BU$1,0),FALSE) -> 0 | AP75: =VLOOKUP(CONCATENATE($N$6,$D75,$N$8,$E75),Data!$A:$BU,MATCH(E!AP$12,Data!$A$1:$BU$1,0),FALSE) -> 0 | AR75: =VLOOKUP(CONCATENATE($N$6,$D75,$N$8,$E75),Data!$A:$BU,MATCH(E!AR$12,Data!$A$1:$BU$1,0),FALSE) -> 0 | AT75: =VLOOKUP(CONCATENATE($N$6,$D75,$N$8,$E75),Data!$A:$BU,MATCH(E!AT$12,Data!$A$1:$BU$1,0),FALSE) -> 0 | AV75: =VLOOKUP(CONCATENATE($N$6,$D75,$N$8,$E75),Data!$A:$BU,MATCH(E!AV$12,Data!$A$1:$BU$1,0),FALSE) -> 0 | AX75: =VLOOKUP(CONCATENATE($N$6,$D75,$N$8,$E75),Data!$A:$BU,MATCH(E!AX$12,Data!$A$1:$BU$1,0),FALSE) -> 0 | AZ75: =VLOOKUP(CONCATENATE($N$6,$D75,$N$8,$E75),Data!$A:$BU,MATCH(E!AZ$12,Data!$A$1:$BU$1,0),FALSE) -> 0 | BB75: =VLOOKUP(CONCATENATE($N$6,$D75,$N$8,$E75),Data!$A:$BU,MATCH(E!BB$12,Data!$A$1:$BU$1,0),FALSE) -> 0 | BD75: =VLOOKUP(CONCATENATE($N$6,$D75,$N$8,$E75),Data!$A:$BU,MATCH(E!BD$12,Data!$A$1:$BU$1,0),FALSE) -> 0 | BF75: =VLOOKUP(CONCATENATE($N$6,$D75,$N$8,$E75),Data!$A:$BU,MATCH(E!BF$12,Data!$A$1:$BU$1,0),FALSE) -> 0 | BH75: =VLOOKUP(CONCATENATE($N$6,$D75,$N$8,$E75),Data!$A:$BU,MATCH(E!BH$12,Data!$A$1:$BU$1,0),FALSE) -> 0 | BJ75: =VLOOKUP(CONCATENATE($N$6,$D75,$N$8,$E75),Data!$A:$BU,MATCH(E!BJ$12,Data!$A$1:$BU$1,0),FALSE) -> 0
D76: Bosnia and Herzegovina | E76: a | F76: =VLOOKUP(CONCATENATE($N$6,$D76,$N$8,$E76),Data!$A:$BU,MATCH(E!F$12,Data!$A$1:$BU$1,0),FALSE) -> 1 | H76: =VLOOKUP(CONCATENATE($N$6,$D76,$N$8,$E76),Data!$A:$BU,MATCH(E!H$12,Data!$A$1:$BU$1,0),FALSE) -> 0 | J76: =VLOOKUP(CONCATENATE($N$6,$D76,$N$8,$E76),Data!$A:$BU,MATCH(E!J$12,Data!$A$1:$BU$1,0),FALSE) -> 0 | L76: =VLOOKUP(CONCATENATE($N$6,$D76,$N$8,$E76),Data!$A:$BU,MATCH(E!L$12,Data!$A$1:$BU$1,0),FALSE) -> 0 | N76: =VLOOKUP(CONCATENATE($N$6,$D76,$N$8,$E76),Data!$A:$BU,MATCH(E!N$12,Data!$A$1:$BU$1,0),FALSE) -> 1 | P76: =VLOOKUP(CONCATENATE($N$6,$D76,$N$8,$E76),Data!$A:$BU,MATCH(E!P$12,Data!$A$1:$BU$1,0),FALSE) -> 0 | R76: =VLOOKUP(CONCATENATE($N$6,$D76,$N$8,$E76),Data!$A:$BU,MATCH(E!R$12,Data!$A$1:$BU$1,0),FALSE) -> 0 | T76: =VLOOKUP(CONCATENATE($N$6,$D76,$N$8,$E76),Data!$A:$BU,MATCH(E!T$12,Data!$A$1:$BU$1,0),FALSE) -> 1 | V76: =VLOOKUP(CONCATENATE($N$6,$D76,$N$8,$E76),Data!$A:$BU,MATCH(E!V$12,Data!$A$1:$BU$1,0),FALSE) -> 0 | X76: =VLOOKUP(CONCATENATE($N$6,$D76,$N$8,$E76),Data!$A:$BU,MATCH(E!X$12,Data!$A$1:$BU$1,0),FALSE) -> 0 | Z76: =VLOOKUP(CONCATENATE($N$6,$D76,$N$8,$E76),Data!$A:$BU,MATCH(E!Z$12,Data!$A$1:$BU$1,0),FALSE) -> 1 | AB76: =VLOOKUP(CONCATENATE($N$6,$D76,$N$8,$E76),Data!$A:$BU,MATCH(E!AB$12,Data!$A$1:$BU$1,0),FALSE) -> 2 | AD76: =VLOOKUP(CONCATENATE($N$6,$D76,$N$8,$E76),Data!$A:$BU,MATCH(E!AD$12,Data!$A$1:$BU$1,0),FALSE) -> 1 | AF76: =VLOOKUP(CONCATENATE($N$6,$D76,$N$8,$E76),Data!$A:$BU,MATCH(E!AF$12,Data!$A$1:$BU$1,0),FALSE) -> 0 | AH76: =VLOOKUP(CONCATENATE($N$6,$D76,$N$8,$E76),Data!$A:$BU,MATCH(E!AH$12,Data!$A$1:$BU$1,0),FALSE) -> 0 | AJ76: =VLOOKUP(CONCATENATE($N$6,$D76,$N$8,$E76),Data!$A:$BU,MATCH(E!AJ$12,Data!$A$1:$BU$1,0),FALSE) -> 0 | AL76: =VLOOKUP(CONCATENATE($N$6,$D76,$N$8,$E76),Data!$A:$BU,MATCH(E!AL$12,Data!$A$1:$BU$1,0),FALSE) -> 0 | AN76: =VLOOKUP(CONCATENATE($N$6,$D76,$N$8,$E76),Data!$A:$BU,MATCH(E!AN$12,Data!$A$1:$BU$1,0),FALSE) -> 1 | AP76: =VLOOKUP(CONCATENATE($N$6,$D76,$N$8,$E76),Data!$A:$BU,MATCH(E!AP$12,Data!$A$1:$BU$1,0),FALSE) -> 0 | AR76: =VLOOKUP(CONCATENATE($N$6,$D76,$N$8,$E76),Data!$A:$BU,MATCH(E!AR$12,Data!$A$1:$BU$1,0),FALSE) -> 5 | AT76: =VLOOKUP(CONCATENATE($N$6,$D76,$N$8,$E76),Data!$A:$BU,MATCH(E!AT$12,Data!$A$1:$BU$1,0),FALSE) -> 0 | AV76: =VLOOKUP(CONCATENATE($N$6,$D76,$N$8,$E76),Data!$A:$BU,MATCH(E!AV$12,Data!$A$1:$BU$1,0),FALSE) -> 2 | AX76: =VLOOKUP(CONCATENATE($N$6,$D76,$N$8,$E76),Data!$A:$BU,MATCH(E!AX$12,Data!$A$1:$BU$1,0),FALSE) -> 1 | AZ76: =VLOOKUP(CONCATENATE($N$6,$D76,$N$8,$E76),Data!$A:$BU,MATCH(E!AZ$12,Data!$A$1:$BU$1,0),FALSE) -> 0 | BB76: =VLOOKUP(CONCATENATE($N$6,$D76,$N$8,$E76),Data!$A:$BU,MATCH(E!BB$12,Data!$A$1:$BU$1,0),FALSE) -> 0 | BD76: =VLOOKUP(CONCATENATE($N$6,$D76,$N$8,$E76),Data!$A:$BU,MATCH(E!BD$12,Data!$A$1:$BU$1,0),FALSE) -> 4 | BF76: =VLOOKUP(CONCATENATE($N$6,$D76,$N$8,$E76),Data!$A:$BU,MATCH(E!BF$12,Data!$A$1:$BU$1,0),FALSE) -> 3 | BH76: =VLOOKUP(CONCATENATE($N$6,$D76,$N$8,$E76),Data!$A:$BU,MATCH(E!BH$12,Data!$A$1:$BU$1,0),FALSE) -> 3 | BJ76: =VLOOKUP(CONCATENATE($N$6,$D76,$N$8,$E76),Data!$A:$BU,MATCH(E!BJ$12,Data!$A$1:$BU$1,0),FALSE) -> 3
D77: Bosnia and Herzegovina | E77: b | F77: =VLOOKUP(CONCATENATE($N$6,$D77,$N$8,$E77),Data!$A:$BU,MATCH(E!F$12,Data!$A$1:$BU$1,0),FALSE) -> 272 | H77: =VLOOKUP(CONCATENATE($N$6,$D77,$N$8,$E77),Data!$A:$BU,MATCH(E!H$12,Data!$A$1:$BU$1,0),FALSE) -> 0 | J77: =VLOOKUP(CONCATENATE($N$6,$D77,$N$8,$E77),Data!$A:$BU,MATCH(E!J$12,Data!$A$1:$BU$1,0),FALSE) -> 0 | L77: =VLOOKUP(CONCATENATE($N$6,$D77,$N$8,$E77),Data!$A:$BU,MATCH(E!L$12,Data!$A$1:$BU$1,0),FALSE) -> 0 | N77: =VLOOKUP(CONCATENATE($N$6,$D77,$N$8,$E77),Data!$A:$BU,MATCH(E!N$12,Data!$A$1:$BU$1,0),FALSE) -> 408940 | P77: =VLOOKUP(CONCATENATE($N$6,$D77,$N$8,$E77),Data!$A:$BU,MATCH(E!P$12,Data!$A$1:$BU$1,0),FALSE) -> 0 | R77: =VLOOKUP(CONCATENATE($N$6,$D77,$N$8,$E77),Data!$A:$BU,MATCH(E!R$12,Data!$A$1:$BU$1,0),FALSE) -> 0 | T77: =VLOOKUP(CONCATENATE($N$6,$D77,$N$8,$E77),Data!$A:$BU,MATCH(E!T$12,Data!$A$1:$BU$1,0),FALSE) -> 771 | V77: =VLOOKUP(CONCATENATE($N$6,$D77,$N$8,$E77),Data!$A:$BU,MATCH(E!V$12,Data!$A$1:$BU$1,0),FALSE) -> 0 | X77: =VLOOKUP(CONCATENATE($N$6,$D77,$N$8,$E77),Data!$A:$BU,MATCH(E!X$12,Data!$A$1:$BU$1,0),FALSE) -> 0 | Z77: =VLOOKUP(CONCATENATE($N$6,$D77,$N$8,$E77),Data!$A:$BU,MATCH(E!Z$12,Data!$A$1:$BU$1,0),FALSE) -> 14112 | AB77: =VLOOKUP(CONCATENATE($N$6,$D77,$N$8,$E77),Data!$A:$BU,MATCH(E!AB$12,Data!$A$1:$BU$1,0),FALSE) -> 10352 | AD77: =VLOOKUP(CONCATENATE($N$6,$D77,$N$8,$E77),Data!$A:$BU,MATCH(E!AD$12,Data!$A$1:$BU$1,0),FALSE) -> 31369 | AF77: =VLOOKUP(CONCATENATE($N$6,$D77,$N$8,$E77),Data!$A:$BU,MATCH(E!AF$12,Data!$A$1:$BU$1,0),FALSE) -> 0 | AH77: =VLOOKUP(CONCATENATE($N$6,$D77,$N$8,$E77),Data!$A:$BU,MATCH(E!AH$12,Data!$A$1:$BU$1,0),FALSE) -> 0 | AJ77: =VLOOKUP(CONCATENATE($N$6,$D77,$N$8,$E77),Data!$A:$BU,MATCH(E!AJ$12,Data!$A$1:$BU$1,0),FALSE) -> 0 | AL77: =VLOOKUP(CONCATENATE($N$6,$D77,$N$8,$E77),Data!$A:$BU,MATCH(E!AL$12,Data!$A$1:$BU$1,0),FALSE) -> 0 | AN77: =VLOOKUP(CONCATENATE($N$6,$D77,$N$8,$E77),Data!$A:$BU,MATCH(E!AN$12,Data!$A$1:$BU$1,0),FALSE) -> 68 | AP77: =VLOOKUP(CONCATENATE($N$6,$D77,$N$8,$E77),Data!$A:$BU,MATCH(E!AP$12,Data!$A$1:$BU$1,0),FALSE) -> 0 | AR77: =VLOOKUP(CONCATENATE($N$6,$D77,$N$8,$E77),Data!$A:$BU,MATCH(E!AR$12,Data!$A$1:$BU$1,0),FALSE) -> 325410 | AT77: =VLOOKUP(CONCATENATE($N$6,$D77,$N$8,$E77),Data!$A:$BU,MATCH(E!AT$12,Data!$A$1:$BU$1,0),FALSE) -> 0 | AV77: =VLOOKUP(CONCATENATE($N$6,$D77,$N$8,$E77),Data!$A:$BU,MATCH(E!AV$12,Data!$A$1:$BU$1,0),FALSE) -> 3467 | AX77: =VLOOKUP(CONCATENATE($N$6,$D77,$N$8,$E77),Data!$A:$BU,MATCH(E!AX$12,Data!$A$1:$BU$1,0),FALSE) -> 60 | AZ77: =VLOOKUP(CONCATENATE($N$6,$D77,$N$8,$E77),Data!$A:$BU,MATCH(E!AZ$12,Data!$A$1:$BU$1,0),FALSE) -> 0 | BB77: =VLOOKUP(CONCATENATE($N$6,$D77,$N$8,$E77),Data!$A:$BU,MATCH(E!BB$12,Data!$A$1:$BU$1,0),FALSE) -> 0 | BD77: =VLOOKUP(CONCATENATE($N$6,$D77,$N$8,$E77),Data!$A:$BU,MATCH(E!BD$12,Data!$A$1:$BU$1,0),FALSE) -> 20821 | BF77: =VLOOKUP(CONCATENATE($N$6,$D77,$N$8,$E77),Data!$A:$BU,MATCH(E!BF$12,Data!$A$1:$BU$1,0),FALSE) -> 12261 | BH77: =VLOOKUP(CONCATENATE($N$6,$D77,$N$8,$E77),Data!$A:$BU,MATCH(E!BH$12,Data!$A$1:$BU$1,0),FALSE) -> 4378 | BJ77: =VLOOKUP(CONCATENATE($N$6,$D77,$N$8,$E77),Data!$A:$BU,MATCH(E!BJ$12,Data!$A$1:$BU$1,0),FALSE) -> 41657
D78: Botswana | E78: a | F78: =VLOOKUP(CONCATENATE($N$6,$D78,$N$8,$E78),Data!$A:$BU,MATCH(E!F$12,Data!$A$1:$BU$1,0),FALSE) -> 1 | H78: =VLOOKUP(CONCATENATE($N$6,$D78,$N$8,$E78),Data!$A:$BU,MATCH(E!H$12,Data!$A$1:$BU$1,0),FALSE) -> 2 | J78: =VLOOKUP(CONCATENATE($N$6,$D78,$N$8,$E78),Data!$A:$BU,MATCH(E!J$12,Data!$A$1:$BU$1,0),FALSE) -> 0 | L78: =VLOOKUP(CONCATENATE($N$6,$D78,$N$8,$E78),Data!$A:$BU,MATCH(E!L$12,Data!$A$1:$BU$1,0),FALSE) -> 1 | N78: =VLOOKUP(CONCATENATE($N$6,$D78,$N$8,$E78),Data!$A:$BU,MATCH(E!N$12,Data!$A$1:$BU$1,0),FALSE) -> 1 | P78: =VLOOKUP(CONCATENATE($N$6,$D78,$N$8,$E78),Data!$A:$BU,MATCH(E!P$12,Data!$A$1:$BU$1,0),FALSE) -> 1 | R78: =VLOOKUP(CONCATENATE($N$6,$D78,$N$8,$E78),Data!$A:$BU,MATCH(E!R$12,Data!$A$1:$BU$1,0),FALSE) -> 3 | T78: =VLOOKUP(CONCATENATE($N$6,$D78,$N$8,$E78),Data!$A:$BU,MATCH(E!T$12,Data!$A$1:$BU$1,0),FALSE) -> 4 | V78: =VLOOKUP(CONCATENATE($N$6,$D78,$N$8,$E78),Data!$A:$BU,MATCH(E!V$12,Data!$A$1:$BU$1,0),FALSE) -> 1 | X78: =VLOOKUP(CONCATENATE($N$6,$D78,$N$8,$E78),Data!$A:$BU,MATCH(E!X$12,Data!$A$1:$BU$1,0),FALSE) -> 1 | Z78: =VLOOKUP(CONCATENATE($N$6,$D78,$N$8,$E78),Data!$A:$BU,MATCH(E!Z$12,Data!$A$1:$BU$1,0),FALSE) -> 2 | AB78: =VLOOKUP(CONCATENATE($N$6,$D78,$N$8,$E78),Data!$A:$BU,MATCH(E!AB$12,Data!$A$1:$BU$1,0),FALSE) -> 1 | AD78: =VLOOKUP(CONCATENATE($N$6,$D78,$N$8,$E78),Data!$A:$BU,MATCH(E!AD$12,Data!$A$1:$BU$1,0),FALSE) -> 5 | AF78: =VLOOKUP(CONCATENATE($N$6,$D78,$N$8,$E78),Data!$A:$BU,MATCH(E!AF$12,Data!$A$1:$BU$1,0),FALSE) -> 5 | AH78: =VLOOKUP(CONCATENATE($N$6,$D78,$N$8,$E78),Data!$A:$BU,MATCH(E!AH$12,Data!$A$1:$BU$1,0),FALSE) -> 1 | AJ78: =VLOOKUP(CONCATENATE($N$6,$D78,$N$8,$E78),Data!$A:$BU,MATCH(E!AJ$12,Data!$A$1:$BU$1,0),FALSE) -> 0 | AL78: =VLOOKUP(CONCATENATE($N$6,$D78,$N$8,$E78),Data!$A:$BU,MATCH(E!AL$12,Data!$A$1:$BU$1,0),FALSE) -> 4 | AN78: =VLOOKUP(CONCATENATE($N$6,$D78,$N$8,$E78),Data!$A:$BU,MATCH(E!AN$12,Data!$A$1:$BU$1,0),FALSE) -> 2 | AP78: =VLOOKUP(CONCATENATE($N$6,$D78,$N$8,$E78),Data!$A:$BU,MATCH(E!AP$12,Data!$A$1:$BU$1,0),FALSE) -> 0 | AR78: =VLOOKUP(CONCATENATE($N$6,$D78,$N$8,$E78),Data!$A:$BU,MATCH(E!AR$12,Data!$A$1:$BU$1,0),FALSE) -> 4 | AT78: =VLOOKUP(CONCATENATE($N$6,$D78,$N$8,$E78),Data!$A:$BU,MATCH(E!AT$12,Data!$A$1:$BU$1,0),FALSE) -> 0 | AV78: =VLOOKUP(CONCATENATE($N$6,$D78,$N$8,$E78),Data!$A:$BU,MATCH(E!AV$12,Data!$A$1:$BU$1,0),FALSE) -> 2 | AX78: =VLOOKUP(CONCATENATE($N$6,$D78,$N$8,$E78),Data!$A:$BU,MATCH(E!AX$12,Data!$A$1:$BU$1,0),FALSE) -> 2 | AZ78: =VLOOKUP(CONCATENATE($N$6,$D78,$N$8,$E78),Data!$A:$BU,MATCH(E!AZ$12,Data!$A$1:$BU$1,0),FALSE) -> 3 | BB78: =VLOOKUP(CONCATENATE($N$6,$D78,$N$8,$E78),Data!$A:$BU,MATCH(E!BB$12,Data!$A$1:$BU$1,0),FALSE) -> 1 | BD78: =VLOOKUP(CONCATENATE($N$6,$D78,$N$8,$E78),Data!$A:$BU,MATCH(E!BD$12,Data!$A$1:$BU$1,0),FALSE) -> 2 | BF78: =VLOOKUP(CONCATENATE($N$6,$D78,$N$8,$E78),Data!$A:$BU,MATCH(E!BF$12,Data!$A$1:$BU$1,0),FALSE) -> 2 | BH78: =VLOOKUP(CONCATENATE($N$6,$D78,$N$8,$E78),Data!$A:$BU,MATCH(E!BH$12,Data!$A$1:$BU$1,0),FALSE) -> 1 | BJ78: =VLOOKUP(CONCATENATE($N$6,$D78,$N$8,$E78),Data!$A:$BU,MATCH(E!BJ$12,Data!$A$1:$BU$1,0),FALSE) -> 4
D79: Botswana | E79: b | F79: =VLOOKUP(CONCATENATE($N$6,$D79,$N$8,$E79),Data!$A:$BU,MATCH(E!F$12,Data!$A$1:$BU$1,0),FALSE) -> 11650 | H79: =VLOOKUP(CONCATENATE($N$6,$D79,$N$8,$E79),Data!$A:$BU,MATCH(E!H$12,Data!$A$1:$BU$1,0),FALSE) -> 256692 | J79: =VLOOKUP(CONCATENATE($N$6,$D79,$N$8,$E79),Data!$A:$BU,MATCH(E!J$12,Data!$A$1:$BU$1,0),FALSE) -> 0 | L79: =VLOOKUP(CONCATENATE($N$6,$D79,$N$8,$E79),Data!$A:$BU,MATCH(E!L$12,Data!$A$1:$BU$1,0),FALSE) -> 40756 | N79: =VLOOKUP(CONCATENATE($N$6,$D79,$N$8,$E79),Data!$A:$BU,MATCH(E!N$12,Data!$A$1:$BU$1,0),FALSE) -> 28238 | P79: =VLOOKUP(CONCATENATE($N$6,$D79,$N$8,$E79),Data!$A:$BU,MATCH(E!P$12,Data!$A$1:$BU$1,0),FALSE) -> 7702 | R79: =VLOOKUP(CONCATENATE($N$6,$D79,$N$8,$E79),Data!$A:$BU,MATCH(E!R$12,Data!$A$1:$BU$1,0),FALSE) -> 215007 | T79: =VLOOKUP(CONCATENATE($N$6,$D79,$N$8,$E79),Data!$A:$BU,MATCH(E!T$12,Data!$A$1:$BU$1,0),FALSE) -> 36045 | V79: =VLOOKUP(CONCATENATE($N$6,$D79,$N$8,$E79),Data!$A:$BU,MATCH(E!V$12,Data!$A$1:$BU$1,0),FALSE) -> 6065 | X79: =VLOOKUP(CONCATENATE($N$6,$D79,$N$8,$E79),Data!$A:$BU,MATCH(E!X$12,Data!$A$1:$BU$1,0),FALSE) -> 1950 | Z79: =VLOOKUP(CONCATENATE($N$6,$D79,$N$8,$E79),Data!$A:$BU,MATCH(E!Z$12,Data!$A$1:$BU$1,0),FALSE) -> 8771 | AB79: =VLOOKUP(CONCATENATE($N$6,$D79,$N$8,$E79),Data!$A:$BU,MATCH(E!AB$12,Data!$A$1:$BU$1,0),FALSE) -> 7015 | AD79: =VLOOKUP(CONCATENATE($N$6,$D79,$N$8,$E79),Data!$A:$BU,MATCH(E!AD$12,Data!$A$1:$BU$1,0),FALSE) -> 821245 | AF79: =VLOOKUP(CONCATENATE($N$6,$D79,$N$8,$E79),Data!$A:$BU,MATCH(E!AF$12,Data!$A$1:$BU$1,0),FALSE) -> 70235 | AH79: =VLOOKUP(CONCATENATE($N$6,$D79,$N$8,$E79),Data!$A:$BU,MATCH(E!AH$12,Data!$A$1:$BU$1,0),FALSE) -> 29328 | AJ79: =VLOOKUP(CONCATENATE($N$6,$D79,$N$8,$E79),Data!$A:$BU,MATCH(E!AJ$12,Data!$A$1:$BU$1,0),FALSE) -> 0 | AL79: =VLOOKUP(CONCATENATE($N$6,$D79,$N$8,$E79),Data!$A:$BU,MATCH(E!AL$12,Data!$A$1:$BU$1,0),FALSE) -> 77074 | AN79: =VLOOKUP(CONCATENATE($N$6,$D79,$N$8,$E79),Data!$A:$BU,MATCH(E!AN$12,Data!$A$1:$BU$1,0),FALSE) -> 23700 | AP79: =VLOOKUP(CONCATENATE($N$6,$D79,$N$8,$E79),Data!$A:$BU,MATCH(E!AP$12,Data!$A$1:$BU$1,0),FALSE) -> 0 | AR79: =VLOOKUP(CONCATENATE($N$6,$D79,$N$8,$E79),Data!$A:$BU,MATCH(E!AR$12,Data!$A$1:$BU$1,0),FALSE) -> 1196181 | AT79: =VLOOKUP(CONCATENATE($N$6,$D79,$N$8,$E79),Data!$A:$BU,MATCH(E!AT$12,Data!$A$1:$BU$1,0),FALSE) -> 0 | AV79: =VLOOKUP(CONCATENATE($N$6,$D79,$N$8,$E79),Data!$A:$BU,MATCH(E!AV$12,Data!$A$1:$BU$1,0),FALSE) -> 1147677 | AX79: =VLOOKUP(CONCATENATE($N$6,$D79,$N$8,$E79),Data!$A:$BU,MATCH(E!AX$12,Data!$A$1:$BU$1,0),FALSE) -> 242554 | AZ79: =VLOOKUP(CONCATENATE($N$6,$D79,$N$8,$E79),Data!$A:$BU,MATCH(E!AZ$12,Data!$A$1:$BU$1,0),FALSE) -> 4140375 | BB79: =VLOOKUP(CONCATENATE($N$6,$D79,$N$8,$E79),Data!$A:$BU,MATCH(E!BB$12,Data!$A$1:$BU$1,0),FALSE) -> 40376 | BD79: =VLOOKUP(CONCATENATE($N$6,$D79,$N$8,$E79),Data!$A:$BU,MATCH(E!BD$12,Data!$A$1:$BU$1,0),FALSE) -> 25238 | BF79: =VLOOKUP(CONCATENATE($N$6,$D79,$N$8,$E79),Data!$A:$BU,MATCH(E!BF$12,Data!$A$1:$BU$1,0),FALSE) -> 14000 | BH79: =VLOOKUP(CONCATENATE($N$6,$D79,$N$8,$E79),Data!$A:$BU,MATCH(E!BH$12,Data!$A$1:$BU$1,0),FALSE) -> 20000 | BJ79: =VLOOKUP(CONCATENATE($N$6,$D79,$N$8,$E79),Data!$A:$BU,MATCH(E!BJ$12,Data!$A$1:$BU$1,0),FALSE) -> 1527363
D80: Brazil | E80: a | F80: =VLOOKUP(CONCATENATE($N$6,$D80,$N$8,$E80),Data!$A:$BU,MATCH(E!F$12,Data!$A$1:$BU$1,0),FALSE) -> 24 | H80: =VLOOKUP(CONCATENATE($N$6,$D80,$N$8,$E80),Data!$A:$BU,MATCH(E!H$12,Data!$A$1:$BU$1,0),FALSE) -> 22 | J80: =VLOOKUP(CONCATENATE($N$6,$D80,$N$8,$E80),Data!$A:$BU,MATCH(E!J$12,Data!$A$1:$BU$1,0),FALSE) -> 16 | L80: =VLOOKUP(CONCATENATE($N$6,$D80,$N$8,$E80),Data!$A:$BU,MATCH(E!L$12,Data!$A$1:$BU$1,0),FALSE) -> 24 | N80: =VLOOKUP(CONCATENATE($N$6,$D80,$N$8,$E80),Data!$A:$BU,MATCH(E!N$12,Data!$A$1:$BU$1,0),FALSE) -> 30 | P80: =VLOOKUP(CONCATENATE($N$6,$D80,$N$8,$E80),Data!$A:$BU,MATCH(E!P$12,Data!$A$1:$BU$1,0),FALSE) -> 33 | R80: =VLOOKUP(CONCATENATE($N$6,$D80,$N$8,$E80),Data!$A:$BU,MATCH(E!R$12,Data!$A$1:$BU$1,0),FALSE) -> 33 | T80: =VLOOKUP(CONCATENATE($N$6,$D80,$N$8,$E80),Data!$A:$BU,MATCH(E!T$12,Data!$A$1:$BU$1,0),FALSE) -> 37 | V80: =VLOOKUP(CONCATENATE($N$6,$D80,$N$8,$E80),Data!$A:$BU,MATCH(E!V$12,Data!$A$1:$BU$1,0),FALSE) -> 32 | X80: =VLOOKUP(CONCATENATE($N$6,$D80,$N$8,$E80),Data!$A:$BU,MATCH(E!X$12,Data!$A$1:$BU$1,0),FALSE) -> 27 | Z80: =VLOOKUP(CONCATENATE($N$6,$D80,$N$8,$E80),Data!$A:$BU,MATCH(E!Z$12,Data!$A$1:$BU$1,0),FALSE) -> 19 | AB80: =VLOOKUP(CONCATENATE($N$6,$D80,$N$8,$E80),Data!$A:$BU,MATCH(E!AB$12,Data!$A$1:$BU$1,0),FALSE) -> 24 | AD80: =VLOOKUP(CONCATENATE($N$6,$D80,$N$8,$E80),Data!$A:$BU,MATCH(E!AD$12,Data!$A$1:$BU$1,0),FALSE) -> 32 | AF80: =VLOOKUP(CONCATENATE($N$6,$D80,$N$8,$E80),Data!$A:$BU,MATCH(E!AF$12,Data!$A$1:$BU$1,0),FALSE) -> 24 | AH80: =VLOOKUP(CONCATENATE($N$6,$D80,$N$8,$E80),Data!$A:$BU,MATCH(E!AH$12,Data!$A$1:$BU$1,0),FALSE) -> 23 | AJ80: =VLOOKUP(CONCATENATE($N$6,$D80,$N$8,$E80),Data!$A:$BU,MATCH(E!AJ$12,Data!$A$1:$BU$1,0),FALSE) -> 18 | AL80: =VLOOKUP(CONCATENATE($N$6,$D80,$N$8,$E80),Data!$A:$BU,MATCH(E!AL$12,Data!$A$1:$BU$1,0),FALSE) -> 41 | AN80: =VLOOKUP(CONCATENATE($N$6,$D80,$N$8,$E80),Data!$A:$BU,MATCH(E!AN$12,Data!$A$1:$BU$1,0),FALSE) -> 44 | AP80: =VLOOKUP(CONCATENATE($N$6,$D80,$N$8,$E80),Data!$A:$BU,MATCH(E!AP$12,Data!$A$1:$BU$1,0),FALSE) -> 46 | AR80: =VLOOKUP(CONCATENATE($N$6,$D80,$N$8,$E80),Data!$A:$BU,MATCH(E!AR$12,Data!$A$1:$BU$1,0),FALSE) -> 47 | AT80: =VLOOKUP(CONCATENATE($N$6,$D80,$N$8,$E80),Data!$A:$BU,MATCH(E!AT$12,Data!$A$1:$BU$1,0),FALSE) -> 33 | AV80: =VLOOKUP(CONCATENATE($N$6,$D80,$N$8,$E80),Data!$A:$BU,MATCH(E!AV$12,Data!$A$1:$BU$1,0),FALSE) -> 59 | AX80: =VLOOKUP(CONCATENATE($N$6,$D80,$N$8,$E80),Data!$A:$BU,MATCH(E!AX$12,Data!$A$1:$BU$1,0),FALSE) -> 37 | AZ80: =VLOOKUP(CONCATENATE($N$6,$D80,$N$8,$E80),Data!$A:$BU,MATCH(E!AZ$12,Data!$A$1:$BU$1,0),FALSE) -> 42 | BB80: =VLOOKUP(CONCATENATE($N$6,$D80,$N$8,$E80),Data!$A:$BU,MATCH(E!BB$12,Data!$A$1:$BU$1,0),FALSE) -> 36 | BD80: =VLOOKUP(CONCATENATE($N$6,$D80,$N$8,$E80),Data!$A:$BU,MATCH(E!BD$12,Data!$A$1:$BU$1,0),FALSE) -> 44 | BF80: =VLOOKUP(CONCATENATE($N$6,$D80,$N$8,$E80),Data!$A:$BU,MATCH(E!BF$12,Data!$A$1:$BU$1,0),FALSE) -> 38 | BH80: =VLOOKUP(CONCATENATE($N$6,$D80,$N$8,$E80),Data!$A:$BU,MATCH(E!BH$12,Data!$A$1:$BU$1,0),FALSE) -> 28 | BJ80: =VLOOKUP(CONCATENATE($N$6,$D80,$N$8,$E80),Data!$A:$BU,MATCH(E!BJ$12,Data!$A$1:$BU$1,0),FALSE) -> 26
D81: Brazil | E81: b | F81: =VLOOKUP(CONCATENATE($N$6,$D81,$N$8,$E81),Data!$A:$BU,MATCH(E!F$12,Data!$A$1:$BU$1,0),FALSE) -> 482998 | H81: =VLOOKUP(CONCATENATE($N$6,$D81,$N$8,$E81),Data!$A:$BU,MATCH(E!H$12,Data!$A$1:$BU$1,0),FALSE) -> 5699088 | J81: =VLOOKUP(CONCATENATE($N$6,$D81,$N$8,$E81),Data!$A:$BU,MATCH(E!J$12,Data!$A$1:$BU$1,0),FALSE) -> 375021 | L81: =VLOOKUP(CONCATENATE($N$6,$D81,$N$8,$E81),Data!$A:$BU,MATCH(E!L$12,Data!$A$1:$BU$1,0),FALSE) -> 364864 | N81: =VLOOKUP(CONCATENATE($N$6,$D81,$N$8,$E81),Data!$A:$BU,MATCH(E!N$12,Data!$A$1:$BU$1,0),FALSE) -> 1189728 | P81: =VLOOKUP(CONCATENATE($N$6,$D81,$N$8,$E81),Data!$A:$BU,MATCH(E!P$12,Data!$A$1:$BU$1,0),FALSE) -> 11917746 | R81: =VLOOKUP(CONCATENATE($N$6,$D81,$N$8,$E81),Data!$A:$BU,MATCH(E!R$12,Data!$A$1:$BU$1,0),FALSE) -> 380854 | T81: =VLOOKUP(CONCATENATE($N$6,$D81,$N$8,$E81),Data!$A:$BU,MATCH(E!T$12,Data!$A$1:$BU$1,0),FALSE) -> 1108657 | V81: =VLOOKUP(CONCATENATE($N$6,$D81,$N$8,$E81),Data!$A:$BU,MATCH(E!V$12,Data!$A$1:$BU$1,0),FALSE) -> 637512 | X81: =VLOOKUP(CONCATENATE($N$6,$D81,$N$8,$E81),Data!$A:$BU,MATCH(E!X$12,Data!$A$1:$BU$1,0),FALSE) -> 311375 | Z81: =VLOOKUP(CONCATENATE($N$6,$D81,$N$8,$E81),Data!$A:$BU,MATCH(E!Z$12,Data!$A$1:$BU$1,0),FALSE) -> 287559 | AB81: =VLOOKUP(CONCATENATE($N$6,$D81,$N$8,$E81),Data!$A:$BU,MATCH(E!AB$12,Data!$A$1:$BU$1,0),FALSE) -> 453475 | AD81: =VLOOKUP(CONCATENATE($N$6,$D81,$N$8,$E81),Data!$A:$BU,MATCH(E!AD$12,Data!$A$1:$BU$1,0),FALSE) -> 1191136 | AF81: =VLOOKUP(CONCATENATE($N$6,$D81,$N$8,$E81),Data!$A:$BU,MATCH(E!AF$12,Data!$A$1:$BU$1,0),FALSE) -> 209939 | AH81: =VLOOKUP(CONCATENATE($N$6,$D81,$N$8,$E81),Data!$A:$BU,MATCH(E!AH$12,Data!$A$1:$BU$1,0),FALSE) -> 1319144 | AJ81: =VLOOKUP(CONCATENATE($N$6,$D81,$N$8,$E81),Data!$A:$BU,MATCH(E!AJ$12,Data!$A$1:$BU$1,0),FALSE) -> 2448085 | AL81: =VLOOKUP(CONCATENATE($N$6,$D81,$N$8,$E81),Data!$A:$BU,MATCH(E!AL$12,Data!$A$1:$BU$1,0),FALSE) -> 122806456 | AN81: =VLOOKUP(CONCATENATE($N$6,$D81,$N$8,$E81),Data!$A:$BU,MATCH(E!AN$12,Data!$A$1:$BU$1,0),FALSE) -> 6587113 | AP81: =VLOOKUP(CONCATENATE($N$6,$D81,$N$8,$E81),Data!$A:$BU,MATCH(E!AP$12,Data!$A$1:$BU$1,0),FALSE) -> 5491502 | AR81: =VLOOKUP(CONCATENATE($N$6,$D81,$N$8,$E81),Data!$A:$BU,MATCH(E!AR$12,Data!$A$1:$BU$1,0),FALSE) -> 5580332 | AT81: =VLOOKUP(CONCATENATE($N$6,$D81,$N$8,$E81),Data!$A:$BU,MATCH(E!AT$12,Data!$A$1:$BU$1,0),FALSE) -> 4581887 | AV81: =VLOOKUP(CONCATENATE($N$6,$D81,$N$8,$E81),Data!$A:$BU,MATCH(E!AV$12,Data!$A$1:$BU$1,0),FALSE) -> 33332318 | AX81: =VLOOKUP(CONCATENATE($N$6,$D81,$N$8,$E81),Data!$A:$BU,MATCH(E!AX$12,Data!$A$1:$BU$1,0),FALSE) -> 2035848 | AZ81: =VLOOKUP(CONCATENATE($N$6,$D81,$N$8,$E81),Data!$A:$BU,MATCH(E!AZ$12,Data!$A$1:$BU$1,0),FALSE) -> 4631286 | BB81: =VLOOKUP(CONCATENATE($N$6,$D81,$N$8,$E81),Data!$A:$BU,MATCH(E!BB$12,Data!$A$1:$BU$1,0),FALSE) -> 2607049 | BD81: =VLOOKUP(CONCATENATE($N$6,$D81,$N$8,$E81),Data!$A:$BU,MATCH(E!BD$12,Data!$A$1:$BU$1,0),FALSE) -> 2813203 | BF81: =VLOOKUP(CONCATENATE($N$6,$D81,$N$8,$E81),Data!$A:$BU,MATCH(E!BF$12,Data!$A$1:$BU$1,0),FALSE) -> 946443 | BH81: =VLOOKUP(CONCATENATE($N$6,$D81,$N$8,$E81),Data!$A:$BU,MATCH(E!BH$12,Data!$A$1:$BU$1,0),FALSE) -> 241494 | BJ81: =VLOOKUP(CONCATENATE($N$6,$D81,$N$8,$E81),Data!$A:$BU,MATCH(E!BJ$12,Data!$A$1:$BU$1,0),FALSE) -> 2338772
D82: British Antarctic Territory | E82: a | F82: =VLOOKUP(CONCATENATE($N$6,$D82,$N$8,$E82),Data!$A:$BU,MATCH(E!F$12,Data!$A$1:$BU$1,0),FALSE) -> 0 | H82: =VLOOKUP(CONCATENATE($N$6,$D82,$N$8,$E82),Data!$A:$BU,MATCH(E!H$12,Data!$A$1:$BU$1,0),FALSE) -> 0 | J82: =VLOOKUP(CONCATENATE($N$6,$D82,$N$8,$E82),Data!$A:$BU,MATCH(E!J$12,Data!$A$1:$BU$1,0),FALSE) -> 0 | L82: =VLOOKUP(CONCATENATE($N$6,$D82,$N$8,$E82),Data!$A:$BU,MATCH(E!L$12,Data!$A$1:$BU$1,0),FALSE) -> 0 | N82: =VLOOKUP(CONCATENATE($N$6,$D82,$N$8,$E82),Data!$A:$BU,MATCH(E!N$12,Data!$A$1:$BU$1,0),FALSE) -> 0 | P82: =VLOOKUP(CONCATENATE($N$6,$D82,$N$8,$E82),Data!$A:$BU,MATCH(E!P$12,Data!$A$1:$BU$1,0),FALSE) -> 0 | R82: =VLOOKUP(CONCATENATE($N$6,$D82,$N$8,$E82),Data!$A:$BU,MATCH(E!R$12,Data!$A$1:$BU$1,0),FALSE) -> 0 | T82: =VLOOKUP(CONCATENATE($N$6,$D82,$N$8,$E82),Data!$A:$BU,MATCH(E!T$12,Data!$A$1:$BU$1,0),FALSE) -> 0 | V82: =VLOOKUP(CONCATENATE($N$6,$D82,$N$8,$E82),Data!$A:$BU,MATCH(E!V$12,Data!$A$1:$BU$1,0),FALSE) -> 0 | X82: =VLOOKUP(CONCATENATE($N$6,$D82,$N$8,$E82),Data!$A:$BU,MATCH(E!X$12,Data!$A$1:$BU$1,0),FALSE) -> 0 | Z82: =VLOOKUP(CONCATENATE($N$6,$D82,$N$8,$E82),Data!$A:$BU,MATCH(E!Z$12,Data!$A$1:$BU$1,0),FALSE) -> 0 | AB82: =VLOOKUP(CONCATENATE($N$6,$D82,$N$8,$E82),Data!$A:$BU,MATCH(E!AB$12,Data!$A$1:$BU$1,0),FALSE) -> 0 | AD82: =VLOOKUP(CONCATENATE($N$6,$D82,$N$8,$E82),Data!$A:$BU,MATCH(E!AD$12,Data!$A$1:$BU$1,0),FALSE) -> 0 | AF82: =VLOOKUP(CONCATENATE($N$6,$D82,$N$8,$E82),Data!$A:$BU,MATCH(E!AF$12,Data!$A$1:$BU$1,0),FALSE) -> 0 | AH82: =VLOOKUP(CONCATENATE($N$6,$D82,$N$8,$E82),Data!$A:$BU,MATCH(E!AH$12,Data!$A$1:$BU$1,0),FALSE) -> 0 | AJ82: =VLOOKUP(CONCATENATE($N$6,$D82,$N$8,$E82),Data!$A:$BU,MATCH(E!AJ$12,Data!$A$1:$BU$1,0),FALSE) -> 0 | AL82: =VLOOKUP(CONCATENATE($N$6,$D82,$N$8,$E82),Data!$A:$BU,MATCH(E!AL$12,Data!$A$1:$BU$1,0),FALSE) -> 0 | AN82: =VLOOKUP(CONCATENATE($N$6,$D82,$N$8,$E82),Data!$A:$BU,MATCH(E!AN$12,Data!$A$1:$BU$1,0),FALSE) -> 0 | AP82: =VLOOKUP(CONCATENATE($N$6,$D82,$N$8,$E82),Data!$A:$BU,MATCH(E!AP$12,Data!$A$1:$BU$1,0),FALSE) -> 1 | AR82: =VLOOKUP(CONCATENATE($N$6,$D82,$N$8,$E82),Data!$A:$BU,MATCH(E!AR$12,Data!$A$1:$BU$1,0),FALSE) -> 0 | AT82: =VLOOKUP(CONCATENATE($N$6,$D82,$N$8,$E82),Data!$A:$BU,MATCH(E!AT$12,Data!$A$1:$BU$1,0),FALSE) -> 0 | AV82: =VLOOKUP(CONCATENATE($N$6,$D82,$N$8,$E82),Data!$A:$BU,MATCH(E!AV$12,Data!$A$1:$BU$1,0),FALSE) -> 0 | AX82: =VLOOKUP(CONCATENATE($N$6,$D82,$N$8,$E82),Data!$A:$BU,MATCH(E!AX$12,Data!$A$1:$BU$1,0),FALSE) -> 0 | AZ82: =VLOOKUP(CONCATENATE($N$6,$D82,$N$8,$E82),Data!$A:$BU,MATCH(E!AZ$12,Data!$A$1:$BU$1,0),FALSE) -> 0 | BB82: =VLOOKUP(CONCATENATE($N$6,$D82,$N$8,$E82),Data!$A:$BU,MATCH(E!BB$12,Data!$A$1:$BU$1,0),FALSE) -> 0 | BD82: =VLOOKUP(CONCATENATE($N$6,$D82,$N$8,$E82),Data!$A:$BU,MATCH(E!BD$12,Data!$A$1:$BU$1,0),FALSE) -> 0 | BF82: =VLOOKUP(CONCATENATE($N$6,$D82,$N$8,$E82),Data!$A:$BU,MATCH(E!BF$12,Data!$A$1:$BU$1,0),FALSE) -> 0 | BH82: =VLOOKUP(CONCATENATE($N$6,$D82,$N$8,$E82),Data!$A:$BU,MATCH(E!BH$12,Data!$A$1:$BU$1,0),FALSE) -> 0 | BJ82: =VLOOKUP(CONCATENATE($N$6,$D82,$N$8,$E82),Data!$A:$BU,MATCH(E!BJ$12,Data!$A$1:$BU$1,0),FALSE) -> 0
D83: British Antarctic Territory | E83: b | F83: =VLOOKUP(CONCATENATE($N$6,$D83,$N$8,$E83),Data!$A:$BU,MATCH(E!F$12,Data!$A$1:$BU$1,0),FALSE) -> 0 | H83: =VLOOKUP(CONCATENATE($N$6,$D83,$N$8,$E83),Data!$A:$BU,MATCH(E!H$12,Data!$A$1:$BU$1,0),FALSE) -> 0 | J83: =VLOOKUP(CONCATENATE($N$6,$D83,$N$8,$E83),Data!$A:$BU,MATCH(E!J$12,Data!$A$1:$BU$1,0),FALSE) -> 0 | L83: =VLOOKUP(CONCATENATE($N$6,$D83,$N$8,$E83),Data!$A:$BU,MATCH(E!L$12,Data!$A$1:$BU$1,0),FALSE) -> 0 | N83: =VLOOKUP(CONCATENATE($N$6,$D83,$N$8,$E83),Data!$A:$BU,MATCH(E!N$12,Data!$A$1:$BU$1,0),FALSE) -> 0 | P83: =VLOOKUP(CONCATENATE($N$6,$D83,$N$8,$E83),Data!$A:$BU,MATCH(E!P$12,Data!$A$1:$BU$1,0),FALSE) -> 0 | R83: =VLOOKUP(CONCATENATE($N$6,$D83,$N$8,$E83),Data!$A:$BU,MATCH(E!R$12,Data!$A$1:$BU$1,0),FALSE) -> 0 | T83: =VLOOKUP(CONCATENATE($N$6,$D83,$N$8,$E83),Data!$A:$BU,MATCH(E!T$12,Data!$A$1:$BU$1,0),FALSE) -> 0 | V83: =VLOOKUP(CONCATENATE($N$6,$D83,$N$8,$E83),Data!$A:$BU,MATCH(E!V$12,Data!$A$1:$BU$1,0),FALSE) -> 0 | X83: =VLOOKUP(CONCATENATE($N$6,$D83,$N$8,$E83),Data!$A:$BU,MATCH(E!X$12,Data!$A$1:$BU$1,0),FALSE) -> 0 | Z83: =VLOOKUP(CONCATENATE($N$6,$D83,$N$8,$E83),Data!$A:$BU,MATCH(E!Z$12,Data!$A$1:$BU$1,0),FALSE) -> 0 | AB83: =VLOOKUP(CONCATENATE($N$6,$D83,$N$8,$E83),Data!$A:$BU,MATCH(E!AB$12,Data!$A$1:$BU$1,0),FALSE) -> 0 | AD83: =VLOOKUP(CONCATENATE($N$6,$D83,$N$8,$E83),Data!$A:$BU,MATCH(E!AD$12,Data!$A$1:$BU$1,0),FALSE) -> 0 | AF83: =VLOOKUP(CONCATENATE($N$6,$D83,$N$8,$E83),Data!$A:$BU,MATCH(E!AF$12,Data!$A$1:$BU$1,0),FALSE) -> 0 | AH83: =VLOOKUP(CONCATENATE($N$6,$D83,$N$8,$E83),Data!$A:$BU,MATCH(E!AH$12,Data!$A$1:$BU$1,0),FALSE) -> 0 | AJ83: =VLOOKUP(CONCATENATE($N$6,$D83,$N$8,$E83),Data!$A:$BU,MATCH(E!AJ$12,Data!$A$1:$BU$1,0),FALSE) -> 0 | AL83: =VLOOKUP(CONCATENATE($N$6,$D83,$N$8,$E83),Data!$A:$BU,MATCH(E!AL$12,Data!$A$1:$BU$1,0),FALSE) -> 0 | AN83: =VLOOKUP(CONCATENATE($N$6,$D83,$N$8,$E83),Data!$A:$BU,MATCH(E!AN$12,Data!$A$1:$BU$1,0),FALSE) -> 0 | AP83: =VLOOKUP(CONCATENATE($N$6,$D83,$N$8,$E83),Data!$A:$BU,MATCH(E!AP$12,Data!$A$1:$BU$1,0),FALSE) -> 1930 | AR83: =VLOOKUP(CONCATENATE($N$6,$D83,$N$8,$E83),Data!$A:$BU,MATCH(E!AR$12,Data!$A$1:$BU$1,0),FALSE) -> 0 | AT83: =VLOOKUP(CONCATENATE($N$6,$D83,$N$8,$E83),Data!$A:$BU,MATCH(E!AT$12,Data!$A$1:$BU$1,0),FALSE) -> 0 | AV83: =VLOOKUP(CONCATENATE($N$6,$D83,$N$8,$E83),Data!$A:$BU,MATCH(E!AV$12,Data!$A$1:$BU$1,0),FALSE) -> 0 | AX83: =VLOOKUP(CONCATENATE($N$6,$D83,$N$8,$E83),Data!$A:$BU,MATCH(E!AX$12,Data!$A$1:$BU$1,0),FALSE) -> 0 | AZ83: =VLOOKUP(CONCATENATE($N$6,$D83,$N$8,$E83),Data!$A:$BU,MATCH(E!AZ$12,Data!$A$1:$BU$1,0),FALSE) -> 0 | BB83: =VLOOKUP(CONCATENATE($N$6,$D83,$N$8,$E83),Data!$A:$BU,MATCH(E!BB$12,Data!$A$1:$BU$1,0),FALSE) -> 0 | BD83: =VLOOKUP(CONCATENATE($N$6,$D83,$N$8,$E83),Data!$A:$BU,MATCH(E!BD$12,Data!$A$1:$BU$1,0),FALSE) -> 0 | BF83: =VLOOKUP(CONCATENATE($N$6,$D83,$N$8,$E83),Data!$A:$BU,MATCH(E!BF$12,Data!$A$1:$BU$1,0),FALSE) -> 0 | BH83: =VLOOKUP(CONCATENATE($N$6,$D83,$N$8,$E83),Data!$A:$BU,MATCH(E!BH$12,Data!$A$1:$BU$1,0),FALSE) -> 0 | BJ83: =VLOOKUP(CONCATENATE($N$6,$D83,$N$8,$E83),Data!$A:$BU,MATCH(E!BJ$12,Data!$A$1:$BU$1,0),FALSE) -> 0
D84: British Indian Ocean Territory | E84: a | F84: =VLOOKUP(CONCATENATE($N$6,$D84,$N$8,$E84),Data!$A:$BU,MATCH(E!F$12,Data!$A$1:$BU$1,0),FALSE) -> 0 | H84: =VLOOKUP(CONCATENATE($N$6,$D84,$N$8,$E84),Data!$A:$BU,MATCH(E!H$12,Data!$A$1:$BU$1,0),FALSE) -> 0 | J84: =VLOOKUP(CONCATENATE($N$6,$D84,$N$8,$E84),Data!$A:$BU,MATCH(E!J$12,Data!$A$1:$BU$1,0),FALSE) -> 0 | L84: =VLOOKUP(CONCATENATE($N$6,$D84,$N$8,$E84),Data!$A:$BU,MATCH(E!L$12,Data!$A$1:$BU$1,0),FALSE) -> 0 | N84: =VLOOKUP(CONCATENATE($N$6,$D84,$N$8,$E84),Data!$A:$BU,MATCH(E!N$12,Data!$A$1:$BU$1,0),FALSE) -> 0 | P84: =VLOOKUP(CONCATENATE($N$6,$D84,$N$8,$E84),Data!$A:$BU,MATCH(E!P$12,Data!$A$1:$BU$1,0),FALSE) -> 0 | R84: =VLOOKUP(CONCATENATE($N$6,$D84,$N$8,$E84),Data!$A:$BU,MATCH(E!R$12,Data!$A$1:$BU$1,0),FALSE) -> 0 | T84: =VLOOKUP(CONCATENATE($N$6,$D84,$N$8,$E84),Data!$A:$BU,MATCH(E!T$12,Data!$A$1:$BU$1,0),FALSE) -> 0 | V84: =VLOOKUP(CONCATENATE($N$6,$D84,$N$8,$E84),Data!$A:$BU,MATCH(E!V$12,Data!$A$1:$BU$1,0),FALSE) -> 0 | X84: =VLOOKUP(CONCATENATE($N$6,$D84,$N$8,$E84),Data!$A:$BU,MATCH(E!X$12,Data!$A$1:$BU$1,0),FALSE) -> 0 | Z84: =VLOOKUP(CONCATENATE($N$6,$D84,$N$8,$E84),Data!$A:$BU,MATCH(E!Z$12,Data!$A$1:$BU$1,0),FALSE) -> 0 | AB84: =VLOOKUP(CONCATENATE($N$6,$D84,$N$8,$E84),Data!$A:$BU,MATCH(E!AB$12,Data!$A$1:$BU$1,0),FALSE) -> 0 | AD84: =VLOOKUP(CONCATENATE($N$6,$D84,$N$8,$E84),Data!$A:$BU,MATCH(E!AD$12,Data!$A$1:$BU$1,0),FALSE) -> 0 | AF84: =VLOOKUP(CONCATENATE($N$6,$D84,$N$8,$E84),Data!$A:$BU,MATCH(E!AF$12,Data!$A$1:$BU$1,0),FALSE) -> 0 | AH84: =VLOOKUP(CONCATENATE($N$6,$D84,$N$8,$E84),Data!$A:$BU,MATCH(E!AH$12,Data!$A$1:$BU$1,0),FALSE) -> 0 | AJ84: =VLOOKUP(CONCATENATE($N$6,$D84,$N$8,$E84),Data!$A:$BU,MATCH(E!AJ$12,Data!$A$1:$BU$1,0),FALSE) -> 0 | AL84: =VLOOKUP(CONCATENATE($N$6,$D84,$N$8,$E84),Data!$A:$BU,MATCH(E!AL$12,Data!$A$1:$BU$1,0),FALSE) -> 0 | AN84: =VLOOKUP(CONCATENATE($N$6,$D84,$N$8,$E84),Data!$A:$BU,MATCH(E!AN$12,Data!$A$1:$BU$1,0),FALSE) -> 0 | AP84: =VLOOKUP(CONCATENATE($N$6,$D84,$N$8,$E84),Data!$A:$BU,MATCH(E!AP$12,Data!$A$1:$BU$1,0),FALSE) -> 0 | AR84: =VLOOKUP(CONCATENATE($N$6,$D84,$N$8,$E84),Data!$A:$BU,MATCH(E!AR$12,Data!$A$1:$BU$1,0),FALSE) -> 0 | AT84: =VLOOKUP(CONCATENATE($N$6,$D84,$N$8,$E84),Data!$A:$BU,MATCH(E!AT$12,Data!$A$1:$BU$1,0),FALSE) -> 0 | AV84: =VLOOKUP(CONCATENATE($N$6,$D84,$N$8,$E84),Data!$A:$BU,MATCH(E!AV$12,Data!$A$1:$BU$1,0),FALSE) -> 0 | AX84: =VLOOKUP(CONCATENATE($N$6,$D84,$N$8,$E84),Data!$A:$BU,MATCH(E!AX$12,Data!$A$1:$BU$1,0),FALSE) -> 0 | AZ84: =VLOOKUP(CONCATENATE($N$6,$D84,$N$8,$E84),Data!$A:$BU,MATCH(E!AZ$12,Data!$A$1:$BU$1,0),FALSE) -> 0 | BB84: =VLOOKUP(CONCATENATE($N$6,$D84,$N$8,$E84),Data!$A:$BU,MATCH(E!BB$12,Data!$A$1:$BU$1,0),FALSE) -> 0 | BD84: =VLOOKUP(CONCATENATE($N$6,$D84,$N$8,$E84),Data!$A:$BU,MATCH(E!BD$12,Data!$A$1:$BU$1,0),FALSE) -> 0 | BF84: =VLOOKUP(CONCATENATE($N$6,$D84,$N$8,$E84),Data!$A:$BU,MATCH(E!BF$12,Data!$A$1:$BU$1,0),FALSE) -> 0 | BH84: =VLOOKUP(CONCATENATE($N$6,$D84,$N$8,$E84),Data!$A:$BU,MATCH(E!BH$12,Data!$A$1:$BU$1,0),FALSE) -> 0 | BJ84: =VLOOKUP(CONCATENATE($N$6,$D84,$N$8,$E84),Data!$A:$BU,MATCH(E!BJ$12,Data!$A$1:$BU$1,0),FALSE) -> 0
D85: British Indian Ocean Territory | E85: b | F85: =VLOOKUP(CONCATENATE($N$6,$D85,$N$8,$E85),Data!$A:$BU,MATCH(E!F$12,Data!$A$1:$BU$1,0),FALSE) -> 0 | H85: =VLOOKUP(CONCATENATE($N$6,$D85,$N$8,$E85),Data!$A:$BU,MATCH(E!H$12,Data!$A$1:$BU$1,0),FALSE) -> 0 | J85: =VLOOKUP(CONCATENATE($N$6,$D85,$N$8,$E85),Data!$A:$BU,MATCH(E!J$12,Data!$A$1:$BU$1,0),FALSE) -> 0 | L85: =VLOOKUP(CONCATENATE($N$6,$D85,$N$8,$E85),Data!$A:$BU,MATCH(E!L$12,Data!$A$1:$BU$1,0),FALSE) -> 0 | N85: =VLOOKUP(CONCATENATE($N$6,$D85,$N$8,$E85),Data!$A:$BU,MATCH(E!N$12,Data!$A$1:$BU$1,0),FALSE) -> 0 | P85: =VLOOKUP(CONCATENATE($N$6,$D85,$N$8,$E85),Data!$A:$BU,MATCH(E!P$12,Data!$A$1:$BU$1,0),FALSE) -> 0 | R85: =VLOOKUP(CONCATENATE($N$6,$D85,$N$8,$E85),Data!$A:$BU,MATCH(E!R$12,Data!$A$1:$BU$1,0),FALSE) -> 0 | T85: =VLOOKUP(CONCATENATE($N$6,$D85,$N$8,$E85),Data!$A:$BU,MATCH(E!T$12,Data!$A$1:$BU$1,0),FALSE) -> 0 | V85: =VLOOKUP(CONCATENATE($N$6,$D85,$N$8,$E85),Data!$A:$BU,MATCH(E!V$12,Data!$A$1:$BU$1,0),FALSE) -> 0 | X85: =VLOOKUP(CONCATENATE($N$6,$D85,$N$8,$E85),Data!$A:$BU,MATCH(E!X$12,Data!$A$1:$BU$1,0),FALSE) -> 0 | Z85: =VLOOKUP(CONCATENATE($N$6,$D85,$N$8,$E85),Data!$A:$BU,MATCH(E!Z$12,Data!$A$1:$BU$1,0),FALSE) -> 0 | AB85: =VLOOKUP(CONCATENATE($N$6,$D85,$N$8,$E85),Data!$A:$BU,MATCH(E!AB$12,Data!$A$1:$BU$1,0),FALSE) -> 0 | AD85: =VLOOKUP(CONCATENATE($N$6,$D85,$N$8,$E85),Data!$A:$BU,MATCH(E!AD$12,Data!$A$1:$BU$1,0),FALSE) -> 0 | AF85: =VLOOKUP(CONCATENATE($N$6,$D85,$N$8,$E85),Data!$A:$BU,MATCH(E!AF$12,Data!$A$1:$BU$1,0),FALSE) -> 0 | AH85: =VLOOKUP(CONCATENATE($N$6,$D85,$N$8,$E85),Data!$A:$BU,MATCH(E!AH$12,Data!$A$1:$BU$1,0),FALSE) -> 0 | AJ85: =VLOOKUP(CONCATENATE($N$6,$D85,$N$8,$E85),Data!$A:$BU,MATCH(E!AJ$12,Data!$A$1:$BU$1,0),FALSE) -> 0 | AL85: =VLOOKUP(CONCATENATE($N$6,$D85,$N$8,$E85),Data!$A:$BU,MATCH(E!AL$12,Data!$A$1:$BU$1,0),FALSE) -> 0 | AN85: =VLOOKUP(CONCATENATE($N$6,$D85,$N$8,$E85),Data!$A:$BU,MATCH(E!AN$12,Data!$A$1:$BU$1,0),FALSE) -> 0 | AP85: =VLOOKUP(CONCATENATE($N$6,$D85,$N$8,$E85),Data!$A:$BU,MATCH(E!AP$12,Data!$A$1:$BU$1,0),FALSE) -> 0 | AR85: =VLOOKUP(CONCATENATE($N$6,$D85,$N$8,$E85),Data!$A:$BU,MATCH(E!AR$12,Data!$A$1:$BU$1,0),FALSE) -> 0 | AT85: =VLOOKUP(CONCATENATE($N$6,$D85,$N$8,$E85),Data!$A:$BU,MATCH(E!AT$12,Data!$A$1:$BU$1,0),FALSE) -> 0 | AV85: =VLOOKUP(CONCATENATE($N$6,$D85,$N$8,$E85),Data!$A:$BU,MATCH(E!AV$12,Data!$A$1:$BU$1,0),FALSE) -> 0 | AX85: =VLOOKUP(CONCATENATE($N$6,$D85,$N$8,$E85),Data!$A:$BU,MATCH(E!AX$12,Data!$A$1:$BU$1,0),FALSE) -> 0 | AZ85: =VLOOKUP(CONCATENATE($N$6,$D85,$N$8,$E85),Data!$A:$BU,MATCH(E!AZ$12,Data!$A$1:$BU$1,0),FALSE) -> 0 | BB85: =VLOOKUP(CONCATENATE($N$6,$D85,$N$8,$E85),Data!$A:$BU,MATCH(E!BB$12,Data!$A$1:$BU$1,0),FALSE) -> 0 | BD85: =VLOOKUP(CONCATENATE($N$6,$D85,$N$8,$E85),Data!$A:$BU,MATCH(E!BD$12,Data!$A$1:$BU$1,0),FALSE) -> 0 | BF85: =VLOOKUP(CONCATENATE($N$6,$D85,$N$8,$E85),Data!$A:$BU,MATCH(E!BF$12,Data!$A$1:$BU$1,0),FALSE) -> 0 | BH85: =VLOOKUP(CONCATENATE($N$6,$D85,$N$8,$E85),Data!$A:$BU,MATCH(E!BH$12,Data!$A$1:$BU$1,0),FALSE) -> 0 | BJ85: =VLOOKUP(CONCATENATE($N$6,$D85,$N$8,$E85),Data!$A:$BU,MATCH(E!BJ$12,Data!$A$1:$BU$1,0),FALSE) -> 0
D86: British Virgin Islands | E86: a | F86: =VLOOKUP(CONCATENATE($N$6,$D86,$N$8,$E86),Data!$A:$BU,MATCH(E!F$12,Data!$A$1:$BU$1,0),FALSE) -> 0 | H86: =VLOOKUP(CONCATENATE($N$6,$D86,$N$8,$E86),Data!$A:$BU,MATCH(E!H$12,Data!$A$1:$BU$1,0),FALSE) -> 0 | J86: =VLOOKUP(CONCATENATE($N$6,$D86,$N$8,$E86),Data!$A:$BU,MATCH(E!J$12,Data!$A$1:$BU$1,0),FALSE) -> 0 | L86: =VLOOKUP(CONCATENATE($N$6,$D86,$N$8,$E86),Data!$A:$BU,MATCH(E!L$12,Data!$A$1:$BU$1,0),FALSE) -> 0 | N86: =VLOOKUP(CONCATENATE($N$6,$D86,$N$8,$E86),Data!$A:$BU,MATCH(E!N$12,Data!$A$1:$BU$1,0),FALSE) -> 0 | P86: =VLOOKUP(CONCATENATE($N$6,$D86,$N$8,$E86),Data!$A:$BU,MATCH(E!P$12,Data!$A$1:$BU$1,0),FALSE) -> 0 | R86: =VLOOKUP(CONCATENATE($N$6,$D86,$N$8,$E86),Data!$A:$BU,MATCH(E!R$12,Data!$A$1:$BU$1,0),FALSE) -> 0 | T86: =VLOOKUP(CONCATENATE($N$6,$D86,$N$8,$E86),Data!$A:$BU,MATCH(E!T$12,Data!$A$1:$BU$1,0),FALSE) -> 0 | V86: =VLOOKUP(CONCATENATE($N$6,$D86,$N$8,$E86),Data!$A:$BU,MATCH(E!V$12,Data!$A$1:$BU$1,0),FALSE) -> 1 | X86: =VLOOKUP(CONCATENATE($N$6,$D86,$N$8,$E86),Data!$A:$BU,MATCH(E!X$12,Data!$A$1:$BU$1,0),FALSE) -> 0 | Z86: =VLOOKUP(CONCATENATE($N$6,$D86,$N$8,$E86),Data!$A:$BU,MATCH(E!Z$12,Data!$A$1:$BU$1,0),FALSE) -> 0 | AB86: =VLOOKUP(CONCATENATE($N$6,$D86,$N$8,$E86),Data!$A:$BU,MATCH(E!AB$12,Data!$A$1:$BU$1,0),FALSE) -> 0 | AD86: =VLOOKUP(CONCATENATE($N$6,$D86,$N$8,$E86),Data!$A:$BU,MATCH(E!AD$12,Data!$A$1:$BU$1,0),FALSE) -> 0 | AF86: =VLOOKUP(CONCATENATE($N$6,$D86,$N$8,$E86),Data!$A:$BU,MATCH(E!AF$12,Data!$A$1:$BU$1,0),FALSE) -> 0 | AH86: =VLOOKUP(CONCATENATE($N$6,$D86,$N$8,$E86),Data!$A:$BU,MATCH(E!AH$12,Data!$A$1:$BU$1,0),FALSE) -> 0 | AJ86: =VLOOKUP(CONCATENATE($N$6,$D86,$N$8,$E86),Data!$A:$BU,MATCH(E!AJ$12,Data!$A$1:$BU$1,0),FALSE) -> 0 | AL86: =VLOOKUP(CONCATENATE($N$6,$D86,$N$8,$E86),Data!$A:$BU,MATCH(E!AL$12,Data!$A$1:$BU$1,0),FALSE) -> 0 | AN86: =VLOOKUP(CONCATENATE($N$6,$D86,$N$8,$E86),Data!$A:$BU,MATCH(E!AN$12,Data!$A$1:$BU$1,0),FALSE) -> 0 | AP86: =VLOOKUP(CONCATENATE($N$6,$D86,$N$8,$E86),Data!$A:$BU,MATCH(E!AP$12,Data!$A$1:$BU$1,0),FALSE) -> 0 | AR86: =VLOOKUP(CONCATENATE($N$6,$D86,$N$8,$E86),Data!$A:$BU,MATCH(E!AR$12,Data!$A$1:$BU$1,0),FALSE) -> 0 | AT86: =VLOOKUP(CONCATENATE($N$6,$D86,$N$8,$E86),Data!$A:$BU,MATCH(E!AT$12,Data!$A$1:$BU$1,0),FALSE) -> 1 | AV86: =VLOOKUP(CONCATENATE($N$6,$D86,$N$8,$E86),Data!$A:$BU,MATCH(E!AV$12,Data!$A$1:$BU$1,0),FALSE) -> 0 | AX86: =VLOOKUP(CONCATENATE($N$6,$D86,$N$8,$E86),Data!$A:$BU,MATCH(E!AX$12,Data!$A$1:$BU$1,0),FALSE) -> 0 | AZ86: =VLOOKUP(CONCATENATE($N$6,$D86,$N$8,$E86),Data!$A:$BU,MATCH(E!AZ$12,Data!$A$1:$BU$1,0),FALSE) -> 0 | BB86: =VLOOKUP(CONCATENATE($N$6,$D86,$N$8,$E86),Data!$A:$BU,MATCH(E!BB$12,Data!$A$1:$BU$1,0),FALSE) -> 0 | BD86: =VLOOKUP(CONCATENATE($N$6,$D86,$N$8,$E86),Data!$A:$BU,MATCH(E!BD$12,Data!$A$1:$BU$1,0),FALSE) -> 0 | BF86: =VLOOKUP(CONCATENATE($N$6,$D86,$N$8,$E86),Data!$A:$BU,MATCH(E!BF$12,Data!$A$1:$BU$1,0),FALSE) -> 0 | BH86: =VLOOKUP(CONCATENATE($N$6,$D86,$N$8,$E86),Data!$A:$BU,MATCH(E!BH$12,Data!$A$1:$BU$1,0),FALSE) -> 0 | BJ86: =VLOOKUP(CONCATENATE($N$6,$D86,$N$8,$E86),Data!$A:$BU,MATCH(E!BJ$12,Data!$A$1:$BU$1,0),FALSE) -> 0
D87: British Virgin Islands | E87: b | F87: =VLOOKUP(CONCATENATE($N$6,$D87,$N$8,$E87),Data!$A:$BU,MATCH(E!F$12,Data!$A$1:$BU$1,0),FALSE) -> 0 | H87: =VLOOKUP(CONCATENATE($N$6,$D87,$N$8,$E87),Data!$A:$BU,MATCH(E!H$12,Data!$A$1:$BU$1,0),FALSE) -> 0 | J87: =VLOOKUP(CONCATENATE($N$6,$D87,$N$8,$E87),Data!$A:$BU,MATCH(E!J$12,Data!$A$1:$BU$1,0),FALSE) -> 0 | L87: =VLOOKUP(CONCATENATE($N$6,$D87,$N$8,$E87),Data!$A:$BU,MATCH(E!L$12,Data!$A$1:$BU$1,0),FALSE) -> 0 | N87: =VLOOKUP(CONCATENATE($N$6,$D87,$N$8,$E87),Data!$A:$BU,MATCH(E!N$12,Data!$A$1:$BU$1,0),FALSE) -> 0 | P87: =VLOOKUP(CONCATENATE($N$6,$D87,$N$8,$E87),Data!$A:$BU,MATCH(E!P$12,Data!$A$1:$BU$1,0),FALSE) -> 0 | R87: =VLOOKUP(CONCATENATE($N$6,$D87,$N$8,$E87),Data!$A:$BU,MATCH(E!R$12,Data!$A$1:$BU$1,0),FALSE) -> 0 | T87: =VLOOKUP(CONCATENATE($N$6,$D87,$N$8,$E87),Data!$A:$BU,MATCH(E!T$12,Data!$A$1:$BU$1,0),FALSE) -> 0 | V87: =VLOOKUP(CONCATENATE($N$6,$D87,$N$8,$E87),Data!$A:$BU,MATCH(E!V$12,Data!$A$1:$BU$1,0),FALSE) -> 2 | X87: =VLOOKUP(CONCATENATE($N$6,$D87,$N$8,$E87),Data!$A:$BU,MATCH(E!X$12,Data!$A$1:$BU$1,0),FALSE) -> 0 | Z87: =VLOOKUP(CONCATENATE($N$6,$D87,$N$8,$E87),Data!$A:$BU,MATCH(E!Z$12,Data!$A$1:$BU$1,0),FALSE) -> 0 | AB87: =VLOOKUP(CONCATENATE($N$6,$D87,$N$8,$E87),Data!$A:$BU,MATCH(E!AB$12,Data!$A$1:$BU$1,0),FALSE) -> 0 | AD87: =VLOOKUP(CONCATENATE($N$6,$D87,$N$8,$E87),Data!$A:$BU,MATCH(E!AD$12,Data!$A$1:$BU$1,0),FALSE) -> 0 | AF87: =VLOOKUP(CONCATENATE($N$6,$D87,$N$8,$E87),Data!$A:$BU,MATCH(E!AF$12,Data!$A$1:$BU$1,0),FALSE) -> 0 | AH87: =VLOOKUP(CONCATENATE($N$6,$D87,$N$8,$E87),Data!$A:$BU,MATCH(E!AH$12,Data!$A$1:$BU$1,0),FALSE) -> 0 | AJ87: =VLOOKUP(CONCATENATE($N$6,$D87,$N$8,$E87),Data!$A:$BU,MATCH(E!AJ$12,Data!$A$1:$BU$1,0),FALSE) -> 0 | AL87: =VLOOKUP(CONCATENATE($N$6,$D87,$N$8,$E87),Data!$A:$BU,MATCH(E!AL$12,Data!$A$1:$BU$1,0),FALSE) -> 0 | AN87: =VLOOKUP(CONCATENATE($N$6,$D87,$N$8,$E87),Data!$A:$BU,MATCH(E!AN$12,Data!$A$1:$BU$1,0),FALSE) -> 0 | AP87: =VLOOKUP(CONCATENATE($N$6,$D87,$N$8,$E87),Data!$A:$BU,MATCH(E!AP$12,Data!$A$1:$BU$1,0),FALSE) -> 0 | AR87: =VLOOKUP(CONCATENATE($N$6,$D87,$N$8,$E87),Data!$A:$BU,MATCH(E!AR$12,Data!$A$1:$BU$1,0),FALSE) -> 0 | AT87: =VLOOKUP(CONCATENATE($N$6,$D87,$N$8,$E87),Data!$A:$BU,MATCH(E!AT$12,Data!$A$1:$BU$1,0),FALSE) -> 4106 | AV87: =VLOOKUP(CONCATENATE($N$6,$D87,$N$8,$E87),Data!$A:$BU,MATCH(E!AV$12,Data!$A$1:$BU$1,0),FALSE) -> 0 | AX87: =VLOOKUP(CONCATENATE($N$6,$D87,$N$8,$E87),Data!$A:$BU,MATCH(E!AX$12,Data!$A$1:$BU$1,0),FALSE) -> 0 | AZ87: =VLOOKUP(CONCATENATE($N$6,$D87,$N$8,$E87),Data!$A:$BU,MATCH(E!AZ$12,Data!$A$1:$BU$1,0),FALSE) -> 0 | BB87: =VLOOKUP(CONCATENATE($N$6,$D87,$N$8,$E87),Data!$A:$BU,MATCH(E!BB$12,Data!$A$1:$BU$1,0),FALSE) -> 0 | BD87: =VLOOKUP(CONCATENATE($N$6,$D87,$N$8,$E87),Data!$A:$BU,MATCH(E!BD$12,Data!$A$1:$BU$1,0),FALSE) -> 0 | BF87: =VLOOKUP(CONCATENATE($N$6,$D87,$N$8,$E87),Data!$A:$BU,MATCH(E!BF$12,Data!$A$1:$BU$1,0),FALSE) -> 0 | BH87: =VLOOKUP(CONCATENATE($N$6,$D87,$N$8,$E87),Data!$A:$BU,MATCH(E!BH$12,Data!$A$1:$BU$1,0),FALSE) -> 0 | BJ87: =VLOOKUP(CONCATENATE($N$6,$D87,$N$8,$E87),Data!$A:$BU,MATCH(E!BJ$12,Data!$A$1:$BU$1,0),FALSE) -> 0
D88: Brunei | E88: a | F88: =VLOOKUP(CONCATENATE($N$6,$D88,$N$8,$E88),Data!$A:$BU,MATCH(E!F$12,Data!$A$1:$BU$1,0),FALSE) -> 2 | H88: =VLOOKUP(CONCATENATE($N$6,$D88,$N$8,$E88),Data!$A:$BU,MATCH(E!H$12,Data!$A$1:$BU$1,0),FALSE) -> 3 | J88: =VLOOKUP(CONCATENATE($N$6,$D88,$N$8,$E88),Data!$A:$BU,MATCH(E!J$12,Data!$A$1:$BU$1,0),FALSE) -> 7 | L88: =VLOOKUP(CONCATENATE($N$6,$D88,$N$8,$E88),Data!$A:$BU,MATCH(E!L$12,Data!$A$1:$BU$1,0),FALSE) -> 7 | N88: =VLOOKUP(CONCATENATE($N$6,$D88,$N$8,$E88),Data!$A:$BU,MATCH(E!N$12,Data!$A$1:$BU$1,0),FALSE) -> 8 | P88: =VLOOKUP(CONCATENATE($N$6,$D88,$N$8,$E88),Data!$A:$BU,MATCH(E!P$12,Data!$A$1:$BU$1,0),FALSE) -> 2 | R88: =VLOOKUP(CONCATENATE($N$6,$D88,$N$8,$E88),Data!$A:$BU,MATCH(E!R$12,Data!$A$1:$BU$1,0),FALSE) -> 2 | T88: =VLOOKUP(CONCATENATE($N$6,$D88,$N$8,$E88),Data!$A:$BU,MATCH(E!T$12,Data!$A$1:$BU$1,0),FALSE) -> 5 | V88: =VLOOKUP(CONCATENATE($N$6,$D88,$N$8,$E88),Data!$A:$BU,MATCH(E!V$12,Data!$A$1:$BU$1,0),FALSE) -> 5 | X88: =VLOOKUP(CONCATENATE($N$6,$D88,$N$8,$E88),Data!$A:$BU,MATCH(E!X$12,Data!$A$1:$BU$1,0),FALSE) -> 12 | Z88: =VLOOKUP(CONCATENATE($N$6,$D88,$N$8,$E88),Data!$A:$BU,MATCH(E!Z$12,Data!$A$1:$BU$1,0),FALSE) -> 11 | AB88: =VLOOKUP(CONCATENATE($N$6,$D88,$N$8,$E88),Data!$A:$BU,MATCH(E!AB$12,Data!$A$1:$BU$1,0),FALSE) -> 6 | AD88: =VLOOKUP(CONCATENATE($N$6,$D88,$N$8,$E88),Data!$A:$BU,MATCH(E!AD$12,Data!$A$1:$BU$1,0),FALSE) -> 6 | AF88: =VLOOKUP(CONCATENATE($N$6,$D88,$N$8,$E88),Data!$A:$BU,MATCH(E!AF$12,Data!$A$1:$BU$1,0),FALSE) -> 11 | AH88: =VLOOKUP(CONCATENATE($N$6,$D88,$N$8,$E88),Data!$A:$BU,MATCH(E!AH$12,Data!$A$1:$BU$1,0),FALSE) -> 4 | AJ88: =VLOOKUP(CONCATENATE($N$6,$D88,$N$8,$E88),Data!$A:$BU,MATCH(E!AJ$12,Data!$A$1:$BU$1,0),FALSE) -> 9 | AL88: =VLOOKUP(CONCATENATE($N$6,$D88,$N$8,$E88),Data!$A:$BU,MATCH(E!AL$12,Data!$A$1:$BU$1,0),FALSE) -> 6 | AN88: =VLOOKUP(CONCATENATE($N$6,$D88,$N$8,$E88),Data!$A:$BU,MATCH(E!AN$12,Data!$A$1:$BU$1,0),FALSE) -> 3 | AP88: =VLOOKUP(CONCATENATE($N$6,$D88,$N$8,$E88),Data!$A:$BU,MATCH(E!AP$12,Data!$A$1:$BU$1,0),FALSE) -> 9 | AR88: =VLOOKUP(CONCATENATE($N$6,$D88,$N$8,$E88),Data!$A:$BU,MATCH(E!AR$12,Data!$A$1:$BU$1,0),FALSE) -> 5 | AT88: =VLOOKUP(CONCATENATE($N$6,$D88,$N$8,$E88),Data!$A:$BU,MATCH(E!AT$12,Data!$A$1:$BU$1,0),FALSE) -> 9 | AV88: =VLOOKUP(CONCATENATE($N$6,$D88,$N$8,$E88),Data!$A:$BU,MATCH(E!AV$12,Data!$A$1:$BU$1,0),FALSE) -> 10 | AX88: =VLOOKUP(CONCATENATE($N$6,$D88,$N$8,$E88),Data!$A:$BU,MATCH(E!AX$12,Data!$A$1:$BU$1,0),FALSE) -> 6 | AZ88: =VLOOKUP(CONCATENATE($N$6,$D88,$N$8,$E88),Data!$A:$BU,MATCH(E!AZ$12,Data!$A$1:$BU$1,0),FALSE) -> 6 | BB88: =VLOOKUP(CONCATENATE($N$6,$D88,$N$8,$E88),Data!$A:$BU,MATCH(E!BB$12,Data!$A$1:$BU$1,0),FALSE) -> 10 | BD88: =VLOOKUP(CONCATENATE($N$6,$D88,$N$8,$E88),Data!$A:$BU,MATCH(E!BD$12,Data!$A$1:$BU$1,0),FALSE) -> 8 | BF88: =VLOOKUP(CONCATENATE($N$6,$D88,$N$8,$E88),Data!$A:$BU,MATCH(E!BF$12,Data!$A$1:$BU$1,0),FALSE) -> 1 | BH88: =VLOOKUP(CONCATENATE($N$6,$D88,$N$8,$E88),Data!$A:$BU,MATCH(E!BH$12,Data!$A$1:$BU$1,0),FALSE) -> 4 | BJ88: =VLOOKUP(CONCATENATE($N$6,$D88,$N$8,$E88),Data!$A:$BU,MATCH(E!BJ$12,Data!$A$1:$BU$1,0),FALSE) -> 6
D89: Brunei | E89: b | F89: =VLOOKUP(CONCATENATE($N$6,$D89,$N$8,$E89),Data!$A:$BU,MATCH(E!F$12,Data!$A$1:$BU$1,0),FALSE) -> 250086 | H89: =VLOOKUP(CONCATENATE($N$6,$D89,$N$8,$E89),Data!$A:$BU,MATCH(E!H$12,Data!$A$1:$BU$1,0),FALSE) -> 36480 | J89: =VLOOKUP(CONCATENATE($N$6,$D89,$N$8,$E89),Data!$A:$BU,MATCH(E!J$12,Data!$A$1:$BU$1,0),FALSE) -> 600172 | L89: =VLOOKUP(CONCATENATE($N$6,$D89,$N$8,$E89),Data!$A:$BU,MATCH(E!L$12,Data!$A$1:$BU$1,0),FALSE) -> 313945 | N89: =VLOOKUP(CONCATENATE($N$6,$D89,$N$8,$E89),Data!$A:$BU,MATCH(E!N$12,Data!$A$1:$BU$1,0),FALSE) -> 138405 | P89: =VLOOKUP(CONCATENATE($N$6,$D89,$N$8,$E89),Data!$A:$BU,MATCH(E!P$12,Data!$A$1:$BU$1,0),FALSE) -> 16362 | R89: =VLOOKUP(CONCATENATE($N$6,$D89,$N$8,$E89),Data!$A:$BU,MATCH(E!R$12,Data!$A$1:$BU$1,0),FALSE) -> 11589 | T89: =VLOOKUP(CONCATENATE($N$6,$D89,$N$8,$E89),Data!$A:$BU,MATCH(E!T$12,Data!$A$1:$BU$1,0),FALSE) -> 316109 | V89: =VLOOKUP(CONCATENATE($N$6,$D89,$N$8,$E89),Data!$A:$BU,MATCH(E!V$12,Data!$A$1:$BU$1,0),FALSE) -> 11671 | X89: =VLOOKUP(CONCATENATE($N$6,$D89,$N$8,$E89),Data!$A:$BU,MATCH(E!X$12,Data!$A$1:$BU$1,0),FALSE) -> 1164315 | Z89: =VLOOKUP(CONCATENATE($N$6,$D89,$N$8,$E89),Data!$A:$BU,MATCH(E!Z$12,Data!$A$1:$BU$1,0),FALSE) -> 512512 | AB89: =VLOOKUP(CONCATENATE($N$6,$D89,$N$8,$E89),Data!$A:$BU,MATCH(E!AB$12,Data!$A$1:$BU$1,0),FALSE) -> 93193 | AD89: =VLOOKUP(CONCATENATE($N$6,$D89,$N$8,$E89),Data!$A:$BU,MATCH(E!AD$12,Data!$A$1:$BU$1,0),FALSE) -> 516922 | AF89: =VLOOKUP(CONCATENATE($N$6,$D89,$N$8,$E89),Data!$A:$BU,MATCH(E!AF$12,Data!$A$1:$BU$1,0),FALSE) -> 470462 | AH89: =VLOOKUP(CONCATENATE($N$6,$D89,$N$8,$E89),Data!$A:$BU,MATCH(E!AH$12,Data!$A$1:$BU$1,0),FALSE) -> 27802 | AJ89: =VLOOKUP(CONCATENATE($N$6,$D89,$N$8,$E89),Data!$A:$BU,MATCH(E!AJ$12,Data!$A$1:$BU$1,0),FALSE) -> 254822 | AL89: =VLOOKUP(CONCATENATE($N$6,$D89,$N$8,$E89),Data!$A:$BU,MATCH(E!AL$12,Data!$A$1:$BU$1,0),FALSE) -> 67968 | AN89: =VLOOKUP(CONCATENATE($N$6,$D89,$N$8,$E89),Data!$A:$BU,MATCH(E!AN$12,Data!$A$1:$BU$1,0),FALSE) -> 155618 | AP89: =VLOOKUP(CONCATENATE($N$6,$D89,$N$8,$E89),Data!$A:$BU,MATCH(E!AP$12,Data!$A$1:$BU$1,0),FALSE) -> 302900 | AR89: =VLOOKUP(CONCATENATE($N$6,$D89,$N$8,$E89),Data!$A:$BU,MATCH(E!AR$12,Data!$A$1:$BU$1,0),FALSE) -> 107925 | AT89: =VLOOKUP(CONCATENATE($N$6,$D89,$N$8,$E89),Data!$A:$BU,MATCH(E!AT$12,Data!$A$1:$BU$1,0),FALSE) -> 804747 | AV89: =VLOOKUP(CONCATENATE($N$6,$D89,$N$8,$E89),Data!$A:$BU,MATCH(E!AV$12,Data!$A$1:$BU$1,0),FALSE) -> 1409911 | AX89: =VLOOKUP(CONCATENATE($N$6,$D89,$N$8,$E89),Data!$A:$BU,MATCH(E!AX$12,Data!$A$1:$BU$1,0),FALSE) -> 192545 | AZ89: =VLOOKUP(CONCATENATE($N$6,$D89,$N$8,$E89),Data!$A:$BU,MATCH(E!AZ$12,Data!$A$1:$BU$1,0),FALSE) -> 197654 | BB89: =VLOOKUP(CONCATENATE($N$6,$D89,$N$8,$E89),Data!$A:$BU,MATCH(E!BB$12,Data!$A$1:$BU$1,0),FALSE) -> 389390 | BD89: =VLOOKUP(CONCATENATE($N$6,$D89,$N$8,$E89),Data!$A:$BU,MATCH(E!BD$12,Data!$A$1:$BU$1,0),FALSE) -> 113171 | BF89: =VLOOKUP(CONCATENATE($N$6,$D89,$N$8,$E89),Data!$A:$BU,MATCH(E!BF$12,Data!$A$1:$BU$1,0),FALSE) -> 13992 | BH89: =VLOOKUP(CONCATENATE($N$6,$D89,$N$8,$E89),Data!$A:$BU,MATCH(E!BH$12,Data!$A$1:$BU$1,0),FALSE) -> 83067 | BJ89: =VLOOKUP(CONCATENATE($N$6,$D89,$N$8,$E89),Data!$A:$BU,MATCH(E!BJ$12,Data!$A$1:$BU$1,0),FALSE) -> 3093923
D90: Bulgaria | E90: a | F90: =VLOOKUP(CONCATENATE($N$6,$D90,$N$8,$E90),Data!$A:$BU,MATCH(E!F$12,Data!$A$1:$BU$1,0),FALSE) -> 3 | H90: =VLOOKUP(CONCATENATE($N$6,$D90,$N$8,$E90),Data!$A:$BU,MATCH(E!H$12,Data!$A$1:$BU$1,0),FALSE) -> 1 | J90: =VLOOKUP(CONCATENATE($N$6,$D90,$N$8,$E90),Data!$A:$BU,MATCH(E!J$12,Data!$A$1:$BU$1,0),FALSE) -> 3 | L90: =VLOOKUP(CONCATENATE($N$6,$D90,$N$8,$E90),Data!$A:$BU,MATCH(E!L$12,Data!$A$1:$BU$1,0),FALSE) -> 5 | N90: =VLOOKUP(CONCATENATE($N$6,$D90,$N$8,$E90),Data!$A:$BU,MATCH(E!N$12,Data!$A$1:$BU$1,0),FALSE) -> 5 | P90: =VLOOKUP(CONCATENATE($N$6,$D90,$N$8,$E90),Data!$A:$BU,MATCH(E!P$12,Data!$A$1:$BU$1,0),FALSE) -> 7 | R90: =VLOOKUP(CONCATENATE($N$6,$D90,$N$8,$E90),Data!$A:$BU,MATCH(E!R$12,Data!$A$1:$BU$1,0),FALSE) -> 8 | T90: =VLOOKUP(CONCATENATE($N$6,$D90,$N$8,$E90),Data!$A:$BU,MATCH(E!T$12,Data!$A$1:$BU$1,0),FALSE) -> 6 | V90: =VLOOKUP(CONCATENATE($N$6,$D90,$N$8,$E90),Data!$A:$BU,MATCH(E!V$12,Data!$A$1:$BU$1,0),FALSE) -> 3 | X90: =VLOOKUP(CONCATENATE($N$6,$D90,$N$8,$E90),Data!$A:$BU,MATCH(E!X$12,Data!$A$1:$BU$1,0),FALSE) -> 0 | Z90: =VLOOKUP(CONCATENATE($N$6,$D90,$N$8,$E90),Data!$A:$BU,MATCH(E!Z$12,Data!$A$1:$BU$1,0),FALSE) -> 7 | AB90: =VLOOKUP(CONCATENATE($N$6,$D90,$N$8,$E90),Data!$A:$BU,MATCH(E!AB$12,Data!$A$1:$BU$1,0),FALSE) -> 3 | AD90: =VLOOKUP(CONCATENATE($N$6,$D90,$N$8,$E90),Data!$A:$BU,MATCH(E!AD$12,Data!$A$1:$BU$1,0),FALSE) -> 4 | AF90: =VLOOKUP(CONCATENATE($N$6,$D90,$N$8,$E90),Data!$A:$BU,MATCH(E!AF$12,Data!$A$1:$BU$1,0),FALSE) -> 3 | AH90: =VLOOKUP(CONCATENATE($N$6,$D90,$N$8,$E90),Data!$A:$BU,MATCH(E!AH$12,Data!$A$1:$BU$1,0),FALSE) -> 7 | AJ90: =VLOOKUP(CONCATENATE($N$6,$D90,$N$8,$E90),Data!$A:$BU,MATCH(E!AJ$12,Data!$A$1:$BU$1,0),FALSE) -> 3 | AL90: =VLOOKUP(CONCATENATE($N$6,$D90,$N$8,$E90),Data!$A:$BU,MATCH(E!AL$12,Data!$A$1:$BU$1,0),FALSE) -> 7 | AN90: =VLOOKUP(CONCATENATE($N$6,$D90,$N$8,$E90),Data!$A:$BU,MATCH(E!AN$12,Data!$A$1:$BU$1,0),FALSE) -> 5 | AP90: =VLOOKUP(CONCATENATE($N$6,$D90,$N$8,$E90),Data!$A:$BU,MATCH(E!AP$12,Data!$A$1:$BU$1,0),FALSE) -> 6 | AR90: =VLOOKUP(CONCATENATE($N$6,$D90,$N$8,$E90),Data!$A:$BU,MATCH(E!AR$12,Data!$A$1:$BU$1,0),FALSE) -> 3 | AT90: =VLOOKUP(CONCATENATE($N$6,$D90,$N$8,$E90),Data!$A:$BU,MATCH(E!AT$12,Data!$A$1:$BU$1,0),FALSE) -> 1 | AV90: =VLOOKUP(CONCATENATE($N$6,$D90,$N$8,$E90),Data!$A:$BU,MATCH(E!AV$12,Data!$A$1:$BU$1,0),FALSE) -> 4 | AX90: =VLOOKUP(CONCATENATE($N$6,$D90,$N$8,$E90),Data!$A:$BU,MATCH(E!AX$12,Data!$A$1:$BU$1,0),FALSE) -> 2 | AZ90: =VLOOKUP(CONCATENATE($N$6,$D90,$N$8,$E90),Data!$A:$BU,MATCH(E!AZ$12,Data!$A$1:$BU$1,0),FALSE) -> 3 | BB90: =VLOOKUP(CONCATENATE($N$6,$D90,$N$8,$E90),Data!$A:$BU,MATCH(E!BB$12,Data!$A$1:$BU$1,0),FALSE) -> 10 | BD90: =VLOOKUP(CONCATENATE($N$6,$D90,$N$8,$E90),Data!$A:$BU,MATCH(E!BD$12,Data!$A$1:$BU$1,0),FALSE) -> 1 | BF90: =VLOOKUP(CONCATENATE($N$6,$D90,$N$8,$E90),Data!$A:$BU,MATCH(E!BF$12,Data!$A$1:$BU$1,0),FALSE) -> 2 | BH90: =VLOOKUP(CONCATENATE($N$6,$D90,$N$8,$E90),Data!$A:$BU,MATCH(E!BH$12,Data!$A$1:$BU$1,0),FALSE) -> 2 | BJ90: =VLOOKUP(CONCATENATE($N$6,$D90,$N$8,$E90),Data!$A:$BU,MATCH(E!BJ$12,Data!$A$1:$BU$1,0),FALSE) -> 3
D91: Bulgaria | E91: b | F91: =VLOOKUP(CONCATENATE($N$6,$D91,$N$8,$E91),Data!$A:$BU,MATCH(E!F$12,Data!$A$1:$BU$1,0),FALSE) -> 9690 | H91: =VLOOKUP(CONCATENATE($N$6,$D91,$N$8,$E91),Data!$A:$BU,MATCH(E!H$12,Data!$A$1:$BU$1,0),FALSE) -> 8530 | J91: =VLOOKUP(CONCATENATE($N$6,$D91,$N$8,$E91),Data!$A:$BU,MATCH(E!J$12,Data!$A$1:$BU$1,0),FALSE) -> 59743 | L91: =VLOOKUP(CONCATENATE($N$6,$D91,$N$8,$E91),Data!$A:$BU,MATCH(E!L$12,Data!$A$1:$BU$1,0),FALSE) -> 70578 | N91: =VLOOKUP(CONCATENATE($N$6,$D91,$N$8,$E91),Data!$A:$BU,MATCH(E!N$12,Data!$A$1:$BU$1,0),FALSE) -> 250024 | P91: =VLOOKUP(CONCATENATE($N$6,$D91,$N$8,$E91),Data!$A:$BU,MATCH(E!P$12,Data!$A$1:$BU$1,0),FALSE) -> 2458959 | R91: =VLOOKUP(CONCATENATE($N$6,$D91,$N$8,$E91),Data!$A:$BU,MATCH(E!R$12,Data!$A$1:$BU$1,0),FALSE) -> 272601 | T91: =VLOOKUP(CONCATENATE($N$6,$D91,$N$8,$E91),Data!$A:$BU,MATCH(E!T$12,Data!$A$1:$BU$1,0),FALSE) -> 7689 | V91: =VLOOKUP(CONCATENATE($N$6,$D91,$N$8,$E91),Data!$A:$BU,MATCH(E!V$12,Data!$A$1:$BU$1,0),FALSE) -> 6416 | X91: =VLOOKUP(CONCATENATE($N$6,$D91,$N$8,$E91),Data!$A:$BU,MATCH(E!X$12,Data!$A$1:$BU$1,0),FALSE) -> 0 | Z91: =VLOOKUP(CONCATENATE($N$6,$D91,$N$8,$E91),Data!$A:$BU,MATCH(E!Z$12,Data!$A$1:$BU$1,0),FALSE) -> 125110 | AB91: =VLOOKUP(CONCATENATE($N$6,$D91,$N$8,$E91),Data!$A:$BU,MATCH(E!AB$12,Data!$A$1:$BU$1,0),FALSE) -> 1218 | AD91: =VLOOKUP(CONCATENATE($N$6,$D91,$N$8,$E91),Data!$A:$BU,MATCH(E!AD$12,Data!$A$1:$BU$1,0),FALSE) -> 118879 | AF91: =VLOOKUP(CONCATENATE($N$6,$D91,$N$8,$E91),Data!$A:$BU,MATCH(E!AF$12,Data!$A$1:$BU$1,0),FALSE) -> 258012 | AH91: =VLOOKUP(CONCATENATE($N$6,$D91,$N$8,$E91),Data!$A:$BU,MATCH(E!AH$12,Data!$A$1:$BU$1,0),FALSE) -> 44090 | AJ91: =VLOOKUP(CONCATENATE($N$6,$D91,$N$8,$E91),Data!$A:$BU,MATCH(E!AJ$12,Data!$A$1:$BU$1,0),FALSE) -> 2591 | AL91: =VLOOKUP(CONCATENATE($N$6,$D91,$N$8,$E91),Data!$A:$BU,MATCH(E!AL$12,Data!$A$1:$BU$1,0),FALSE) -> 13923 | AN91: =VLOOKUP(CONCATENATE($N$6,$D91,$N$8,$E91),Data!$A:$BU,MATCH(E!AN$12,Data!$A$1:$BU$1,0),FALSE) -> 65288 | AP91: =VLOOKUP(CONCATENATE($N$6,$D91,$N$8,$E91),Data!$A:$BU,MATCH(E!AP$12,Data!$A$1:$BU$1,0),FALSE) -> 10060 | AR91: =VLOOKUP(CONCATENATE($N$6,$D91,$N$8,$E91),Data!$A:$BU,MATCH(E!AR$12,Data!$A$1:$BU$1,0),FALSE) -> 37829 | AT91: =VLOOKUP(CONCATENATE($N$6,$D91,$N$8,$E91),Data!$A:$BU,MATCH(E!AT$12,Data!$A$1:$BU$1,0),FALSE) -> 320 | AV91: =VLOOKUP(CONCATENATE($N$6,$D91,$N$8,$E91),Data!$A:$BU,MATCH(E!AV$12,Data!$A$1:$BU$1,0),FALSE) -> 2846821 | AX91: =VLOOKUP(CONCATENATE($N$6,$D91,$N$8,$E91),Data!$A:$BU,MATCH(E!AX$12,Data!$A$1:$BU$1,0),FALSE) -> 13610 | AZ91: =VLOOKUP(CONCATENATE($N$6,$D91,$N$8,$E91),Data!$A:$BU,MATCH(E!AZ$12,Data!$A$1:$BU$1,0),FALSE) -> 36304 | BB91: =VLOOKUP(CONCATENATE($N$6,$D91,$N$8,$E91),Data!$A:$BU,MATCH(E!BB$12,Data!$A$1:$BU$1,0),FALSE) -> 4335096 | BD91: =VLOOKUP(CONCATENATE($N$6,$D91,$N$8,$E91),Data!$A:$BU,MATCH(E!BD$12,Data!$A$1:$BU$1,0),FALSE) -> 4730 | BF91: =VLOOKUP(CONCATENATE($N$6,$D91,$N$8,$E91),Data!$A:$BU,MATCH(E!BF$12,Data!$A$1:$BU$1,0),FALSE) -> 5524802 | BH91: =VLOOKUP(CONCATENATE($N$6,$D91,$N$8,$E91),Data!$A:$BU,MATCH(E!BH$12,Data!$A$1:$BU$1,0),FALSE) -> 845642 | BJ91: =VLOOKUP(CONCATENATE($N$6,$D91,$N$8,$E91),Data!$A:$BU,MATCH(E!BJ$12,Data!$A$1:$BU$1,0),FALSE) -> 216301
D92: Burkina Faso | E92: a | F92: =VLOOKUP(CONCATENATE($N$6,$D92,$N$8,$E92),Data!$A:$BU,MATCH(E!F$12,Data!$A$1:$BU$1,0),FALSE) -> 0 | H92: =VLOOKUP(CONCATENATE($N$6,$D92,$N$8,$E92),Data!$A:$BU,MATCH(E!H$12,Data!$A$1:$BU$1,0),FALSE) -> 0 | J92: =VLOOKUP(CONCATENATE($N$6,$D92,$N$8,$E92),Data!$A:$BU,MATCH(E!J$12,Data!$A$1:$BU$1,0),FALSE) -> 0 | L92: =VLOOKUP(CONCATENATE($N$6,$D92,$N$8,$E92),Data!$A:$BU,MATCH(E!L$12,Data!$A$1:$BU$1,0),FALSE) -> 0 | N92: =VLOOKUP(CONCATENATE($N$6,$D92,$N$8,$E92),Data!$A:$BU,MATCH(E!N$12,Data!$A$1:$BU$1,0),FALSE) -> 0 | P92: =VLOOKUP(CONCATENATE($N$6,$D92,$N$8,$E92),Data!$A:$BU,MATCH(E!P$12,Data!$A$1:$BU$1,0),FALSE) -> 1 | R92: =VLOOKUP(CONCATENATE($N$6,$D92,$N$8,$E92),Data!$A:$BU,MATCH(E!R$12,Data!$A$1:$BU$1,0),FALSE) -> 1 | T92: =VLOOKUP(CONCATENATE($N$6,$D92,$N$8,$E92),Data!$A:$BU,MATCH(E!T$12,Data!$A$1:$BU$1,0),FALSE) -> 0 | V92: =VLOOKUP(CONCATENATE($N$6,$D92,$N$8,$E92),Data!$A:$BU,MATCH(E!V$12,Data!$A$1:$BU$1,0),FALSE) -> 0 | X92: =VLOOKUP(CONCATENATE($N$6,$D92,$N$8,$E92),Data!$A:$BU,MATCH(E!X$12,Data!$A$1:$BU$1,0),FALSE) -> 1 | Z92: =VLOOKUP(CONCATENATE($N$6,$D92,$N$8,$E92),Data!$A:$BU,MATCH(E!Z$12,Data!$A$1:$BU$1,0),FALSE) -> 0 | AB92: =VLOOKUP(CONCATENATE($N$6,$D92,$N$8,$E92),Data!$A:$BU,MATCH(E!AB$12,Data!$A$1:$BU$1,0),FALSE) -> 0 | AD92: =VLOOKUP(CONCATENATE($N$6,$D92,$N$8,$E92),Data!$A:$BU,MATCH(E!AD$12,Data!$A$1:$BU$1,0),FALSE) -> 0 | AF92: =VLOOKUP(CONCATENATE($N$6,$D92,$N$8,$E92),Data!$A:$BU,MATCH(E!AF$12,Data!$A$1:$BU$1,0),FALSE) -> 0 | AH92: =VLOOKUP(CONCATENATE($N$6,$D92,$N$8,$E92),Data!$A:$BU,MATCH(E!AH$12,Data!$A$1:$BU$1,0),FALSE) -> 1 | AJ92: =VLOOKUP(CONCATENATE($N$6,$D92,$N$8,$E92),Data!$A:$BU,MATCH(E!AJ$12,Data!$A$1:$BU$1,0),FALSE) -> 0 | AL92: =VLOOKUP(CONCATENATE($N$6,$D92,$N$8,$E92),Data!$A:$BU,MATCH(E!AL$12,Data!$A$1:$BU$1,0),FALSE) -> 0 | AN92: =VLOOKUP(CONCATENATE($N$6,$D92,$N$8,$E92),Data!$A:$BU,MATCH(E!AN$12,Data!$A$1:$BU$1,0),FALSE) -> 0 | AP92: =VLOOKUP(CONCATENATE($N$6,$D92,$N$8,$E92),Data!$A:$BU,MATCH(E!AP$12,Data!$A$1:$BU$1,0),FALSE) -> 0 | AR92: =VLOOKUP(CONCATENATE($N$6,$D92,$N$8,$E92),Data!$A:$BU,MATCH(E!AR$12,Data!$A$1:$BU$1,0),FALSE) -> 0 | AT92: =VLOOKUP(CONCATENATE($N$6,$D92,$N$8,$E92),Data!$A:$BU,MATCH(E!AT$12,Data!$A$1:$BU$1,0),FALSE) -> 1 | AV92: =VLOOKUP(CONCATENATE($N$6,$D92,$N$8,$E92),Data!$A:$BU,MATCH(E!AV$12,Data!$A$1:$BU$1,0),FALSE) -> 0 | AX92: =VLOOKUP(CONCATENATE($N$6,$D92,$N$8,$E92),Data!$A:$BU,MATCH(E!AX$12,Data!$A$1:$BU$1,0),FALSE) -> 0 | AZ92: =VLOOKUP(CONCATENATE($N$6,$D92,$N$8,$E92),Data!$A:$BU,MATCH(E!AZ$12,Data!$A$1:$BU$1,0),FALSE) -> 0 | BB92: =VLOOKUP(CONCATENATE($N$6,$D92,$N$8,$E92),Data!$A:$BU,MATCH(E!BB$12,Data!$A$1:$BU$1,0),FALSE) -> 0 | BD92: =VLOOKUP(CONCATENATE($N$6,$D92,$N$8,$E92),Data!$A:$BU,MATCH(E!BD$12,Data!$A$1:$BU$1,0),FALSE) -> 0 | BF92: =VLOOKUP(CONCATENATE($N$6,$D92,$N$8,$E92),Data!$A:$BU,MATCH(E!BF$12,Data!$A$1:$BU$1,0),FALSE) -> 2 | BH92: =VLOOKUP(CONCATENATE($N$6,$D92,$N$8,$E92),Data!$A:$BU,MATCH(E!BH$12,Data!$A$1:$BU$1,0),FALSE) -> 0 | BJ92: =VLOOKUP(CONCATENATE($N$6,$D92,$N$8,$E92),Data!$A:$BU,MATCH(E!BJ$12,Data!$A$1:$BU$1,0),FALSE) -> 0
D93: Burkina Faso | E93: b | F93: =VLOOKUP(CONCATENATE($N$6,$D93,$N$8,$E93),Data!$A:$BU,MATCH(E!F$12,Data!$A$1:$BU$1,0),FALSE) -> 0 | H93: =VLOOKUP(CONCATENATE($N$6,$D93,$N$8,$E93),Data!$A:$BU,MATCH(E!H$12,Data!$A$1:$BU$1,0),FALSE) -> 0 | J93: =VLOOKUP(CONCATENATE($N$6,$D93,$N$8,$E93),Data!$A:$BU,MATCH(E!J$12,Data!$A$1:$BU$1,0),FALSE) -> 0 | L93: =VLOOKUP(CONCATENATE($N$6,$D93,$N$8,$E93),Data!$A:$BU,MATCH(E!L$12,Data!$A$1:$BU$1,0),FALSE) -> 0 | N93: =VLOOKUP(CONCATENATE($N$6,$D93,$N$8,$E93),Data!$A:$BU,MATCH(E!N$12,Data!$A$1:$BU$1,0),FALSE) -> 0 | P93: =VLOOKUP(CONCATENATE($N$6,$D93,$N$8,$E93),Data!$A:$BU,MATCH(E!P$12,Data!$A$1:$BU$1,0),FALSE) -> 60000 | R93: =VLOOKUP(CONCATENATE($N$6,$D93,$N$8,$E93),Data!$A:$BU,MATCH(E!R$12,Data!$A$1:$BU$1,0),FALSE) -> 20000 | T93: =VLOOKUP(CONCATENATE($N$6,$D93,$N$8,$E93),Data!$A:$BU,MATCH(E!T$12,Data!$A$1:$BU$1,0),FALSE) -> 0 | V93: =VLOOKUP(CONCATENATE($N$6,$D93,$N$8,$E93),Data!$A:$BU,MATCH(E!V$12,Data!$A$1:$BU$1,0),FALSE) -> 0 | X93: =VLOOKUP(CONCATENATE($N$6,$D93,$N$8,$E93),Data!$A:$BU,MATCH(E!X$12,Data!$A$1:$BU$1,0),FALSE) -> 90000 | Z93: =VLOOKUP(CONCATENATE($N$6,$D93,$N$8,$E93),Data!$A:$BU,MATCH(E!Z$12,Data!$A$1:$BU$1,0),FALSE) -> 0 | AB93: =VLOOKUP(CONCATENATE($N$6,$D93,$N$8,$E93),Data!$A:$BU,MATCH(E!AB$12,Data!$A$1:$BU$1,0),FALSE) -> 0 | AD93: =VLOOKUP(CONCATENATE($N$6,$D93,$N$8,$E93),Data!$A:$BU,MATCH(E!AD$12,Data!$A$1:$BU$1,0),FALSE) -> 0 | AF93: =VLOOKUP(CONCATENATE($N$6,$D93,$N$8,$E93),Data!$A:$BU,MATCH(E!AF$12,Data!$A$1:$BU$1,0),FALSE) -> 0 | AH93: =VLOOKUP(CONCATENATE($N$6,$D93,$N$8,$E93),Data!$A:$BU,MATCH(E!AH$12,Data!$A$1:$BU$1,0),FALSE) -> 2660 | AJ93: =VLOOKUP(CONCATENATE($N$6,$D93,$N$8,$E93),Data!$A:$BU,MATCH(E!AJ$12,Data!$A$1:$BU$1,0),FALSE) -> 0 | AL93: =VLOOKUP(CONCATENATE($N$6,$D93,$N$8,$E93),Data!$A:$BU,MATCH(E!AL$12,Data!$A$1:$BU$1,0),FALSE) -> 0 | AN93: =VLOOKUP(CONCATENATE($N$6,$D93,$N$8,$E93),Data!$A:$BU,MATCH(E!AN$12,Data!$A$1:$BU$1,0),FALSE) -> 0 | AP93: =VLOOKUP(CONCATENATE($N$6,$D93,$N$8,$E93),Data!$A:$BU,MATCH(E!AP$12,Data!$A$1:$BU$1,0),FALSE) -> 0 | AR93: =VLOOKUP(CONCATENATE($N$6,$D93,$N$8,$E93),Data!$A:$BU,MATCH(E!AR$12,Data!$A$1:$BU$1,0),FALSE) -> 0 | AT93: =VLOOKUP(CONCATENATE($N$6,$D93,$N$8,$E93),Data!$A:$BU,MATCH(E!AT$12,Data!$A$1:$BU$1,0),FALSE) -> 3000 | AV93: =VLOOKUP(CONCATENATE($N$6,$D93,$N$8,$E93),Data!$A:$BU,MATCH(E!AV$12,Data!$A$1:$BU$1,0),FALSE) -> 0 | AX93: =VLOOKUP(CONCATENATE($N$6,$D93,$N$8,$E93),Data!$A:$BU,MATCH(E!AX$12,Data!$A$1:$BU$1,0),FALSE) -> 0 | AZ93: =VLOOKUP(CONCATENATE($N$6,$D93,$N$8,$E93),Data!$A:$BU,MATCH(E!AZ$12,Data!$A$1:$BU$1,0),FALSE) -> 0 | BB93: =VLOOKUP(CONCATENATE($N$6,$D93,$N$8,$E93),Data!$A:$BU,MATCH(E!BB$12,Data!$A$1:$BU$1,0),FALSE) -> 0 | BD93: =VLOOKUP(CONCATENATE($N$6,$D93,$N$8,$E93),Data!$A:$BU,MATCH(E!BD$12,Data!$A$1:$BU$1,0),FALSE) -> 0 | BF93: =VLOOKUP(CONCATENATE($N$6,$D93,$N$8,$E93),Data!$A:$BU,MATCH(E!BF$12,Data!$A$1:$BU$1,0),FALSE) -> 742415 | BH93: =VLOOKUP(CONCATENATE($N$6,$D93,$N$8,$E93),Data!$A:$BU,MATCH(E!BH$12,Data!$A$1:$BU$1,0),FALSE) -> 0 | BJ93: =VLOOKUP(CONCATENATE($N$6,$D93,$N$8,$E93),Data!$A:$BU,MATCH(E!BJ$12,Data!$A$1:$BU$1,0),FALSE) -> 0
D94: Burma | E94: a | F94: =VLOOKUP(CONCATENATE($N$6,$D94,$N$8,$E94),Data!$A:$BU,MATCH(E!F$12,Data!$A$1:$BU$1,0),FALSE) -> 0 | H94: =VLOOKUP(CONCATENATE($N$6,$D94,$N$8,$E94),Data!$A:$BU,MATCH(E!H$12,Data!$A$1:$BU$1,0),FALSE) -> 0 | J94: =VLOOKUP(CONCATENATE($N$6,$D94,$N$8,$E94),Data!$A:$BU,MATCH(E!J$12,Data!$A$1:$BU$1,0),FALSE) -> 0 | L94: =VLOOKUP(CONCATENATE($N$6,$D94,$N$8,$E94),Data!$A:$BU,MATCH(E!L$12,Data!$A$1:$BU$1,0),FALSE) -> 0 | N94: =VLOOKUP(CONCATENATE($N$6,$D94,$N$8,$E94),Data!$A:$BU,MATCH(E!N$12,Data!$A$1:$BU$1,0),FALSE) -> 0 | P94: =VLOOKUP(CONCATENATE($N$6,$D94,$N$8,$E94),Data!$A:$BU,MATCH(E!P$12,Data!$A$1:$BU$1,0),FALSE) -> 0 | R94: =VLOOKUP(CONCATENATE($N$6,$D94,$N$8,$E94),Data!$A:$BU,MATCH(E!R$12,Data!$A$1:$BU$1,0),FALSE) -> 0 | T94: =VLOOKUP(CONCATENATE($N$6,$D94,$N$8,$E94),Data!$A:$BU,MATCH(E!T$12,Data!$A$1:$BU$1,0),FALSE) -> 0 | V94: =VLOOKUP(CONCATENATE($N$6,$D94,$N$8,$E94),Data!$A:$BU,MATCH(E!V$12,Data!$A$1:$BU$1,0),FALSE) -> 0 | X94: =VLOOKUP(CONCATENATE($N$6,$D94,$N$8,$E94),Data!$A:$BU,MATCH(E!X$12,Data!$A$1:$BU$1,0),FALSE) -> 0 | Z94: =VLOOKUP(CONCATENATE($N$6,$D94,$N$8,$E94),Data!$A:$BU,MATCH(E!Z$12,Data!$A$1:$BU$1,0),FALSE) -> 0 | AB94: =VLOOKUP(CONCATENATE($N$6,$D94,$N$8,$E94),Data!$A:$BU,MATCH(E!AB$12,Data!$A$1:$BU$1,0),FALSE) -> 0 | AD94: =VLOOKUP(CONCATENATE($N$6,$D94,$N$8,$E94),Data!$A:$BU,MATCH(E!AD$12,Data!$A$1:$BU$1,0),FALSE) -> 0 | AF94: =VLOOKUP(CONCATENATE($N$6,$D94,$N$8,$E94),Data!$A:$BU,MATCH(E!AF$12,Data!$A$1:$BU$1,0),FALSE) -> 0 | AH94: =VLOOKUP(CONCATENATE($N$6,$D94,$N$8,$E94),Data!$A:$BU,MATCH(E!AH$12,Data!$A$1:$BU$1,0),FALSE) -> 0 | AJ94: =VLOOKUP(CONCATENATE($N$6,$D94,$N$8,$E94),Data!$A:$BU,MATCH(E!AJ$12,Data!$A$1:$BU$1,0),FALSE) -> 0 | AL94: =VLOOKUP(CONCATENATE($N$6,$D94,$N$8,$E94),Data!$A:$BU,MATCH(E!AL$12,Data!$A$1:$BU$1,0),FALSE) -> 0 | AN94: =VLOOKUP(CONCATENATE($N$6,$D94,$N$8,$E94),Data!$A:$BU,MATCH(E!AN$12,Data!$A$1:$BU$1,0),FALSE) -> 0 | AP94: =VLOOKUP(CONCATENATE($N$6,$D94,$N$8,$E94),Data!$A:$BU,MATCH(E!AP$12,Data!$A$1:$BU$1,0),FALSE) -> 0 | AR94: =VLOOKUP(CONCATENATE($N$6,$D94,$N$8,$E94),Data!$A:$BU,MATCH(E!AR$12,Data!$A$1:$BU$1,0),FALSE) -> 0 | AT94: =VLOOKUP(CONCATENATE($N$6,$D94,$N$8,$E94),Data!$A:$BU,MATCH(E!AT$12,Data!$A$1:$BU$1,0),FALSE) -> 0 | AV94: =VLOOKUP(CONCATENATE($N$6,$D94,$N$8,$E94),Data!$A:$BU,MATCH(E!AV$12,Data!$A$1:$BU$1,0),FALSE) -> 0 | AX94: =VLOOKUP(CONCATENATE($N$6,$D94,$N$8,$E94),Data!$A:$BU,MATCH(E!AX$12,Data!$A$1:$BU$1,0),FALSE) -> 0 | AZ94: =VLOOKUP(CONCATENATE($N$6,$D94,$N$8,$E94),Data!$A:$BU,MATCH(E!AZ$12,Data!$A$1:$BU$1,0),FALSE) -> 0 | BB94: =VLOOKUP(CONCATENATE($N$6,$D94,$N$8,$E94),Data!$A:$BU,MATCH(E!BB$12,Data!$A$1:$BU$1,0),FALSE) -> 0 | BD94: =VLOOKUP(CONCATENATE($N$6,$D94,$N$8,$E94),Data!$A:$BU,MATCH(E!BD$12,Data!$A$1:$BU$1,0),FALSE) -> 0 | BF94: =VLOOKUP(CONCATENATE($N$6,$D94,$N$8,$E94),Data!$A:$BU,MATCH(E!BF$12,Data!$A$1:$BU$1,0),FALSE) -> 0 | BH94: =VLOOKUP(CONCATENATE($N$6,$D94,$N$8,$E94),Data!$A:$BU,MATCH(E!BH$12,Data!$A$1:$BU$1,0),FALSE) -> 0 | BJ94: =VLOOKUP(CONCATENATE($N$6,$D94,$N$8,$E94),Data!$A:$BU,MATCH(E!BJ$12,Data!$A$1:$BU$1,0),FALSE) -> 0
D95: Burma | E95: b | F95: =VLOOKUP(CONCATENATE($N$6,$D95,$N$8,$E95),Data!$A:$BU,MATCH(E!F$12,Data!$A$1:$BU$1,0),FALSE) -> 0 | H95: =VLOOKUP(CONCATENATE($N$6,$D95,$N$8,$E95),Data!$A:$BU,MATCH(E!H$12,Data!$A$1:$BU$1,0),FALSE) -> 0 | J95: =VLOOKUP(CONCATENATE($N$6,$D95,$N$8,$E95),Data!$A:$BU,MATCH(E!J$12,Data!$A$1:$BU$1,0),FALSE) -> 0 | L95: =VLOOKUP(CONCATENATE($N$6,$D95,$N$8,$E95),Data!$A:$BU,MATCH(E!L$12,Data!$A$1:$BU$1,0),FALSE) -> 0 | N95: =VLOOKUP(CONCATENATE($N$6,$D95,$N$8,$E95),Data!$A:$BU,MATCH(E!N$12,Data!$A$1:$BU$1,0),FALSE) -> 0 | P95: =VLOOKUP(CONCATENATE($N$6,$D95,$N$8,$E95),Data!$A:$BU,MATCH(E!P$12,Data!$A$1:$BU$1,0),FALSE) -> 0 | R95: =VLOOKUP(CONCATENATE($N$6,$D95,$N$8,$E95),Data!$A:$BU,MATCH(E!R$12,Data!$A$1:$BU$1,0),FALSE) -> 0 | T95: =VLOOKUP(CONCATENATE($N$6,$D95,$N$8,$E95),Data!$A:$BU,MATCH(E!T$12,Data!$A$1:$BU$1,0),FALSE) -> 0 | V95: =VLOOKUP(CONCATENATE($N$6,$D95,$N$8,$E95),Data!$A:$BU,MATCH(E!V$12,Data!$A$1:$BU$1,0),FALSE) -> 0 | X95: =VLOOKUP(CONCATENATE($N$6,$D95,$N$8,$E95),Data!$A:$BU,MATCH(E!X$12,Data!$A$1:$BU$1,0),FALSE) -> 0 | Z95: =VLOOKUP(CONCATENATE($N$6,$D95,$N$8,$E95),Data!$A:$BU,MATCH(E!Z$12,Data!$A$1:$BU$1,0),FALSE) -> 0 | AB95: =VLOOKUP(CONCATENATE($N$6,$D95,$N$8,$E95),Data!$A:$BU,MATCH(E!AB$12,Data!$A$1:$BU$1,0),FALSE) -> 0 | AD95: =VLOOKUP(CONCATENATE($N$6,$D95,$N$8,$E95),Data!$A:$BU,MATCH(E!AD$12,Data!$A$1:$BU$1,0),FALSE) -> 0 | AF95: =VLOOKUP(CONCATENATE($N$6,$D95,$N$8,$E95),Data!$A:$BU,MATCH(E!AF$12,Data!$A$1:$BU$1,0),FALSE) -> 0 | AH95: =VLOOKUP(CONCATENATE($N$6,$D95,$N$8,$E95),Data!$A:$BU,MATCH(E!AH$12,Data!$A$1:$BU$1,0),FALSE) -> 0 | AJ95: =VLOOKUP(CONCATENATE($N$6,$D95,$N$8,$E95),Data!$A:$BU,MATCH(E!AJ$12,Data!$A$1:$BU$1,0),FALSE) -> 0 | AL95: =VLOOKUP(CONCATENATE($N$6,$D95,$N$8,$E95),Data!$A:$BU,MATCH(E!AL$12,Data!$A$1:$BU$1,0),FALSE) -> 0 | AN95: =VLOOKUP(CONCATENATE($N$6,$D95,$N$8,$E95),Data!$A:$BU,MATCH(E!AN$12,Data!$A$1:$BU$1,0),FALSE) -> 0 | AP95: =VLOOKUP(CONCATENATE($N$6,$D95,$N$8,$E95),Data!$A:$BU,MATCH(E!AP$12,Data!$A$1:$BU$1,0),FALSE) -> 0 | AR95: =VLOOKUP(CONCATENATE($N$6,$D95,$N$8,$E95),Data!$A:$BU,MATCH(E!AR$12,Data!$A$1:$BU$1,0),FALSE) -> 0 | AT95: =VLOOKUP(CONCATENATE($N$6,$D95,$N$8,$E95),Data!$A:$BU,MATCH(E!AT$12,Data!$A$1:$BU$1,0),FALSE) -> 0 | AV95: =VLOOKUP(CONCATENATE($N$6,$D95,$N$8,$E95),Data!$A:$BU,MATCH(E!AV$12,Data!$A$1:$BU$1,0),FALSE) -> 0 | AX95: =VLOOKUP(CONCATENATE($N$6,$D95,$N$8,$E95),Data!$A:$BU,MATCH(E!AX$12,Data!$A$1:$BU$1,0),FALSE) -> 0 | AZ95: =VLOOKUP(CONCATENATE($N$6,$D95,$N$8,$E95),Data!$A:$BU,MATCH(E!AZ$12,Data!$A$1:$BU$1,0),FALSE) -> 0 | BB95: =VLOOKUP(CONCATENATE($N$6,$D95,$N$8,$E95),Data!$A:$BU,MATCH(E!BB$12,Data!$A$1:$BU$1,0),FALSE) -> 0 | BD95: =VLOOKUP(CONCATENATE($N$6,$D95,$N$8,$E95),Data!$A:$BU,MATCH(E!BD$12,Data!$A$1:$BU$1,0),FALSE) -> 0 | BF95: =VLOOKUP(CONCATENATE($N$6,$D95,$N$8,$E95),Data!$A:$BU,MATCH(E!BF$12,Data!$A$1:$BU$1,0),FALSE) -> 0 | BH95: =VLOOKUP(CONCATENATE($N$6,$D95,$N$8,$E95),Data!$A:$BU,MATCH(E!BH$12,Data!$A$1:$BU$1,0),FALSE) -> 0 | BJ95: =VLOOKUP(CONCATENATE($N$6,$D95,$N$8,$E95),Data!$A:$BU,MATCH(E!BJ$12,Data!$A$1:$BU$1,0),FALSE) -> 0
D96: Burundi | E96: a | F96: =VLOOKUP(CONCATENATE($N$6,$D96,$N$8,$E96),Data!$A:$BU,MATCH(E!F$12,Data!$A$1:$BU$1,0),FALSE) -> 0 | H96: =VLOOKUP(CONCATENATE($N$6,$D96,$N$8,$E96),Data!$A:$BU,MATCH(E!H$12,Data!$A$1:$BU$1,0),FALSE) -> 0 | J96: =VLOOKUP(CONCATENATE($N$6,$D96,$N$8,$E96),Data!$A:$BU,MATCH(E!J$12,Data!$A$1:$BU$1,0),FALSE) -> 0 | L96: =VLOOKUP(CONCATENATE($N$6,$D96,$N$8,$E96),Data!$A:$BU,MATCH(E!L$12,Data!$A$1:$BU$1,0),FALSE) -> 1 | N96: =VLOOKUP(CONCATENATE($N$6,$D96,$N$8,$E96),Data!$A:$BU,MATCH(E!N$12,Data!$A$1:$BU$1,0),FALSE) -> 0 | P96: =VLOOKUP(CONCATENATE($N$6,$D96,$N$8,$E96),Data!$A:$BU,MATCH(E!P$12,Data!$A$1:$BU$1,0),FALSE) -> 0 | R96: =VLOOKUP(CONCATENATE($N$6,$D96,$N$8,$E96),Data!$A:$BU,MATCH(E!R$12,Data!$A$1:$BU$1,0),FALSE) -> 0 | T96: =VLOOKUP(CONCATENATE($N$6,$D96,$N$8,$E96),Data!$A:$BU,MATCH(E!T$12,Data!$A$1:$BU$1,0),FALSE) -> 0 | V96: =VLOOKUP(CONCATENATE($N$6,$D96,$N$8,$E96),Data!$A:$BU,MATCH(E!V$12,Data!$A$1:$BU$1,0),FALSE) -> 0 | X96: =VLOOKUP(CONCATENATE($N$6,$D96,$N$8,$E96),Data!$A:$BU,MATCH(E!X$12,Data!$A$1:$BU$1,0),FALSE) -> 0 | Z96: =VLOOKUP(CONCATENATE($N$6,$D96,$N$8,$E96),Data!$A:$BU,MATCH(E!Z$12,Data!$A$1:$BU$1,0),FALSE) -> 0 | AB96: =VLOOKUP(CONCATENATE($N$6,$D96,$N$8,$E96),Data!$A:$BU,MATCH(E!AB$12,Data!$A$1:$BU$1,0),FALSE) -> 0 | AD96: =VLOOKUP(CONCATENATE($N$6,$D96,$N$8,$E96),Data!$A:$BU,MATCH(E!AD$12,Data!$A$1:$BU$1,0),FALSE) -> 0 | AF96: =VLOOKUP(CONCATENATE($N$6,$D96,$N$8,$E96),Data!$A:$BU,MATCH(E!AF$12,Data!$A$1:$BU$1,0),FALSE) -> 0 | AH96: =VLOOKUP(CONCATENATE($N$6,$D96,$N$8,$E96),Data!$A:$BU,MATCH(E!AH$12,Data!$A$1:$BU$1,0),FALSE) -> 0 | AJ96: =VLOOKUP(CONCATENATE($N$6,$D96,$N$8,$E96),Data!$A:$BU,MATCH(E!AJ$12,Data!$A$1:$BU$1,0),FALSE) -> 0 | AL96: =VLOOKUP(CONCATENATE($N$6,$D96,$N$8,$E96),Data!$A:$BU,MATCH(E!AL$12,Data!$A$1:$BU$1,0),FALSE) -> 0 | AN96: =VLOOKUP(CONCATENATE($N$6,$D96,$N$8,$E96),Data!$A:$BU,MATCH(E!AN$12,Data!$A$1:$BU$1,0),FALSE) -> 0 | AP96: =VLOOKUP(CONCATENATE($N$6,$D96,$N$8,$E96),Data!$A:$BU,MATCH(E!AP$12,Data!$A$1:$BU$1,0),FALSE) -> 1 | AR96: =VLOOKUP(CONCATENATE($N$6,$D96,$N$8,$E96),Data!$A:$BU,MATCH(E!AR$12,Data!$A$1:$BU$1,0),FALSE) -> 0 | AT96: =VLOOKUP(CONCATENATE($N$6,$D96,$N$8,$E96),Data!$A:$BU,MATCH(E!AT$12,Data!$A$1:$BU$1,0),FALSE) -> 0 | AV96: =VLOOKUP(CONCATENATE($N$6,$D96,$N$8,$E96),Data!$A:$BU,MATCH(E!AV$12,Data!$A$1:$BU$1,0),FALSE) -> 0 | AX96: =VLOOKUP(CONCATENATE($N$6,$D96,$N$8,$E96),Data!$A:$BU,MATCH(E!AX$12,Data!$A$1:$BU$1,0),FALSE) -> 0 | AZ96: =VLOOKUP(CONCATENATE($N$6,$D96,$N$8,$E96),Data!$A:$BU,MATCH(E!AZ$12,Data!$A$1:$BU$1,0),FALSE) -> 0 | BB96: =VLOOKUP(CONCATENATE($N$6,$D96,$N$8,$E96),Data!$A:$BU,MATCH(E!BB$12,Data!$A$1:$BU$1,0),FALSE) -> 0 | BD96: =VLOOKUP(CONCATENATE($N$6,$D96,$N$8,$E96),Data!$A:$BU,MATCH(E!BD$12,Data!$A$1:$BU$1,0),FALSE) -> 0 | BF96: =VLOOKUP(CONCATENATE($N$6,$D96,$N$8,$E96),Data!$A:$BU,MATCH(E!BF$12,Data!$A$1:$BU$1,0),FALSE) -> 0 | BH96: =VLOOKUP(CONCATENATE($N$6,$D96,$N$8,$E96),Data!$A:$BU,MATCH(E!BH$12,Data!$A$1:$BU$1,0),FALSE) -> 0 | BJ96: =VLOOKUP(CONCATENATE($N$6,$D96,$N$8,$E96),Data!$A:$BU,MATCH(E!BJ$12,Data!$A$1:$BU$1,0),FALSE) -> 0
D97: Burundi | E97: b | F97: =VLOOKUP(CONCATENATE($N$6,$D97,$N$8,$E97),Data!$A:$BU,MATCH(E!F$12,Data!$A$1:$BU$1,0),FALSE) -> 0 | H97: =VLOOKUP(CONCATENATE($N$6,$D97,$N$8,$E97),Data!$A:$BU,MATCH(E!H$12,Data!$A$1:$BU$1,0),FALSE) -> 0 | J97: =VLOOKUP(CONCATENATE($N$6,$D97,$N$8,$E97),Data!$A:$BU,MATCH(E!J$12,Data!$A$1:$BU$1,0),FALSE) -> 0 | L97: =VLOOKUP(CONCATENATE($N$6,$D97,$N$8,$E97),Data!$A:$BU,MATCH(E!L$12,Data!$A$1:$BU$1,0),FALSE) -> 43840 | N97: =VLOOKUP(CONCATENATE($N$6,$D97,$N$8,$E97),Data!$A:$BU,MATCH(E!N$12,Data!$A$1:$BU$1,0),FALSE) -> 0 | P97: =VLOOKUP(CONCATENATE($N$6,$D97,$N$8,$E97),Data!$A:$BU,MATCH(E!P$12,Data!$A$1:$BU$1,0),FALSE) -> 0 | R97: =VLOOKUP(CONCATENATE($N$6,$D97,$N$8,$E97),Data!$A:$BU,MATCH(E!R$12,Data!$A$1:$BU$1,0),FALSE) -> 0 | T97: =VLOOKUP(CONCATENATE($N$6,$D97,$N$8,$E97),Data!$A:$BU,MATCH(E!T$12,Data!$A$1:$BU$1,0),FALSE) -> 0 | V97: =VLOOKUP(CONCATENATE($N$6,$D97,$N$8,$E97),Data!$A:$BU,MATCH(E!V$12,Data!$A$1:$BU$1,0),FALSE) -> 0 | X97: =VLOOKUP(CONCATENATE($N$6,$D97,$N$8,$E97),Data!$A:$BU,MATCH(E!X$12,Data!$A$1:$BU$1,0),FALSE) -> 0 | Z97: =VLOOKUP(CONCATENATE($N$6,$D97,$N$8,$E97),Data!$A:$BU,MATCH(E!Z$12,Data!$A$1:$BU$1,0),FALSE) -> 0 | AB97: =VLOOKUP(CONCATENATE($N$6,$D97,$N$8,$E97),Data!$A:$BU,MATCH(E!AB$12,Data!$A$1:$BU$1,0),FALSE) -> 0 | AD97: =VLOOKUP(CONCATENATE($N$6,$D97,$N$8,$E97),Data!$A:$BU,MATCH(E!AD$12,Data!$A$1:$BU$1,0),FALSE) -> 0 | AF97: =VLOOKUP(CONCATENATE($N$6,$D97,$N$8,$E97),Data!$A:$BU,MATCH(E!AF$12,Data!$A$1:$BU$1,0),FALSE) -> 0 | AH97: =VLOOKUP(CONCATENATE($N$6,$D97,$N$8,$E97),Data!$A:$BU,MATCH(E!AH$12,Data!$A$1:$BU$1,0),FALSE) -> 0 | AJ97: =VLOOKUP(CONCATENATE($N$6,$D97,$N$8,$E97),Data!$A:$BU,MATCH(E!AJ$12,Data!$A$1:$BU$1,0),FALSE) -> 0 | AL97: =VLOOKUP(CONCATENATE($N$6,$D97,$N$8,$E97),Data!$A:$BU,MATCH(E!AL$12,Data!$A$1:$BU$1,0),FALSE) -> 0 | AN97: =VLOOKUP(CONCATENATE($N$6,$D97,$N$8,$E97),Data!$A:$BU,MATCH(E!AN$12,Data!$A$1:$BU$1,0),FALSE) -> 0 | AP97: =VLOOKUP(CONCATENATE($N$6,$D97,$N$8,$E97),Data!$A:$BU,MATCH(E!AP$12,Data!$A$1:$BU$1,0),FALSE) -> 27873 | AR97: =VLOOKUP(CONCATENATE($N$6,$D97,$N$8,$E97),Data!$A:$BU,MATCH(E!AR$12,Data!$A$1:$BU$1,0),FALSE) -> 0 | AT97: =VLOOKUP(CONCATENATE($N$6,$D97,$N$8,$E97),Data!$A:$BU,MATCH(E!AT$12,Data!$A$1:$BU$1,0),FALSE) -> 0 | AV97: =VLOOKUP(CONCATENATE($N$6,$D97,$N$8,$E97),Data!$A:$BU,MATCH(E!AV$12,Data!$A$1:$BU$1,0),FALSE) -> 0 | AX97: =VLOOKUP(CONCATENATE($N$6,$D97,$N$8,$E97),Data!$A:$BU,MATCH(E!AX$12,Data!$A$1:$BU$1,0),FALSE) -> 0 | AZ97: =VLOOKUP(CONCATENATE($N$6,$D97,$N$8,$E97),Data!$A:$BU,MATCH(E!AZ$12,Data!$A$1:$BU$1,0),FALSE) -> 0 | BB97: =VLOOKUP(CONCATENATE($N$6,$D97,$N$8,$E97),Data!$A:$BU,MATCH(E!BB$12,Data!$A$1:$BU$1,0),FALSE) -> 0 | BD97: =VLOOKUP(CONCATENATE($N$6,$D97,$N$8,$E97),Data!$A:$BU,MATCH(E!BD$12,Data!$A$1:$BU$1,0),FALSE) -> 0 | BF97: =VLOOKUP(CONCATENATE($N$6,$D97,$N$8,$E97),Data!$A:$BU,MATCH(E!BF$12,Data!$A$1:$BU$1,0),FALSE) -> 0 | BH97: =VLOOKUP(CONCATENATE($N$6,$D97,$N$8,$E97),Data!$A:$BU,MATCH(E!BH$12,Data!$A$1:$BU$1,0),FALSE) -> 0 | BJ97: =VLOOKUP(CONCATENATE($N$6,$D97,$N$8,$E97),Data!$A:$BU,MATCH(E!BJ$12,Data!$A$1:$BU$1,0),FALSE) -> 0
D98: Cambodia | E98: a | F98: =VLOOKUP(CONCATENATE($N$6,$D98,$N$8,$E98),Data!$A:$BU,MATCH(E!F$12,Data!$A$1:$BU$1,0),FALSE) -> 0 | H98: =VLOOKUP(CONCATENATE($N$6,$D98,$N$8,$E98),Data!$A:$BU,MATCH(E!H$12,Data!$A$1:$BU$1,0),FALSE) -> 0 | J98: =VLOOKUP(CONCATENATE($N$6,$D98,$N$8,$E98),Data!$A:$BU,MATCH(E!J$12,Data!$A$1:$BU$1,0),FALSE) -> 0 | L98: =VLOOKUP(CONCATENATE($N$6,$D98,$N$8,$E98),Data!$A:$BU,MATCH(E!L$12,Data!$A$1:$BU$1,0),FALSE) -> 0 | N98: =VLOOKUP(CONCATENATE($N$6,$D98,$N$8,$E98),Data!$A:$BU,MATCH(E!N$12,Data!$A$1:$BU$1,0),FALSE) -> 0 | P98: =VLOOKUP(CONCATENATE($N$6,$D98,$N$8,$E98),Data!$A:$BU,MATCH(E!P$12,Data!$A$1:$BU$1,0),FALSE) -> 0 | R98: =VLOOKUP(CONCATENATE($N$6,$D98,$N$8,$E98),Data!$A:$BU,MATCH(E!R$12,Data!$A$1:$BU$1,0),FALSE) -> 1 | T98: =VLOOKUP(CONCATENATE($N$6,$D98,$N$8,$E98),Data!$A:$BU,MATCH(E!T$12,Data!$A$1:$BU$1,0),FALSE) -> 0 | V98: =VLOOKUP(CONCATENATE($N$6,$D98,$N$8,$E98),Data!$A:$BU,MATCH(E!V$12,Data!$A$1:$BU$1,0),FALSE) -> 0 | X98: =VLOOKUP(CONCATENATE($N$6,$D98,$N$8,$E98),Data!$A:$BU,MATCH(E!X$12,Data!$A$1:$BU$1,0),FALSE) -> 1 | Z98: =VLOOKUP(CONCATENATE($N$6,$D98,$N$8,$E98),Data!$A:$BU,MATCH(E!Z$12,Data!$A$1:$BU$1,0),FALSE) -> 0 | AB98: =VLOOKUP(CONCATENATE($N$6,$D98,$N$8,$E98),Data!$A:$BU,MATCH(E!AB$12,Data!$A$1:$BU$1,0),FALSE) -> 0 | AD98: =VLOOKUP(CONCATENATE($N$6,$D98,$N$8,$E98),Data!$A:$BU,MATCH(E!AD$12,Data!$A$1:$BU$1,0),FALSE) -> 1 | AF98: =VLOOKUP(CONCATENATE($N$6,$D98,$N$8,$E98),Data!$A:$BU,MATCH(E!AF$12,Data!$A$1:$BU$1,0),FALSE) -> 0 | AH98: =VLOOKUP(CONCATENATE($N$6,$D98,$N$8,$E98),Data!$A:$BU,MATCH(E!AH$12,Data!$A$1:$BU$1,0),FALSE) -> 0 | AJ98: =VLOOKUP(CONCATENATE($N$6,$D98,$N$8,$E98),Data!$A:$BU,MATCH(E!AJ$12,Data!$A$1:$BU$1,0),FALSE) -> 0 | AL98: =VLOOKUP(CONCATENATE($N$6,$D98,$N$8,$E98),Data!$A:$BU,MATCH(E!AL$12,Data!$A$1:$BU$1,0),FALSE) -> 0 | AN98: =VLOOKUP(CONCATENATE($N$6,$D98,$N$8,$E98),Data!$A:$BU,MATCH(E!AN$12,Data!$A$1:$BU$1,0),FALSE) -> 0 | AP98: =VLOOKUP(CONCATENATE($N$6,$D98,$N$8,$E98),Data!$A:$BU,MATCH(E!AP$12,Data!$A$1:$BU$1,0),FALSE) -> 0 | AR98: =VLOOKUP(CONCATENATE($N$6,$D98,$N$8,$E98),Data!$A:$BU,MATCH(E!AR$12,Data!$A$1:$BU$1,0),FALSE) -> 0 | AT98: =VLOOKUP(CONCATENATE($N$6,$D98,$N$8,$E98),Data!$A:$BU,MATCH(E!AT$12,Data!$A$1:$BU$1,0),FALSE) -> 0 | AV98: =VLOOKUP(CONCATENATE($N$6,$D98,$N$8,$E98),Data!$A:$BU,MATCH(E!AV$12,Data!$A$1:$BU$1,0),FALSE) -> 0 | AX98: =VLOOKUP(CONCATENATE($N$6,$D98,$N$8,$E98),Data!$A:$BU,MATCH(E!AX$12,Data!$A$1:$BU$1,0),FALSE) -> 0 | AZ98: =VLOOKUP(CONCATENATE($N$6,$D98,$N$8,$E98),Data!$A:$BU,MATCH(E!AZ$12,Data!$A$1:$BU$1,0),FALSE) -> 0 | BB98: =VLOOKUP(CONCATENATE($N$6,$D98,$N$8,$E98),Data!$A:$BU,MATCH(E!BB$12,Data!$A$1:$BU$1,0),FALSE) -> 2 | BD98: =VLOOKUP(CONCATENATE($N$6,$D98,$N$8,$E98),Data!$A:$BU,MATCH(E!BD$12,Data!$A$1:$BU$1,0),FALSE) -> 0 | BF98: =VLOOKUP(CONCATENATE($N$6,$D98,$N$8,$E98),Data!$A:$BU,MATCH(E!BF$12,Data!$A$1:$BU$1,0),FALSE) -> 0 | BH98: =VLOOKUP(CONCATENATE($N$6,$D98,$N$8,$E98),Data!$A:$BU,MATCH(E!BH$12,Data!$A$1:$BU$1,0),FALSE) -> 0 | BJ98: =VLOOKUP(CONCATENATE($N$6,$D98,$N$8,$E98),Data!$A:$BU,MATCH(E!BJ$12,Data!$A$1:$BU$1,0),FALSE) -> 0
D99: Cambodia | E99: b | F99: =VLOOKUP(CONCATENATE($N$6,$D99,$N$8,$E99),Data!$A:$BU,MATCH(E!F$12,Data!$A$1:$BU$1,0),FALSE) -> 0 | H99: =VLOOKUP(CONCATENATE($N$6,$D99,$N$8,$E99),Data!$A:$BU,MATCH(E!H$12,Data!$A$1:$BU$1,0),FALSE) -> 0 | J99: =VLOOKUP(CONCATENATE($N$6,$D99,$N$8,$E99),Data!$A:$BU,MATCH(E!J$12,Data!$A$1:$BU$1,0),FALSE) -> 0 | L99: =VLOOKUP(CONCATENATE($N$6,$D99,$N$8,$E99),Data!$A:$BU,MATCH(E!L$12,Data!$A$1:$BU$1,0),FALSE) -> 0 | N99: =VLOOKUP(CONCATENATE($N$6,$D99,$N$8,$E99),Data!$A:$BU,MATCH(E!N$12,Data!$A$1:$BU$1,0),FALSE) -> 0 | P99: =VLOOKUP(CONCATENATE($N$6,$D99,$N$8,$E99),Data!$A:$BU,MATCH(E!P$12,Data!$A$1:$BU$1,0),FALSE) -> 0 | R99: =VLOOKUP(CONCATENATE($N$6,$D99,$N$8,$E99),Data!$A:$BU,MATCH(E!R$12,Data!$A$1:$BU$1,0),FALSE) -> 40000 | T99: =VLOOKUP(CONCATENATE($N$6,$D99,$N$8,$E99),Data!$A:$BU,MATCH(E!T$12,Data!$A$1:$BU$1,0),FALSE) -> 0 | V99: =VLOOKUP(CONCATENATE($N$6,$D99,$N$8,$E99),Data!$A:$BU,MATCH(E!V$12,Data!$A$1:$BU$1,0),FALSE) -> 0 | X99: =VLOOKUP(CONCATENATE($N$6,$D99,$N$8,$E99),Data!$A:$BU,MATCH(E!X$12,Data!$A$1:$BU$1,0),FALSE) -> 5700 | Z99: =VLOOKUP(CONCATENATE($N$6,$D99,$N$8,$E99),Data!$A:$BU,MATCH(E!Z$12,Data!$A$1:$BU$1,0),FALSE) -> 0 | AB99: =VLOOKUP(CONCATENATE($N$6,$D99,$N$8,$E99),Data!$A:$BU,MATCH(E!AB$12,Data!$A$1:$BU$1,0),FALSE) -> 0 | AD99: =VLOOKUP(CONCATENATE($N$6,$D99,$N$8,$E99),Data!$A:$BU,MATCH(E!AD$12,Data!$A$1:$BU$1,0),FALSE) -> 43025 | AF99: =VLOOKUP(CONCATENATE($N$6,$D99,$N$8,$E99),Data!$A:$BU,MATCH(E!AF$12,Data!$A$1:$BU$1,0),FALSE) -> 0 | AH99: =VLOOKUP(CONCATENATE($N$6,$D99,$N$8,$E99),Data!$A:$BU,MATCH(E!AH$12,Data!$A$1:$BU$1,0),FALSE) -> 0 | AJ99: =VLOOKUP(CONCATENATE($N$6,$D99,$N$8,$E99),Data!$A:$BU,MATCH(E!AJ$12,Data!$A$1:$BU$1,0),FALSE) -> 0 | AL99: =VLOOKUP(CONCATENATE($N$6,$D99,$N$8,$E99),Data!$A:$BU,MATCH(E!AL$12,Data!$A$1:$BU$1,0),FALSE) -> 0 | AN99: =VLOOKUP(CONCATENATE($N$6,$D99,$N$8,$E99),Data!$A:$BU,MATCH(E!AN$12,Data!$A$1:$BU$1,0),FALSE) -> 0 | AP99: =VLOOKUP(CONCATENATE($N$6,$D99,$N$8,$E99),Data!$A:$BU,MATCH(E!AP$12,Data!$A$1:$BU$1,0),FALSE) -> 0 | AR99: =VLOOKUP(CONCATENATE($N$6,$D99,$N$8,$E99),Data!$A:$BU,MATCH(E!AR$12,Data!$A$1:$BU$1,0),FALSE) -> 0 | AT99: =VLOOKUP(CONCATENATE($N$6,$D99,$N$8,$E99),Data!$A:$BU,MATCH(E!AT$12,Data!$A$1:$BU$1,0),FALSE) -> 0 | AV99: =VLOOKUP(CONCATENATE($N$6,$D99,$N$8,$E99),Data!$A:$BU,MATCH(E!AV$12,Data!$A$1:$BU$1,0),FALSE) -> 0 | AX99: =VLOOKUP(CONCATENATE($N$6,$D99,$N$8,$E99),Data!$A:$BU,MATCH(E!AX$12,Data!$A$1:$BU$1,0),FALSE) -> 0 | AZ99: =VLOOKUP(CONCATENATE($N$6,$D99,$N$8,$E99),Data!$A:$BU,MATCH(E!AZ$12,Data!$A$1:$BU$1,0),FALSE) -> 0 | BB99: =VLOOKUP(CONCATENATE($N$6,$D99,$N$8,$E99),Data!$A:$BU,MATCH(E!BB$12,Data!$A$1:$BU$1,0),FALSE) -> 1408 | BD99: =VLOOKUP(CONCATENATE($N$6,$D99,$N$8,$E99),Data!$A:$BU,MATCH(E!BD$12,Data!$A$1:$BU$1,0),FALSE) -> 0 | BF99: =VLOOKUP(CONCATENATE($N$6,$D99,$N$8,$E99),Data!$A:$BU,MATCH(E!BF$12,Data!$A$1:$BU$1,0),FALSE) -> 0 | BH99: =VLOOKUP(CONCATENATE($N$6,$D99,$N$8,$E99),Data!$A:$BU,MATCH(E!BH$12,Data!$A$1:$BU$1,0),FALSE) -> 0 | BJ99: =VLOOKUP(CONCATENATE($N$6,$D99,$N$8,$E99),Data!$A:$BU,MATCH(E!BJ$12,Data!$A$1:$BU$1,0),FALSE) -> 0
D100: Cameroon | E100: a | F100: =VLOOKUP(CONCATENATE($N$6,$D100,$N$8,$E100),Data!$A:$BU,MATCH(E!F$12,Data!$A$1:$BU$1,0),FALSE) -> 0 | H100: =VLOOKUP(CONCATENATE($N$6,$D100,$N$8,$E100),Data!$A:$BU,MATCH(E!H$12,Data!$A$1:$BU$1,0),FALSE) -> 0 | J100: =VLOOKUP(CONCATENATE($N$6,$D100,$N$8,$E100),Data!$A:$BU,MATCH(E!J$12,Data!$A$1:$BU$1,0),FALSE) -> 0 | L100: =VLOOKUP(CONCATENATE($N$6,$D100,$N$8,$E100),Data!$A:$BU,MATCH(E!L$12,Data!$A$1:$BU$1,0),FALSE) -> 0 | N100: =VLOOKUP(CONCATENATE($N$6,$D100,$N$8,$E100),Data!$A:$BU,MATCH(E!N$12,Data!$A$1:$BU$1,0),FALSE) -> 2 | P100: =VLOOKUP(CONCATENATE($N$6,$D100,$N$8,$E100),Data!$A:$BU,MATCH(E!P$12,Data!$A$1:$BU$1,0),FALSE) -> 0 | R100: =VLOOKUP(CONCATENATE($N$6,$D100,$N$8,$E100),Data!$A:$BU,MATCH(E!R$12,Data!$A$1:$BU$1,0),FALSE) -> 0 | T100: =VLOOKUP(CONCATENATE($N$6,$D100,$N$8,$E100),Data!$A:$BU,MATCH(E!T$12,Data!$A$1:$BU$1,0),FALSE) -> 0 | V100: =VLOOKUP(CONCATENATE($N$6,$D100,$N$8,$E100),Data!$A:$BU,MATCH(E!V$12,Data!$A$1:$BU$1,0),FALSE) -> 1 | X100: =VLOOKUP(CONCATENATE($N$6,$D100,$N$8,$E100),Data!$A:$BU,MATCH(E!X$12,Data!$A$1:$BU$1,0),FALSE) -> 0 | Z100: =VLOOKUP(CONCATENATE($N$6,$D100,$N$8,$E100),Data!$A:$BU,MATCH(E!Z$12,Data!$A$1:$BU$1,0),FALSE) -> 0 | AB100: =VLOOKUP(CONCATENATE($N$6,$D100,$N$8,$E100),Data!$A:$BU,MATCH(E!AB$12,Data!$A$1:$BU$1,0),FALSE) -> 0 | AD100: =VLOOKUP(CONCATENATE($N$6,$D100,$N$8,$E100),Data!$A:$BU,MATCH(E!AD$12,Data!$A$1:$BU$1,0),FALSE) -> 0 | AF100: =VLOOKUP(CONCATENATE($N$6,$D100,$N$8,$E100),Data!$A:$BU,MATCH(E!AF$12,Data!$A$1:$BU$1,0),FALSE) -> 0 | AH100: =VLOOKUP(CONCATENATE($N$6,$D100,$N$8,$E100),Data!$A:$BU,MATCH(E!AH$12,Data!$A$1:$BU$1,0),FALSE) -> 0 | AJ100: =VLOOKUP(CONCATENATE($N$6,$D100,$N$8,$E100),Data!$A:$BU,MATCH(E!AJ$12,Data!$A$1:$BU$1,0),FALSE) -> 0 | AL100: =VLOOKUP(CONCATENATE($N$6,$D100,$N$8,$E100),Data!$A:$BU,MATCH(E!AL$12,Data!$A$1:$BU$1,0),FALSE) -> 2 | AN100: =VLOOKUP(CONCATENATE($N$6,$D100,$N$8,$E100),Data!$A:$BU,MATCH(E!AN$12,Data!$A$1:$BU$1,0),FALSE) -> 1 | AP100: =VLOOKUP(CONCATENATE($N$6,$D100,$N$8,$E100),Data!$A:$BU,MATCH(E!AP$12,Data!$A$1:$BU$1,0),FALSE) -> 0 | AR100: =VLOOKUP(CONCATENATE($N$6,$D100,$N$8,$E100),Data!$A:$BU,MATCH(E!AR$12,Data!$A$1:$BU$1,0),FALSE) -> 0 | AT100: =VLOOKUP(CONCATENATE($N$6,$D100,$N$8,$E100),Data!$A:$BU,MATCH(E!AT$12,Data!$A$1:$BU$1,0),FALSE) -> 1 | AV100: =VLOOKUP(CONCATENATE($N$6,$D100,$N$8,$E100),Data!$A:$BU,MATCH(E!AV$12,Data!$A$1:$BU$1,0),FALSE) -> 0 | AX100: =VLOOKUP(CONCATENATE($N$6,$D100,$N$8,$E100),Data!$A:$BU,MATCH(E!AX$12,Data!$A$1:$BU$1,0),FALSE) -> 0 | AZ100: =VLOOKUP(CONCATENATE($N$6,$D100,$N$8,$E100),Data!$A:$BU,MATCH(E!AZ$12,Data!$A$1:$BU$1,0),FALSE) -> 1 | BB100: =VLOOKUP(CONCATENATE($N$6,$D100,$N$8,$E100),Data!$A:$BU,MATCH(E!BB$12,Data!$A$1:$BU$1,0),FALSE) -> 1 | BD100: =VLOOKUP(CONCATENATE($N$6,$D100,$N$8,$E100),Data!$A:$BU,MATCH(E!BD$12,Data!$A$1:$BU$1,0),FALSE) -> 0 | BF100: =VLOOKUP(CONCATENATE($N$6,$D100,$N$8,$E100),Data!$A:$BU,MATCH(E!BF$12,Data!$A$1:$BU$1,0),FALSE) -> 1 | BH100: =VLOOKUP(CONCATENATE($N$6,$D100,$N$8,$E100),Data!$A:$BU,MATCH(E!BH$12,Data!$A$1:$BU$1,0),FALSE) -> 0 | BJ100: =VLOOKUP(CONCATENATE($N$6,$D100,$N$8,$E100),Data!$A:$BU,MATCH(E!BJ$12,Data!$A$1:$BU$1,0),FALSE) -> 0
D101: Cameroon | E101: b | F101: =VLOOKUP(CONCATENATE($N$6,$D101,$N$8,$E101),Data!$A:$BU,MATCH(E!F$12,Data!$A$1:$BU$1,0),FALSE) -> 0 | H101: =VLOOKUP(CONCATENATE($N$6,$D101,$N$8,$E101),Data!$A:$BU,MATCH(E!H$12,Data!$A$1:$BU$1,0),FALSE) -> 0 | J101: =VLOOKUP(CONCATENATE($N$6,$D101,$N$8,$E101),Data!$A:$BU,MATCH(E!J$12,Data!$A$1:$BU$1,0),FALSE) -> 0 | L101: =VLOOKUP(CONCATENATE($N$6,$D101,$N$8,$E101),Data!$A:$BU,MATCH(E!L$12,Data!$A$1:$BU$1,0),FALSE) -> 0 | N101: =VLOOKUP(CONCATENATE($N$6,$D101,$N$8,$E101),Data!$A:$BU,MATCH(E!N$12,Data!$A$1:$BU$1,0),FALSE) -> 670000 | P101: =VLOOKUP(CONCATENATE($N$6,$D101,$N$8,$E101),Data!$A:$BU,MATCH(E!P$12,Data!$A$1:$BU$1,0),FALSE) -> 0 | R101: =VLOOKUP(CONCATENATE($N$6,$D101,$N$8,$E101),Data!$A:$BU,MATCH(E!R$12,Data!$A$1:$BU$1,0),FALSE) -> 0 | T101: =VLOOKUP(CONCATENATE($N$6,$D101,$N$8,$E101),Data!$A:$BU,MATCH(E!T$12,Data!$A$1:$BU$1,0),FALSE) -> 0 | V101: =VLOOKUP(CONCATENATE($N$6,$D101,$N$8,$E101),Data!$A:$BU,MATCH(E!V$12,Data!$A$1:$BU$1,0),FALSE) -> 65400 | X101: =VLOOKUP(CONCATENATE($N$6,$D101,$N$8,$E101),Data!$A:$BU,MATCH(E!X$12,Data!$A$1:$BU$1,0),FALSE) -> 0 | Z101: =VLOOKUP(CONCATENATE($N$6,$D101,$N$8,$E101),Data!$A:$BU,MATCH(E!Z$12,Data!$A$1:$BU$1,0),FALSE) -> 0 | AB101: =VLOOKUP(CONCATENATE($N$6,$D101,$N$8,$E101),Data!$A:$BU,MATCH(E!AB$12,Data!$A$1:$BU$1,0),FALSE) -> 0 | AD101: =VLOOKUP(CONCATENATE($N$6,$D101,$N$8,$E101),Data!$A:$BU,MATCH(E!AD$12,Data!$A$1:$BU$1,0),FALSE) -> 0 | AF101: =VLOOKUP(CONCATENATE($N$6,$D101,$N$8,$E101),Data!$A:$BU,MATCH(E!AF$12,Data!$A$1:$BU$1,0),FALSE) -> 0 | AH101: =VLOOKUP(CONCATENATE($N$6,$D101,$N$8,$E101),Data!$A:$BU,MATCH(E!AH$12,Data!$A$1:$BU$1,0),FALSE) -> 0 | AJ101: =VLOOKUP(CONCATENATE($N$6,$D101,$N$8,$E101),Data!$A:$BU,MATCH(E!AJ$12,Data!$A$1:$BU$1,0),FALSE) -> 0 | AL101: =VLOOKUP(CONCATENATE($N$6,$D101,$N$8,$E101),Data!$A:$BU,MATCH(E!AL$12,Data!$A$1:$BU$1,0),FALSE) -> 7855 | AN101: =VLOOKUP(CONCATENATE($N$6,$D101,$N$8,$E101),Data!$A:$BU,MATCH(E!AN$12,Data!$A$1:$BU$1,0),FALSE) -> 61177 | AP101: =VLOOKUP(CONCATENATE($N$6,$D101,$N$8,$E101),Data!$A:$BU,MATCH(E!AP$12,Data!$A$1:$BU$1,0),FALSE) -> 0 | AR101: =VLOOKUP(CONCATENATE($N$6,$D101,$N$8,$E101),Data!$A:$BU,MATCH(E!AR$12,Data!$A$1:$BU$1,0),FALSE) -> 0 | AT101: =VLOOKUP(CONCATENATE($N$6,$D101,$N$8,$E101),Data!$A:$BU,MATCH(E!AT$12,Data!$A$1:$BU$1,0),FALSE) -> 987225 | AV101: =VLOOKUP(CONCATENATE($N$6,$D101,$N$8,$E101),Data!$A:$BU,MATCH(E!AV$12,Data!$A$1:$BU$1,0),FALSE) -> 0 | AX101: =VLOOKUP(CONCATENATE($N$6,$D101,$N$8,$E101),Data!$A:$BU,MATCH(E!AX$12,Data!$A$1:$BU$1,0),FALSE) -> 0 | AZ101: =VLOOKUP(CONCATENATE($N$6,$D101,$N$8,$E101),Data!$A:$BU,MATCH(E!AZ$12,Data!$A$1:$BU$1,0),FALSE) -> 1375 | BB101: =VLOOKUP(CONCATENATE($N$6,$D101,$N$8,$E101),Data!$A:$BU,MATCH(E!BB$12,Data!$A$1:$BU$1,0),FALSE) -> 31010 | BD101: =VLOOKUP(CONCATENATE($N$6,$D101,$N$8,$E101),Data!$A:$BU,MATCH(E!BD$12,Data!$A$1:$BU$1,0),FALSE) -> 0 | BF101: =VLOOKUP(CONCATENATE($N$6,$D101,$N$8,$E101),Data!$A:$BU,MATCH(E!BF$12,Data!$A$1:$BU$1,0),FALSE) -> 772 | BH101: =VLOOKUP(CONCATENATE($N$6,$D101,$N$8,$E101),Data!$A:$BU,MATCH(E!BH$12,Data!$A$1:$BU$1,0),FALSE) -> 0 | BJ101: =VLOOKUP(CONCATENATE($N$6,$D101,$N$8,$E101),Data!$A:$BU,MATCH(E!BJ$12,Data!$A$1:$BU$1,0),FALSE) -> 0
D102: Canada | E102: a | F102: =VLOOKUP(CONCATENATE($N$6,$D102,$N$8,$E102),Data!$A:$BU,MATCH(E!F$12,Data!$A$1:$BU$1,0),FALSE) -> 27 | H102: =VLOOKUP(CONCATENATE($N$6,$D102,$N$8,$E102),Data!$A:$BU,MATCH(E!H$12,Data!$A$1:$BU$1,0),FALSE) -> 42 | J102: =VLOOKUP(CONCATENATE($N$6,$D102,$N$8,$E102),Data!$A:$BU,MATCH(E!J$12,Data!$A$1:$BU$1,0),FALSE) -> 27 | L102: =VLOOKUP(CONCATENATE($N$6,$D102,$N$8,$E102),Data!$A:$BU,MATCH(E!L$12,Data!$A$1:$BU$1,0),FALSE) -> 30 | N102: =VLOOKUP(CONCATENATE($N$6,$D102,$N$8,$E102),Data!$A:$BU,MATCH(E!N$12,Data!$A$1:$BU$1,0),FALSE) -> 49 | P102: =VLOOKUP(CONCATENATE($N$6,$D102,$N$8,$E102),Data!$A:$BU,MATCH(E!P$12,Data!$A$1:$BU$1,0),FALSE) -> 36 | R102: =VLOOKUP(CONCATENATE($N$6,$D102,$N$8,$E102),Data!$A:$BU,MATCH(E!R$12,Data!$A$1:$BU$1,0),FALSE) -> 45 | T102: =VLOOKUP(CONCATENATE($N$6,$D102,$N$8,$E102),Data!$A:$BU,MATCH(E!T$12,Data!$A$1:$BU$1,0),FALSE) -> 38 | V102: =VLOOKUP(CONCATENATE($N$6,$D102,$N$8,$E102),Data!$A:$BU,MATCH(E!V$12,Data!$A$1:$BU$1,0),FALSE) -> 50 | X102: =VLOOKUP(CONCATENATE($N$6,$D102,$N$8,$E102),Data!$A:$BU,MATCH(E!X$12,Data!$A$1:$BU$1,0),FALSE) -> 40 | Z102: =VLOOKUP(CONCATENATE($N$6,$D102,$N$8,$E102),Data!$A:$BU,MATCH(E!Z$12,Data!$A$1:$BU$1,0),FALSE) -> 55 | AB102: =VLOOKUP(CONCATENATE($N$6,$D102,$N$8,$E102),Data!$A:$BU,MATCH(E!AB$12,Data!$A$1:$BU$1,0),FALSE) -> 42 | AD102: =VLOOKUP(CONCATENATE($N$6,$D102,$N$8,$E102),Data!$A:$BU,MATCH(E!AD$12,Data!$A$1:$BU$1,0),FALSE) -> 39 | AF102: =VLOOKUP(CONCATENATE($N$6,$D102,$N$8,$E102),Data!$A:$BU,MATCH(E!AF$12,Data!$A$1:$BU$1,0),FALSE) -> 42 | AH102: =VLOOKUP(CONCATENATE($N$6,$D102,$N$8,$E102),Data!$A:$BU,MATCH(E!AH$12,Data!$A$1:$BU$1,0),FALSE) -> 32 | AJ102: =VLOOKUP(CONCATENATE($N$6,$D102,$N$8,$E102),Data!$A:$BU,MATCH(E!AJ$12,Data!$A$1:$BU$1,0),FALSE) -> 34 | AL102: =VLOOKUP(CONCATENATE($N$6,$D102,$N$8,$E102),Data!$A:$BU,MATCH(E!AL$12,Data!$A$1:$BU$1,0),FALSE) -> 33 | AN102: =VLOOKUP(CONCATENATE($N$6,$D102,$N$8,$E102),Data!$A:$BU,MATCH(E!AN$12,Data!$A$1:$BU$1,0),FALSE) -> 33 | AP102: =VLOOKUP(CONCATENATE($N$6,$D102,$N$8,$E102),Data!$A:$BU,MATCH(E!AP$12,Data!$A$1:$BU$1,0),FALSE) -> 32 | AR102: =VLOOKUP(CONCATENATE($N$6,$D102,$N$8,$E102),Data!$A:$BU,MATCH(E!AR$12,Data!$A$1:$BU$1,0),FALSE) -> 33 | AT102: =VLOOKUP(CONCATENATE($N$6,$D102,$N$8,$E102),Data!$A:$BU,MATCH(E!AT$12,Data!$A$1:$BU$1,0),FALSE) -> 32 | AV102: =VLOOKUP(CONCATENATE($N$6,$D102,$N$8,$E102),Data!$A:$BU,MATCH(E!AV$12,Data!$A$1:$BU$1,0),FALSE) -> 29 | AX102: =VLOOKUP(CONCATENATE($N$6,$D102,$N$8,$E102),Data!$A:$BU,MATCH(E!AX$12,Data!$A$1:$BU$1,0),FALSE) -> 23 | AZ102: =VLOOKUP(CONCATENATE($N$6,$D102,$N$8,$E102),Data!$A:$BU,MATCH(E!AZ$12,Data!$A$1:$BU$1,0),FALSE) -> 26 | BB102: =VLOOKUP(CONCATENATE($N$6,$D102,$N$8,$E102),Data!$A:$BU,MATCH(E!BB$12,Data!$A$1:$BU$1,0),FALSE) -> 24 | BD102: =VLOOKUP(CONCATENATE($N$6,$D102,$N$8,$E102),Data!$A:$BU,MATCH(E!BD$12,Data!$A$1:$BU$1,0),FALSE) -> 28 | BF102: =VLOOKUP(CONCATENATE($N$6,$D102,$N$8,$E102),Data!$A:$BU,MATCH(E!BF$12,Data!$A$1:$BU$1,0),FALSE) -> 31 | BH102: =VLOOKUP(CONCATENATE($N$6,$D102,$N$8,$E102),Data!$A:$BU,MATCH(E!BH$12,Data!$A$1:$BU$1,0),FALSE) -> 16 | BJ102: =VLOOKUP(CONCATENATE($N$6,$D102,$N$8,$E102),Data!$A:$BU,MATCH(E!BJ$12,Data!$A$1:$BU$1,0),FALSE) -> 19
D103: Canada | E103: b | F103: =VLOOKUP(CONCATENATE($N$6,$D103,$N$8,$E103),Data!$A:$BU,MATCH(E!F$12,Data!$A$1:$BU$1,0),FALSE) -> 2176201 | H103: =VLOOKUP(CONCATENATE($N$6,$D103,$N$8,$E103),Data!$A:$BU,MATCH(E!H$12,Data!$A$1:$BU$1,0),FALSE) -> 9219446 | J103: =VLOOKUP(CONCATENATE($N$6,$D103,$N$8,$E103),Data!$A:$BU,MATCH(E!J$12,Data!$A$1:$BU$1,0),FALSE) -> 1543627 | L103: =VLOOKUP(CONCATENATE($N$6,$D103,$N$8,$E103),Data!$A:$BU,MATCH(E!L$12,Data!$A$1:$BU$1,0),FALSE) -> 4212484 | N103: =VLOOKUP(CONCATENATE($N$6,$D103,$N$8,$E103),Data!$A:$BU,MATCH(E!N$12,Data!$A$1:$BU$1,0),FALSE) -> 2375439 | P103: =VLOOKUP(CONCATENATE($N$6,$D103,$N$8,$E103),Data!$A:$BU,MATCH(E!P$12,Data!$A$1:$BU$1,0),FALSE) -> 1535841 | R103: =VLOOKUP(CONCATENATE($N$6,$D103,$N$8,$E103),Data!$A:$BU,MATCH(E!R$12,Data!$A$1:$BU$1,0),FALSE) -> 1593960 | T103: =VLOOKUP(CONCATENATE($N$6,$D103,$N$8,$E103),Data!$A:$BU,MATCH(E!T$12,Data!$A$1:$BU$1,0),FALSE) -> 5245332 | V103: =VLOOKUP(CONCATENATE($N$6,$D103,$N$8,$E103),Data!$A:$BU,MATCH(E!V$12,Data!$A$1:$BU$1,0),FALSE) -> 2897206 | X103: =VLOOKUP(CONCATENATE($N$6,$D103,$N$8,$E103),Data!$A:$BU,MATCH(E!X$12,Data!$A$1:$BU$1,0),FALSE) -> 3555608 | Z103: =VLOOKUP(CONCATENATE($N$6,$D103,$N$8,$E103),Data!$A:$BU,MATCH(E!Z$12,Data!$A$1:$BU$1,0),FALSE) -> 4064242 | AB103: =VLOOKUP(CONCATENATE($N$6,$D103,$N$8,$E103),Data!$A:$BU,MATCH(E!AB$12,Data!$A$1:$BU$1,0),FALSE) -> 1386817 | AD103: =VLOOKUP(CONCATENATE($N$6,$D103,$N$8,$E103),Data!$A:$BU,MATCH(E!AD$12,Data!$A$1:$BU$1,0),FALSE) -> 1892881 | AF103: =VLOOKUP(CONCATENATE($N$6,$D103,$N$8,$E103),Data!$A:$BU,MATCH(E!AF$12,Data!$A$1:$BU$1,0),FALSE) -> 3948734 | AH103: =VLOOKUP(CONCATENATE($N$6,$D103,$N$8,$E103),Data!$A:$BU,MATCH(E!AH$12,Data!$A$1:$BU$1,0),FALSE) -> 1725446 | AJ103: =VLOOKUP(CONCATENATE($N$6,$D103,$N$8,$E103),Data!$A:$BU,MATCH(E!AJ$12,Data!$A$1:$BU$1,0),FALSE) -> 1044675 | AL103: =VLOOKUP(CONCATENATE($N$6,$D103,$N$8,$E103),Data!$A:$BU,MATCH(E!AL$12,Data!$A$1:$BU$1,0),FALSE) -> 12515857 | AN103: =VLOOKUP(CONCATENATE($N$6,$D103,$N$8,$E103),Data!$A:$BU,MATCH(E!AN$12,Data!$A$1:$BU$1,0),FALSE) -> 1970920 | AP103: =VLOOKUP(CONCATENATE($N$6,$D103,$N$8,$E103),Data!$A:$BU,MATCH(E!AP$12,Data!$A$1:$BU$1,0),FALSE) -> 1058225 | AR103: =VLOOKUP(CONCATENATE($N$6,$D103,$N$8,$E103),Data!$A:$BU,MATCH(E!AR$12,Data!$A$1:$BU$1,0),FALSE) -> 3516652 | AT103: =VLOOKUP(CONCATENATE($N$6,$D103,$N$8,$E103),Data!$A:$BU,MATCH(E!AT$12,Data!$A$1:$BU$1,0),FALSE) -> 2719192 | AV103: =VLOOKUP(CONCATENATE($N$6,$D103,$N$8,$E103),Data!$A:$BU,MATCH(E!AV$12,Data!$A$1:$BU$1,0),FALSE) -> 331823 | AX103: =VLOOKUP(CONCATENATE($N$6,$D103,$N$8,$E103),Data!$A:$BU,MATCH(E!AX$12,Data!$A$1:$BU$1,0),FALSE) -> 1004279 | AZ103: =VLOOKUP(CONCATENATE($N$6,$D103,$N$8,$E103),Data!$A:$BU,MATCH(E!AZ$12,Data!$A$1:$BU$1,0),FALSE) -> 880709 | BB103: =VLOOKUP(CONCATENATE($N$6,$D103,$N$8,$E103),Data!$A:$BU,MATCH(E!BB$12,Data!$A$1:$BU$1,0),FALSE) -> 4456988 | BD103: =VLOOKUP(CONCATENATE($N$6,$D103,$N$8,$E103),Data!$A:$BU,MATCH(E!BD$12,Data!$A$1:$BU$1,0),FALSE) -> 971976 | BF103: =VLOOKUP(CONCATENATE($N$6,$D103,$N$8,$E103),Data!$A:$BU,MATCH(E!BF$12,Data!$A$1:$BU$1,0),FALSE) -> 3908548 | BH103: =VLOOKUP(CONCATENATE($N$6,$D103,$N$8,$E103),Data!$A:$BU,MATCH(E!BH$12,Data!$A$1:$BU$1,0),FALSE) -> 1029303 | BJ103: =VLOOKUP(CONCATENATE($N$6,$D103,$N$8,$E103),Data!$A:$BU,MATCH(E!BJ$12,Data!$A$1:$BU$1,0),FALSE) -> 673134
D104: Cape Verde | E104: a | F104: =VLOOKUP(CONCATENATE($N$6,$D104,$N$8,$E104),Data!$A:$BU,MATCH(E!F$12,Data!$A$1:$BU$1,0),FALSE) -> 0 | H104: =VLOOKUP(CONCATENATE($N$6,$D104,$N$8,$E104),Data!$A:$BU,MATCH(E!H$12,Data!$A$1:$BU$1,0),FALSE) -> 0 | J104: =VLOOKUP(CONCATENATE($N$6,$D104,$N$8,$E104),Data!$A:$BU,MATCH(E!J$12,Data!$A$1:$BU$1,0),FALSE) -> 0 | L104: =VLOOKUP(CONCATENATE($N$6,$D104,$N$8,$E104),Data!$A:$BU,MATCH(E!L$12,Data!$A$1:$BU$1,0),FALSE) -> 0 | N104: =VLOOKUP(CONCATENATE($N$6,$D104,$N$8,$E104),Data!$A:$BU,MATCH(E!N$12,Data!$A$1:$BU$1,0),FALSE) -> 0 | P104: =VLOOKUP(CONCATENATE($N$6,$D104,$N$8,$E104),Data!$A:$BU,MATCH(E!P$12,Data!$A$1:$BU$1,0),FALSE) -> 0 | R104: =VLOOKUP(CONCATENATE($N$6,$D104,$N$8,$E104),Data!$A:$BU,MATCH(E!R$12,Data!$A$1:$BU$1,0),FALSE) -> 0 | T104: =VLOOKUP(CONCATENATE($N$6,$D104,$N$8,$E104),Data!$A:$BU,MATCH(E!T$12,Data!$A$1:$BU$1,0),FALSE) -> 0 | V104: =VLOOKUP(CONCATENATE($N$6,$D104,$N$8,$E104),Data!$A:$BU,MATCH(E!V$12,Data!$A$1:$BU$1,0),FALSE) -> 0 | X104: =VLOOKUP(CONCATENATE($N$6,$D104,$N$8,$E104),Data!$A:$BU,MATCH(E!X$12,Data!$A$1:$BU$1,0),FALSE) -> 0 | Z104: =VLOOKUP(CONCATENATE($N$6,$D104,$N$8,$E104),Data!$A:$BU,MATCH(E!Z$12,Data!$A$1:$BU$1,0),FALSE) -> 0 | AB104: =VLOOKUP(CONCATENATE($N$6,$D104,$N$8,$E104),Data!$A:$BU,MATCH(E!AB$12,Data!$A$1:$BU$1,0),FALSE) -> 0 | AD104: =VLOOKUP(CONCATENATE($N$6,$D104,$N$8,$E104),Data!$A:$BU,MATCH(E!AD$12,Data!$A$1:$BU$1,0),FALSE) -> 0 | AF104: =VLOOKUP(CONCATENATE($N$6,$D104,$N$8,$E104),Data!$A:$BU,MATCH(E!AF$12,Data!$A$1:$BU$1,0),FALSE) -> 0 | AH104: =VLOOKUP(CONCATENATE($N$6,$D104,$N$8,$E104),Data!$A:$BU,MATCH(E!AH$12,Data!$A$1:$BU$1,0),FALSE) -> 0 | AJ104: =VLOOKUP(CONCATENATE($N$6,$D104,$N$8,$E104),Data!$A:$BU,MATCH(E!AJ$12,Data!$A$1:$BU$1,0),FALSE) -> 0 | AL104: =VLOOKUP(CONCATENATE($N$6,$D104,$N$8,$E104),Data!$A:$BU,MATCH(E!AL$12,Data!$A$1:$BU$1,0),FALSE) -> 0 | AN104: =VLOOKUP(CONCATENATE($N$6,$D104,$N$8,$E104),Data!$A:$BU,MATCH(E!AN$12,Data!$A$1:$BU$1,0),FALSE) -> 0 | AP104: =VLOOKUP(CONCATENATE($N$6,$D104,$N$8,$E104),Data!$A:$BU,MATCH(E!AP$12,Data!$A$1:$BU$1,0),FALSE) -> 0 | AR104: =VLOOKUP(CONCATENATE($N$6,$D104,$N$8,$E104),Data!$A:$BU,MATCH(E!AR$12,Data!$A$1:$BU$1,0),FALSE) -> 0 | AT104: =VLOOKUP(CONCATENATE($N$6,$D104,$N$8,$E104),Data!$A:$BU,MATCH(E!AT$12,Data!$A$1:$BU$1,0),FALSE) -> 0 | AV104: =VLOOKUP(CONCATENATE($N$6,$D104,$N$8,$E104),Data!$A:$BU,MATCH(E!AV$12,Data!$A$1:$BU$1,0),FALSE) -> 0 | AX104: =VLOOKUP(CONCATENATE($N$6,$D104,$N$8,$E104),Data!$A:$BU,MATCH(E!AX$12,Data!$A$1:$BU$1,0),FALSE) -> 0 | AZ104: =VLOOKUP(CONCATENATE($N$6,$D104,$N$8,$E104),Data!$A:$BU,MATCH(E!AZ$12,Data!$A$1:$BU$1,0),FALSE) -> 0 | BB104: =VLOOKUP(CONCATENATE($N$6,$D104,$N$8,$E104),Data!$A:$BU,MATCH(E!BB$12,Data!$A$1:$BU$1,0),FALSE) -> 0 | BD104: =VLOOKUP(CONCATENATE($N$6,$D104,$N$8,$E104),Data!$A:$BU,MATCH(E!BD$12,Data!$A$1:$BU$1,0),FALSE) -> 0 | BF104: =VLOOKUP(CONCATENATE($N$6,$D104,$N$8,$E104),Data!$A:$BU,MATCH(E!BF$12,Data!$A$1:$BU$1,0),FALSE) -> 0 | BH104: =VLOOKUP(CONCATENATE($N$6,$D104,$N$8,$E104),Data!$A:$BU,MATCH(E!BH$12,Data!$A$1:$BU$1,0),FALSE) -> 0 | BJ104: =VLOOKUP(CONCATENATE($N$6,$D104,$N$8,$E104),Data!$A:$BU,MATCH(E!BJ$12,Data!$A$1:$BU$1,0),FALSE) -> 0
D105: Cape Verde | E105: b | F105: =VLOOKUP(CONCATENATE($N$6,$D105,$N$8,$E105),Data!$A:$BU,MATCH(E!F$12,Data!$A$1:$BU$1,0),FALSE) -> 0 | H105: =VLOOKUP(CONCATENATE($N$6,$D105,$N$8,$E105),Data!$A:$BU,MATCH(E!H$12,Data!$A$1:$BU$1,0),FALSE) -> 0 | J105: =VLOOKUP(CONCATENATE($N$6,$D105,$N$8,$E105),Data!$A:$BU,MATCH(E!J$12,Data!$A$1:$BU$1,0),FALSE) -> 0 | L105: =VLOOKUP(CONCATENATE($N$6,$D105,$N$8,$E105),Data!$A:$BU,MATCH(E!L$12,Data!$A$1:$BU$1,0),FALSE) -> 0 | N105: =VLOOKUP(CONCATENATE($N$6,$D105,$N$8,$E105),Data!$A:$BU,MATCH(E!N$12,Data!$A$1:$BU$1,0),FALSE) -> 0 | P105: =VLOOKUP(CONCATENATE($N$6,$D105,$N$8,$E105),Data!$A:$BU,MATCH(E!P$12,Data!$A$1:$BU$1,0),FALSE) -> 0 | R105: =VLOOKUP(CONCATENATE($N$6,$D105,$N$8,$E105),Data!$A:$BU,MATCH(E!R$12,Data!$A$1:$BU$1,0),FALSE) -> 0 | T105: =VLOOKUP(CONCATENATE($N$6,$D105,$N$8,$E105),Data!$A:$BU,MATCH(E!T$12,Data!$A$1:$BU$1,0),FALSE) -> 0 | V105: =VLOOKUP(CONCATENATE($N$6,$D105,$N$8,$E105),Data!$A:$BU,MATCH(E!V$12,Data!$A$1:$BU$1,0),FALSE) -> 0 | X105: =VLOOKUP(CONCATENATE($N$6,$D105,$N$8,$E105),Data!$A:$BU,MATCH(E!X$12,Data!$A$1:$BU$1,0),FALSE) -> 0 | Z105: =VLOOKUP(CONCATENATE($N$6,$D105,$N$8,$E105),Data!$A:$BU,MATCH(E!Z$12,Data!$A$1:$BU$1,0),FALSE) -> 0 | AB105: =VLOOKUP(CONCATENATE($N$6,$D105,$N$8,$E105),Data!$A:$BU,MATCH(E!AB$12,Data!$A$1:$BU$1,0),FALSE) -> 0 | AD105: =VLOOKUP(CONCATENATE($N$6,$D105,$N$8,$E105),Data!$A:$BU,MATCH(E!AD$12,Data!$A$1:$BU$1,0),FALSE) -> 0 | AF105: =VLOOKUP(CONCATENATE($N$6,$D105,$N$8,$E105),Data!$A:$BU,MATCH(E!AF$12,Data!$A$1:$BU$1,0),FALSE) -> 0 | AH105: =VLOOKUP(CONCATENATE($N$6,$D105,$N$8,$E105),Data!$A:$BU,MATCH(E!AH$12,Data!$A$1:$BU$1,0),FALSE) -> 0 | AJ105: =VLOOKUP(CONCATENATE($N$6,$D105,$N$8,$E105),Data!$A:$BU,MATCH(E!AJ$12,Data!$A$1:$BU$1,0),FALSE) -> 0 | AL105: =VLOOKUP(CONCATENATE($N$6,$D105,$N$8,$E105),Data!$A:$BU,MATCH(E!AL$12,Data!$A$1:$BU$1,0),FALSE) -> 0 | AN105: =VLOOKUP(CONCATENATE($N$6,$D105,$N$8,$E105),Data!$A:$BU,MATCH(E!AN$12,Data!$A$1:$BU$1,0),FALSE) -> 0 | AP105: =VLOOKUP(CONCATENATE($N$6,$D105,$N$8,$E105),Data!$A:$BU,MATCH(E!AP$12,Data!$A$1:$BU$1,0),FALSE) -> 0 | AR105: =VLOOKUP(CONCATENATE($N$6,$D105,$N$8,$E105),Data!$A:$BU,MATCH(E!AR$12,Data!$A$1:$BU$1,0),FALSE) -> 0 | AT105: =VLOOKUP(CONCATENATE($N$6,$D105,$N$8,$E105),Data!$A:$BU,MATCH(E!AT$12,Data!$A$1:$BU$1,0),FALSE) -> 0 | AV105: =VLOOKUP(CONCATENATE($N$6,$D105,$N$8,$E105),Data!$A:$BU,MATCH(E!AV$12,Data!$A$1:$BU$1,0),FALSE) -> 0 | AX105: =VLOOKUP(CONCATENATE($N$6,$D105,$N$8,$E105),Data!$A:$BU,MATCH(E!AX$12,Data!$A$1:$BU$1,0),FALSE) -> 0 | AZ105: =VLOOKUP(CONCATENATE($N$6,$D105,$N$8,$E105),Data!$A:$BU,MATCH(E!AZ$12,Data!$A$1:$BU$1,0),FALSE) -> 0 | BB105: =VLOOKUP(CONCATENATE($N$6,$D105,$N$8,$E105),Data!$A:$BU,MATCH(E!BB$12,Data!$A$1:$BU$1,0),FALSE) -> 0 | BD105: =VLOOKUP(CONCATENATE($N$6,$D105,$N$8,$E105),Data!$A:$BU,MATCH(E!BD$12,Data!$A$1:$BU$1,0),FALSE) -> 0 | BF105: =VLOOKUP(CONCATENATE($N$6,$D105,$N$8,$E105),Data!$A:$BU,MATCH(E!BF$12,Data!$A$1:$BU$1,0),FALSE) -> 0 | BH105: =VLOOKUP(CONCATENATE($N$6,$D105,$N$8,$E105),Data!$A:$BU,MATCH(E!BH$12,Data!$A$1:$BU$1,0),FALSE) -> 0 | BJ105: =VLOOKUP(CONCATENATE($N$6,$D105,$N$8,$E105),Data!$A:$BU,MATCH(E!BJ$12,Data!$A$1:$BU$1,0),FALSE) -> 0
D106: Cayman Islands | E106: a | F106: =VLOOKUP(CONCATENATE($N$6,$D106,$N$8,$E106),Data!$A:$BU,MATCH(E!F$12,Data!$A$1:$BU$1,0),FALSE) -> 0 | H106: =VLOOKUP(CONCATENATE($N$6,$D106,$N$8,$E106),Data!$A:$BU,MATCH(E!H$12,Data!$A$1:$BU$1,0),FALSE) -> 0 | J106: =VLOOKUP(CONCATENATE($N$6,$D106,$N$8,$E106),Data!$A:$BU,MATCH(E!J$12,Data!$A$1:$BU$1,0),FALSE) -> 0 | L106: =VLOOKUP(CONCATENATE($N$6,$D106,$N$8,$E106),Data!$A:$BU,MATCH(E!L$12,Data!$A$1:$BU$1,0),FALSE) -> 0 | N106: =VLOOKUP(CONCATENATE($N$6,$D106,$N$8,$E106),Data!$A:$BU,MATCH(E!N$12,Data!$A$1:$BU$1,0),FALSE) -> 0 | P106: =VLOOKUP(CONCATENATE($N$6,$D106,$N$8,$E106),Data!$A:$BU,MATCH(E!P$12,Data!$A$1:$BU$1,0),FALSE) -> 1 | R106: =VLOOKUP(CONCATENATE($N$6,$D106,$N$8,$E106),Data!$A:$BU,MATCH(E!R$12,Data!$A$1:$BU$1,0),FALSE) -> 0 | T106: =VLOOKUP(CONCATENATE($N$6,$D106,$N$8,$E106),Data!$A:$BU,MATCH(E!T$12,Data!$A$1:$BU$1,0),FALSE) -> 1 | V106: =VLOOKUP(CONCATENATE($N$6,$D106,$N$8,$E106),Data!$A:$BU,MATCH(E!V$12,Data!$A$1:$BU$1,0),FALSE) -> 0 | X106: =VLOOKUP(CONCATENATE($N$6,$D106,$N$8,$E106),Data!$A:$BU,MATCH(E!X$12,Data!$A$1:$BU$1,0),FALSE) -> 0 | Z106: =VLOOKUP(CONCATENATE($N$6,$D106,$N$8,$E106),Data!$A:$BU,MATCH(E!Z$12,Data!$A$1:$BU$1,0),FALSE) -> 1 | AB106: =VLOOKUP(CONCATENATE($N$6,$D106,$N$8,$E106),Data!$A:$BU,MATCH(E!AB$12,Data!$A$1:$BU$1,0),FALSE) -> 0 | AD106: =VLOOKUP(CONCATENATE($N$6,$D106,$N$8,$E106),Data!$A:$BU,MATCH(E!AD$12,Data!$A$1:$BU$1,0),FALSE) -> 0 | AF106: =VLOOKUP(CONCATENATE($N$6,$D106,$N$8,$E106),Data!$A:$BU,MATCH(E!AF$12,Data!$A$1:$BU$1,0),FALSE) -> 0 | AH106: =VLOOKUP(CONCATENATE($N$6,$D106,$N$8,$E106),Data!$A:$BU,MATCH(E!AH$12,Data!$A$1:$BU$1,0),FALSE) -> 2 | AJ106: =VLOOKUP(CONCATENATE($N$6,$D106,$N$8,$E106),Data!$A:$BU,MATCH(E!AJ$12,Data!$A$1:$BU$1,0),FALSE) -> 0 | AL106: =VLOOKUP(CONCATENATE($N$6,$D106,$N$8,$E106),Data!$A:$BU,MATCH(E!AL$12,Data!$A$1:$BU$1,0),FALSE) -> 0 | AN106: =VLOOKUP(CONCATENATE($N$6,$D106,$N$8,$E106),Data!$A:$BU,MATCH(E!AN$12,Data!$A$1:$BU$1,0),FALSE) -> 0 | AP106: =VLOOKUP(CONCATENATE($N$6,$D106,$N$8,$E106),Data!$A:$BU,MATCH(E!AP$12,Data!$A$1:$BU$1,0),FALSE) -> 0 | AR106: =VLOOKUP(CONCATENATE($N$6,$D106,$N$8,$E106),Data!$A:$BU,MATCH(E!AR$12,Data!$A$1:$BU$1,0),FALSE) -> 1 | AT106: =VLOOKUP(CONCATENATE($N$6,$D106,$N$8,$E106),Data!$A:$BU,MATCH(E!AT$12,Data!$A$1:$BU$1,0),FALSE) -> 0 | AV106: =VLOOKUP(CONCATENATE($N$6,$D106,$N$8,$E106),Data!$A:$BU,MATCH(E!AV$12,Data!$A$1:$BU$1,0),FALSE) -> 2 | AX106: =VLOOKUP(CONCATENATE($N$6,$D106,$N$8,$E106),Data!$A:$BU,MATCH(E!AX$12,Data!$A$1:$BU$1,0),FALSE) -> 0 | AZ106: =VLOOKUP(CONCATENATE($N$6,$D106,$N$8,$E106),Data!$A:$BU,MATCH(E!AZ$12,Data!$A$1:$BU$1,0),FALSE) -> 0 | BB106: =VLOOKUP(CONCATENATE($N$6,$D106,$N$8,$E106),Data!$A:$BU,MATCH(E!BB$12,Data!$A$1:$BU$1,0),FALSE) -> 0 | BD106: =VLOOKUP(CONCATENATE($N$6,$D106,$N$8,$E106),Data!$A:$BU,MATCH(E!BD$12,Data!$A$1:$BU$1,0),FALSE) -> 0 | BF106: =VLOOKUP(CONCATENATE($N$6,$D106,$N$8,$E106),Data!$A:$BU,MATCH(E!BF$12,Data!$A$1:$BU$1,0),FALSE) -> 1 | BH106: =VLOOKUP(CONCATENATE($N$6,$D106,$N$8,$E106),Data!$A:$BU,MATCH(E!BH$12,Data!$A$1:$BU$1,0),FALSE) -> 0 | BJ106: =VLOOKUP(CONCATENATE($N$6,$D106,$N$8,$E106),Data!$A:$BU,MATCH(E!BJ$12,Data!$A$1:$BU$1,0),FALSE) -> 0
D107: Cayman Islands | E107: b | F107: =VLOOKUP(CONCATENATE($N$6,$D107,$N$8,$E107),Data!$A:$BU,MATCH(E!F$12,Data!$A$1:$BU$1,0),FALSE) -> 0 | H107: =VLOOKUP(CONCATENATE($N$6,$D107,$N$8,$E107),Data!$A:$BU,MATCH(E!H$12,Data!$A$1:$BU$1,0),FALSE) -> 0 | J107: =VLOOKUP(CONCATENATE($N$6,$D107,$N$8,$E107),Data!$A:$BU,MATCH(E!J$12,Data!$A$1:$BU$1,0),FALSE) -> 0 | L107: =VLOOKUP(CONCATENATE($N$6,$D107,$N$8,$E107),Data!$A:$BU,MATCH(E!L$12,Data!$A$1:$BU$1,0),FALSE) -> 0 | N107: =VLOOKUP(CONCATENATE($N$6,$D107,$N$8,$E107),Data!$A:$BU,MATCH(E!N$12,Data!$A$1:$BU$1,0),FALSE) -> 0 | P107: =VLOOKUP(CONCATENATE($N$6,$D107,$N$8,$E107),Data!$A:$BU,MATCH(E!P$12,Data!$A$1:$BU$1,0),FALSE) -> 17938 | R107: =VLOOKUP(CONCATENATE($N$6,$D107,$N$8,$E107),Data!$A:$BU,MATCH(E!R$12,Data!$A$1:$BU$1,0),FALSE) -> 0 | T107: =VLOOKUP(CONCATENATE($N$6,$D107,$N$8,$E107),Data!$A:$BU,MATCH(E!T$12,Data!$A$1:$BU$1,0),FALSE) -> 815 | V107: =VLOOKUP(CONCATENATE($N$6,$D107,$N$8,$E107),Data!$A:$BU,MATCH(E!V$12,Data!$A$1:$BU$1,0),FALSE) -> 0 | X107: =VLOOKUP(CONCATENATE($N$6,$D107,$N$8,$E107),Data!$A:$BU,MATCH(E!X$12,Data!$A$1:$BU$1,0),FALSE) -> 0 | Z107: =VLOOKUP(CONCATENATE($N$6,$D107,$N$8,$E107),Data!$A:$BU,MATCH(E!Z$12,Data!$A$1:$BU$1,0),FALSE) -> 1940 | AB107: =VLOOKUP(CONCATENATE($N$6,$D107,$N$8,$E107),Data!$A:$BU,MATCH(E!AB$12,Data!$A$1:$BU$1,0),FALSE) -> 0 | AD107: =VLOOKUP(CONCATENATE($N$6,$D107,$N$8,$E107),Data!$A:$BU,MATCH(E!AD$12,Data!$A$1:$BU$1,0),FALSE) -> 0 | AF107: =VLOOKUP(CONCATENATE($N$6,$D107,$N$8,$E107),Data!$A:$BU,MATCH(E!AF$12,Data!$A$1:$BU$1,0),FALSE) -> 0 | AH107: =VLOOKUP(CONCATENATE($N$6,$D107,$N$8,$E107),Data!$A:$BU,MATCH(E!AH$12,Data!$A$1:$BU$1,0),FALSE) -> 2800 | AJ107: =VLOOKUP(CONCATENATE($N$6,$D107,$N$8,$E107),Data!$A:$BU,MATCH(E!AJ$12,Data!$A$1:$BU$1,0),FALSE) -> 0 | AL107: =VLOOKUP(CONCATENATE($N$6,$D107,$N$8,$E107),Data!$A:$BU,MATCH(E!AL$12,Data!$A$1:$BU$1,0),FALSE) -> 0 | AN107: =VLOOKUP(CONCATENATE($N$6,$D107,$N$8,$E107),Data!$A:$BU,MATCH(E!AN$12,Data!$A$1:$BU$1,0),FALSE) -> 0 | AP107: =VLOOKUP(CONCATENATE($N$6,$D107,$N$8,$E107),Data!$A:$BU,MATCH(E!AP$12,Data!$A$1:$BU$1,0),FALSE) -> 0 | AR107: =VLOOKUP(CONCATENATE($N$6,$D107,$N$8,$E107),Data!$A:$BU,MATCH(E!AR$12,Data!$A$1:$BU$1,0),FALSE) -> 19488 | AT107: =VLOOKUP(CONCATENATE($N$6,$D107,$N$8,$E107),Data!$A:$BU,MATCH(E!AT$12,Data!$A$1:$BU$1,0),FALSE) -> 0 | AV107: =VLOOKUP(CONCATENATE($N$6,$D107,$N$8,$E107),Data!$A:$BU,MATCH(E!AV$12,Data!$A$1:$BU$1,0),FALSE) -> 4400 | AX107: =VLOOKUP(CONCATENATE($N$6,$D107,$N$8,$E107),Data!$A:$BU,MATCH(E!AX$12,Data!$A$1:$BU$1,0),FALSE) -> 0 | AZ107: =VLOOKUP(CONCATENATE($N$6,$D107,$N$8,$E107),Data!$A:$BU,MATCH(E!AZ$12,Data!$A$1:$BU$1,0),FALSE) -> 0 | BB107: =VLOOKUP(CONCATENATE($N$6,$D107,$N$8,$E107),Data!$A:$BU,MATCH(E!BB$12,Data!$A$1:$BU$1,0),FALSE) -> 0 | BD107: =VLOOKUP(CONCATENATE($N$6,$D107,$N$8,$E107),Data!$A:$BU,MATCH(E!BD$12,Data!$A$1:$BU$1,0),FALSE) -> 0 | BF107: =VLOOKUP(CONCATENATE($N$6,$D107,$N$8,$E107),Data!$A:$BU,MATCH(E!BF$12,Data!$A$1:$BU$1,0),FALSE) -> 2400 | BH107: =VLOOKUP(CONCATENATE($N$6,$D107,$N$8,$E107),Data!$A:$BU,MATCH(E!BH$12,Data!$A$1:$BU$1,0),FALSE) -> 0 | BJ107: =VLOOKUP(CONCATENATE($N$6,$D107,$N$8,$E107),Data!$A:$BU,MATCH(E!BJ$12,Data!$A$1:$BU$1,0),FALSE) -> 0
D108: Central African Republic | E108: a | F108: =VLOOKUP(CONCATENATE($N$6,$D108,$N$8,$E108),Data!$A:$BU,MATCH(E!F$12,Data!$A$1:$BU$1,0),FALSE) -> 0 | H108: =VLOOKUP(CONCATENATE($N$6,$D108,$N$8,$E108),Data!$A:$BU,MATCH(E!H$12,Data!$A$1:$BU$1,0),FALSE) -> 0 | J108: =VLOOKUP(CONCATENATE($N$6,$D108,$N$8,$E108),Data!$A:$BU,MATCH(E!J$12,Data!$A$1:$BU$1,0),FALSE) -> 0 | L108: =VLOOKUP(CONCATENATE($N$6,$D108,$N$8,$E108),Data!$A:$BU,MATCH(E!L$12,Data!$A$1:$BU$1,0),FALSE) -> 0 | N108: =VLOOKUP(CONCATENATE($N$6,$D108,$N$8,$E108),Data!$A:$BU,MATCH(E!N$12,Data!$A$1:$BU$1,0),FALSE) -> 0 | P108: =VLOOKUP(CONCATENATE($N$6,$D108,$N$8,$E108),Data!$A:$BU,MATCH(E!P$12,Data!$A$1:$BU$1,0),FALSE) -> 0 | R108: =VLOOKUP(CONCATENATE($N$6,$D108,$N$8,$E108),Data!$A:$BU,MATCH(E!R$12,Data!$A$1:$BU$1,0),FALSE) -> 0 | T108: =VLOOKUP(CONCATENATE($N$6,$D108,$N$8,$E108),Data!$A:$BU,MATCH(E!T$12,Data!$A$1:$BU$1,0),FALSE) -> 0 | V108: =VLOOKUP(CONCATENATE($N$6,$D108,$N$8,$E108),Data!$A:$BU,MATCH(E!V$12,Data!$A$1:$BU$1,0),FALSE) -> 0 | X108: =VLOOKUP(CONCATENATE($N$6,$D108,$N$8,$E108),Data!$A:$BU,MATCH(E!X$12,Data!$A$1:$BU$1,0),FALSE) -> 2 | Z108: =VLOOKUP(CONCATENATE($N$6,$D108,$N$8,$E108),Data!$A:$BU,MATCH(E!Z$12,Data!$A$1:$BU$1,0),FALSE) -> 0 | AB108: =VLOOKUP(CONCATENATE($N$6,$D108,$N$8,$E108),Data!$A:$BU,MATCH(E!AB$12,Data!$A$1:$BU$1,0),FALSE) -> 0 | AD108: =VLOOKUP(CONCATENATE($N$6,$D108,$N$8,$E108),Data!$A:$BU,MATCH(E!AD$12,Data!$A$1:$BU$1,0),FALSE) -> 0 | AF108: =VLOOKUP(CONCATENATE($N$6,$D108,$N$8,$E108),Data!$A:$BU,MATCH(E!AF$12,Data!$A$1:$BU$1,0),FALSE) -> 0 | AH108: =VLOOKUP(CONCATENATE($N$6,$D108,$N$8,$E108),Data!$A:$BU,MATCH(E!AH$12,Data!$A$1:$BU$1,0),FALSE) -> 0 | AJ108: =VLOOKUP(CONCATENATE($N$6,$D108,$N$8,$E108),Data!$A:$BU,MATCH(E!AJ$12,Data!$A$1:$BU$1,0),FALSE) -> 0 | AL108: =VLOOKUP(CONCATENATE($N$6,$D108,$N$8,$E108),Data!$A:$BU,MATCH(E!AL$12,Data!$A$1:$BU$1,0),FALSE) -> 0 | AN108: =VLOOKUP(CONCATENATE($N$6,$D108,$N$8,$E108),Data!$A:$BU,MATCH(E!AN$12,Data!$A$1:$BU$1,0),FALSE) -> 0 | AP108: =VLOOKUP(CONCATENATE($N$6,$D108,$N$8,$E108),Data!$A:$BU,MATCH(E!AP$12,Data!$A$1:$BU$1,0),FALSE) -> 0 | AR108: =VLOOKUP(CONCATENATE($N$6,$D108,$N$8,$E108),Data!$A:$BU,MATCH(E!AR$12,Data!$A$1:$BU$1,0),FALSE) -> 0 | AT108: =VLOOKUP(CONCATENATE($N$6,$D108,$N$8,$E108),Data!$A:$BU,MATCH(E!AT$12,Data!$A$1:$BU$1,0),FALSE) -> 0 | AV108: =VLOOKUP(CONCATENATE($N$6,$D108,$N$8,$E108),Data!$A:$BU,MATCH(E!AV$12,Data!$A$1:$BU$1,0),FALSE) -> 0 | AX108: =VLOOKUP(CONCATENATE($N$6,$D108,$N$8,$E108),Data!$A:$BU,MATCH(E!AX$12,Data!$A$1:$BU$1,0),FALSE) -> 0 | AZ108: =VLOOKUP(CONCATENATE($N$6,$D108,$N$8,$E108),Data!$A:$BU,MATCH(E!AZ$12,Data!$A$1:$BU$1,0),FALSE) -> 1 | BB108: =VLOOKUP(CONCATENATE($N$6,$D108,$N$8,$E108),Data!$A:$BU,MATCH(E!BB$12,Data!$A$1:$BU$1,0),FALSE) -> 2 | BD108: =VLOOKUP(CONCATENATE($N$6,$D108,$N$8,$E108),Data!$A:$BU,MATCH(E!BD$12,Data!$A$1:$BU$1,0),FALSE) -> 2 | BF108: =VLOOKUP(CONCATENATE($N$6,$D108,$N$8,$E108),Data!$A:$BU,MATCH(E!BF$12,Data!$A$1:$BU$1,0),FALSE) -> 1 | BH108: =VLOOKUP(CONCATENATE($N$6,$D108,$N$8,$E108),Data!$A:$BU,MATCH(E!BH$12,Data!$A$1:$BU$1,0),FALSE) -> 0 | BJ108: =VLOOKUP(CONCATENATE($N$6,$D108,$N$8,$E108),Data!$A:$BU,MATCH(E!BJ$12,Data!$A$1:$BU$1,0),FALSE) -> 0
D109: Central African Republic | E109: b | F109: =VLOOKUP(CONCATENATE($N$6,$D109,$N$8,$E109),Data!$A:$BU,MATCH(E!F$12,Data!$A$1:$BU$1,0),FALSE) -> 0 | H109: =VLOOKUP(CONCATENATE($N$6,$D109,$N$8,$E109),Data!$A:$BU,MATCH(E!H$12,Data!$A$1:$BU$1,0),FALSE) -> 0 | J109: =VLOOKUP(CONCATENATE($N$6,$D109,$N$8,$E109),Data!$A:$BU,MATCH(E!J$12,Data!$A$1:$BU$1,0),FALSE) -> 0 | L109: =VLOOKUP(CONCATENATE($N$6,$D109,$N$8,$E109),Data!$A:$BU,MATCH(E!L$12,Data!$A$1:$BU$1,0),FALSE) -> 0 | N109: =VLOOKUP(CONCATENATE($N$6,$D109,$N$8,$E109),Data!$A:$BU,MATCH(E!N$12,Data!$A$1:$BU$1,0),FALSE) -> 0 | P109: =VLOOKUP(CONCATENATE($N$6,$D109,$N$8,$E109),Data!$A:$BU,MATCH(E!P$12,Data!$A$1:$BU$1,0),FALSE) -> 0 | R109: =VLOOKUP(CONCATENATE($N$6,$D109,$N$8,$E109),Data!$A:$BU,MATCH(E!R$12,Data!$A$1:$BU$1,0),FALSE) -> 0 | T109: =VLOOKUP(CONCATENATE($N$6,$D109,$N$8,$E109),Data!$A:$BU,MATCH(E!T$12,Data!$A$1:$BU$1,0),FALSE) -> 0 | V109: =VLOOKUP(CONCATENATE($N$6,$D109,$N$8,$E109),Data!$A:$BU,MATCH(E!V$12,Data!$A$1:$BU$1,0),FALSE) -> 0 | X109: =VLOOKUP(CONCATENATE($N$6,$D109,$N$8,$E109),Data!$A:$BU,MATCH(E!X$12,Data!$A$1:$BU$1,0),FALSE) -> 43600 | Z109: =VLOOKUP(CONCATENATE($N$6,$D109,$N$8,$E109),Data!$A:$BU,MATCH(E!Z$12,Data!$A$1:$BU$1,0),FALSE) -> 0 | AB109: =VLOOKUP(CONCATENATE($N$6,$D109,$N$8,$E109),Data!$A:$BU,MATCH(E!AB$12,Data!$A$1:$BU$1,0),FALSE) -> 0 | AD109: =VLOOKUP(CONCATENATE($N$6,$D109,$N$8,$E109),Data!$A:$BU,MATCH(E!AD$12,Data!$A$1:$BU$1,0),FALSE) -> 0 | AF109: =VLOOKUP(CONCATENATE($N$6,$D109,$N$8,$E109),Data!$A:$BU,MATCH(E!AF$12,Data!$A$1:$BU$1,0),FALSE) -> 0 | AH109: =VLOOKUP(CONCATENATE($N$6,$D109,$N$8,$E109),Data!$A:$BU,MATCH(E!AH$12,Data!$A$1:$BU$1,0),FALSE) -> 0 | AJ109: =VLOOKUP(CONCATENATE($N$6,$D109,$N$8,$E109),Data!$A:$BU,MATCH(E!AJ$12,Data!$A$1:$BU$1,0),FALSE) -> 0 | AL109: =VLOOKUP(CONCATENATE($N$6,$D109,$N$8,$E109),Data!$A:$BU,MATCH(E!AL$12,Data!$A$1:$BU$1,0),FALSE) -> 0 | AN109: =VLOOKUP(CONCATENATE($N$6,$D109,$N$8,$E109),Data!$A:$BU,MATCH(E!AN$12,Data!$A$1:$BU$1,0),FALSE) -> 0 | AP109: =VLOOKUP(CONCATENATE($N$6,$D109,$N$8,$E109),Data!$A:$BU,MATCH(E!AP$12,Data!$A$1:$BU$1,0),FALSE) -> 0 | AR109: =VLOOKUP(CONCATENATE($N$6,$D109,$N$8,$E109),Data!$A:$BU,MATCH(E!AR$12,Data!$A$1:$BU$1,0),FALSE) -> 0 | AT109: =VLOOKUP(CONCATENATE($N$6,$D109,$N$8,$E109),Data!$A:$BU,MATCH(E!AT$12,Data!$A$1:$BU$1,0),FALSE) -> 0 | AV109: =VLOOKUP(CONCATENATE($N$6,$D109,$N$8,$E109),Data!$A:$BU,MATCH(E!AV$12,Data!$A$1:$BU$1,0),FALSE) -> 0 | AX109: =VLOOKUP(CONCATENATE($N$6,$D109,$N$8,$E109),Data!$A:$BU,MATCH(E!AX$12,Data!$A$1:$BU$1,0),FALSE) -> 0 | AZ109: =VLOOKUP(CONCATENATE($N$6,$D109,$N$8,$E109),Data!$A:$BU,MATCH(E!AZ$12,Data!$A$1:$BU$1,0),FALSE) -> 19050 | BB109: =VLOOKUP(CONCATENATE($N$6,$D109,$N$8,$E109),Data!$A:$BU,MATCH(E!BB$12,Data!$A$1:$BU$1,0),FALSE) -> 177950 | BD109: =VLOOKUP(CONCATENATE($N$6,$D109,$N$8,$E109),Data!$A:$BU,MATCH(E!BD$12,Data!$A$1:$BU$1,0),FALSE) -> 454949 | BF109: =VLOOKUP(CONCATENATE($N$6,$D109,$N$8,$E109),Data!$A:$BU,MATCH(E!BF$12,Data!$A$1:$BU$1,0),FALSE) -> 11400 | BH109: =VLOOKUP(CONCATENATE($N$6,$D109,$N$8,$E109),Data!$A:$BU,MATCH(E!BH$12,Data!$A$1:$BU$1,0),FALSE) -> 0 | BJ109: =VLOOKUP(CONCATENATE($N$6,$D109,$N$8,$E109),Data!$A:$BU,MATCH(E!BJ$12,Data!$A$1:$BU$1,0),FALSE) -> 0
